{"text_format":"1","workbook":"xlsx","n_sheets":8,"sheets":["Setup","MD","OoP","ALMD","PrepOP","tables","matches","e-efoa"],"not_rendered":{"charts":0,"images":0,"macros":1,"external_links":0,"defined_names":11,"comments":0,"pivot_tables":0},"unopened":[],"bounds":{"document_bytes":16777216,"sheet_cells":100000,"rows_first":2000,"rows_last":500,"rows_between":2000,"halvings":0,"cell_chars":16384,"cell_head_chars":4096},"cells_cut":0,"cells_raw":0,"read":"whole","date_system":"1900"}

{"sheet":"Setup","index":0,"n_rows":34,"n_cols":26,"rows_kept":34,"cut":false,"hidden":false,"merged":[[1,3,2,3],[4,3,7,3],[10,19,11,19],[15,19,15,20],[16,19,16,20]]}
["Singles",32,null,"Θέσεις","seed",null,null,0,"seed","space pos","Index","Value"]
["Draw32_S",null,null,"3-4",{"$f":"VALUE(LEFT(F2,1))","v":3},"3 4",null,{"$f":"IF(I2=\"-\",\"-\",IF(I2>0,H1+1,0))","v":0},{"$f":"IF(J2>0,VALUE(MID($A$32,1,J2-1)),\"-\")","v":0},{"$f":"IF(LEN($A$32)>1,FIND(\" \",$A$32,1),0)","v":2},0,0]
["Διοργανωτής: ","ΣΤ' ΕΝΩΣΗ",null,null,{"$f":"VALUE(RIGHT(F2,1))","v":4},null,null,0,{"$f":"IF(J3>0,VALUE(MID($A$32,J2+1,J3-J2-1)),\"-\")","v":0},{"$f":"IF(AND(J2>0,LEN($A$32)>J2+1),FIND(\" \",$A$32,J2+1),0)","v":4},0,0,null,null,null,null,null,null,null,null,null,null,null,null,null,"Tour lookup"]
["Έδρα αγώνων: ","ΣΑ ΤΡΙΠΟΛΗΣ",null,"Θέσεις","seed",null,null,0,0,6,0,0,null,null,null,null,null,null,null,null,null,null,null,null,null,{"$f":"$B$8","v":43232}]
["grade: ","Ε3",null,"5-8",{"$f":"TRIM(LEFT(F5,(FIND(\" \",F5,1)-1)))","v":"6"},"6 5 8 7",null,0,0,8,0,0,null,null,null,null,null,null,null,null,null,null,null,null,null,{"$f":"TRIM(IF(OR($B$5=\"Παν\",$B$5=\"ΠανΑΓ\",$B$5=\"Open\",$B$5=\"OpenΑΓ\"),$B$5&\" (\"&VLOOKUP($B$4,tables!$X:$Z,3,FALSE)&\")\"&\" \"&$B$13,$B$7&\" (\"&VLOOKUP($B$4,tables!$X:$Z,3,FALSE)&\")\"))","v":"Ε3 19η (ΣΤ)"}]
["Κατηγορία: ","Α14",null,null,{"$f":"TRIM(MID(F5,(FIND(\" \",F5,1)),FIND(\" \",F5,(FIND(\" \",F5,1)+1))-(FIND(\" \",F5,1))))","v":"5"},null,null,0,0,10,0,0,null,null,null,null,null,null,null,"Tournament ID",null,null,null,null,null,{"$f":"VLOOKUP($B$4,tables!$X:$Z,2,FALSE)","v":294}]
["Τίτλος Τουρνουά: ","Ε3 19η",null,null,{"$f":"TRIM(MID(F5, (FIND(\" \",F5,(FIND(\" \",F5,1)+1))+1), (FIND(\" \",F5,(FIND(\" \",F5,(FIND(\" \",F5,1)+1))+1)))-(FIND(\" \",F5,(FIND(\" \",F5,1)+1))+1)))","v":"8"},null,null,0,0,12,0,0,null,null,null,null,null,null,null,{"$f":"$Z$9","v":{"$error":"#N/A"}},null,null,null,null,null,"S"]
["Έναρξη Κ.Τ.: ","2018-05-12",null,null,{"$f":"TRIM(RIGHT(F5,LEN(F5)-(FIND(\" \",F5,(FIND(\" \",F5,(FIND(\" \",F5,1)+1))+1)))))","v":"7"},null,null,0,0,14,0,0,null,null,null,null,null,null,null,{"$f":"LOWER(B21)","v":"ε3 19η στ α14 s md"},null,null,null,null,null,{"$f":"TRIM(IF(SUBSTITUTE($B$6,\"1\",\"\")<>$B$6,SUBSTITUTE(UPPER($B$6),\"D\",\"\"),\"\"))","v":"Α14"}]
["Λήξη τουρνουά: ","2018-05-13",null,null,null,null,null,0,0,16,0,0,null,null,null,null,null,null,null,null,null,null,null,null,null,{"$f":"VLOOKUP($Z$4&$Z$5&$Z$6&$Z$7&$Z$8,tables!$AI:$AQ,9,FALSE)","v":{"$error":"#N/A"}}]
["Βδομάδα: ",{"$f":"\"βδ.: \"&TEXT(WEEKNUM(B8,2),\"00\")&\"η\"","v":"βδ.: 19η"},null,null,null,null,null,0,0,18,0,0,null,null,null,null,null,null,null,null,null,null,null,null,null,{"$f":"VLOOKUP(B6,tables!AS1:AT51,2,FALSE)","v":6}]
["Επιδιατητής: ","ΚΑΛΟΓΡΗ Σ",null,null,null,null,null,0,{"$f":"IF(J11>0,VALUE(MID($A$32,J10+1,J11-J10-1)),\"-\")","v":0},20,0,0,null,null,null,null,null,null,null,"γραφή σκορ: ","62 76(4)"]
["Τηλέφωνο τουρνουά: ",null,null,null,null,null,null,{"$f":"IF(I12=\"-\",\"-\",IF(I12>0,H11+1,0))","v":0},0,22,0,0,null,null,null,null,null,null,null,null,"wo ret med"]
[{"$f":"IF(SUBSTITUTE($B$6,\"1\",\"\")<>$B$6, SUBSTITUTE(SUBSTITUTE(SUBSTITUTE(SUBSTITUTE(SUBSTITUTE(UPPER(LEFT($B$6)),\"A\",\"B\"),\"Α\",\"B\"),\"K\",\"G\"),\"Κ\",\"G\"),\"Μ\",\"X\"),\"\")","v":"B"},{"$f":"IF(SUBSTITUTE($B$6,\"1\",\"\")<>$B$6,VALUE(SUBSTITUTE(SUBSTITUTE(SUBSTITUTE(SUBSTITUTE(SUBSTITUTE(UPPER(LEFT($B$6,3)),\"A\",\"\"),\"Α\",\"\"),\"K\",\"\"),\"Κ\",\"\"),\"Μ\",\"\")), $B$6)","v":14},null,null,null,null,null,0,0,24,0,0]
[null,null,null,null,null,null,null,1,1,26,1,1]
[null,null,null,null,null,null,null,2,2,28,2,2]
[null,null,null,null,null,null,null,3,3,30,3,3,null,null,null,null,null,null,null," msg "]
["Χωρίς νίκη βαθμοί γύρου: ","17_32",null,null,null,null,null,4,4,32,4,4,null,null,null,null,null,null,null,{"$f":"IF(NOW()>B22,\"Invalid program!\",\"\")","v":""}]
["Πλήθος bye (0-15): ",{"$f":"COUNTBLANK(ALMD!D3:D34)","v":12},null,null,null,null,null,5,5,34,5,5]
["Θέσεις seeded: ",8,null,null,null,null,null,6,6,36,6,6]
[null,null,null,null,null,null,null,7,7,38,7,7]
["Όνομα Excel αρχείου: ",{"$f":"LOWER(IF(SUBSTITUTE($B$6,\"1\",\"\")<>$B$6, $B$5&\" \"&MID($B$10,6,2)&\"η \"&VLOOKUP($B$4,tables!$X:$Z,3,FALSE)&\" \"&LEFT($B$6)&$B$13&\" S MD\", $B$5&\" \"&MID($B$10,6,2)&\"η \"&VLOOKUP($B$4,tables!$X:$Z,3,FALSE)&\" \"&$B$13&\" S MD\"))","v":"ε3 19η στ α14 s md"},null,null,null,null,null,8,8,40,8,8]
["exp.","2018-05-31",null,null,null,null,null,9,13,43,9,13]
[null,null,null,null,null,null,null,10,9,45,10,9]
["Κλήρωση MD: ","2018-05-12T10:34:30",null,null,null,null,null,11,16,48,11,16]
[null,null,null,null,null,null,null,12,11,51,12,11]
[{"$f":"RandNumbers(3,4)","v":"3 4"},null,null,null,null,null,null,13,17,54,13,17]
[{"$f":"RandNumbers(5,8)","v":"6 5 8 7"},null,null,null,null,null,null,14,15,57,14,15]
[null,null,null,null,null,null,null,15,12,60,15,12]
[{"$f":"LEFT($A$34,$B$18*2) & LEFT($A$33,$B$19*2) & RandNumbers($B$19+1,32-$B$18) & \" \"","v":"0 0 0 0 0 0 0 0 0 0 0 0 1 2 3 4 5 6 7 8 20 11 19 10 12 18 16 17 9 14 15 13 "},null,null,null,null,null," ",16,18,63,16,18]
[null,null,null,null,null,null,null,17,14,66,17,14]
[null,null," ",null,null,null,null,18,19,69,18,19]
["0 0 0 0 0 0 0 0 0 0 0 0 1 2 3 4 5 6 7 8 13 9 16 11 17 15 12 18 14 19 10 20 ",null,null,null,null,null,null,19,10,72,19,10]
["1 2 3 4 5 6 7 8 ",null,null,null,null,null,null,20,20,75,20,20]
["0 0 0 0 0 0 0 0 0 0 0 0 0 0 0 0 0 0 0 0 0 0 0 0 0 0 0 0 0 0 0 0 0 0 0 0 0 0 0 0  "]

{"sheet":"MD","index":1,"n_rows":66,"n_cols":25,"rows_kept":66,"cut":false,"hidden":false,"merged":[[0,0,0,20],[2,9,2,11],[40,20,40,23]]}
[{"$f":"Setup!$B$3&\", \"&Setup!$B$7&\", \"&Setup!$B$4&\", \"&DAY(Setup!$B$8)&\"/\"&MONTH(Setup!$B$8)&\"-\"&DAY(Setup!$B$9)&\"/\"&MONTH(Setup!$B$9)&\"/\"&YEAR(Setup!$B$9)","v":"ΣΤ' ΕΝΩΣΗ, Ε3 19η, ΣΑ ΤΡΙΠΟΛΗΣ, 12/5-13/5/2018"},null,null,null,null,null,null,null,null,null,null,null,null,null,null,null,null,null,null,null,null,null,null,{"$f":"Setup!B6","v":"Α14"},{"$f":"\"bye: \"&COUNTIF(J5:J36,\"bye\")","v":"bye: 12"}]
[null,{"$f":"Setup!B18","v":12},null,null,null,null,null,null,{"$f":"\"αλλαγές: \"&TEXT(HOUR(NOW()),\"00\")&\":\"&TEXT(MINUTE(NOW()),\"00\")&\", \"&DAY(TODAY())&\"/\"&MONTH(TODAY())&\"/\"&YEAR(TODAY())","v":"αλλαγές: 18:18, 23/5/2018"}]
[null,null,null,null,null,null,null,null,null,32,null,null,null,null,16,null,null,8,null,null,4,null,null,"2 & w"]
["α/α",null,"ByeOrder","ByeSum","ByeCnt","από","seed","Pts","Α.Μ.","Ονοματεπώνυμο","επώνυμο","Σύλλογος"]
[1,1,null,null,0,{"$f":"IF(NOT($G5=\"-\"),VLOOKUP($G5,ALMD!$A$3:$G$34,2,FALSE),\"\")","v":0},{"$f":"VLOOKUP($B5,Setup!$K$2:$L$33,2,FALSE)","v":1},{"$f":"IF($G5>0,VLOOKUP($G5,ALMD!$A$3:$G$34,7,FALSE),0)","v":122},{"$f":"IF(Setup!$B$24=\"\",0,IF($G5>0,VLOOKUP($G5,ALMD!$A$3:$G$34,3,FALSE),0))","v":34598},{"$f":"IF($I5>0,VLOOKUP($I5,ALMD!$C$3:$G$34,2,FALSE),\"bye\")","v":"ΚΟΛΛΙΑΣ ΣΤΑΥΡΟΣ"},{"$f":"IF(NOT(I5>0),\"\",LEFT(J5,MIN(15,FIND(\" \",J5)-1))&MID(J5,FIND(\" \",J5),2))","v":"ΚΟΛΛΙΑΣ Σ"},{"$f":"IF($I5>0,VLOOKUP($I5,ALMD!$C$3:$G$34,4,FALSE),\"\")","v":"ΡΗΓΑΣ ΑΟΑ ΑΡΓΟΛΙΔΑΣ"},1,{"$f":"IF((OR(M5=1,M5=2)),IF(M5=1,I5,I6),\"\")","v":34598},{"$f":"IF((OR(M5=1,M5=2)),IF(M5=1,K5,K6),\"\")","v":"ΚΟΛΛΙΑΣ Σ"}]
[2,{"$f":"1-D6+8","v":8},{"$f":"B5","v":1},{"$f":"E6","v":1},{"$f":"IF($B$2>=C6,1,0)","v":1},{"$f":"IF(NOT($G6=\"-\"),VLOOKUP($G6,ALMD!$A$3:$G$34,2,FALSE),\"\")","v":""},{"$f":"IF($B$2>=C6,\"-\",VLOOKUP($B6,Setup!$K$2:$L$33,2,FALSE))","v":"-"},{"$f":"IF(NOT($G6=\"-\"),VLOOKUP($G6,ALMD!$A$3:$G$34,7,FALSE),0)","v":0},{"$f":"IF(Setup!$B$24=\"\",0,IF(NOT($G6=\"-\"),VLOOKUP($G6,ALMD!$A$3:$G$34,3,FALSE),0))","v":0},{"$f":"IF($I6>0,VLOOKUP($I6,ALMD!$C$3:$G$34,2,FALSE),\"bye\")","v":"bye"},{"$f":"IF(NOT(I6>0),\"\",LEFT(J6,MIN(15,FIND(\" \",J6)-1))&MID(J6,FIND(\" \",J6),2))","v":""},{"$f":"IF($I6>0,VLOOKUP($I6,ALMD!$C$3:$G$34,4,FALSE),\"\")","v":""},null,null,null,1,{"$f":"IF((OR(P6=1,P6=2)),IF(P6=1,N5,N7),\"\")","v":34598},{"$f":"IF(OR(P6=1,P6=2),IF(OR(AND(O6=\"\",I5>0,I6>0),AND(O8=\"\",I7>0,I8>0)),\"* αποτέλεσμα! *\",IF(P6=1,O5,O7)),\"\")","v":"ΚΟΛΛΙΑΣ Σ"}]
[3,{"$f":"2-D7+8","v":9},null,{"$f":"D6+E7","v":1},0,{"$f":"IF(NOT($G7=\"-\"),VLOOKUP($G7,ALMD!$A$3:$G$34,2,FALSE),\"\")","v":0},{"$f":"VLOOKUP($B7,Setup!$K$2:$L$33,2,FALSE)","v":13},{"$f":"IF($G7>0,VLOOKUP($G7,ALMD!$A$3:$G$34,7,FALSE),0)","v":14.9},{"$f":"IF(Setup!$B$24=\"\",0,IF($G7>0,VLOOKUP($G7,ALMD!$A$3:$G$34,3,FALSE),0))","v":34817},{"$f":"IF($I7>0,VLOOKUP($I7,ALMD!$C$3:$G$34,2,FALSE),\"bye\")","v":"ΤΖΟΥΤΖΟΠΟΥΛΟΣ ΘΕΜΙΣΤΟΚΛΗΣ"},"ΤΖΟΥΤΖΟΠΟΥΛΟΣ Θ",{"$f":"IF($I7>0,VLOOKUP($I7,ALMD!$C$3:$G$34,4,FALSE),\"\")","v":"ΟΑ ΚΟΡΙΝΘΟΥ"},1,{"$f":"IF((OR(M7=1,M7=2)),IF(M7=1,I7,I8),\"\")","v":34817},{"$f":"IF((OR(M7=1,M7=2)),IF(M7=1,K7,K8),\"\")","v":"ΤΖΟΥΤΖΟΠΟΥΛΟΣ Θ"},null,null,"40 42"]
[4,{"$f":"3-D8+8","v":10},15,{"$f":"D7+E8","v":1},{"$f":"IF($B$2>=C8,1,0)","v":0},{"$f":"IF(NOT($G8=\"-\"),VLOOKUP($G8,ALMD!$A$3:$G$34,2,FALSE),\"\")","v":0},{"$f":"IF($B$2>=C8,\"-\",VLOOKUP($B8,Setup!$K$2:$L$33,2,FALSE))","v":9},{"$f":"IF(NOT($G8=\"-\"),VLOOKUP($G8,ALMD!$A$3:$G$34,7,FALSE),0)","v":31},{"$f":"IF(Setup!$B$24=\"\",0,IF(NOT($G8=\"-\"),VLOOKUP($G8,ALMD!$A$3:$G$34,3,FALSE),0))","v":33450},{"$f":"IF($I8>0,VLOOKUP($I8,ALMD!$C$3:$G$34,2,FALSE),\"bye\")","v":"ΚΑΜΠΑΝΟΣ ΕΛΕΥΘΕΡΙΟΣ"},"ΚΑΜΠΑΝΟΣ Ε",{"$f":"IF($I8>0,VLOOKUP($I8,ALMD!$C$3:$G$34,4,FALSE),\"\")","v":"ΚΕΦΑΛΛΗΝΙΑΚΟΣ ΟΑ"},null,null,"41 53",null,null,null,1,{"$f":"IF((OR(S8=1,S8=2)),IF(S8=1,Q6,Q10),\"\")","v":34598},{"$f":"IF(OR(S8=1,S8=2),IF(OR(AND(R7=\"\",N5>0,N7>0),AND(R11=\"\",N9>0,N11>0)),\"* αποτέλεσμα! *\",IF(S8=1,R6,R10)),\"\")","v":"ΚΟΛΛΙΑΣ Σ"}]
[5,{"$f":"4-D9+8","v":11},null,1,0,{"$f":"IF(NOT($G9=\"-\"),VLOOKUP($G9,ALMD!$A$3:$G$34,2,FALSE),\"\")","v":0},{"$f":"VLOOKUP($B9,Setup!$K$2:$L$33,2,FALSE)","v":16},{"$f":"IF($G9>0,VLOOKUP($G9,ALMD!$A$3:$G$34,7,FALSE),0)","v":7.5},{"$f":"IF(Setup!$B$24=\"\",0,IF($G9>0,VLOOKUP($G9,ALMD!$A$3:$G$34,3,FALSE),0))","v":32578},{"$f":"IF($I9>0,VLOOKUP($I9,ALMD!$C$3:$G$34,2,FALSE),\"bye\")","v":"ΜΟΥΡΙΚΗΣ ΚΩΝΣΤΑΝΤΙΝΟΣ"},"ΜΟΥΡΙΚΗΣ Κ",{"$f":"IF($I9>0,VLOOKUP($I9,ALMD!$C$3:$G$34,4,FALSE),\"\")","v":"ΑΟ ΑΙΓΙΟΥ ΜΟΡΕΑΣ"},1,{"$f":"IF((OR(M9=1,M9=2)),IF(M9=1,I9,I10),\"\")","v":32578},{"$f":"IF((OR(M9=1,M9=2)),IF(M9=1,K9,K10),\"\")","v":"ΜΟΥΡΙΚΗΣ Κ"},null,null,null,null,null,"40 40"]
[6,{"$f":"5-D10+8","v":11},9,2,{"$f":"IF($B$2>=C10,1,0)","v":1},{"$f":"IF(NOT($G10=\"-\"),VLOOKUP($G10,ALMD!$A$3:$G$34,2,FALSE),\"\")","v":""},{"$f":"IF($B$2>=C10,\"-\",VLOOKUP($B10,Setup!$K$2:$L$33,2,FALSE))","v":"-"},{"$f":"IF(NOT($G10=\"-\"),VLOOKUP($G10,ALMD!$A$3:$G$34,7,FALSE),0)","v":0},{"$f":"IF(Setup!$B$24=\"\",0,IF(NOT($G10=\"-\"),VLOOKUP($G10,ALMD!$A$3:$G$34,3,FALSE),0))","v":0},{"$f":"IF($I10>0,VLOOKUP($I10,ALMD!$C$3:$G$34,2,FALSE),\"bye\")","v":"bye"},"",{"$f":"IF($I10>0,VLOOKUP($I10,ALMD!$C$3:$G$34,4,FALSE),\"\")","v":""},null,null,null,2,{"$f":"IF((OR(P10=1,P10=2)),IF(P10=1,N9,N11),\"\")","v":30151},{"$f":"IF(OR(P10=1,P10=2),IF(OR(AND(O10=\"\",I9>0,I10>0),AND(O12=\"\",I11>0,I12>0)),\"* αποτέλεσμα! *\",IF(P10=1,O9,O11)),\"\")","v":"ΚΑΡΑΝΑΓΝΩΣΤΗΣ Κ"}]
[7,{"$f":"6-D11+8","v":11},{"$f":"B12","v":6},3,{"$f":"IF($B$2>=C11,1,0)","v":1},{"$f":"IF(NOT($G11=\"-\"),VLOOKUP($G11,ALMD!$A$3:$G$34,2,FALSE),\"\")","v":""},{"$f":"IF($B$2>=C11,\"-\",VLOOKUP($B11,Setup!$K$2:$L$33,2,FALSE))","v":"-"},{"$f":"IF(NOT($G11=\"-\"),VLOOKUP($G11,ALMD!$A$3:$G$34,7,FALSE),0)","v":0},{"$f":"IF(Setup!$B$24=\"\",0,IF(NOT($G11=\"-\"),VLOOKUP($G11,ALMD!$A$3:$G$34,3,FALSE),0))","v":0},{"$f":"IF($I11>0,VLOOKUP($I11,ALMD!$C$3:$G$34,2,FALSE),\"bye\")","v":"bye"},"",{"$f":"IF($I11>0,VLOOKUP($I11,ALMD!$C$3:$G$34,4,FALSE),\"\")","v":""},2,{"$f":"IF((OR(M11=1,M11=2)),IF(M11=1,I11,I12),\"\")","v":30151},{"$f":"IF((OR(M11=1,M11=2)),IF(M11=1,K11,K12),\"\")","v":"ΚΑΡΑΝΑΓΝΩΣΤΗΣ Κ"},null,null,"40 40"]
[8,{"$f":"VALUE(Setup!E5)","v":6},null,3,0,{"$f":"IF(NOT($G12=\"-\"),VLOOKUP($G12,ALMD!$A$3:$G$34,2,FALSE),\"\")","v":0},{"$f":"VLOOKUP($B12,Setup!$K$2:$L$33,2,FALSE)","v":6},{"$f":"IF($G12>0,VLOOKUP($G12,ALMD!$A$3:$G$34,7,FALSE),0)","v":34},{"$f":"IF(Setup!$B$24=\"\",0,IF($G12>0,VLOOKUP($G12,ALMD!$A$3:$G$34,3,FALSE),0))","v":30151},{"$f":"IF($I12>0,VLOOKUP($I12,ALMD!$C$3:$G$34,2,FALSE),\"bye\")","v":"ΚΑΡΑΝΑΓΝΩΣΤΗΣ ΚΩΝΣΤΑΝΤΙΝΟΣ"},"ΚΑΡΑΝΑΓΝΩΣΤΗΣ Κ",{"$f":"IF($I12>0,VLOOKUP($I12,ALMD!$C$3:$G$34,4,FALSE),\"\")","v":"ΑΕΚ ΤΡΙΠΟΛΗΣ"},null,null,null,null,null,null,null,null,null,1,{"$f":"IF((OR(V12=1,V12=2)),IF(V12=1,T8,T16),\"\")","v":34598},{"$f":"IF(OR(V12=1,V12=2),IF(OR(U9=\"\",U17=\"\"),\"* αποτέλεσμα! *\",IF(V12=1,U8,U16)),\"\")","v":"ΚΟΛΛΙΑΣ Σ"}]
[9,{"$f":"VALUE(Setup!E2)","v":3},null,3,0,{"$f":"IF(NOT($G13=\"-\"),VLOOKUP($G13,ALMD!$A$3:$G$34,2,FALSE),\"\")","v":0},{"$f":"VLOOKUP($B13,Setup!$K$2:$L$33,2,FALSE)","v":3},{"$f":"IF($G13>0,VLOOKUP($G13,ALMD!$A$3:$G$34,7,FALSE),0)","v":47},{"$f":"IF(Setup!$B$24=\"\",0,IF($G13>0,VLOOKUP($G13,ALMD!$A$3:$G$34,3,FALSE),0))","v":37036},{"$f":"IF($I13>0,VLOOKUP($I13,ALMD!$C$3:$G$34,2,FALSE),\"bye\")","v":"ΛΟΥΚΑ ΝΙΚΟΛΑΟΣ"},"ΛΟΥΚΑ Ν",{"$f":"IF($I13>0,VLOOKUP($I13,ALMD!$C$3:$G$34,4,FALSE),\"\")","v":"ΑΟΑ ΠΑΤΡΩΝ"},1,{"$f":"IF((OR(M13=1,M13=2)),IF(M13=1,I13,I14),\"\")","v":37036},{"$f":"IF((OR(M13=1,M13=2)),IF(M13=1,K13,K14),\"\")","v":"ΛΟΥΚΑ Ν"},null,null,null,null,null,null,null,null,"62 61"]
[10,{"$f":"7-D14+8","v":11},{"$f":"B13","v":3},4,{"$f":"IF($B$2>=C14,1,0)","v":1},{"$f":"IF(NOT($G14=\"-\"),VLOOKUP($G14,ALMD!$A$3:$G$34,2,FALSE),\"\")","v":""},{"$f":"IF($B$2>=C14,\"-\",VLOOKUP($B14,Setup!$K$2:$L$33,2,FALSE))","v":"-"},{"$f":"IF(NOT($G14=\"-\"),VLOOKUP($G14,ALMD!$A$3:$G$34,7,FALSE),0)","v":0},{"$f":"IF(Setup!$B$24=\"\",0,IF(NOT($G14=\"-\"),VLOOKUP($G14,ALMD!$A$3:$G$34,3,FALSE),0))","v":0},{"$f":"IF($I14>0,VLOOKUP($I14,ALMD!$C$3:$G$34,2,FALSE),\"bye\")","v":"bye"},"",{"$f":"IF($I14>0,VLOOKUP($I14,ALMD!$C$3:$G$34,4,FALSE),\"\")","v":""},null,null,null,2,{"$f":"IF((OR(P14=1,P14=2)),IF(P14=1,N13,N15),\"\")","v":39823},{"$f":"IF((OR(P14=1,P14=2)),IF(P14=1,O13,O15),\"\")","v":"ΠΑΠΑΝΙΚΟΛΑΟΥ Ε"}]
[11,{"$f":"8-D15+8","v":12},null,4,0,{"$f":"IF(NOT($G15=\"-\"),VLOOKUP($G15,ALMD!$A$3:$G$34,2,FALSE),\"\")","v":0},{"$f":"VLOOKUP($B15,Setup!$K$2:$L$33,2,FALSE)","v":11},{"$f":"IF($G15>0,VLOOKUP($G15,ALMD!$A$3:$G$34,7,FALSE),0)","v":26.6},{"$f":"IF(Setup!$B$24=\"\",0,IF($G15>0,VLOOKUP($G15,ALMD!$A$3:$G$34,3,FALSE),0))","v":39823},{"$f":"IF($I15>0,VLOOKUP($I15,ALMD!$C$3:$G$34,2,FALSE),\"bye\")","v":"ΠΑΠΑΝΙΚΟΛΑΟΥ ΕΚΤΟΡΑΣ"},"ΠΑΠΑΝΙΚΟΛΑΟΥ Ε",{"$f":"IF($I15>0,VLOOKUP($I15,ALMD!$C$3:$G$34,4,FALSE),\"\")","v":"ΑΕΚ ΤΡΙΠΟΛΗΣ"},1,{"$f":"IF((OR(M15=1,M15=2)),IF(M15=1,I15,I16),\"\")","v":39823},{"$f":"IF((OR(M15=1,M15=2)),IF(M15=1,K15,K16),\"\")","v":"ΠΑΠΑΝΙΚΟΛΑΟΥ Ε"},null,null,"14 40 75"]
[12,{"$f":"9-D16+8","v":13},13,4,{"$f":"IF($B$2>=C16,1,0)","v":0},{"$f":"IF(NOT($G16=\"-\"),VLOOKUP($G16,ALMD!$A$3:$G$34,2,FALSE),\"\")","v":0},{"$f":"IF($B$2>=C16,\"-\",VLOOKUP($B16,Setup!$K$2:$L$33,2,FALSE))","v":17},{"$f":"IF(NOT($G16=\"-\"),VLOOKUP($G16,ALMD!$A$3:$G$34,7,FALSE),0)","v":7.5},{"$f":"IF(Setup!$B$24=\"\",0,IF(NOT($G16=\"-\"),VLOOKUP($G16,ALMD!$A$3:$G$34,3,FALSE),0))","v":39014},{"$f":"IF($I16>0,VLOOKUP($I16,ALMD!$C$3:$G$34,2,FALSE),\"bye\")","v":"ΓΡΑΜΜΑΤΙΚΟΣ ΜΙΛΤΙΑΔΗΣ-ΠΑΝΑΓΙΩΤΗΣ"},"ΓΡΑΜΜΑΤΙΚΟΣ Μ",{"$f":"IF($I16>0,VLOOKUP($I16,ALMD!$C$3:$G$34,4,FALSE),\"\")","v":"ΡΗΓΑΣ ΑΟΑ ΑΡΓΟΛΙΔΑΣ"},null,null,"41 40",null,null,null,2,{"$f":"IF((OR(S16=1,S16=2)),IF(S16=1,Q14,Q18),\"\")","v":36852},{"$f":"IF(OR(S16=1,S16=2),IF(OR(AND(R15=\"\",N13>0,N15>0),AND(R19=\"\",N17>0,N19>0)),\"* αποτέλεσμα! *\",IF(S16=1,R14,R18)),\"\")","v":"ΤΖΩΡΤΖΑΤΟΣ Κ"}]
[13,{"$f":"10-D17+8","v":14},null,4,0,{"$f":"IF(NOT($G17=\"-\"),VLOOKUP($G17,ALMD!$A$3:$G$34,2,FALSE),\"\")","v":0},{"$f":"VLOOKUP($B17,Setup!$K$2:$L$33,2,FALSE)","v":15},{"$f":"IF($G17>0,VLOOKUP($G17,ALMD!$A$3:$G$34,7,FALSE),0)","v":10},{"$f":"IF(Setup!$B$24=\"\",0,IF($G17>0,VLOOKUP($G17,ALMD!$A$3:$G$34,3,FALSE),0))","v":37284},{"$f":"IF($I17>0,VLOOKUP($I17,ALMD!$C$3:$G$34,2,FALSE),\"bye\")","v":"ΑΔΑΜΟΠΟΥΛΟΣ ΙΩΑΝΝΗΣ"},"ΑΔΑΜΟΠΟΥΛΟΣ Ι",{"$f":"IF($I17>0,VLOOKUP($I17,ALMD!$C$3:$G$34,4,FALSE),\"\")","v":"ΑΟ ΑΙΓΙΟΥ ΜΟΡΕΑΣ"},1,{"$f":"IF((OR(M17=1,M17=2)),IF(M17=1,I17,I18),\"\")","v":37284},{"$f":"IF((OR(M17=1,M17=2)),IF(M17=1,K17,K18),\"\")","v":"ΑΔΑΜΟΠΟΥΛΟΣ Ι"},null,null,null,null,null,"24 53 74"]
[14,{"$f":"11-D18+8","v":14},11,5,{"$f":"IF($B$2>=C18,1,0)","v":1},{"$f":"IF(NOT($G18=\"-\"),VLOOKUP($G18,ALMD!$A$3:$G$34,2,FALSE),\"\")","v":""},{"$f":"IF($B$2>=C18,\"-\",VLOOKUP($B18,Setup!$K$2:$L$33,2,FALSE))","v":"-"},{"$f":"IF(NOT($G18=\"-\"),VLOOKUP($G18,ALMD!$A$3:$G$34,7,FALSE),0)","v":0},{"$f":"IF(Setup!$B$24=\"\",0,IF(NOT($G18=\"-\"),VLOOKUP($G18,ALMD!$A$3:$G$34,3,FALSE),0))","v":0},{"$f":"IF($I18>0,VLOOKUP($I18,ALMD!$C$3:$G$34,2,FALSE),\"bye\")","v":"bye"},"",{"$f":"IF($I18>0,VLOOKUP($I18,ALMD!$C$3:$G$34,4,FALSE),\"\")","v":""},null,null,null,2,{"$f":"IF((OR(P18=1,P18=2)),IF(P18=1,N17,N19),\"\")","v":36852},{"$f":"IF(OR(P18=1,P18=2),IF(OR(AND(O18=\"\",I17>0,I18>0),AND(O20=\"\",I19>0,I20>0)),\"* αποτέλεσμα! *\",IF(P18=1,O17,O19)),\"\")","v":"ΤΖΩΡΤΖΑΤΟΣ Κ"}]
[15,{"$f":"12-D19+8","v":14},{"$f":"B20","v":5},6,{"$f":"IF($B$2>=C19,1,0)","v":1},{"$f":"IF(NOT($G19=\"-\"),VLOOKUP($G19,ALMD!$A$3:$G$34,2,FALSE),\"\")","v":""},{"$f":"IF($B$2>=C19,\"-\",VLOOKUP($B19,Setup!$K$2:$L$33,2,FALSE))","v":"-"},{"$f":"IF(NOT($G19=\"-\"),VLOOKUP($G19,ALMD!$A$3:$G$34,7,FALSE),0)","v":0},{"$f":"IF(Setup!$B$24=\"\",0,IF(NOT($G19=\"-\"),VLOOKUP($G19,ALMD!$A$3:$G$34,3,FALSE),0))","v":0},{"$f":"IF($I19>0,VLOOKUP($I19,ALMD!$C$3:$G$34,2,FALSE),\"bye\")","v":"bye"},"",{"$f":"IF($I19>0,VLOOKUP($I19,ALMD!$C$3:$G$34,4,FALSE),\"\")","v":""},2,{"$f":"IF((OR(M19=1,M19=2)),IF(M19=1,I19,I20),\"\")","v":36852},{"$f":"IF((OR(M19=1,M19=2)),IF(M19=1,K19,K20),\"\")","v":"ΤΖΩΡΤΖΑΤΟΣ Κ"},null,null,"40 40"]
[16,{"$f":"VALUE(Setup!E6)","v":5},null,6,0,{"$f":"IF(NOT($G20=\"-\"),VLOOKUP($G20,ALMD!$A$3:$G$34,2,FALSE),\"\")","v":0},{"$f":"VLOOKUP($B20,Setup!$K$2:$L$33,2,FALSE)","v":5},{"$f":"IF($G20>0,VLOOKUP($G20,ALMD!$A$3:$G$34,7,FALSE),0)","v":36},{"$f":"IF(Setup!$B$24=\"\",0,IF($G20>0,VLOOKUP($G20,ALMD!$A$3:$G$34,3,FALSE),0))","v":36852},{"$f":"IF($I20>0,VLOOKUP($I20,ALMD!$C$3:$G$34,2,FALSE),\"bye\")","v":"ΤΖΩΡΤΖΑΤΟΣ ΚΩΝΣΤΑΝΤΙΝΟΣ"},"ΤΖΩΡΤΖΑΤΟΣ Κ",{"$f":"IF($I20>0,VLOOKUP($I20,ALMD!$C$3:$G$34,4,FALSE),\"\")","v":"ΑΟΑ ΠΑΤΡΩΝ"},null,null,null,null,null,null,null,null,null,1,{"$f":"IF((OR(V20=1,V20=2)),IF(V20=1,W12,W28),\"\")","v":34598},{"$f":"IF((OR(V20=1,V20=2)),IF(V20=1,X12,X28),\"\")","v":"ΚΟΛΛΙΑΣ Σ"}]
[17,{"$f":"VALUE(Setup!E7)","v":8},null,6,0,{"$f":"IF(NOT($G21=\"-\"),VLOOKUP($G21,ALMD!$A$3:$G$34,2,FALSE),\"\")","v":0},{"$f":"VLOOKUP($B21,Setup!$K$2:$L$33,2,FALSE)","v":8},{"$f":"IF($G21>0,VLOOKUP($G21,ALMD!$A$3:$G$34,7,FALSE),0)","v":31.5},{"$f":"IF(Setup!$B$24=\"\",0,IF($G21>0,VLOOKUP($G21,ALMD!$A$3:$G$34,3,FALSE),0))","v":37444},{"$f":"IF($I21>0,VLOOKUP($I21,ALMD!$C$3:$G$34,2,FALSE),\"bye\")","v":"ΝΙΚΟΛΑΟΥ ΑΓΓΕΛΟΣ"},"ΝΙΚΟΛΑΟΥ Α",{"$f":"IF($I21>0,VLOOKUP($I21,ALMD!$C$3:$G$34,4,FALSE),\"\")","v":"ΑΟΑ ΠΑΤΡΩΝ"},1,{"$f":"IF((OR(M21=1,M21=2)),IF(M21=1,I21,I22),\"\")","v":37444},{"$f":"IF((OR(M21=1,M21=2)),IF(M21=1,K21,K22),\"\")","v":"ΝΙΚΟΛΑΟΥ Α"},null,null,null,null,null,null,null,null,"64 46 64"]
[18,{"$f":"13-D22+8","v":14},{"$f":"B21","v":8},7,{"$f":"IF($B$2>=C22,1,0)","v":1},{"$f":"IF(NOT($G22=\"-\"),VLOOKUP($G22,ALMD!$A$3:$G$34,2,FALSE),\"\")","v":""},{"$f":"IF($B$2>=C22,\"-\",VLOOKUP($B22,Setup!$K$2:$L$33,2,FALSE))","v":"-"},{"$f":"IF(NOT($G22=\"-\"),VLOOKUP($G22,ALMD!$A$3:$G$34,7,FALSE),0)","v":0},{"$f":"IF(Setup!$B$24=\"\",0,IF(NOT($G22=\"-\"),VLOOKUP($G22,ALMD!$A$3:$G$34,3,FALSE),0))","v":0},{"$f":"IF($I22>0,VLOOKUP($I22,ALMD!$C$3:$G$34,2,FALSE),\"bye\")","v":"bye"},"",{"$f":"IF($I22>0,VLOOKUP($I22,ALMD!$C$3:$G$34,4,FALSE),\"\")","v":""},null,null,null,1,{"$f":"IF((OR(P22=1,P22=2)),IF(P22=1,N21,N23),\"\")","v":37444},{"$f":"IF(OR(P22=1,P22=2),IF(OR(AND(O22=\"\",I21>0,I22>0),AND(O24=\"\",I23>0,I24>0)),\"* αποτέλεσμα! *\",IF(P22=1,O21,O23)),\"\")","v":"ΝΙΚΟΛΑΟΥ Α"}]
[19,{"$f":"14-D23+8","v":15},null,7,0,{"$f":"IF(NOT($G23=\"-\"),VLOOKUP($G23,ALMD!$A$3:$G$34,2,FALSE),\"\")","v":0},{"$f":"VLOOKUP($B23,Setup!$K$2:$L$33,2,FALSE)","v":12},{"$f":"IF($G23>0,VLOOKUP($G23,ALMD!$A$3:$G$34,7,FALSE),0)","v":17.5},{"$f":"IF(Setup!$B$24=\"\",0,IF($G23>0,VLOOKUP($G23,ALMD!$A$3:$G$34,3,FALSE),0))","v":33991},{"$f":"IF($I23>0,VLOOKUP($I23,ALMD!$C$3:$G$34,2,FALSE),\"bye\")","v":"ΛΑΜΠΡΟΠΟΥΛΟΣ ΜΙΧΑΗΛ"},"ΛΑΜΠΡΟΠΟΥΛΟΣ Μ",{"$f":"IF($I23>0,VLOOKUP($I23,ALMD!$C$3:$G$34,4,FALSE),\"\")","v":"ΑΕΚ ΤΡΙΠΟΛΗΣ"},1,{"$f":"IF((OR(M23=1,M23=2)),IF(M23=1,I23,I24),\"\")","v":33991},{"$f":"IF((OR(M23=1,M23=2)),IF(M23=1,K23,K24),\"\")","v":"ΛΑΜΠΡΟΠΟΥΛΟΣ Μ"},null,null,"40 40"]
[20,{"$f":"15-D24+8","v":15},12,8,{"$f":"IF($B$2>=C24,1,0)","v":1},{"$f":"IF(NOT($G24=\"-\"),VLOOKUP($G24,ALMD!$A$3:$G$34,2,FALSE),\"\")","v":""},{"$f":"IF($B$2>=C24,\"-\",VLOOKUP($B24,Setup!$K$2:$L$33,2,FALSE))","v":"-"},{"$f":"IF(NOT($G24=\"-\"),VLOOKUP($G24,ALMD!$A$3:$G$34,7,FALSE),0)","v":0},{"$f":"IF(Setup!$B$24=\"\",0,IF(NOT($G24=\"-\"),VLOOKUP($G24,ALMD!$A$3:$G$34,3,FALSE),0))","v":0},{"$f":"IF($I24>0,VLOOKUP($I24,ALMD!$C$3:$G$34,2,FALSE),\"bye\")","v":"bye"},"",{"$f":"IF($I24>0,VLOOKUP($I24,ALMD!$C$3:$G$34,4,FALSE),\"\")","v":""},null,null,null,null,null,null,2,{"$f":"IF((OR(S24=1,S24=2)),IF(S24=1,Q22,Q26),\"\")","v":36030},{"$f":"IF(OR(S24=1,S24=2),IF(OR(AND(R23=\"\",N21>0,N23>0),AND(R27=\"\",N25>0,N27>0)),\"* αποτέλεσμα! *\",IF(S24=1,R22,R26)),\"\")","v":"ΤΟΥΝΤΑΣ Μ"}]
[21,{"$f":"16-D25+8","v":16},null,8,0,{"$f":"IF(NOT($G25=\"-\"),VLOOKUP($G25,ALMD!$A$3:$G$34,2,FALSE),\"\")","v":0},{"$f":"VLOOKUP($B25,Setup!$K$2:$L$33,2,FALSE)","v":18},{"$f":"IF($G25>0,VLOOKUP($G25,ALMD!$A$3:$G$34,7,FALSE),0)","v":6},{"$f":"IF(Setup!$B$24=\"\",0,IF($G25>0,VLOOKUP($G25,ALMD!$A$3:$G$34,3,FALSE),0))","v":31630},{"$f":"IF($I25>0,VLOOKUP($I25,ALMD!$C$3:$G$34,2,FALSE),\"bye\")","v":"ΓΙΑΝΝΑΚΟΠΟΥΛΟΣ ΔΗΜΗΤΡΙΟΣ"},"ΓΙΑΝΝΑΚΟΠΟΥΛΟΣ Δ",{"$f":"IF($I25>0,VLOOKUP($I25,ALMD!$C$3:$G$34,4,FALSE),\"\")","v":"ΡΗΓΑΣ ΑΟΑ ΑΡΓΟΛΙΔΑΣ"},1,{"$f":"IF((OR(M25=1,M25=2)),IF(M25=1,I25,I26),\"\")","v":31630},{"$f":"IF((OR(M25=1,M25=2)),IF(M25=1,K25,K26),\"\")","v":"ΓΙΑΝΝΑΚΟΠΟΥΛΟΣ Δ"},null,null,null,null,null,"42 41"]
[22,{"$f":"17-D26+8","v":17},14,8,{"$f":"IF($B$2>=C26,1,0)","v":0},{"$f":"IF(NOT($G26=\"-\"),VLOOKUP($G26,ALMD!$A$3:$G$34,2,FALSE),\"\")","v":0},{"$f":"IF($B$2>=C26,\"-\",VLOOKUP($B26,Setup!$K$2:$L$33,2,FALSE))","v":14},{"$f":"IF(NOT($G26=\"-\"),VLOOKUP($G26,ALMD!$A$3:$G$34,7,FALSE),0)","v":14.8},{"$f":"IF(Setup!$B$24=\"\",0,IF(NOT($G26=\"-\"),VLOOKUP($G26,ALMD!$A$3:$G$34,3,FALSE),0))","v":33992},{"$f":"IF($I26>0,VLOOKUP($I26,ALMD!$C$3:$G$34,2,FALSE),\"bye\")","v":"ΛΑΜΠΡΟΠΟΥΛΟΣ ΑΓΓΕΛΟΣ"},"ΛΑΜΠΡΟΠΟΥΛΟΣ Α",{"$f":"IF($I26>0,VLOOKUP($I26,ALMD!$C$3:$G$34,4,FALSE),\"\")","v":"ΑΕΚ ΤΡΙΠΟΛΗΣ"},null,null,"41 41",2,{"$f":"IF((OR(P26=1,P26=2)),IF(P26=1,N25,N27),\"\")","v":36030},{"$f":"IF(OR(P26=1,P26=2),IF(OR(AND(O26=\"\",I25>0,I26>0),AND(O28=\"\",I27>0,I28>0)),\"* αποτέλεσμα! *\",IF(P26=1,O25,O27)),\"\")","v":"ΤΟΥΝΤΑΣ Μ"}]
[23,{"$f":"18-D27+8","v":17},{"$f":"B28","v":4},9,{"$f":"IF($B$2>=C27,1,0)","v":1},{"$f":"IF(NOT($G27=\"-\"),VLOOKUP($G27,ALMD!$A$3:$G$34,2,FALSE),\"\")","v":""},{"$f":"IF($B$2>=C27,\"-\",VLOOKUP($B27,Setup!$K$2:$L$33,2,FALSE))","v":"-"},{"$f":"IF(NOT($G27=\"-\"),VLOOKUP($G27,ALMD!$A$3:$G$34,7,FALSE),0)","v":0},{"$f":"IF(Setup!$B$24=\"\",0,IF(NOT($G27=\"-\"),VLOOKUP($G27,ALMD!$A$3:$G$34,3,FALSE),0))","v":0},{"$f":"IF($I27>0,VLOOKUP($I27,ALMD!$C$3:$G$34,2,FALSE),\"bye\")","v":"bye"},"",{"$f":"IF($I27>0,VLOOKUP($I27,ALMD!$C$3:$G$34,4,FALSE),\"\")","v":""},2,{"$f":"IF((OR(M27=1,M27=2)),IF(M27=1,I27,I28),\"\")","v":36030},{"$f":"IF((OR(M27=1,M27=2)),IF(M27=1,K27,K28),\"\")","v":"ΤΟΥΝΤΑΣ Μ"},null,null,"24 40 73"]
[24,{"$f":"VALUE(Setup!E3)","v":4},null,9,0,{"$f":"IF(NOT($G28=\"-\"),VLOOKUP($G28,ALMD!$A$3:$G$34,2,FALSE),\"\")","v":0},{"$f":"VLOOKUP($B28,Setup!$K$2:$L$33,2,FALSE)","v":4},{"$f":"IF($G28>0,VLOOKUP($G28,ALMD!$A$3:$G$34,7,FALSE),0)","v":39.5},{"$f":"IF(Setup!$B$24=\"\",0,IF($G28>0,VLOOKUP($G28,ALMD!$A$3:$G$34,3,FALSE),0))","v":36030},{"$f":"IF($I28>0,VLOOKUP($I28,ALMD!$C$3:$G$34,2,FALSE),\"bye\")","v":"ΤΟΥΝΤΑΣ ΜΑΡΙΟΣ"},"ΤΟΥΝΤΑΣ Μ",{"$f":"IF($I28>0,VLOOKUP($I28,ALMD!$C$3:$G$34,4,FALSE),\"\")","v":"ΡΗΓΑΣ ΑΟΑ ΑΡΓΟΛΙΔΑΣ"},null,null,null,null,null,null,null,null,null,1,{"$f":"IF((OR(V28=1,V28=2)),IF(V28=1,T24,T32),\"\")","v":36030},{"$f":"IF(OR(V28=1,V28=2),IF(OR(U25=\"\",U33=\"\"),\"* αποτέλεσμα! *\",IF(V28=1,U24,U32)),\"\")","v":"ΤΟΥΝΤΑΣ Μ"}]
[25,{"$f":"VALUE(Setup!E8)","v":7},null,9,0,{"$f":"IF(NOT($G29=\"-\"),VLOOKUP($G29,ALMD!$A$3:$G$34,2,FALSE),\"\")","v":0},{"$f":"VLOOKUP($B29,Setup!$K$2:$L$33,2,FALSE)","v":7},{"$f":"IF($G29>0,VLOOKUP($G29,ALMD!$A$3:$G$34,7,FALSE),0)","v":33},{"$f":"IF(Setup!$B$24=\"\",0,IF($G29>0,VLOOKUP($G29,ALMD!$A$3:$G$34,3,FALSE),0))","v":36853},{"$f":"IF($I29>0,VLOOKUP($I29,ALMD!$C$3:$G$34,2,FALSE),\"bye\")","v":"ΜΑΛΕΒΙΤΗΣ ΓΡΗΓΟΡΗΣ"},"ΜΑΛΕΒΙΤΗΣ Γ",{"$f":"IF($I29>0,VLOOKUP($I29,ALMD!$C$3:$G$34,4,FALSE),\"\")","v":"ΑΟΑ ΠΑΤΡΩΝ"},1,{"$f":"IF((OR(M29=1,M29=2)),IF(M29=1,I29,I30),\"\")","v":36853},{"$f":"IF((OR(M29=1,M29=2)),IF(M29=1,K29,K30),\"\")","v":"ΜΑΛΕΒΙΤΗΣ Γ"},null,null,null,null,null,null,null,null,"64 61"]
[26,{"$f":"19-D30+8","v":17},{"$f":"B29","v":7},10,{"$f":"IF($B$2>=C30,1,0)","v":1},{"$f":"IF(NOT($G30=\"-\"),VLOOKUP($G30,ALMD!$A$3:$G$34,2,FALSE),\"\")","v":""},{"$f":"IF($B$2>=C30,\"-\",VLOOKUP($B30,Setup!$K$2:$L$33,2,FALSE))","v":"-"},{"$f":"IF(NOT($G30=\"-\"),VLOOKUP($G30,ALMD!$A$3:$G$34,7,FALSE),0)","v":0},{"$f":"IF(Setup!$B$24=\"\",0,IF(NOT($G30=\"-\"),VLOOKUP($G30,ALMD!$A$3:$G$34,3,FALSE),0))","v":0},{"$f":"IF($I30>0,VLOOKUP($I30,ALMD!$C$3:$G$34,2,FALSE),\"bye\")","v":"bye"},"",{"$f":"IF($I30>0,VLOOKUP($I30,ALMD!$C$3:$G$34,4,FALSE),\"\")","v":""},null,null,null,1,{"$f":"IF((OR(P30=1,P30=2)),IF(P30=1,N29,N31),\"\")","v":36853},{"$f":"IF(OR(P30=1,P30=2),IF(OR(AND(O30=\"\",I29>0,I30>0),AND(O32=\"\",I31>0,I32>0)),\"* αποτέλεσμα! *\",IF(P30=1,O29,O31)),\"\")","v":"ΜΑΛΕΒΙΤΗΣ Γ"}]
[27,{"$f":"20-D31+8","v":18},null,10,0,{"$f":"IF(NOT($G31=\"-\"),VLOOKUP($G31,ALMD!$A$3:$G$34,2,FALSE),\"\")","v":0},{"$f":"VLOOKUP($B31,Setup!$K$2:$L$33,2,FALSE)","v":19},{"$f":"IF($G31>0,VLOOKUP($G31,ALMD!$A$3:$G$34,7,FALSE),0)","v":4.5},{"$f":"IF(Setup!$B$24=\"\",0,IF($G31>0,VLOOKUP($G31,ALMD!$A$3:$G$34,3,FALSE),0))","v":36997},{"$f":"IF($I31>0,VLOOKUP($I31,ALMD!$C$3:$G$34,2,FALSE),\"bye\")","v":"ΜΠΑΚΑΛΟΣ ΑΘΑΝΑΣΙΟΣ-ΕΦΡΑΙΜ"},"ΜΠΑΚΑΛΟΣ Α",{"$f":"IF($I31>0,VLOOKUP($I31,ALMD!$C$3:$G$34,4,FALSE),\"\")","v":"ΟΑ ΚΟΡΙΝΘΟΥ"},1,{"$f":"IF((OR(M31=1,M31=2)),IF(M31=1,I31,I32),\"\")","v":36997},{"$f":"IF((OR(M31=1,M31=2)),IF(M31=1,K31,K32),\"\")","v":"ΜΠΑΚΑΛΟΣ Α"},null,null,"40 40"]
[28,{"$f":"21-D32+8","v":18},10,11,{"$f":"IF($B$2>=C32,1,0)","v":1},{"$f":"IF(NOT($G32=\"-\"),VLOOKUP($G32,ALMD!$A$3:$G$34,2,FALSE),\"\")","v":""},{"$f":"IF($B$2>=C32,\"-\",VLOOKUP($B32,Setup!$K$2:$L$33,2,FALSE))","v":"-"},{"$f":"IF(NOT($G32=\"-\"),VLOOKUP($G32,ALMD!$A$3:$G$34,7,FALSE),0)","v":0},{"$f":"IF(Setup!$B$24=\"\",0,IF(NOT($G32=\"-\"),VLOOKUP($G32,ALMD!$A$3:$G$34,3,FALSE),0))","v":0},{"$f":"IF($I32>0,VLOOKUP($I32,ALMD!$C$3:$G$34,2,FALSE),\"bye\")","v":"bye"},"",{"$f":"IF($I32>0,VLOOKUP($I32,ALMD!$C$3:$G$34,4,FALSE),\"\")","v":""},null,null,null,null,null,null,2,{"$f":"IF((OR(S32=1,S32=2)),IF(S32=1,Q30,Q34),\"\")","v":36854},{"$f":"IF(OR(S32=1,S32=2),IF(OR(AND(R31=\"\",N29>0,N31>0),AND(R35=\"\",N33>0,N35>0)),\"* αποτέλεσμα! *\",IF(S32=1,R30,R34)),\"\")","v":"ΚΥΡΙΑΚΟΠΟΥΛΟΣ Α"}]
[29,{"$f":"22-D33+8","v":19},null,11,0,{"$f":"IF(NOT($G33=\"-\"),VLOOKUP($G33,ALMD!$A$3:$G$34,2,FALSE),\"\")","v":0},{"$f":"VLOOKUP($B33,Setup!$K$2:$L$33,2,FALSE)","v":10},{"$f":"IF($G33>0,VLOOKUP($G33,ALMD!$A$3:$G$34,7,FALSE),0)","v":30},{"$f":"IF(Setup!$B$24=\"\",0,IF($G33>0,VLOOKUP($G33,ALMD!$A$3:$G$34,3,FALSE),0))","v":31771},{"$f":"IF($I33>0,VLOOKUP($I33,ALMD!$C$3:$G$34,2,FALSE),\"bye\")","v":"ΓΚΟΥΝΤΑΝΗΣ ΒΑΣΙΛΗΣ"},"ΓΚΟΥΝΤΑΝΗΣ Β",{"$f":"IF($I33>0,VLOOKUP($I33,ALMD!$C$3:$G$34,4,FALSE),\"\")","v":"ΣΑ ΤΡΙΠΟΛΗΣ"},1,{"$f":"IF((OR(M33=1,M33=2)),IF(M33=1,I33,I34),\"\")","v":31771},{"$f":"IF((OR(M33=1,M33=2)),IF(M33=1,K33,K34),\"\")","v":"ΓΚΟΥΝΤΑΝΗΣ Β"},null,null,null,null,null,"41 40"]
[30,{"$f":"23-D34+8","v":20},16,11,{"$f":"IF($B$2>=C34,1,0)","v":0},{"$f":"IF(NOT($G34=\"-\"),VLOOKUP($G34,ALMD!$A$3:$G$34,2,FALSE),\"\")","v":0},{"$f":"IF($B$2>=C34,\"-\",VLOOKUP($B34,Setup!$K$2:$L$33,2,FALSE))","v":20},{"$f":"IF(NOT($G34=\"-\"),VLOOKUP($G34,ALMD!$A$3:$G$34,7,FALSE),0)","v":3},{"$f":"IF(Setup!$B$24=\"\",0,IF(NOT($G34=\"-\"),VLOOKUP($G34,ALMD!$A$3:$G$34,3,FALSE),0))","v":38866},{"$f":"IF($I34>0,VLOOKUP($I34,ALMD!$C$3:$G$34,2,FALSE),\"bye\")","v":"ΝΤΟΥΛΙΑΣ ΛΕΩΝΙΔΑΣ"},"ΝΤΟΥΛΙΑΣ Λ",{"$f":"IF($I34>0,VLOOKUP($I34,ALMD!$C$3:$G$34,4,FALSE),\"\")","v":"ΡΗΓΑΣ ΑΟΑ ΑΡΓΟΛΙΔΑΣ"},null,null,"41 42",2,{"$f":"IF((OR(P34=1,P34=2)),IF(P34=1,N33,N35),\"\")","v":36854},{"$f":"IF(OR(P34=1,P34=2),IF(OR(AND(O34=\"\",I33>0,I34>0),AND(O36=\"\",I35>0,I36>0)),\"* αποτέλεσμα! *\",IF(P34=1,O33,O35)),\"\")","v":"ΚΥΡΙΑΚΟΠΟΥΛΟΣ Α"}]
[31,{"$f":"24-D35+8","v":20},{"$f":"B36","v":2},12,{"$f":"IF($B$2>=C35,1,0)","v":1},{"$f":"IF(NOT($G35=\"-\"),VLOOKUP($G35,ALMD!$A$3:$G$34,2,FALSE),\"\")","v":""},{"$f":"IF($B$2>=C35,\"-\",VLOOKUP($B35,Setup!$K$2:$L$33,2,FALSE))","v":"-"},{"$f":"IF(NOT($G35=\"-\"),VLOOKUP($G35,ALMD!$A$3:$G$34,7,FALSE),0)","v":0},{"$f":"IF(Setup!$B$24=\"\",0,IF(NOT($G35=\"-\"),VLOOKUP($G35,ALMD!$A$3:$G$34,3,FALSE),0))","v":0},{"$f":"IF($I35>0,VLOOKUP($I35,ALMD!$C$3:$G$34,2,FALSE),\"bye\")","v":"bye"},"",{"$f":"IF($I35>0,VLOOKUP($I35,ALMD!$C$3:$G$34,4,FALSE),\"\")","v":""},2,{"$f":"IF((OR(M35=1,M35=2)),IF(M35=1,I35,I36),\"\")","v":36854},{"$f":"IF((OR(M35=1,M35=2)),IF(M35=1,K35,K36),\"\")","v":"ΚΥΡΙΑΚΟΠΟΥΛΟΣ Α"},null,null,"40 53"]
[32,2,null,12,0,{"$f":"IF(NOT($G36=\"-\"),VLOOKUP($G36,ALMD!$A$3:$G$34,2,FALSE),\"\")","v":0},{"$f":"VLOOKUP($B36,Setup!$K$2:$L$33,2,FALSE)","v":2},{"$f":"IF($G36>0,VLOOKUP($G36,ALMD!$A$3:$G$34,7,FALSE),0)","v":68},{"$f":"IF(Setup!$B$24=\"\",0,IF($G36>0,VLOOKUP($G36,ALMD!$A$3:$G$34,3,FALSE),0))","v":36854},{"$f":"IF($I36>0,VLOOKUP($I36,ALMD!$C$3:$G$34,2,FALSE),\"bye\")","v":"ΚΥΡΙΑΚΟΠΟΥΛΟΣ ΑΝΔΡΕΑΣ"},"ΚΥΡΙΑΚΟΠΟΥΛΟΣ Α",{"$f":"IF($I36>0,VLOOKUP($I36,ALMD!$C$3:$G$34,4,FALSE),\"\")","v":"ΑΟΑ ΠΑΤΡΩΝ"}]
[null,null,null,null,null,null,null,null,null,null,null,null,null,null,null,null,null," ",null,null," ",null,null," "]
[null,null,null,null,null,null,null,null,null,"seeded players"]
[null,null,null,null,null,null,null,null,null,{"$f":"\"1. \" & IF(Setup!B19>0,LEFT(ALMD!D3,FIND(\" \",ALMD!D3)+1),\"\")","v":"1. ΚΟΛΛΙΑΣ Σ"},null,{"$f":"\"5. \" & IF(Setup!B19>4,LEFT(ALMD!D7,FIND(\" \",ALMD!D7)+1),\"\")","v":"5. ΤΖΩΡΤΖΑΤΟΣ Κ"}]
[null,null,null,null,null,null,null,null,null,{"$f":"\"2. \" & IF(Setup!B19>1,LEFT(ALMD!D4,FIND(\" \",ALMD!D4)+1),\"\")","v":"2. ΚΥΡΙΑΚΟΠΟΥΛΟΣ Α"},null,{"$f":"\"6. \" & IF(Setup!B19>5,LEFT(ALMD!D8,FIND(\" \",ALMD!D8)+1),\"\")","v":"6. ΚΑΡΑΝΑΓΝΩΣΤΗΣ Κ"},null,null,null,null,null,null,null,null,"επιδιαιτητής"]
[null,null,null,null,null,null,null,null,null,{"$f":"\"3. \" & IF(Setup!B19>2,LEFT(ALMD!D5,FIND(\" \",ALMD!D5)+1),\"\")","v":"3. ΛΟΥΚΑ Ν"},null,{"$f":"\"7. \" & IF(Setup!B19>6,LEFT(ALMD!D9,FIND(\" \",ALMD!D9)+1),\"\")","v":"7. ΜΑΛΕΒΙΤΗΣ Γ"},null,null,null,null,null,null,null,null,{"$f":"IF(Setup!$B$11>\" \",Setup!$B$11,\"ΧΩΡΙΣ ΑΔΕΙΑ ΧΡΗΣΗΣ\")","v":"ΚΑΛΟΓΡΗ Σ"}]
[null,null,null,null,null,null,null,null,null,{"$f":"\"4. \" & IF(Setup!B19>3,LEFT(ALMD!D6,FIND(\" \",ALMD!D6)+1),\"\")","v":"4. ΤΟΥΝΤΑΣ Μ"},null,{"$f":"\"8. \" & IF(Setup!B19>7,LEFT(ALMD!D10,FIND(\" \",ALMD!D10)+1),\"\")","v":"8. ΝΙΚΟΛΑΟΥ Α"}]
[]
[]
[]
[]
[]
[]
[]
[]
[]
[]
[]
[]
[]
[]
[]
[null,null,null,null,null,null,null,null,null,"BoldPlayers"]
[null,null,null,null,null,null,null,null,null,{"$f":"IF(Setup!$B$19>0,LEFT(ALMD!D3,FIND(\" \",ALMD!D3)+1))","v":"ΚΟΛΛΙΑΣ Σ"}]
[null,null,null,null,null,null,null,null,null,{"$f":"IF(Setup!$B$19>1,LEFT(ALMD!D4,FIND(\" \",ALMD!D4)+1))","v":"ΚΥΡΙΑΚΟΠΟΥΛΟΣ Α"}]
[null,null,null,null,null,null,null,null,null,{"$f":"IF(Setup!$B$19>2,LEFT(ALMD!D5,FIND(\" \",ALMD!D5)+1))","v":"ΛΟΥΚΑ Ν"}]
[null,null,null,null,null,null,null,null,null,{"$f":"IF(Setup!$B$19>3,LEFT(ALMD!D6,FIND(\" \",ALMD!D6)+1))","v":"ΤΟΥΝΤΑΣ Μ"}]
[null,null,null,null,null,null,null,null,null,{"$f":"IF(Setup!$B$19>4,LEFT(ALMD!D7,FIND(\" \",ALMD!D7)+1))","v":"ΤΖΩΡΤΖΑΤΟΣ Κ"}]
[null,null,null,null,null,null,null,null,null,{"$f":"IF(Setup!$B$19>5,LEFT(ALMD!D8,FIND(\" \",ALMD!D8)+1))","v":"ΚΑΡΑΝΑΓΝΩΣΤΗΣ Κ"}]
[null,null,null,null,null,null,null,null,null,{"$f":"IF(Setup!$B$19>6,LEFT(ALMD!D9,FIND(\" \",ALMD!D9)+1))","v":"ΜΑΛΕΒΙΤΗΣ Γ"}]
[null,null,null,null,null,null,null,null,null,{"$f":"IF(Setup!$B$19>7,LEFT(ALMD!D10,FIND(\" \",ALMD!D10)+1))","v":"ΝΙΚΟΛΑΟΥ Α"}]

{"sheet":"OoP","index":2,"n_rows":49,"n_cols":6,"rows_kept":49,"cut":false,"hidden":false,"merged":[]}
["ΣΤ' ΕΝΩΣΗ, Ε3 19η, ΣΑ ΤΡΙΠΟΛΗΣ, 12/5-13/5 (Α14)"]
["ΚΑΛΟΓΡΗ Σ"]
[null,null,"Πρόγραμμα αγώνων"]
[]
[null,null,"Round 32",null,null,"info"]
["ΩΡΑ","Κτγρ.","Αθλητής-Σύλλογος",null,"Αθλητής-Σύλλογος"]
["Έναρξη","Α14 R32","ΚΟΛΛΙΑΣ Σ (ΡΗΓΑΣ ΑΟΑ ΑΡ)"," ",""]
[null,"Α14 R32","ΤΖΟΥΤΖΟΠΟΥΛΟΣ Θ (ΟΑ ΚΟΡΙΝΘΟΥ)","-","ΚΑΜΠΑΝΟΣ Ε (ΚΕΦΑΛΛΗΝΙΑΚΟ)"]
[null,"Α14 R32","ΜΟΥΡΙΚΗΣ Κ (ΑΟ ΑΙΓΙΟΥ ΜΟ)"," ",""]
[null,"Α14 R32",""," ","ΚΑΡΑΝΑΓΝΩΣΤΗΣ Κ (ΑΕΚ ΤΡΙΠΟΛΗΣ)"]
["όχι πριν","Α14 R32","ΛΟΥΚΑ Ν (ΑΟΑ ΠΑΤΡΩΝ)"," ",""]
[null,"Α14 R32","ΠΑΠΑΝΙΚΟΛΑΟΥ Ε (ΑΕΚ ΤΡΙΠΟΛΗΣ)","-","ΓΡΑΜΜΑΤΙΚΟΣ Μ (ΡΗΓΑΣ ΑΟΑ ΑΡ)"]
[null,"Α14 R32","ΑΔΑΜΟΠΟΥΛΟΣ Ι (ΑΟ ΑΙΓΙΟΥ ΜΟ)"," ",""]
[null,"Α14 R32",""," ","ΤΖΩΡΤΖΑΤΟΣ Κ (ΑΟΑ ΠΑΤΡΩΝ)"]
["όχι πριν","Α14 R32","ΝΙΚΟΛΑΟΥ Α (ΑΟΑ ΠΑΤΡΩΝ)"," ",""]
[null,"Α14 R32","ΛΑΜΠΡΟΠΟΥΛΟΣ Μ (ΑΕΚ ΤΡΙΠΟΛΗΣ)"," ",""]
[null,"Α14 R32","ΓΙΑΝΝΑΚΟΠΟΥΛΟΣ Δ (ΡΗΓΑΣ ΑΟΑ ΑΡ)","-","ΛΑΜΠΡΟΠΟΥΛΟΣ Α (ΑΕΚ ΤΡΙΠΟΛΗΣ)"]
[null,"Α14 R32",""," ","ΤΟΥΝΤΑΣ Μ (ΡΗΓΑΣ ΑΟΑ ΑΡ)"]
["όχι πριν","Α14 R32","ΜΑΛΕΒΙΤΗΣ Γ (ΑΟΑ ΠΑΤΡΩΝ)"," ",""]
[null,"Α14 R32","ΜΠΑΚΑΛΟΣ Α (ΟΑ ΚΟΡΙΝΘΟΥ)"," ",""]
[null,"Α14 R32","ΓΚΟΥΝΤΑΝΗΣ Β (ΣΑ ΤΡΙΠΟΛΗΣ)","-","ΝΤΟΥΛΙΑΣ Λ (ΡΗΓΑΣ ΑΟΑ ΑΡ)"]
[null,"Α14 R32",""," ","ΚΥΡΙΑΚΟΠΟΥΛΟΣ Α (ΑΟΑ ΠΑΤΡΩΝ)"]
[]
[null,null,"Round 16",null,null,"info"]
["ΩΡΑ","Κτγρ.","Αθλητής-Σύλλογος",null,"Αθλητής-Σύλλογος"]
["Έναρξη","Α14 R16","ΚΟΛΛΙΑΣ Σ (ΡΗΓΑΣ ΑΟΑ ΑΡ)","-","ΤΖΟΥΤΖΟΠΟΥΛΟΣ Θ (ΟΑ ΚΟΡΙΝΘΟΥ)"]
[null,"Α14 R16","ΜΟΥΡΙΚΗΣ Κ (ΑΟ ΑΙΓΙΟΥ ΜΟ)","-","ΚΑΡΑΝΑΓΝΩΣΤΗΣ Κ (ΑΕΚ ΤΡΙΠΟΛΗΣ)"]
[null,"Α14 R16","ΛΟΥΚΑ Ν (ΑΟΑ ΠΑΤΡΩΝ)","-","ΠΑΠΑΝΙΚΟΛΑΟΥ Ε (ΑΕΚ ΤΡΙΠΟΛΗΣ)"]
[null,"Α14 R16","ΑΔΑΜΟΠΟΥΛΟΣ Ι (ΑΟ ΑΙΓΙΟΥ ΜΟ)","-","ΤΖΩΡΤΖΑΤΟΣ Κ (ΑΟΑ ΠΑΤΡΩΝ)"]
["όχι πριν","Α14 R16","ΝΙΚΟΛΑΟΥ Α (ΑΟΑ ΠΑΤΡΩΝ)","-","ΛΑΜΠΡΟΠΟΥΛΟΣ Μ (ΑΕΚ ΤΡΙΠΟΛΗΣ)"]
[null,"Α14 R16","ΓΙΑΝΝΑΚΟΠΟΥΛΟΣ Δ (ΡΗΓΑΣ ΑΟΑ ΑΡ)","-","ΤΟΥΝΤΑΣ Μ (ΡΗΓΑΣ ΑΟΑ ΑΡ)"]
[null,"Α14 R16","ΜΑΛΕΒΙΤΗΣ Γ (ΑΟΑ ΠΑΤΡΩΝ)","-","ΜΠΑΚΑΛΟΣ Α (ΟΑ ΚΟΡΙΝΘΟΥ)"]
[null,"Α14 R16","ΓΚΟΥΝΤΑΝΗΣ Β (ΣΑ ΤΡΙΠΟΛΗΣ)","-","ΚΥΡΙΑΚΟΠΟΥΛΟΣ Α (ΑΟΑ ΠΑΤΡΩΝ)"]
[]
[null,null,"Round 8",null,null,"info"]
["ΩΡΑ","Κτγρ.","Αθλητής-Σύλλογος",null,"Αθλητής-Σύλλογος"]
["Έναρξη","Α14 R8","ΚΟΛΛΙΑΣ Σ (ΡΗΓΑΣ ΑΟΑ ΑΡ)"," ","ΚΑΡΑΝΑΓΝΩΣΤΗΣ Κ (ΑΕΚ ΤΡΙΠΟΛΗΣ)"]
[null,"Α14 R8","ΠΑΠΑΝΙΚΟΛΑΟΥ Ε (ΑΕΚ ΤΡΙΠΟΛΗΣ)"," ","ΤΖΩΡΤΖΑΤΟΣ Κ (ΑΟΑ ΠΑΤΡΩΝ)"]
[null,"Α14 R8","ΝΙΚΟΛΑΟΥ Α (ΑΟΑ ΠΑΤΡΩΝ)"," ","ΤΟΥΝΤΑΣ Μ (ΡΗΓΑΣ ΑΟΑ ΑΡ)"]
[null,"Α14 R8","ΜΑΛΕΒΙΤΗΣ Γ (ΑΟΑ ΠΑΤΡΩΝ)"," ","ΚΥΡΙΑΚΟΠΟΥΛΟΣ Α (ΑΟΑ ΠΑΤΡΩΝ)"]
[]
[null,null,"Ημιτελικοί",null,null,"info"]
["ΩΡΑ","Κτγρ.","Αθλητής-Σύλλογος",null,"Αθλητής-Σύλλογος"]
["Έναρξη","Α14 Ημιτελ","ΚΟΛΛΙΑΣ Σ (ΡΗΓΑΣ ΑΟΑ ΑΡ)",null,"ΤΖΩΡΤΖΑΤΟΣ Κ (ΑΟΑ ΠΑΤΡΩΝ)"]
[null,"Α14 Ημιτελ","ΤΟΥΝΤΑΣ Μ (ΡΗΓΑΣ ΑΟΑ ΑΡ)",null,"ΚΥΡΙΑΚΟΠΟΥΛΟΣ Α (ΑΟΑ ΠΑΤΡΩΝ)"]
[]
[null,null,"Τελικός",null,null,"info"]
["ΩΡΑ","Κτγρ.","Αθλητής-Σύλλογος",null,"Αθλητής-Σύλλογος"]
["Έναρξη","Α14 Τελ","ΚΟΛΛΙΑΣ Σ (ΡΗΓΑΣ ΑΟΑ ΑΡ)",null,"ΤΟΥΝΤΑΣ Μ (ΡΗΓΑΣ ΑΟΑ ΑΡ)"]

{"sheet":"ALMD","index":3,"n_rows":45,"n_cols":12,"rows_kept":45,"cut":false,"hidden":false,"merged":[[37,1,37,4]]}
[{"$f":"Setup!$B$3&\", \"&Setup!$B$7&\", \"&Setup!$B$4&\", \"&DAY(Setup!$B$8)&\"/\"&MONTH(Setup!$B$8)&\"-\"&DAY(Setup!$B$9)&\"/\"&MONTH(Setup!$B$9)&\"/\"&YEAR(Setup!$B$9)","v":"ΣΤ' ΕΝΩΣΗ, Ε3 19η, ΣΑ ΤΡΙΠΟΛΗΣ, 12/5-13/5/2018"},null,null,null,null,null,null,{"$f":"Setup!B6&\" /md\"","v":"Α14 /md"},{"$f":"Setup!B6&\" /md\"","v":"Α14 /md"}]
["α/α","από","Α.Μ.","Ονοματεπώνυμο","Γέννηση","Σύλλογος","βαθμοί","Τηλέφωνο","Υπογραφή","SortPts","Rnd"]
[1,null,34598,"ΚΟΛΛΙΑΣ ΣΤΑΥΡΟΣ","2004-03-02","ΡΗΓΑΣ ΑΟΑ ΑΡΓΟΛΙΔΑΣ",122,null,null,{"$f":"IF(D3>\" \",G3+K3,0)","v":122.00348374826706},3.4837482670519765E-3,{"$f":"TRIM(IF(LEN(D3)<2,\"\",LEFT(D3,MIN(20,FIND(\" \",D3)-1))&MID(D3,FIND(\" \",D3),2)&\" (\"&LEFT(F3,12)&\")\"))","v":"ΚΟΛΛΙΑΣ Σ (ΡΗΓΑΣ ΑΟΑ ΑΡ)"}]
[2,null,36854,"ΚΥΡΙΑΚΟΠΟΥΛΟΣ ΑΝΔΡΕΑΣ","2005-05-23","ΑΟΑ ΠΑΤΡΩΝ",68,null,null,68.003876067295593,3.8760672955984376E-3,{"$f":"TRIM(IF(LEN(D4)<2,\"\",LEFT(D4,MIN(20,FIND(\" \",D4)-1))&MID(D4,FIND(\" \",D4),2)&\" (\"&LEFT(F4,12)&\")\"))","v":"ΚΥΡΙΑΚΟΠΟΥΛΟΣ Α (ΑΟΑ ΠΑΤΡΩΝ)"}]
[3,null,37036,"ΛΟΥΚΑ ΝΙΚΟΛΑΟΣ","2005-03-17","ΑΟΑ ΠΑΤΡΩΝ",47,null,null,47.0033274038326,3.3274038325997613E-3,"ΛΟΥΚΑ Ν (ΑΟΑ ΠΑΤΡΩΝ)"]
[4,null,36030,"ΤΟΥΝΤΑΣ ΜΑΡΙΟΣ","2005-06-04","ΡΗΓΑΣ ΑΟΑ ΑΡΓΟΛΙΔΑΣ",39.5,null,null,39.502204047994496,2.204047994497426E-3,"ΤΟΥΝΤΑΣ Μ (ΡΗΓΑΣ ΑΟΑ ΑΡ)"]
[5,null,36852,"ΤΖΩΡΤΖΑΤΟΣ ΚΩΝΣΤΑΝΤΙΝΟΣ","2006-05-11","ΑΟΑ ΠΑΤΡΩΝ",36,null,null,36.002305696434526,2.3056964345274204E-3,"ΤΖΩΡΤΖΑΤΟΣ Κ (ΑΟΑ ΠΑΤΡΩΝ)"]
[6,null,30151,"ΚΑΡΑΝΑΓΝΩΣΤΗΣ ΚΩΝΣΤΑΝΤΙΝΟΣ","2004-06-11","ΑΕΚ ΤΡΙΠΟΛΗΣ",34,null,null,34.004499988294924,4.4999882949235386E-3,"ΚΑΡΑΝΑΓΝΩΣΤΗΣ Κ (ΑΕΚ ΤΡΙΠΟΛΗΣ)"]
[7,null,36853,"ΜΑΛΕΒΙΤΗΣ ΓΡΗΓΟΡΗΣ","2006-05-07","ΑΟΑ ΠΑΤΡΩΝ",33,null,null,33.001836100802954,1.8361008029526284E-3,"ΜΑΛΕΒΙΤΗΣ Γ (ΑΟΑ ΠΑΤΡΩΝ)"]
[8,null,37444,"ΝΙΚΟΛΑΟΥ ΑΓΓΕΛΟΣ","2005-05-20","ΑΟΑ ΠΑΤΡΩΝ",31.5,null,null,31.502926164733452,2.9261647334510536E-3,"ΝΙΚΟΛΑΟΥ Α (ΑΟΑ ΠΑΤΡΩΝ)"]
[9,null,33450,"ΚΑΜΠΑΝΟΣ ΕΛΕΥΘΕΡΙΟΣ","2005-10-18","ΚΕΦΑΛΛΗΝΙΑΚΟΣ ΟΑ",31,null,null,31.003614794582681,3.614794582680653E-3,"ΚΑΜΠΑΝΟΣ Ε (ΚΕΦΑΛΛΗΝΙΑΚΟ)"]
[10,null,31771,"ΓΚΟΥΝΤΑΝΗΣ ΒΑΣΙΛΗΣ","2005-03-11","ΣΑ ΤΡΙΠΟΛΗΣ",30,null,null,30.004345208156966,4.3452081569646762E-3,"ΓΚΟΥΝΤΑΝΗΣ Β (ΣΑ ΤΡΙΠΟΛΗΣ)"]
[11,null,39823,"ΠΑΠΑΝΙΚΟΛΑΟΥ ΕΚΤΟΡΑΣ","2004-07-05","ΑΕΚ ΤΡΙΠΟΛΗΣ",26.6,null,null,26.600005430313395,5.4303133920370075E-6,"ΠΑΠΑΝΙΚΟΛΑΟΥ Ε (ΑΕΚ ΤΡΙΠΟΛΗΣ)"]
[12,null,33991,"ΛΑΜΠΡΟΠΟΥΛΟΣ ΜΙΧΑΗΛ","2006-02-20","ΑΕΚ ΤΡΙΠΟΛΗΣ",17.5,null,null,17.503342707860511,3.3427078605124719E-3,"ΛΑΜΠΡΟΠΟΥΛΟΣ Μ (ΑΕΚ ΤΡΙΠΟΛΗΣ)"]
[13,null,34817,"ΤΖΟΥΤΖΟΠΟΥΛΟΣ ΘΕΜΙΣΤΟΚΛΗΣ","2005-04-13","ΟΑ ΚΟΡΙΝΘΟΥ",14.9,null,null,14.903158422127891,3.1584221278905195E-3,"ΤΖΟΥΤΖΟΠΟΥΛΟΣ Θ (ΟΑ ΚΟΡΙΝΘΟΥ)"]
[14,null,33992,"ΛΑΜΠΡΟΠΟΥΛΟΣ ΑΓΓΕΛΟΣ","2006-02-20","ΑΕΚ ΤΡΙΠΟΛΗΣ",14.8,null,null,14.804066803792301,4.0668037923006E-3,"ΛΑΜΠΡΟΠΟΥΛΟΣ Α (ΑΕΚ ΤΡΙΠΟΛΗΣ)"]
[15,null,37284,"ΑΔΑΜΟΠΟΥΛΟΣ ΙΩΑΝΝΗΣ","2005-11-08","ΑΟ ΑΙΓΙΟΥ ΜΟΡΕΑΣ",10,null,null,10.000380683328563,3.8068332856320294E-4,"ΑΔΑΜΟΠΟΥΛΟΣ Ι (ΑΟ ΑΙΓΙΟΥ ΜΟ)"]
[16,null,32578,"ΜΟΥΡΙΚΗΣ ΚΩΝΣΤΑΝΤΙΝΟΣ","2005-02-22","ΑΟ ΑΙΓΙΟΥ ΜΟΡΕΑΣ",7.5,null,null,7.5030730227723232,3.0730227723235058E-3,"ΜΟΥΡΙΚΗΣ Κ (ΑΟ ΑΙΓΙΟΥ ΜΟ)"]
[17,null,39014,"ΓΡΑΜΜΑΤΙΚΟΣ ΜΙΛΤΙΑΔΗΣ-ΠΑΝΑΓΙΩΤΗΣ","2005-10-01","ΡΗΓΑΣ ΑΟΑ ΑΡΓΟΛΙΔΑΣ",7.5,null,null,7.5027478941069177,2.747894106917682E-3,"ΓΡΑΜΜΑΤΙΚΟΣ Μ (ΡΗΓΑΣ ΑΟΑ ΑΡ)"]
[18,null,31630,"ΓΙΑΝΝΑΚΟΠΟΥΛΟΣ ΔΗΜΗΤΡΙΟΣ","2004-01-24","ΡΗΓΑΣ ΑΟΑ ΑΡΓΟΛΙΔΑΣ",6,null,null,6.0017587056214685,1.7587056214682067E-3,"ΓΙΑΝΝΑΚΟΠΟΥΛΟΣ Δ (ΡΗΓΑΣ ΑΟΑ ΑΡ)"]
[19,null,36997,"ΜΠΑΚΑΛΟΣ ΑΘΑΝΑΣΙΟΣ-ΕΦΡΑΙΜ","2004-11-04","ΟΑ ΚΟΡΙΝΘΟΥ",4.5,null,null,4.502860297102087,2.8602971020866971E-3,"ΜΠΑΚΑΛΟΣ Α (ΟΑ ΚΟΡΙΝΘΟΥ)"]
[20,null,38866,"ΝΤΟΥΛΙΑΣ ΛΕΩΝΙΔΑΣ","2005-10-07","ΡΗΓΑΣ ΑΟΑ ΑΡΓΟΛΙΔΑΣ",3,null,null,3.0025330165736768,2.533016573676908E-3,"ΝΤΟΥΛΙΑΣ Λ (ΡΗΓΑΣ ΑΟΑ ΑΡ)"]
[21,null,null,null,null,null,null,null,null,0,4.160575918775564E-3,""]
[22,null,null,null,null,null,null,null,null,0,3.7301364051020446E-3,""]
[23,null,null,null,null,null,null,null,null,0,3.3018473317275548E-3,""]
[24,null,null,null,null,null,null,null,null,0,3.9739188486917505E-3,""]
[25,null,null,null,null,null,null,null,null,0,3.9725550815313971E-3,""]
[26,null,null,null,null,null,null,null,null,0,3.499385769940497E-3,""]
[27,null,null,null,null,null,null,null,null,0,1.3276072602272336E-3,""]
[28,null,null,null,null,null,null,null,null,0,1.9872794222699177E-4,""]
[29,null,null,null,null,null,null,null,null,0,5.2642521749408087E-4,""]
[30,null,null,null,null,null,null,null,null,0,2.8122942481903626E-4,""]
[31,null,null,null,null,null,null,null,null,0,5.3964196092776091E-5,""]
[32,null,null,null,null,null,null,null,null,0,1.415728171473839E-3,""]
[]
[null,null,null,null,null,null,null,"επιδιαιτητής: "]
[null,null,null,null,null,null,null,{"$f":"Setup!$B$11","v":"ΚΑΛΟΓΡΗ Σ"}]
[null,"Walk over"]
[null,"α/α","Α.Μ.","Ονοματεπώνυμο","med"]
[null,1,37037,"ΓΟΥΒΕΛΗΣ ΔΙΟΝΥΣΗΣ","Ναι"]
[null,2,35908,"ΜΠΑΜΠΗΣ ΠΑΝΑΓΙΩΤΗΣ","Όχι"]
[null,3,34258,"ΠΑΠΑΔΟΠΟΥΛΟΣ ΒΛΑΣΗΣ","Ναι"]
[null,4,37434,"ΚΑΤΑΠΟΔΗΣ ΓΕΩΡΓΙΟΣ","Ναι"]
[null,5,29322,"ΑΝΑΣΤΟΠΟΥΛΟΣ ΠΑΝΑΓΙΩΤΗΣ","Ναι"]
[null,6,39979,"ΣΠΥΡΟΠΟΥΛΟΣ ΠΑΝΑΓΙΩΤΗΣ","Όχι"]

{"sheet":"PrepOP","index":4,"n_rows":49,"n_cols":6,"rows_kept":49,"cut":false,"hidden":true,"merged":[]}
[{"$f":"Setup!$B$3&\", \"&Setup!$B$7&\", \"&Setup!$B$4&\", \"&DAY(Setup!$B$8)&\"/\"&MONTH(Setup!$B$8)&\"-\"&DAY(Setup!$B$9)&\"/\"&MONTH(Setup!$B$9)& \" (\" & Setup!B6 & \")\"","v":"ΣΤ' ΕΝΩΣΗ, Ε3 19η, ΣΑ ΤΡΙΠΟΛΗΣ, 12/5-13/5 (Α14)"}]
[{"$f":"Setup!$B$11","v":"ΚΑΛΟΓΡΗ Σ"}]
[null,null,"Πρόγραμμα αγώνων"]
[]
[null,null,"Round 32",null,null,"info"]
["ΩΡΑ","Κτγρ.","Αθλητής-Σύλλογος",null,"Αθλητής-Σύλλογος"]
["Έναρξη",{"$f":"Setup!$B$6&\" R32\"","v":"Α14 R32"},{"$f":"IF(LEN(MD!I5)<2,\"\",VLOOKUP(MD!I5,ALMD!$C:$L,10,FALSE))","v":"ΚΟΛΛΙΑΣ Σ (ΡΗΓΑΣ ΑΟΑ ΑΡ)"},{"$f":"IF(OR(C7=\"\",E7=\"\"),\" \",\"-\")","v":" "},{"$f":"IF(LEN(MD!I6)<2, \"\",VLOOKUP(MD!I6,ALMD!$C:$L,10,FALSE))","v":""}]
[null,{"$f":"Setup!$B$6&\" R32\"","v":"Α14 R32"},{"$f":"IF(LEN(MD!I7)<2,\"\",VLOOKUP(MD!I7,ALMD!$C:$L,10,FALSE))","v":"ΤΖΟΥΤΖΟΠΟΥΛΟΣ Θ (ΟΑ ΚΟΡΙΝΘΟΥ)"},{"$f":"IF(OR(C8=\"\",E8=\"\"),\" \",\"-\")","v":"-"},{"$f":"IF(LEN(MD!I8)<2, \"\",VLOOKUP(MD!I8,ALMD!$C:$L,10,FALSE))","v":"ΚΑΜΠΑΝΟΣ Ε (ΚΕΦΑΛΛΗΝΙΑΚΟ)"}]
[null,{"$f":"Setup!$B$6&\" R32\"","v":"Α14 R32"},{"$f":"IF(LEN(MD!I9)<2,\"\",VLOOKUP(MD!I9,ALMD!$C:$L,10,FALSE))","v":"ΜΟΥΡΙΚΗΣ Κ (ΑΟ ΑΙΓΙΟΥ ΜΟ)"}," ",{"$f":"IF(LEN(MD!I10)<2,\"\",VLOOKUP(MD!I10,ALMD!$C:$L,10,FALSE))","v":""}]
[null,{"$f":"Setup!$B$6&\" R32\"","v":"Α14 R32"},{"$f":"IF(LEN(MD!I11)<2,\"\",VLOOKUP(MD!I11,ALMD!$C:$L,10,FALSE))","v":""}," ",{"$f":"IF(LEN(MD!I12)<2,\"\",VLOOKUP(MD!I12,ALMD!$C:$L,10,FALSE))","v":"ΚΑΡΑΝΑΓΝΩΣΤΗΣ Κ (ΑΕΚ ΤΡΙΠΟΛΗΣ)"}]
["όχι πριν",{"$f":"Setup!$B$6&\" R32\"","v":"Α14 R32"},{"$f":"IF(LEN(MD!I13)<2,\"\",VLOOKUP(MD!I13,ALMD!$C:$L,10,FALSE))","v":"ΛΟΥΚΑ Ν (ΑΟΑ ΠΑΤΡΩΝ)"}," ",{"$f":"IF(LEN(MD!I14)<2,\"\",VLOOKUP(MD!I14,ALMD!$C:$L,10,FALSE))","v":""}]
[null,{"$f":"Setup!$B$6&\" R32\"","v":"Α14 R32"},{"$f":"IF(LEN(MD!I15)<2,\"\",VLOOKUP(MD!I15,ALMD!$C:$L,10,FALSE))","v":"ΠΑΠΑΝΙΚΟΛΑΟΥ Ε (ΑΕΚ ΤΡΙΠΟΛΗΣ)"},"-",{"$f":"IF(LEN(MD!I16)<2,\"\",VLOOKUP(MD!I16,ALMD!$C:$L,10,FALSE))","v":"ΓΡΑΜΜΑΤΙΚΟΣ Μ (ΡΗΓΑΣ ΑΟΑ ΑΡ)"}]
[null,{"$f":"Setup!$B$6&\" R32\"","v":"Α14 R32"},{"$f":"IF(LEN(MD!I17)<2,\"\",VLOOKUP(MD!I17,ALMD!$C:$L,10,FALSE))","v":"ΑΔΑΜΟΠΟΥΛΟΣ Ι (ΑΟ ΑΙΓΙΟΥ ΜΟ)"}," ",{"$f":"IF(LEN(MD!I18)<2,\"\",VLOOKUP(MD!I18,ALMD!$C:$L,10,FALSE))","v":""}]
[null,{"$f":"Setup!$B$6&\" R32\"","v":"Α14 R32"},{"$f":"IF(LEN(MD!I19)<2,\"\",VLOOKUP(MD!I19,ALMD!$C:$L,10,FALSE))","v":""}," ",{"$f":"IF(LEN(MD!I20)<2,\"\",VLOOKUP(MD!I20,ALMD!$C:$L,10,FALSE))","v":"ΤΖΩΡΤΖΑΤΟΣ Κ (ΑΟΑ ΠΑΤΡΩΝ)"}]
["όχι πριν",{"$f":"Setup!$B$6&\" R32\"","v":"Α14 R32"},{"$f":"IF(LEN(MD!I21)<2,\"\",VLOOKUP(MD!I21,ALMD!$C:$L,10,FALSE))","v":"ΝΙΚΟΛΑΟΥ Α (ΑΟΑ ΠΑΤΡΩΝ)"}," ",{"$f":"IF(LEN(MD!I22)<2,\"\",VLOOKUP(MD!I22,ALMD!$C:$L,10,FALSE))","v":""}]
[null,{"$f":"Setup!$B$6&\" R32\"","v":"Α14 R32"},{"$f":"IF(LEN(MD!I23)<2,\"\",VLOOKUP(MD!I23,ALMD!$C:$L,10,FALSE))","v":"ΛΑΜΠΡΟΠΟΥΛΟΣ Μ (ΑΕΚ ΤΡΙΠΟΛΗΣ)"}," ",{"$f":"IF(LEN(MD!I24)<2,\"\",VLOOKUP(MD!I24,ALMD!$C:$L,10,FALSE))","v":""}]
[null,{"$f":"Setup!$B$6&\" R32\"","v":"Α14 R32"},{"$f":"IF(LEN(MD!I25)<2,\"\",VLOOKUP(MD!I25,ALMD!$C:$L,10,FALSE))","v":"ΓΙΑΝΝΑΚΟΠΟΥΛΟΣ Δ (ΡΗΓΑΣ ΑΟΑ ΑΡ)"},"-",{"$f":"IF(LEN(MD!I26)<2,\"\",VLOOKUP(MD!I26,ALMD!$C:$L,10,FALSE))","v":"ΛΑΜΠΡΟΠΟΥΛΟΣ Α (ΑΕΚ ΤΡΙΠΟΛΗΣ)"}]
[null,{"$f":"Setup!$B$6&\" R32\"","v":"Α14 R32"},{"$f":"IF(LEN(MD!I27)<2,\"\",VLOOKUP(MD!I27,ALMD!$C:$L,10,FALSE))","v":""}," ",{"$f":"IF(LEN(MD!I28)<2,\"\",VLOOKUP(MD!I28,ALMD!$C:$L,10,FALSE))","v":"ΤΟΥΝΤΑΣ Μ (ΡΗΓΑΣ ΑΟΑ ΑΡ)"}]
["όχι πριν",{"$f":"Setup!$B$6&\" R32\"","v":"Α14 R32"},{"$f":"IF(LEN(MD!I29)<2,\"\",VLOOKUP(MD!I29,ALMD!$C:$L,10,FALSE))","v":"ΜΑΛΕΒΙΤΗΣ Γ (ΑΟΑ ΠΑΤΡΩΝ)"}," ",{"$f":"IF(LEN(MD!I30)<2,\"\",VLOOKUP(MD!I30,ALMD!$C:$L,10,FALSE))","v":""}]
[null,{"$f":"Setup!$B$6&\" R32\"","v":"Α14 R32"},{"$f":"IF(LEN(MD!I31)<2,\"\",VLOOKUP(MD!I31,ALMD!$C:$L,10,FALSE))","v":"ΜΠΑΚΑΛΟΣ Α (ΟΑ ΚΟΡΙΝΘΟΥ)"}," ",{"$f":"IF(LEN(MD!I32)<2,\"\",VLOOKUP(MD!I32,ALMD!$C:$L,10,FALSE))","v":""}]
[null,{"$f":"Setup!$B$6&\" R32\"","v":"Α14 R32"},{"$f":"IF(LEN(MD!I33)<2,\"\",VLOOKUP(MD!I33,ALMD!$C:$L,10,FALSE))","v":"ΓΚΟΥΝΤΑΝΗΣ Β (ΣΑ ΤΡΙΠΟΛΗΣ)"},"-",{"$f":"IF(LEN(MD!I34)<2,\"\",VLOOKUP(MD!I34,ALMD!$C:$L,10,FALSE))","v":"ΝΤΟΥΛΙΑΣ Λ (ΡΗΓΑΣ ΑΟΑ ΑΡ)"}]
[null,{"$f":"Setup!$B$6&\" R32\"","v":"Α14 R32"},{"$f":"IF(LEN(MD!I35)<2,\"\",VLOOKUP(MD!I35,ALMD!$C:$L,10,FALSE))","v":""}," ",{"$f":"IF(LEN(MD!I36)<2,\"\",VLOOKUP(MD!I36,ALMD!$C:$L,10,FALSE))","v":"ΚΥΡΙΑΚΟΠΟΥΛΟΣ Α (ΑΟΑ ΠΑΤΡΩΝ)"}]
[]
[null,null,"Round 16",null,null,"info"]
["ΩΡΑ","Κτγρ.","Αθλητής-Σύλλογος",null,"Αθλητής-Σύλλογος"]
["Έναρξη",{"$f":"Setup!$B$6&\" R16\"","v":"Α14 R16"},{"$f":"IF(LEN(MD!N5)<2,\"\",VLOOKUP(MD!N5,ALMD!$C:$L,10,FALSE))","v":"ΚΟΛΛΙΑΣ Σ (ΡΗΓΑΣ ΑΟΑ ΑΡ)"},{"$f":"IF(OR(C26=\"\",E26=\"\"),\" \",\"-\")","v":"-"},{"$f":"IF(LEN(MD!N7)<2,\"\",VLOOKUP(MD!N7,ALMD!$C:$L,10,FALSE))","v":"ΤΖΟΥΤΖΟΠΟΥΛΟΣ Θ (ΟΑ ΚΟΡΙΝΘΟΥ)"}]
[null,{"$f":"Setup!$B$6&\" R16\"","v":"Α14 R16"},{"$f":"IF(LEN(MD!N9)<2,\"\",VLOOKUP(MD!N9,ALMD!$C:$L,10,FALSE))","v":"ΜΟΥΡΙΚΗΣ Κ (ΑΟ ΑΙΓΙΟΥ ΜΟ)"},"-",{"$f":"IF(LEN(MD!N11)<2,\"\",VLOOKUP(MD!N11,ALMD!$C:$L,10,FALSE))","v":"ΚΑΡΑΝΑΓΝΩΣΤΗΣ Κ (ΑΕΚ ΤΡΙΠΟΛΗΣ)"}]
[null,{"$f":"Setup!$B$6&\" R16\"","v":"Α14 R16"},{"$f":"IF(LEN(MD!N13)<2,\"\",VLOOKUP(MD!N13,ALMD!$C:$L,10,FALSE))","v":"ΛΟΥΚΑ Ν (ΑΟΑ ΠΑΤΡΩΝ)"},"-",{"$f":"IF(LEN(MD!N15)<2,\"\",VLOOKUP(MD!N15,ALMD!$C:$L,10,FALSE))","v":"ΠΑΠΑΝΙΚΟΛΑΟΥ Ε (ΑΕΚ ΤΡΙΠΟΛΗΣ)"}]
[null,{"$f":"Setup!$B$6&\" R16\"","v":"Α14 R16"},{"$f":"IF(LEN(MD!N17)<2,\"\",VLOOKUP(MD!N17,ALMD!$C:$L,10,FALSE))","v":"ΑΔΑΜΟΠΟΥΛΟΣ Ι (ΑΟ ΑΙΓΙΟΥ ΜΟ)"},"-",{"$f":"IF(LEN(MD!N19)<2,\"\",VLOOKUP(MD!N19,ALMD!$C:$L,10,FALSE))","v":"ΤΖΩΡΤΖΑΤΟΣ Κ (ΑΟΑ ΠΑΤΡΩΝ)"}]
["όχι πριν",{"$f":"Setup!$B$6&\" R16\"","v":"Α14 R16"},{"$f":"IF(LEN(MD!N21)<2,\"\",VLOOKUP(MD!N21,ALMD!$C:$L,10,FALSE))","v":"ΝΙΚΟΛΑΟΥ Α (ΑΟΑ ΠΑΤΡΩΝ)"},"-",{"$f":"IF(LEN(MD!N23)<2,\"\",VLOOKUP(MD!N23,ALMD!$C:$L,10,FALSE))","v":"ΛΑΜΠΡΟΠΟΥΛΟΣ Μ (ΑΕΚ ΤΡΙΠΟΛΗΣ)"}]
[null,{"$f":"Setup!$B$6&\" R16\"","v":"Α14 R16"},{"$f":"IF(LEN(MD!N25)<2,\"\",VLOOKUP(MD!N25,ALMD!$C:$L,10,FALSE))","v":"ΓΙΑΝΝΑΚΟΠΟΥΛΟΣ Δ (ΡΗΓΑΣ ΑΟΑ ΑΡ)"},"-",{"$f":"IF(LEN(MD!N27)<2,\"\",VLOOKUP(MD!N27,ALMD!$C:$L,10,FALSE))","v":"ΤΟΥΝΤΑΣ Μ (ΡΗΓΑΣ ΑΟΑ ΑΡ)"}]
[null,{"$f":"Setup!$B$6&\" R16\"","v":"Α14 R16"},{"$f":"IF(LEN(MD!N29)<2,\"\",VLOOKUP(MD!N29,ALMD!$C:$L,10,FALSE))","v":"ΜΑΛΕΒΙΤΗΣ Γ (ΑΟΑ ΠΑΤΡΩΝ)"},"-",{"$f":"IF(LEN(MD!N31)<2,\"\",VLOOKUP(MD!N31,ALMD!$C:$L,10,FALSE))","v":"ΜΠΑΚΑΛΟΣ Α (ΟΑ ΚΟΡΙΝΘΟΥ)"}]
[null,{"$f":"Setup!$B$6&\" R16\"","v":"Α14 R16"},{"$f":"IF(LEN(MD!N33)<2,\"\",VLOOKUP(MD!N33,ALMD!$C:$L,10,FALSE))","v":"ΓΚΟΥΝΤΑΝΗΣ Β (ΣΑ ΤΡΙΠΟΛΗΣ)"},"-",{"$f":"IF(LEN(MD!N35)<2,\"\",VLOOKUP(MD!N35,ALMD!$C:$L,10,FALSE))","v":"ΚΥΡΙΑΚΟΠΟΥΛΟΣ Α (ΑΟΑ ΠΑΤΡΩΝ)"}]
[]
[null,null,"Round 8",null,null,"info"]
["ΩΡΑ","Κτγρ.","Αθλητής-Σύλλογος",null,"Αθλητής-Σύλλογος"]
["Έναρξη",{"$f":"Setup!$B$6&\" R8\"","v":"Α14 R8"},{"$f":"IF(LEN(MD!Q6)<2,\"\",VLOOKUP(MD!Q6,ALMD!$C:$L,10,FALSE))","v":"ΚΟΛΛΙΑΣ Σ (ΡΗΓΑΣ ΑΟΑ ΑΡ)"}," ",{"$f":"IF(LEN(MD!Q10)<2,\"\",VLOOKUP(MD!Q10,ALMD!$C:$L,10,FALSE))","v":"ΚΑΡΑΝΑΓΝΩΣΤΗΣ Κ (ΑΕΚ ΤΡΙΠΟΛΗΣ)"}]
[null,{"$f":"Setup!$B$6&\" R8\"","v":"Α14 R8"},{"$f":"IF(LEN(MD!Q14)<2,\"\",VLOOKUP(MD!Q14,ALMD!$C:$L,10,FALSE))","v":"ΠΑΠΑΝΙΚΟΛΑΟΥ Ε (ΑΕΚ ΤΡΙΠΟΛΗΣ)"}," ",{"$f":"IF(LEN(MD!Q18)<2,\"\",VLOOKUP(MD!Q18,ALMD!$C:$L,10,FALSE))","v":"ΤΖΩΡΤΖΑΤΟΣ Κ (ΑΟΑ ΠΑΤΡΩΝ)"}]
[null,{"$f":"Setup!$B$6&\" R8\"","v":"Α14 R8"},{"$f":"IF(LEN(MD!Q22)<2,\"\",VLOOKUP(MD!Q22,ALMD!$C:$L,10,FALSE))","v":"ΝΙΚΟΛΑΟΥ Α (ΑΟΑ ΠΑΤΡΩΝ)"}," ",{"$f":"IF(LEN(MD!Q26)<2,\"\",VLOOKUP(MD!Q26,ALMD!$C:$L,10,FALSE))","v":"ΤΟΥΝΤΑΣ Μ (ΡΗΓΑΣ ΑΟΑ ΑΡ)"}]
[null,{"$f":"Setup!$B$6&\" R8\"","v":"Α14 R8"},{"$f":"IF(LEN(MD!Q30)<2,\"\",VLOOKUP(MD!Q30,ALMD!$C:$L,10,FALSE))","v":"ΜΑΛΕΒΙΤΗΣ Γ (ΑΟΑ ΠΑΤΡΩΝ)"}," ",{"$f":"IF(LEN(MD!Q34)<2,\"\",VLOOKUP(MD!Q34,ALMD!$C:$L,10,FALSE))","v":"ΚΥΡΙΑΚΟΠΟΥΛΟΣ Α (ΑΟΑ ΠΑΤΡΩΝ)"}]
[]
[null,null,"Ημιτελικοί",null,null,"info"]
["ΩΡΑ","Κτγρ.","Αθλητής-Σύλλογος",null,"Αθλητής-Σύλλογος"]
["Έναρξη",{"$f":"Setup!$B$6&\" Ημιτελ\"","v":"Α14 Ημιτελ"},{"$f":"IF(LEN(MD!T8)<2,\"\",VLOOKUP(MD!T8,ALMD!$C:$L,10,FALSE))","v":"ΚΟΛΛΙΑΣ Σ (ΡΗΓΑΣ ΑΟΑ ΑΡ)"},null,{"$f":"IF(LEN(MD!T16)<2,\"\",VLOOKUP(MD!T16,ALMD!$C:$L,10,FALSE))","v":"ΤΖΩΡΤΖΑΤΟΣ Κ (ΑΟΑ ΠΑΤΡΩΝ)"}]
[null,{"$f":"Setup!$B$6&\" Ημιτελ\"","v":"Α14 Ημιτελ"},{"$f":"IF(LEN(MD!T24)<2,\"\",VLOOKUP(MD!T24,ALMD!$C:$L,10,FALSE))","v":"ΤΟΥΝΤΑΣ Μ (ΡΗΓΑΣ ΑΟΑ ΑΡ)"},null,{"$f":"IF(LEN(MD!T32)<2,\"\",VLOOKUP(MD!T32,ALMD!$C:$L,10,FALSE))","v":"ΚΥΡΙΑΚΟΠΟΥΛΟΣ Α (ΑΟΑ ΠΑΤΡΩΝ)"}]
[]
[null,null,"Τελικός",null,null,"info"]
["ΩΡΑ","Κτγρ.","Αθλητής-Σύλλογος",null,"Αθλητής-Σύλλογος"]
["Έναρξη",{"$f":"Setup!$B$6&\" Τελ\"","v":"Α14 Τελ"},{"$f":"IF(LEN(MD!W12)<2,\"\",VLOOKUP(MD!W12,ALMD!$C:$L,10,FALSE))","v":"ΚΟΛΛΙΑΣ Σ (ΡΗΓΑΣ ΑΟΑ ΑΡ)"},null,{"$f":"IF(LEN(MD!W28)<2,\"\",VLOOKUP(MD!W28,ALMD!$C:$L,10,FALSE))","v":"ΤΟΥΝΤΑΣ Μ (ΡΗΓΑΣ ΑΟΑ ΑΡ)"}]

{"sheet":"tables","index":5,"n_rows":511,"n_cols":46,"rows_kept":511,"cut":false,"hidden":true,"merged":[]}
["RndIndx","random","FixRandom",null,null,null,"33-64","17-32","9-16","5-8","3-4","2ος","1ος",null,null,"Categories","Juniors","Serniors",null,null,null,"Tours",null,"Clubs","Id","Union",null,"Organizers",null,"Referees",null,"key","pts18",null,"KEY TourDetails","Date","TourName","CLUBid","CLUB","TYPE","GRP","GRPid","TDid",null,"Group","GroupID"]
[1,{"$f":"RAND()/222","v":3.7856081396999736E-3},3.4837482670519765E-3,null,null,"Ε1-12",null,5,7.5,10,15,25,30,null,null,null,"Α10","m35",null,null,null,"Παν",null,null,null,null,null,null,null,null,null,"Ε1S-12-1st",30,null,{"$f":"AJ2&AK2&AL2&AN2&AO2","v":"43113Ε3 2η (Β)152Sα12"},"2018-01-13","Ε3 2η (Β)",152,"ΟΑ ΚΑΛΑΜΑΡΙΑΣ","S","α12",5,3305,null,"Α10",3]
[2,9.7046652893520858E-4,3.8760672955984376E-3,null,null,"Ε1-14",null,10,15,20,30,50,60,null,null,"Α12","Α12","m40",null,null,null,"Ε3",null,"ΑΑ ΑΙΓΑΛΕΩ",366,"Θ",null,"ΕΦΟΑ",null,"Θα-ανακοινωθεί",null,"Ε1S-12-2nd",25,null,{"$f":"AJ3&AK3&AL3&AN3&AO3","v":"43113Ε3 2η (Β)152Sα16"},"2018-01-13","Ε3 2η (Β)",152,"ΟΑ ΚΑΛΑΜΑΡΙΑΣ","S","α16",7,3306,null,"Κ10",4]
[3,{"$f":"RAND()/222","v":4.3493604250106985E-3},3.3274038325997613E-3,null,null,"Ε1-16",null,20,30,40,60,100,120,null,null,"Α14","Α14","m45",null,null,null,"Ε4",null,"ΑΑ ΑΛΜΠΑΤΡΟΣ",124,"Β",null,"Α' ΕΝΩΣΗ",null,"ΑΛΕΞΙΟΥ Δ",null,"Ε1S-12-3_4",15,null,"43113Ε3 2η (Β)152Sκ12","2018-01-13","Ε3 2η (Β)",152,"ΟΑ ΚΑΛΑΜΑΡΙΑΣ","S","κ12",9,3307,null,"Α12",5]
[4,{"$f":"RAND()/222","v":2.438565538034453E-4},2.204047994497426E-3,null,null,"Ε1-18",null,25,37.5,50,75,125,150,null,null,"Α16","Α16","m50",null,null,null,"Open",null,"ΑΑ ΚΕΡΚΥΡΑΣ",201,"Δ",null,"Β' ΕΝΩΣΗ",null,"ΑΜΟΥΤΖΟΓΛΟΥ Κ",null,"Ε1S-12-5_8",10,null,"43113Ε3 2η (Β)152Sκ16","2018-01-13","Ε3 2η (Β)",152,"ΟΑ ΚΑΛΑΜΑΡΙΑΣ","S","κ16",11,3308,null,"Α14",6]
[5,{"$f":"RAND()/222","v":3.4079559619845522E-3},2.3056964345274204E-3,null,null,"Ε2-12",null,2.5,4,5,7.5,12.5,15,null,null,"Α18","Α18","m55",null,null,null,"ΠανΑΓ",null,"ΑΑ ΝΑΟΥΣΑΣ",169,"Γ",null,"Γ' ΕΝΩΣΗ",null,"ΑΞΑΡΛΗ Ν",null,"Ε1S-12-9_16",7.5,null,"43120Ε3 4η (Δ)217Sα12","2018-01-20","Ε3 4η (Δ)",217,"ΟΑ ΑΡΤΑΣ","S","α12",5,3309,null,"Α16",7]
[6,{"$f":"RAND()/222","v":1.0247685389397154E-5},4.4999882949235386E-3,null,null,"Ε2-14",null,5,7.5,10,15,25,30,null,null,"Κ12","Κ10","m60",null,null,null,"OpenΑΓ",null,"ΑΑΑ ΑΛΙΜΟΥ",407,"ΙΑ",null,"Δ' ΕΝΩΣΗ",null,"ΒΑΒΙΤΣΑ Π",null,"Ε1S-12-17_32",1,null,"43120Ε3 4η (Δ)217Sα16","2018-01-20","Ε3 4η (Δ)",217,"ΟΑ ΑΡΤΑΣ","S","α16",7,3310,null,"Α18",8]
[7,{"$f":"RAND()/222","v":2.9427546321600978E-3},1.8361008029526284E-3,null,null,"Ε2-16",null,10,16,20,30,50,60,null,null,"Κ14","Κ12","m65",null,null,null,null,null,"ΑΓΟ ΒΟΛΟΥ",470,"Ε",null,"Ε' ΕΝΩΣΗ",null,"ΒΑΒΟΥΡΑΚΗ Ε",null,"Ε1S-12-q8",2,null,"43120Ε3 4η (Δ)217Sκ12","2018-01-20","Ε3 4η (Δ)",217,"ΟΑ ΑΡΤΑΣ","S","κ12",9,3311,null,"Κ12",9]
[8,2.5126180368541342E-3,2.9261647334510536E-3,null,null,"Ε3-12",0.5,1.5,2.4,3,4.5,7.5,9,null,null,"Κ16","Κ14","m70",null,null,null,null,null,"ΑΓΟ ΕΥΡΥΑΛΗ ΓΛΥΦΑΔΑΣ",408,"ΙΑ",null,"ΣΤ' ΕΝΩΣΗ",null,"ΒΑΚΟΥΦΑΡΗΣ Δ",null,"Ε1S-12-q16",2,null,"43120Ε3 4η (Δ)217Sκ16","2018-01-20","Ε3 4η (Δ)",217,"ΟΑ ΑΡΤΑΣ","S","κ16",11,3312,null,"Κ14",10]
[9,7.1377995679593621E-4,3.614794582680653E-3,null,null,"Ε3-14",1,3,4.5,6,9,15,18,null,null,"Κ18","Κ16","m75",null,null,null,null,null,"ΑΓΟ ΘΕΣΠΡΩΤΙΚΟΥ",202,"Δ",null,"Ζ' ΕΝΩΣΗ",null,"ΒΑΛΤΑΔΩΡΟΣ Δ",null,"Ε1S-12-q8/2",1,null,"43120Ε3 3η (Ε)244Sα12","2018-01-20","Ε3 3η (Ε)",244,"ΟΑ ΜΑΓΝΗΣΙΑΣ","S","α12",5,3313,null,"Κ16",11]
[10,3.45448951202034E-3,4.3452081569646762E-3,null,null,"Ε3-16",2,6,9.6,12,18,30,36,null,null,"Α10","Κ18","w35",null,null,null,null,null,"ΑΓΟ ΝΑΥΠΑΚΤΟΥ",203,"Δ",null,"Η' ΕΝΩΣΗ",null,"ΒΑΛΤΑΔΩΡΟΣ Μ",null,"Ε1S-12-q32",1,null,"43120Ε3 3η (Ε)244Sα16","2018-01-20","Ε3 3η (Ε)",244,"ΟΑ ΜΑΓΝΗΣΙΑΣ","S","α16",7,3314,null,"Κ18",12]
[11,2.084794472392325E-3,5.4303133920370075E-6,null,null,"Ε4-12",0.2,0.5,1,1.2,1.7,3.2,3.7,null,null,"Κ10","ΑΝΔ","w40",null,null,null,null,null,"ΑΓΟ ΦΙΛΙΠΠΙΑΔΑΣ",204,"Δ",null,"Θ' ΕΝΩΣΗ",null,"ΒΑΧΑΡΙΔΗΣ Γ",null,"Ε1S-12-33_64",0,null,"43120Ε3 3η (Ε)244Sκ12","2018-01-20","Ε3 3η (Ε)",244,"ΟΑ ΜΑΓΝΗΣΙΑΣ","S","κ12",9,3315,null,"Α12 Δ",13]
[12,2.6973815460301911E-3,3.3427078605124719E-3,null,null,"Ε4-14",0.5,1.2,1.8,2.5,3.7,6.2,7.5,null,null,"Ανδ","ΓΥΝ","w45",null,null,null,"Παν",null,"ΑΓΣ ΜΥΛΩΝ Ο ΛΕΡΝΟΣ",258,"ΣΤ",null,"ΙΑ' ΕΝΩΣΗ",null,"ΒΟΥΡΟΥΚΟΣ Κ",null,"Ε1S-12-q",0,null,"43120Ε3 3η (Ε)244Sκ16","2018-01-20","Ε3 3η (Ε)",244,"ΟΑ ΜΑΓΝΗΣΙΑΣ","S","κ16",11,3316,null,"Α14 Δ",14]
[13,3.6406018126717114E-3,3.1584221278905195E-3,null,null,"Ε4-16",1,2.5,4,5,7.5,12.5,15,null,null,"Γυν","-","w50",null,null,null,"Ε1",null,"ΑΕ ΒΟΥΛΑΣ",496,"ΙΑ",null,"ΣΒΑΕ",null,"ΓΑΛΑΤΙΔΗΣ Α",null,"Ε1S-12-q64",0,null,"43126Ε3 4η (Η)336Sα12","2018-01-26","Ε3 4η (Η)",336,"ΑΟΑ ΦΙΛΟΘΕΗΣ","S","α12",5,3317,null,"Α16 Δ",15]
[14,4.0432748788238994E-3,4.0668037923006E-3,null,null,"Παν-12",5,10,15,20,30,50,60,null,null,null,"-","w55",null,null,null,"Ε2",null,"ΑΕ ΚΑΛΑΒΡΥΤΩΝ",259,"ΣΤ",null,"ITF & ΣΒΑΕ",null,"ΓΕΡΑΡΔΟΣ Γ",null,"Ε1S-12-q128",0,null,"43126Ε3 4η (Η)336Sκ12","2018-01-26","Ε3 4η (Η)",336,"ΑΟΑ ΦΙΛΟΘΕΗΣ","S","κ12",9,3318,null,"Α18 Δ",16]
[15,4.9445137034295631E-4,3.8068332856320294E-4,null,null,"Παν-14",10,20,30,40,60,100,120,null,null,null,"-","-",null,null,null,"Ε3",null,"ΑΕ ΠΟΡΤΟ ΡΑΦΤΗ",313,"Η",null,"INTERSPORT",null,"ΓΕΩΡΓΑΚΗΣ Κ",null,"Ε1S-12-q256",0,null,"43126Ε3 4η (Η)336Sα14","2018-01-26","Ε3 4η (Η)",336,"ΑΟΑ ΦΙΛΟΘΕΗΣ","S","α14",6,3319,null,"Κ12 Δ",17]
[16,2.4919273296796629E-4,2.747894106917682E-3,null,null,"Παν-16",20,40,60,80,120,200,240,null,null,null,null,null,null,null,null,"Ε4",null,"ΑΕΚ ΤΡΙΠΟΛΗΣ",260,"ΣΤ",null,null,null,"ΓΕΩΡΓΑΡΑ Ε",null,"Ε1S-12-wo",0,null,"43126Ε3 4η (Η)336Sκ14","2018-01-26","Ε3 4η (Η)",336,"ΑΟΑ ΦΙΛΟΘΕΗΣ","S","κ14",10,3320,null,"Κ14 Δ",18]
[17,3.4680452142104444E-3,3.0730227723235058E-3,null,null,"Παν-18",25,50,75,100,150,250,300,null,null,null,null,null,null,null,null,null,null,"ΑΕΣΑ Φ ΚΟΥΡΟΣ",478,"Η",null,null,null,"ΓΕΩΡΓΑΤΗΣ Ι",null,"Ε1D-12-1st",7.5,null,"43126Ε3 4η (Η)336Sκ16","2018-01-26","Ε3 4η (Η)",336,"ΑΟΑ ΦΙΛΟΘΕΗΣ","S","κ16",11,3321,null,"Κ16 Δ",19]
[18,3.096813566131841E-3,1.7587056214682067E-3,null,null,null,null,null,null,null,null,null,null,null,null,null,null,null,null,null,null,"G1",null,"ΑΕΤ ΝΙΚΗ ΠΑΤΡΩΝ",261,"ΣΤ",null,null,null,"ΓΕΩΡΓΙΑΔΗΣ Σ",null,"Ε1D-12-2nd",6.5,null,"43126Ε3 4η (Η)336Sα16","2018-01-26","Ε3 4η (Η)",336,"ΑΟΑ ΦΙΛΟΘΕΗΣ","S","α16",7,3322,null,"Κ18 Δ",20]
[19,1.115828919967774E-3,2.8602971020866971E-3,null,null,null,"q256","q128","q64","q32","q16","q8",null,null,null,null,null,null,null,null,null,"G2",null,"ΑΘΛ ΑΚΑΔ ΙΩΑΝΝΙΝΩΝ",205,"Δ",null,null,null,"ΓΙΑΝΝΟΥΛΟΠΟΥΛΟΥ Α",null,"Ε1D-12-3_4",4,null,"43141Ε3 6η (Δ)217Sα14","2018-02-10","Ε3 6η (Δ)",217,"ΟΑ ΑΡΤΑΣ","S","α14",6,3323,null,"Μ12 Δ",21]
[20,4.190596061807144E-3,2.533016573676908E-3,null,null,"Ε1-12",null,null,null,1,2,2,null,null,null,null,null,null,null,null,null,"G3",null,"ΑΘΛ ΚΕΝΤΡΟ ΑΝΤΙΣΦ ΛΑΜΙΑΣ",223,"Ε",null,null,null,"ΓΙΑΤΣΟΣ Β",null,"Ε1D-12-5_8",2.5,null,"43141Ε3 6η (Δ)217Sκ14","2018-02-10","Ε3 6η (Δ)",217,"ΟΑ ΑΡΤΑΣ","S","κ14",10,3324,null,"Μ14 Δ",22]
[21,6.890863268910367E-4,4.160575918775564E-3,null,null,"Ε1-14",null,null,null,2,4,4,null,null,null,null,null,null,null,null,null,"G4",null,"ΑΙΟΛΟΣ ΑΛ ΙΛΙΟΥ",367,"Θ",null,null,null,"ΓΙΩΓΙΑ Π",null,"Ε1D-12-9_16",2,null,"43119Ε3 3η (Θ)374Sα12","2018-01-19","Ε3 3η (Θ)",374,"ΑΟΑ ΧΑΪΔΑΡΙΟΥ","S","α12",5,3325,null,"Μ16 Δ",23]
[22,1.1317706487362143E-3,3.7301364051020446E-3,null,null,"Ε1-16",null,null,null,4,8,8,null,null,null,null,null,null,null,null,null,"G5",null,"ΑΚ ΖΩΓΡΑΦΟΥ",410,"ΙΑ",null,null,null,"ΓΚΟΓΚΟΥ Κ",null,"Ε1D-12-17_32",0,null,"43119Ε3 3η (Θ)374Sκ12","2018-01-19","Ε3 3η (Θ)",374,"ΑΟΑ ΧΑΪΔΑΡΙΟΥ","S","κ12",9,3326,null,"Μ18 Δ",24]
[23,2.9202722651734403E-3,3.3018473317275548E-3,null,null,"Ε1-18",null,null,null,5,10,10,null,null,null,null,null,null,null,null,null,null,null,"ΑΚΑ Α ΠΑΝΤΑΛΚΗΣ",487,"Θ",null,null,null,"ΓΚΟΥΝΤΑΝΗ Γ",null,"Ε1D-12-wo",0,null,"43119Ε3 3η (Θ)374Sα16","2018-01-19","Ε3 3η (Θ)",374,"ΑΟΑ ΧΑΪΔΑΡΙΟΥ","S","α16",7,3327,null,"ΑΝΔ",25]
[24,4.2707162858944417E-3,3.9739188486917505E-3,null,null,"Ε2-12",null,null,null,0.5,1,1,null,null,null,null,null,null,null,null,null,null,null,"ΑΚΑ ΜΑΡΑΘΩΝΑ",315,"Η",null,null,null,"ΔΑΜΙΑΝΟΥ Α",null,"Ε1S-14-1st",60,null,"43119Ε3 3η (Θ)374Sκ16","2018-01-19","Ε3 3η (Θ)",374,"ΑΟΑ ΧΑΪΔΑΡΙΟΥ","S","κ16",11,3328,null,"ΓΥΝ",26]
[25,5.5742043459414007E-4,3.9725550815313971E-3,null,null,"Ε2-14",null,null,null,1,2,2,null,null,null,null,null,null,null,null,null,null,null,"ΑΚΑΔ ΑΝΤΙΣΦ ΙΩΑΝΝΙΝΩΝ",206,"Δ",null,null,null,"ΔΕΡΜΙΤΖΑΚΗ Ε",null,"Ε1S-14-2nd",50,null,"43126Ε3 4η (Θ)374Sα14","2018-01-26","Ε3 4η (Θ)",374,"ΑΟΑ ΧΑΪΔΑΡΙΟΥ","S","α14",6,3329,null,"ΑΝΔ Δ",27]
[26,1.261937729809693E-3,3.499385769940497E-3,null,null,"Ε2-16",null,null,null,2,4,4,null,null,null,"Ναι",null,null,null,null,null,null,null,"ΑΚΑΔ ΑΝΤΙΣΦ ΣΕΡΡΩΝ 2008",101,"Α",null,null,null,"ΔΗΜΗΤΡΙΟΥ Ε",null,"Ε1S-14-3_4",30,null,"43126Ε3 4η (Θ)374Sκ14","2018-01-26","Ε3 4η (Θ)",374,"ΑΟΑ ΧΑΪΔΑΡΙΟΥ","S","κ14",10,3330,null,"ΓΥΝ Δ",28]
[27,2.8595283152514076E-5,1.3276072602272336E-3,null,null,"Ε3-12",null,null,null,null,null,null,null,null,null,"Όχι",null,null,null,null,null,null,null,"ΑΚΑΔ ΑΝΤΙΣΦ ΧΑΝΙΩΝ",298,"Ζ",null,null,null,"ΔΡΑΓΟΥΜΗΣ Π",null,"Ε1S-14-5_8",20,null,"43127Ε3 4η (Α)107Sα12","2018-01-27","Ε3 4η (Α)",107,"ΑΟΑ Ν ΠΕΡΑΜΟΥ ΤΙΤΑΝΕΣ","S","α12",5,3331,null,"ΜΙΚΤ Α/Γ",29]
[28,1.1786269941935197E-3,1.9872794222699177E-4,null,null,"Ε3-14",null,null,null,null,null,null,null,null,null,null,null,null,null,null,null,null,null,"ΑΜΕΣ Ν ΕΡΥΘΡΑΙΑΣ",316,"Η",null,null,null,"ΘΕΟΔΩΡΟΠΟΥΛΟΥ Α",null,"Ε1S-14-9_16",15,null,"43127Ε3 4η (Α)107Sκ12","2018-01-27","Ε3 4η (Α)",107,"ΑΟΑ Ν ΠΕΡΑΜΟΥ ΤΙΤΑΝΕΣ","S","κ12",9,3332]
[29,1.4475826560633892E-3,5.2642521749408087E-4,null,null,"Ε3-16",null,null,null,null,null,null,null,null,null,"από values",null,null,null,null,null,null,null,"ΑΜΣ ΠΑΝΟΡΑΜΑΤΟΣ",458,"Β",null,null,null,"ΙΩΑΝΝΙΔΗΣ Ι",null,"Ε1S-14-17_32",2,null,"43127Ε3 4η (Α)108Sα14","2018-01-27","Ε3 4η (Α)",108,"ΑΟΑ ΠΡΩΤΑΘΛ ΚΑΒΑΛΑΣ","S","α14",6,3333]
[30,4.0485239632238254E-3,2.8122942481903626E-4,null,null,"Ε4-12",null,null,null,null,null,null,null,null,null,null,null,null,null,null,null,null,null,"ΑΝΟ ΓΛΥΦΑΔΑΣ",411,"ΙΑ",null,null,null,"ΚΑΔΟΓΛΟΥ Κ",null,"Ε1S-14-q8",4,null,"43127Ε3 4η (Α)108Sκ14","2018-01-27","Ε3 4η (Α)",108,"ΑΟΑ ΠΡΩΤΑΘΛ ΚΑΒΑΛΑΣ","S","κ14",10,3334]
[31,4.2682719842684668E-3,5.3964196092776091E-5,null,null,"Ε4-14",null,null,null,null,null,null,null,null,null,"alt",null,null,null,null,null,null,null,"ΑΝΣ ΕΛΛΗΝΙΚΙΩΤΩΝ",412,"ΙΑ",null,null,null,"ΚΑΖΑΝΗΣ Γ",null,"Ε1S-14-q16",4,null,"43127Ε3 4η (Α)108Sα16","2018-01-27","Ε3 4η (Α)",108,"ΑΟΑ ΠΡΩΤΑΘΛ ΚΑΒΑΛΑΣ","S","α16",7,3335]
[32,3.3579815356937419E-3,1.415728171473839E-3,null,null,"Ε4-16",null,null,null,null,null,null,null,null,null,"Q",null,null,null,null,null,null,null,"ΑΟ ΑΘΗΝΑΪΚΗ",488,"Θ",null,null,null,"ΚΑΚΚΑΛΟΣ Γ",null,"Ε1S-14-q8/2",2,null,"43127Ε3 4η (Α)108Sκ16","2018-01-27","Ε3 4η (Α)",108,"ΑΟΑ ΠΡΩΤΑΘΛ ΚΑΒΑΛΑΣ","S","κ16",11,3336]
[null,null,null,null,null,"Παν-12",0.5,1,1.5,2.5,2.5,null,null,null,null,"LL",null,null,null,null,null,null,null,"ΑΟ ΑΙΓΙΟΥ ΜΟΡΕΑΣ",262,"ΣΤ",null,null,null,"ΚΑΛΟΓΡΗ Σ",null,"Ε1S-14-q32",2,null,"43126Ε3 4η (ΙΑ)442Sα12","2018-01-26","Ε3 4η (ΙΑ)",442,"ΑΟΑ ΚΑΒΟΥΡΙΟΥ","S","α12",5,3337]
[null,null,null,null,null,"Παν-14",1,2,3,5,5,null,null,null,null,"DQ",null,null,null,null,null,null,null,"ΑΟ ΑΛΦΕΙΟΣ ΕΠΙΤΑΛΙΟΥ",501,"ΣΤ",null,null,null,"ΚΑΜΙΛΗ Α",null,"Ε1S-14-33_64",0,null,"43126Ε3 4η (ΙΑ)442Sκ12","2018-01-26","Ε3 4η (ΙΑ)",442,"ΑΟΑ ΚΑΒΟΥΡΙΟΥ","S","κ12",9,3338]
[null,null,null,null,null,"Παν-16",2,4,6,10,10,null,null,null,null,null,null,null,null,null,null,null,null,"ΑΟ ΑΣΤΕΡΑΣ ΗΛΙΟΥΠΟΛΗΣ",497,"ΙΑ",null,null,null,"ΚΑΡΑΜΗΤΡΟΣ Κ",null,"Ε1S-14-q",0,null,"43126Ε3 4η (ΙΑ)442Sα14","2018-01-26","Ε3 4η (ΙΑ)",442,"ΑΟΑ ΚΑΒΟΥΡΙΟΥ","S","α14",6,3339]
[null,null,null,null,null,"Παν-18",2.5,5,7.5,12.5,12.5,null,null,null,null,null,null,null,null,null,null,null,null,"ΑΟ ΑΤΛΑΝΤΙΣ",317,"Η",null,null,null,"ΚΑΡΑΤΑΣΟΣ Κ",null,"Ε1S-14-q64",0,null,"43126Ε3 4η (ΙΑ)442Sκ14","2018-01-26","Ε3 4η (ΙΑ)",442,"ΑΟΑ ΚΑΒΟΥΡΙΟΥ","S","κ14",10,3340]
[null,null,null,null,null,null,null,null,null,null,null,null,null,null,null,null,null,null,null,null,null,null,null,"ΑΟ ΒΑΡΗΣ ΑΝΑΓΥΡΟΥΣ",318,"Η",null,null,null,"ΚΑΦΕΤΖΟΠΟΥΛΟΣ Π",null,"Ε1S-14-q128",0,null,"43126Ε3 4η (ΙΑ)442Sα16","2018-01-26","Ε3 4η (ΙΑ)",442,"ΑΟΑ ΚΑΒΟΥΡΙΟΥ","S","α16",7,3341]
[null,null,null,null,null,null,null,null,null,null,null,null,null,null,null,null,null,null,null,null,null,null,null,"ΑΟ ΒΟΥΛΙΑΓΜΕΝΗΣ",415,"ΙΑ",null,null,null,"ΚΑΦΦΕ Μ",null,"Ε1S-14-q256",0,null,"43126Ε3 4η (ΙΑ)442Sκ16","2018-01-26","Ε3 4η (ΙΑ)",442,"ΑΟΑ ΚΑΒΟΥΡΙΟΥ","S","κ16",11,3342]
[null,null,null,null,null,null,null,null,null,null,null,null,null,null,null,null,null,null,null,null,null,null,null,"ΑΟ ΓΛΥΦΑΔΑΣ ΦΙΛΙΑ 2000",416,"ΙΑ",null,null,null,"ΚΙΜΟΓΛΟΥ Ε",null,"Ε1S-14-wo",0,null,"43127Ε3 4η (Ε)244Sα14","2018-01-27","Ε3 4η (Ε)",244,"ΟΑ ΜΑΓΝΗΣΙΑΣ","S","α14",6,3343]
[null,null,null,null,null,null,null,null,null,null,null,null,null,null,null,null,null,null,null,null,null,null,null,"ΑΟ ΔΑΣΟΣ ΧΑΪΔΑΡΙΟΥ",489,"Θ",null,null,null,"ΚΟΣΚΙΝΑΣ Ι",null,"Ε1D-14-1st",15,null,"43127Ε3 4η (Ε)244Sκ14","2018-01-27","Ε3 4η (Ε)",244,"ΟΑ ΜΑΓΝΗΣΙΑΣ","S","κ14",10,3344]
[null,null,null,null,null,null,null,null,null,null,null,null,null,null,null,null,null,null,null,null,null,null,null,"ΑΟ ΔΙΑΣ ΠΟΛΙΧΝΗΣ",126,"Β",null,null,null,"ΚΟΤΣΑΡΙΝΗΣ Β",null,"Ε1D-14-2nd",13,null,"43127Ε3 4η (Ζ)309Sα12","2018-01-27","Ε3 4η (Ζ)",309,"ΟΑ ΣΟΥΔΑΣ","S","α12",5,3345]
[null,null,null,null,null,null,null,null,null,null,null,null,null,null,null,null,null,null,null,null,null,null,null,"ΑΟ ΔΙΛΟΦΟ ΒΑΡΗΣ",319,"Η",null,null,null,"ΚΟΤΣΩΝΗΣ Ε",null,"Ε1D-14-3_4",8,null,"43127Ε3 4η (Ζ)309Sκ12","2018-01-27","Ε3 4η (Ζ)",309,"ΟΑ ΣΟΥΔΑΣ","S","κ12",9,3346]
[null,null,null,null,null,null,null,null,null,null,null,null,null,null,null,null,null,null,null,null,null,null,null,"ΑΟ ΕΜΙΛΕΟΝ",207,"Δ",null,null,null,"ΚΟΥΚΟΥΒΙΤΑΚΗ Γ",null,"Ε1D-14-5_8",5,null,"43127Ε3 4η (Ζ)298Sα14","2018-01-27","Ε3 4η (Ζ)",298,"ΑΚΑΔ ΑΝΤΙΣΦ ΧΑΝΙΩΝ","S","α14",6,3347]
[null,null,null,null,null,null,null,null,null,null,null,null,null,null,null,null,null,null,null,null,null,null,null,"ΑΟ ΘΕΡΜΗΣ ΘΕΡΜΑΙΟΣ",127,"Β",null,null,null,"ΚΟΥΚΟΥΝΙΑΣ Χ",null,"Ε1D-14-9_16",4,null,"43127Ε3 4η (Ζ)298Sκ14","2018-01-27","Ε3 4η (Ζ)",298,"ΑΚΑΔ ΑΝΤΙΣΦ ΧΑΝΙΩΝ","S","κ14",10,3348]
[null,null,null,null,null,null,null,null,null,null,null,null,null,null,null,null,null,null,null,null,null,null,null,"ΑΟ ΚΑΒΑΛΑΣ ΜΑΚΕΔΟΝΙΚΟΣ",102,"Α",null,null,null,"ΚΟΥΛΟΥΡΗΣ Π",null,"Ε1D-14-17_32",0,null,"43127Ε3 4η (Ζ)310Sα16","2018-01-27","Ε3 4η (Ζ)",310,"ΟΑ ΧΑΝΙΩΝ","S","α16",7,3349]
[null,null,null,null,null,null,null,null,null,null,null,null,null,null,null,null,null,null,null,null,null,null,null,"ΑΟ ΚΑΛΛΙΤΕΧΝΟΥΠΟΛΗΣ",320,"Η",null,null,null,"ΚΟΥΜΑΝΤΑΣ Κ",null,"Ε1D-14-wo",0,null,"43127Ε3 4η (Ζ)310Sκ16","2018-01-27","Ε3 4η (Ζ)",310,"ΟΑ ΧΑΝΙΩΝ","S","κ16",11,3350]
[null,null,null,null,null,null,null,null,null,null,null,null,null,null,null,null,null,null,null,null,null,null,null,"ΑΟ ΚΗΦΙΣΙΑΣ",321,"Η",null,null,null,"ΚΟΥΤΣΟΛΑΜΠΡΟΥ Α",null,"Ε1S-16-1st",120,null,"43127Ε3 4η (ΣΤ)261Sα12","2018-01-27","Ε3 4η (ΣΤ)",261,"ΑΕΤ ΝΙΚΗ ΠΑΤΡΩΝ","S","α12",5,3351]
[null,null,null,null,null,null,null,null,null,null,null,null,null,null,null,null,null,null,null,null,null,null,null,"ΑΟ ΚΡΑΝΙΔΙΟΥ",264,"ΣΤ",null,null,null,"ΚΡΑΝΙΩΤΗ Σ",null,"Ε1S-16-2nd",100,null,"43127Ε3 4η (ΣΤ)261Sα16","2018-01-27","Ε3 4η (ΣΤ)",261,"ΑΕΤ ΝΙΚΗ ΠΑΤΡΩΝ","S","α16",7,3380]
[null,null,null,null,null,null,null,null,null,null,null,null,null,null,null,null,null,null,null,null,null,null,null,"ΑΟ ΚΥΔΩΝΙΑΣ",299,"Ζ",null,null,null,"ΚΩΝΣΤΑΝΤΙΝΟΥ Κ",null,"Ε1S-16-3_4",60,null,"43127Ε3 4η (ΣΤ)261Sκ12","2018-01-27","Ε3 4η (ΣΤ)",261,"ΑΕΤ ΝΙΚΗ ΠΑΤΡΩΝ","S","κ12",9,3381]
[null,null,null,null,null,null,null,null,null,null,null,null,null,null,null,null,null,null,null,null,null,null,null,"ΑΟ ΛΑΓΟΝΗΣΙΟΥ",322,"Η",null,null,null,"ΚΩΣΤΙΔΟΥ Χ",null,"Ε1S-16-5_8",40,null,"43127Ε3 4η (ΣΤ)261Sκ16","2018-01-27","Ε3 4η (ΣΤ)",261,"ΑΕΤ ΝΙΚΗ ΠΑΤΡΩΝ","S","κ16",11,3382]
[null,null,null,null,null,null,null,null,null,null,null,null,null,null,null,null,null,null,null,null,null,null,null,"ΑΟ ΛΑΤΩ ΑΓ ΝΙΚΟΛΑΟΥ",300,"Ζ",null,null,null,"ΛΑΖΑΡΙΔΗΣ Ι",null,"Ε1S-16-9_16",30,null,"43127Ε3 4η (Β)124Sα14","2018-01-27","Ε3 4η (Β)",124,"ΑΑ ΑΛΜΠΑΤΡΟΣ","S","α14",6,3352]
[null,null,null,null,null,null,null,null,null,null,null,null,null,null,null,null,null,null,null,null,null,null,null,"ΑΟ ΛΙΒΑΔΕΙΩΝ ΒΟΥΡΕΙΟΣ",323,"Η",null,null,null,"ΛΑΛΟΥΜΗΣ Λ",null,"Ε1S-16-17_32",4,null,"43127Ε3 4η (Β)124Sκ14","2018-01-27","Ε3 4η (Β)",124,"ΑΑ ΑΛΜΠΑΤΡΟΣ","S","κ14",10,3353]
[null,null,null,null,null,null,null,null,null,null,null,null,null,null,null,null,null,null,null,null,null,null,null,"ΑΟ ΜΑΡΚΟΠΟΥΛΟΥ",479,"Η",null,null,null,"ΛΑΜΠΡΟΥ Μ",null,"Ε1S-16-q8",8,null,"43127Ε3 4η (Γ)171Sα14","2018-01-27","Ε3 4η (Γ)",171,"ΑΟΑ ΚΑΤΕΡΙΝΗΣ","S","α14",6,3354]
[null,null,null,null,null,null,null,null,null,null,null,null,null,null,null,null,null,null,null,null,null,null,null,"ΑΟ ΜΕΓΑΣ ΑΛΕΞΑΝΔΡΟΣ",418,"ΙΑ",null,null,null,"ΛΙΓΓΟΣ Ι",null,"Ε1S-16-q16",8,null,"43127Ε3 4η (Γ)171Sκ14","2018-01-27","Ε3 4η (Γ)",171,"ΑΟΑ ΚΑΤΕΡΙΝΗΣ","S","κ14",10,3355]
[null,null,null,null,null,null,null,null,null,null,null,null,null,null,null,null,null,null,null,null,null,null,null,"ΑΟ ΜΟΡΤΕΡΟΥ",480,"Η",null,null,null,"ΜΕΛΛΙΟΣ Α",null,"Ε1S-16-q8/2",4,null,"43133Ε2 5η (ΣΤ)294Sα12","2018-02-02","Ε2 5η (ΣΤ)",294,"ΣΑ ΤΡΙΠΟΛΗΣ","S","α12",5,3362]
[null,null,null,null,null,null,null,null,null,null,null,null,null,null,null,null,null,null,null,null,null,null,null,"ΑΟ ΜΥΤΙΛΗΝΗΣ",371,"Θ",null,null,null,"ΜΙΧΑΗΛΙΔΗΣ Σ",null,"Ε1S-16-q32",4,null,"43133Ε2 5η (ΣΤ)294Sκ12","2018-02-02","Ε2 5η (ΣΤ)",294,"ΣΑ ΤΡΙΠΟΛΗΣ","S","κ12",9,3363]
[null,null,null,null,null,null,null,null,null,null,null,null,null,null,null,null,null,null,null,null,null,null,null,"ΑΟ Ν ΣΜΥΡΝΗΣ ΜΙΛΩΝ",419,"ΙΑ",null,null,null,"ΜΟΥΡΒΑΤΗΣ Π",null,"Ε1S-16-33_64",0,null,"43133Ε2 5η (ΣΤ)294Sα16","2018-02-02","Ε2 5η (ΣΤ)",294,"ΣΑ ΤΡΙΠΟΛΗΣ","S","α16",7,3364]
[null,null,null,null,null,null,null,null,null,null,null,null,null,null,null,null,null,null,null,null,null,null,null,"ΑΟ ΝΕΟΥ ΦΑΛΗΡΟΥ",490,"Θ",null,null,null,"ΜΟΥΡΤΖΙΟΥ Ι",null,"Ε1S-16-q",0,null,"43133Ε2 5η (ΣΤ)294Sκ16","2018-02-02","Ε2 5η (ΣΤ)",294,"ΣΑ ΤΡΙΠΟΛΗΣ","S","κ16",11,3365]
[null,null,null,null,null,null,null,null,null,null,null,null,null,null,null,null,null,null,null,null,null,null,null,"ΑΟ ΝΦ ΑΤΤΑΛΟΣ",326,"Η",null,null,null,"ΜΠΑΛΑΦΑΣ Σ",null,"Ε1S-16-q64",0,null,"43133Ε2 5η (ΣΤ)270Sα14","2018-02-02","Ε2 5η (ΣΤ)",270,"ΑΡΚΑΔΙΚΟΣ ΟΑ ΑΤΛΑΣ","S","α14",6,3366]
[null,null,null,null,null,null,null,null,null,null,null,null,null,null,null,null,null,null,null,null,null,null,null,"ΑΟ ΟΛΥΜΠΙΑΔΑ ΒΥΡΩΝΑ",481,"Η",null,null,null,"ΜΠΑΡΚΑΣ Α",null,"Ε1S-16-q128",0,null,"43133Ε2 5η (ΣΤ)270Sκ14","2018-02-02","Ε2 5η (ΣΤ)",270,"ΑΡΚΑΔΙΚΟΣ ΟΑ ΑΤΛΑΣ","S","κ14",10,3367]
[null,null,null,null,null,null,null,null,null,null,null,null,null,null,null,null,null,null,null,null,null,null,null,"ΑΟ ΟΡΕΣΤΙΑΔΑΣ",103,"Α",null,null,null,"ΜΠΑΡΜΠΟΠΟΥΛΟΣ Κ",null,"Ε1S-16-q256",0,null,"43133Ε2 5η (Ζ)305Sα12","2018-02-02","Ε2 5η (Ζ)",305,"ΗΡΑΚΛΕΙΟ ΟΑΑ","S","α12",5,3368]
[null,null,null,null,null,null,null,null,null,null,null,null,null,null,null,null,null,null,null,null,null,null,null,"ΑΟ Π ΦΑΛΗΡΟΥ",420,"ΙΑ",null,null,null,"ΜΠΑΤΣΙΟΣ Κ",null,"Ε1S-16-wo",0,null,"43133Ε2 5η (Ζ)305Sκ12","2018-02-02","Ε2 5η (Ζ)",305,"ΗΡΑΚΛΕΙΟ ΟΑΑ","S","κ12",9,3369]
[null,null,null,null,null,null,null,null,null,null,null,null,null,null,null,null,null,null,null,null,null,null,null,"ΑΟ ΠΑΡΑΔΕΙΣΟΣ ΑΜΑΡΟΥΣΙΟΥ",482,"Η",null,null,null,"ΝΙΚΗΦΟΡΑΚΗΣ Σ",null,"Ε1D-16-1st",30,null,"43133Ε2 5η (Ζ)305Sα14","2018-02-02","Ε2 5η (Ζ)",305,"ΗΡΑΚΛΕΙΟ ΟΑΑ","S","α14",6,3370]
[null,null,null,null,null,null,null,null,null,null,null,null,null,null,null,null,null,null,null,null,null,null,null,"ΑΟ ΠΑΡΓΑΣ",468,"Δ",null,null,null,"ΝΤΑΛΑΜΑΓΚΑ Β",null,"Ε1D-16-2nd",26,null,"43133Ε2 5η (Ζ)305Sκ14","2018-02-02","Ε2 5η (Ζ)",305,"ΗΡΑΚΛΕΙΟ ΟΑΑ","S","κ14",10,3371]
[null,null,null,null,null,null,null,null,null,null,null,null,null,null,null,null,null,null,null,null,null,null,null,"ΑΟ ΠΕΥΚΗΣ TIE BREAK",329,"Η",null,null,null,"ΝΤΙΝΟΠΟΥΛΟΣ Π",null,"Ε1D-16-3_4",16,null,"43133Ε2 5η (Ζ)305Sα16","2018-02-02","Ε2 5η (Ζ)",305,"ΗΡΑΚΛΕΙΟ ΟΑΑ","S","α16",7,3372]
[null,null,null,null,null,null,null,null,null,null,null,null,null,null,null,null,null,null,null,null,null,null,null,"ΑΟ ΠΟΣΕΙΔΩΝ ΛΟΥΤΡΑΚΙΟΥ",265,"ΣΤ",null,null,null,"ΟΥΛΑΣΟΓΛΟΥ Ν",null,"Ε1D-16-5_8",10,null,{"$f":"AJ67&AK67&AL67&AN67&AO67","v":"43133Ε2 5η (Ζ)305Sκ16"},"2018-02-02","Ε2 5η (Ζ)",305,"ΗΡΑΚΛΕΙΟ ΟΑΑ","S","κ16",11,3373]
[null,null,null,null,null,null,null,null,null,null,null,null,null,null,null,null,null,null,null,null,null,null,null,"ΑΟ ΣΙΚΥΩΝΟΣ ΚΙΑΤΟΥ",266,"ΣΤ",null,null,null,"ΟΥΝΑΝΙΔΟΥ Λ",null,"Ε1D-16-9_16",8,null,"43133Ε2 5η (Ζ)305Dα12","2018-02-02","Ε2 5η (Ζ)",305,"ΗΡΑΚΛΕΙΟ ΟΑΑ","D","α12",13,3403]
[null,null,null,null,null,null,null,null,null,null,null,null,null,null,null,null,null,null,null,null,null,null,null,"ΑΟ ΤΑΤΑΥΛΑ ΚΩΝΣΤ",421,"ΙΑ",null,null,null,"ΟΥΡΑΝΙΔΗΣ Φ",null,"Ε1D-16-17_32",0,null,"43133Ε2 5η (Ζ)305Dα14","2018-02-02","Ε2 5η (Ζ)",305,"ΗΡΑΚΛΕΙΟ ΟΑΑ","D","α14",14,3404]
[null,null,null,null,null,null,null,null,null,null,null,null,null,null,null,null,null,null,null,null,null,null,null,"ΑΟ ΤΑΤΟΪΟΥ",330,"Η",null,null,null,"ΠΑΛΑΙΣΤΗ Γ",null,"Ε1D-16-wo",0,null,"43133Ε2 5η (Ζ)305Dα16","2018-02-02","Ε2 5η (Ζ)",305,"ΗΡΑΚΛΕΙΟ ΟΑΑ","D","α16",15,3405]
[null,null,null,null,null,null,null,null,null,null,null,null,null,null,null,null,null,null,null,null,null,null,null,"ΑΟ ΤΕΡΨΙΘΕΑΣ ΓΛΥΦΑΔΑΣ",422,"ΙΑ",null,null,null,"ΠΑΛΑΙΣΤΗ Ν",null,"Ε1S-18-1st",150,null,"43133Ε2 5η (Ζ)305Dκ12","2018-02-02","Ε2 5η (Ζ)",305,"ΗΡΑΚΛΕΙΟ ΟΑΑ","D","κ12",17,3406]
[null,null,null,null,null,null,null,null,null,null,null,null,null,null,null,null,null,null,null,null,null,null,null,"ΑΟ ΦΙΛΙΠΠΟΣ ΠΟΛΥΔΡΟΣΟΥ",331,"Η",null,null,null,"ΠΑΛΑΙΣΤΗ Χ",null,"Ε1S-18-2nd",125,null,"43133Ε2 5η (Ζ)305Dκ14","2018-02-02","Ε2 5η (Ζ)",305,"ΗΡΑΚΛΕΙΟ ΟΑΑ","D","κ14",18,3407]
[null,null,null,null,null,null,null,null,null,null,null,null,null,null,null,null,null,null,null,null,null,null,null,"ΑΟ ΦΟΥΡΕΣΙ ΓΛ ΝΕΡΩΝ",483,"Η",null,null,null,"ΠΑΝΤΕΛΙΔΗΣ Σ",null,"Ε1S-18-3_4",75,null,"43133Ε2 5η (Ζ)305Dκ16","2018-02-02","Ε2 5η (Ζ)",305,"ΗΡΑΚΛΕΙΟ ΟΑΑ","D","κ16",19,3408]
[null,null,null,null,null,null,null,null,null,null,null,null,null,null,null,null,null,null,null,null,null,null,null,"ΑΟ ΧΡΥΣΟΥΠΟΛΗΣ",104,"Α",null,null,null,"ΠΑΠΑΒΑΣΙΛΕΙΟΥ Χ",null,"Ε1S-18-5_8",50,null,"43133Ε2 5η (Ε)256Sα12","2018-02-02","Ε2 5η (Ε)",256,"ΦΘΙΩΤΙΚΟΣ ΟΑ","S","α12",5,3374]
[null,null,null,null,null,null,null,null,null,null,null,null,null,null,null,null,null,null,null,null,null,null,null,"ΑΟΑ ΑΙΓΑΛΕΩ 92",373,"Θ",null,null,null,"ΠΑΠΑΝΙΚΟΛΑΟΥ Γ",null,"Ε1S-18-9_16",37.5,null,"43133Ε2 5η (Ε)256Sκ12","2018-02-02","Ε2 5η (Ε)",256,"ΦΘΙΩΤΙΚΟΣ ΟΑ","S","κ12",9,3375]
[null,null,null,null,null,null,null,null,null,null,null,null,null,null,null,null,null,null,null,null,null,null,null,"ΑΟΑ ΑΛΕΞΑΝΔΡΟΣ Β",333,"Η",null,null,null,"ΠΑΠΑΧΡΗΣΤΟΥ Δ",null,"Ε1S-18-17_32",5,null,"43133Ε2 5η (Ε)256Dα12","2018-02-02","Ε2 5η (Ε)",256,"ΦΘΙΩΤΙΚΟΣ ΟΑ","D","α12",13,3413]
[null,null,null,null,null,null,null,null,null,null,null,null,null,null,null,null,null,null,null,null,null,null,null,"ΑΟΑ ΑΜΠΕΛ ΜΕΝΕΜΕΝΗΣ",128,"Β",null,null,null,"ΠΑΠΠΑΣ Α",null,"Ε1S-18-q8",10,null,"43133Ε2 5η (Ε)256Dκ12","2018-02-02","Ε2 5η (Ε)",256,"ΦΘΙΩΤΙΚΟΣ ΟΑ","D","κ12",17,3414]
[null,null,null,null,null,null,null,null,null,null,null,null,null,null,null,null,null,null,null,null,null,null,null,"ΑΟΑ ΑΡΓΥΡΟΥΠΟΛΗΣ",423,"ΙΑ",null,null,null,"ΠΑΠΠΑΣ Π",null,"Ε1S-18-q16",10,null,"43133Ε2 5η (Ε)244Sα14","2018-02-02","Ε2 5η (Ε)",244,"ΟΑ ΜΑΓΝΗΣΙΑΣ","S","α14",6,3376]
[null,null,null,null,null,null,null,null,null,null,null,null,null,null,null,null,null,null,null,null,null,null,null,"ΑΟΑ ΑΣΤΕΡΑΣ ΘΕΣ",129,"Β",null,null,null,"ΠΑΤΡΙΚΙΟΣ Ν",null,"Ε1S-18-q8/2",5,null,"43133Ε2 5η (Ε)244Sκ14","2018-02-02","Ε2 5η (Ε)",244,"ΟΑ ΜΑΓΝΗΣΙΑΣ","S","κ14",10,3377]
[null,null,null,null,null,null,null,null,null,null,null,null,null,null,null,null,null,null,null,null,null,null,null,"ΑΟΑ ΑΤΤΙΚΟΣ ΗΛΙΟΣ",334,"Η",null,null,null,"ΠΑΤΣΟΥΡΑΚΟΥ Δ",null,"Ε1S-18-q32",5,null,"43133Ε2 5η (Ε)244Sα16","2018-02-02","Ε2 5η (Ε)",244,"ΟΑ ΜΑΓΝΗΣΙΑΣ","S","α16",7,3378]
[null,null,null,null,null,null,null,null,null,null,null,null,null,null,null,null,null,null,null,null,null,null,null,"ΑΟΑ ΔΗΜΟΥ ΕΛΕΥΘΕΡΩΝ",105,"Α",null,null,null,"ΠΕΡΝΑΓΚΙΔΗ Γ",null,"Ε1S-18-33_64",0,null,"43133Ε2 5η (Ε)244Sκ16","2018-02-02","Ε2 5η (Ε)",244,"ΟΑ ΜΑΓΝΗΣΙΑΣ","S","κ16",11,3379]
[null,null,null,null,null,null,null,null,null,null,null,null,null,null,null,null,null,null,null,null,null,null,null,"ΑΟΑ ΕΛΕΥΣΙΝΑΣ",441,"Θ",null,null,null,"ΠΟΝΤΙΔΑΣ Α",null,"Ε1S-18-q",0,null,"43133Ε2 5η (Ε)244Dα14","2018-02-02","Ε2 5η (Ε)",244,"ΟΑ ΜΑΓΝΗΣΙΑΣ","D","α14",14,3409]
[null,null,null,null,null,null,null,null,null,null,null,null,null,null,null,null,null,null,null,null,null,null,null,"ΑΟΑ ΗΛΙΟΥΠΟΛΗΣ",424,"ΙΑ",null,null,null,"ΠΡΑΣΙΝΟΣ Β",null,"Ε1S-18-q64",0,null,"43133Ε2 5η (Ε)244Dα16","2018-02-02","Ε2 5η (Ε)",244,"ΟΑ ΜΑΓΝΗΣΙΑΣ","D","α16",15,3410]
[null,null,null,null,null,null,null,null,null,null,null,null,null,null,null,null,null,null,null,null,null,null,null,"ΑΟΑ ΚΑΒΑΛΑΣ",106,"Α",null,null,null,"ΠΡΙΤΣΚΑΣ Π",null,"Ε1S-18-q128",0,null,"43133Ε2 5η (Ε)244Dκ14","2018-02-02","Ε2 5η (Ε)",244,"ΟΑ ΜΑΓΝΗΣΙΑΣ","D","κ14",18,3411]
[null,null,null,null,null,null,null,null,null,null,null,null,null,null,null,null,null,null,null,null,null,null,null,"ΑΟΑ ΚΑΒΟΥΡΙΟΥ",442,"ΙΑ",null,null,null,"ΣΑΚΚΑΣ Β",null,"Ε1S-18-q256",0,null,"43133Ε2 5η (Ε)244Dκ16","2018-02-02","Ε2 5η (Ε)",244,"ΟΑ ΜΑΓΝΗΣΙΑΣ","D","κ16",19,3412]
[null,null,null,null,null,null,null,null,null,null,null,null,null,null,null,null,null,null,null,null,null,null,null,"ΑΟΑ ΚΑΙΣΑΡΙΑΝΗΣ",390,"Θ",null,null,null,"ΣΑΜΑΡΑ Ε",null,"Ε1S-18-wo",0,null,"43120Ε3 3η (Γ)192Sα12","2018-01-20","Ε3 3η (Γ)",192,"ΟΑ ΛΙΤΟΧΩΡΟΥ","S","α12",5,3383]
[null,null,null,null,null,null,null,null,null,null,null,null,null,null,null,null,null,null,null,null,null,null,null,"ΑΟΑ ΚΑΣΤΟΡΙΑΣ",463,"Γ",null,null,null,"ΣΑΡΑΤΖΙΔΗΣ Δ",null,"Ε1D-18-1st",37.5,null,"43120Ε3 3η (Γ)192Sκ12","2018-01-20","Ε3 3η (Γ)",192,"ΟΑ ΛΙΤΟΧΩΡΟΥ","S","κ12",9,3384]
[null,null,null,null,null,null,null,null,null,null,null,null,null,null,null,null,null,null,null,null,null,null,null,"ΑΟΑ ΚΑΤΕΡΙΝΗΣ",171,"Γ",null,null,null,"ΣΑΧΠΑΤΖΙΔΗΣ Γ",null,"Ε1D-18-2nd",32.5,null,"43120Ε3 3η (Γ)171Sα16","2018-01-20","Ε3 3η (Γ)",171,"ΑΟΑ ΚΑΤΕΡΙΝΗΣ","S","α16",7,3385]
[null,null,null,null,null,null,null,null,null,null,null,null,null,null,null,null,null,null,null,null,null,null,null,"ΑΟΑ ΚΟΖΑΝΗΣ",464,"Γ",null,null,null,"ΣΙΑΠΑΤΗΣ Γ",null,"Ε1D-18-3_4",20,null,"43120Ε3 3η (Γ)171Sκ16","2018-01-20","Ε3 3η (Γ)",171,"ΑΟΑ ΚΑΤΕΡΙΝΗΣ","S","κ16",11,3386]
[null,null,null,null,null,null,null,null,null,null,null,null,null,null,null,null,null,null,null,null,null,null,null,"ΑΟΑ ΛΕ ΡΑΚΕΤ",130,"Β",null,null,null,"ΣΙΟΝΤΗ Η",null,"Ε1D-18-5_8",12.5,null,"43140Ε3 6η (Η)363Sα12","2018-02-09","Ε3 6η (Η)",363,"ΣΑ ΡΑΦΗΝΑΣ","S","α12",5,3387]
[null,null,null,null,null,null,null,null,null,null,null,null,null,null,null,null,null,null,null,null,null,null,null,"ΑΟΑ ΜΕΓΑΛΟΠΟΛΗΣ",267,"ΣΤ",null,null,null,"ΣΙΡΠΟΣ Π",null,"Ε1D-18-9_16",10,null,"43140Ε3 6η (Η)363Sκ12","2018-02-09","Ε3 6η (Η)",363,"ΣΑ ΡΑΦΗΝΑΣ","S","κ12",9,3388]
[null,null,null,null,null,null,null,null,null,null,null,null,null,null,null,null,null,null,null,null,null,null,null,"ΑΟΑ Ν ΠΕΡΑΜΟΥ ΤΙΤΑΝΕΣ",107,"Α",null,null,null,"ΣΚΟΥΡΤΙΑΣ Ε",null,"Ε1D-18-wo",0,null,"43140Ε3 6η (Η)363Sα16","2018-02-09","Ε3 6η (Η)",363,"ΣΑ ΡΑΦΗΝΑΣ","S","α16",7,3389]
[null,null,null,null,null,null,null,null,null,null,null,null,null,null,null,null,null,null,null,null,null,null,null,"ΑΟΑ ΠΑΠΑΓΟΥ",425,"ΙΑ",null,null,null,"ΣΠΑΘΗΣ Μ",null,"Ε1D-18-17_32",0,null,"43140Ε3 6η (Η)363Sκ16","2018-02-09","Ε3 6η (Η)",363,"ΣΑ ΡΑΦΗΝΑΣ","S","κ16",11,3390]
[null,null,null,null,null,null,null,null,null,null,null,null,null,null,null,null,null,null,null,null,null,null,null,"ΑΟΑ ΠΑΤΡΩΝ",268,"ΣΤ",null,null,null,"ΣΤΑΜΑΤΙΑΔΗΣ Γ",null,"Ε2S-12-1st",15,null,"43147Ε1 7η (ΙΑ)424Sα12","2018-02-16","Ε1 7η (ΙΑ)",424,"ΑΟΑ ΗΛΙΟΥΠΟΛΗΣ","S","α12",5,3429]
[null,null,null,null,null,null,null,null,null,null,null,null,null,null,null,null,null,null,null,null,null,null,null,"ΑΟΑ ΠΟΣΕΙΔΩΝ ΘΕΣ",131,"Β",null,null,null,"ΣΤΑΜΑΤΙΑΔΟΥ Ε",null,"Ε2S-12-2nd",12.5,null,"43147Ε1 7η (ΙΑ)424Sκ12","2018-02-16","Ε1 7η (ΙΑ)",424,"ΑΟΑ ΗΛΙΟΥΠΟΛΗΣ","S","κ12",9,3430]
[null,null,null,null,null,null,null,null,null,null,null,null,null,null,null,null,null,null,null,null,null,null,null,"ΑΟΑ ΠΡΩΤΑΘΛ ΚΑΒΑΛΑΣ",108,"Α",null,null,null,"ΣΤΑΦΥΛΙΔΗΣ Α",null,"Ε2S-12-3_4",7.5,null,"43147Ε1 7η (ΙΑ)424Sα14","2018-02-16","Ε1 7η (ΙΑ)",424,"ΑΟΑ ΗΛΙΟΥΠΟΛΗΣ","S","α14",6,3431]
[null,null,null,null,null,null,null,null,null,null,null,null,null,null,null,null,null,null,null,null,null,null,null,"ΑΟΑ ΡΕΘΥΜΝΟ ΤΚ",476,"Ζ",null,null,null,"ΣΤΕΦΑΝΙΔΗΣ Γ",null,"Ε2S-12-5_8",5,null,"43147Ε1 7η (ΙΑ)424Sκ14","2018-02-16","Ε1 7η (ΙΑ)",424,"ΑΟΑ ΗΛΙΟΥΠΟΛΗΣ","S","κ14",10,3432]
[null,null,null,null,null,null,null,null,null,null,null,null,null,null,null,null,null,null,null,null,null,null,null,"ΑΟΑ ΣΤΑΥΡΟΥΠΟΛΗΣ ΙΦΙΤΟΣ",132,"Β",null,null,null,"ΣΤΟΛΗ Κ",null,"Ε2S-12-9_16",4,null,"43147Ε1 7η (ΙΑ)424Dα12","2018-02-16","Ε1 7η (ΙΑ)",424,"ΑΟΑ ΗΛΙΟΥΠΟΛΗΣ","D","α12",13,3433]
[null,null,null,null,null,null,null,null,null,null,null,null,null,null,null,null,null,null,null,null,null,null,null,"ΑΟΑ ΥΕΛΟΥ",335,"Η",null,null,null,"ΤΑΜΠΟΣΗ Τ",null,"Ε2S-12-17_32",0.5,null,"43147Ε1 7η (ΙΑ)424Dκ12","2018-02-16","Ε1 7η (ΙΑ)",424,"ΑΟΑ ΗΛΙΟΥΠΟΛΗΣ","D","κ12",17,3434]
[null,null,null,null,null,null,null,null,null,null,null,null,null,null,null,null,null,null,null,null,null,null,null,"ΑΟΑ ΦΙΛΟΘΕΗΣ",336,"Η",null,null,null,"ΤΑΡΑΜΟΝΛΗΣ Ι",null,"Ε2S-12-q8",1,null,"43147Ε1 7η (ΙΑ)424Dα14","2018-02-16","Ε1 7η (ΙΑ)",424,"ΑΟΑ ΗΛΙΟΥΠΟΛΗΣ","D","α14",14,3435]
[null,null,null,null,null,null,null,null,null,null,null,null,null,null,null,null,null,null,null,null,null,null,null,"ΑΟΑ Χ ΤΡΙΠΟΛΗΣ",500,"ΣΤ",null,null,null,"ΤΖΙΓΚΟΥΝΑΚΗΣ Κ",null,"Ε2S-12-q16",1,null,"43147Ε1 7η (ΙΑ)424Dκ14","2018-02-16","Ε1 7η (ΙΑ)",424,"ΑΟΑ ΗΛΙΟΥΠΟΛΗΣ","D","κ14",18,3436]
[null,null,null,null,null,null,null,null,null,null,null,null,null,null,null,null,null,null,null,null,null,null,null,"ΑΟΑ ΧΑΪΔΑΡΙΟΥ",374,"Θ",null,null,null,"ΤΖΟΒΑΡΑΣ Ν",null,"Ε2S-12-q8/2",0.5,null,"43147Ε1 7η (ΙΑ)435Sα16","2018-02-16","Ε1 7η (ΙΑ)",435,"ΟΑ ΓΛΥΦΑΔΑΣ","S","α16",7,3437]
[null,null,null,null,null,null,null,null,null,null,null,null,null,null,null,null,null,null,null,null,null,null,null,"ΑΠΜΣ ΑΣΚΗΣΗ ΗΡΑΚΛΕΙΟΥ",302,"Ζ",null,null,null,"ΤΟΚΑΤΛΙΔΗΣ Χ",null,"Ε2S-12-q32",0.5,null,"43147Ε1 7η (ΙΑ)435Sκ16","2018-02-16","Ε1 7η (ΙΑ)",435,"ΟΑ ΓΛΥΦΑΔΑΣ","S","κ16",11,3438]
[null,null,null,null,null,null,null,null,null,null,null,null,null,null,null,null,null,null,null,null,null,null,null,"ΑΠΟ ΣΑΝΗ",337,"Η",null,null,null,"ΤΟΥΤΟΥΚΤΣΗΣ Ε",null,"Ε2S-12-33_64",0,null,"43147Ε1 7η (ΙΑ)435Sα18","2018-02-16","Ε1 7η (ΙΑ)",435,"ΟΑ ΓΛΥΦΑΔΑΣ","S","α18",8,3439]
[null,null,null,null,null,null,null,null,null,null,null,null,null,null,null,null,null,null,null,null,null,null,null,"ΑΡΚΑΔΙΚΟΣ ΟΑ ΑΤΛΑΣ",270,"ΣΤ",null,null,null,"ΤΡΙΚΚΑ-ΨΩΜΑ Δ",null,"Ε2S-12-q",0,null,"43147Ε1 7η (ΙΑ)435Sκ18","2018-02-16","Ε1 7η (ΙΑ)",435,"ΟΑ ΓΛΥΦΑΔΑΣ","S","κ18",12,3440]
[null,null,null,null,null,null,null,null,null,null,null,null,null,null,null,null,null,null,null,null,null,null,null,"ΑΣ ΑΘΛΟΠΑΙΔΕΙΑ ΝΑΞΟΥ",509,"Η",null,null,null,"ΤΣΑΓΛΙΩΤΗΣ Ε",null,"Ε2S-12-q64",0,null,"43147Ε1 7η (ΙΑ)435Dα16","2018-02-16","Ε1 7η (ΙΑ)",435,"ΟΑ ΓΛΥΦΑΔΑΣ","D","α16",15,3441]
[null,null,null,null,null,null,null,null,null,null,null,null,null,null,null,null,null,null,null,null,null,null,null,"ΑΣ ΑΚΑΔ ΠΡΩΤΑΘΛ ΠΕΥΚΩΝ",133,"Β",null,null,null,"ΤΣΑΡΚΝΙΑΣ Π",null,"Ε2S-12-q128",0,null,"43147Ε1 7η (ΙΑ)435Dκ16","2018-02-16","Ε1 7η (ΙΑ)",435,"ΟΑ ΓΛΥΦΑΔΑΣ","D","κ16",19,3442]
[null,null,null,null,null,null,null,null,null,null,null,null,null,null,null,null,null,null,null,null,null,null,null,"ΑΣ ΑΚΡΟΠΟΛΙΣ",338,"Η",null,null,null,"ΤΣΑΡΚΝΙΑΣ Σ",null,"Ε2S-12-q256",0,null,"43147Ε1 7η (ΙΑ)435Dα18","2018-02-16","Ε1 7η (ΙΑ)",435,"ΟΑ ΓΛΥΦΑΔΑΣ","D","α18",16,3443]
[null,null,null,null,null,null,null,null,null,null,null,null,null,null,null,null,null,null,null,null,null,null,null,"ΑΣ ΑΝΤΙΣΦΑΙΡΙΣΗ κ ΖΩΗ",444,"Ε",null,null,null,"ΤΣΙΑΡΤΑΣ Β",null,"Ε2S-12-wo",0,null,"43147Ε1 7η (ΙΑ)435Dκ18","2018-02-16","Ε1 7η (ΙΑ)",435,"ΟΑ ΓΛΥΦΑΔΑΣ","D","κ18",20,3444]
[null,null,null,null,null,null,null,null,null,null,null,null,null,null,null,null,null,null,null,null,null,null,null,"ΑΣ ΑΠΟΛΛΩΝ ΚΑΛΥΜΝΟΥ",375,"Θ",null,null,null,"ΤΣΟΥΛΦΑ Α",null,"Ε2D-12-1st",4,null,"43147Ε4 7η (ΙΑ)439Sα12","2018-02-16","Ε4 7η (ΙΑ)",439,"ΟΑ ΧΟΛΑΡΓΟΥ","S","α12",5,3445]
[null,null,null,null,null,null,null,null,null,null,null,null,null,null,null,null,null,null,null,null,null,null,null,"ΑΣ ΑΣΤΕΡΑΣ ΠΕΝΤΕΛΙΚΟΥ",484,"Η",null,null,null,"ΦΟΝΔΟΥΛΑΚΟΣ Μ",null,"Ε2D-12-2nd",3,null,"43147Ε4 7η (ΙΑ)439Sκ12","2018-02-16","Ε4 7η (ΙΑ)",439,"ΟΑ ΧΟΛΑΡΓΟΥ","S","κ12",9,3446]
[null,null,null,null,null,null,null,null,null,null,null,null,null,null,null,null,null,null,null,null,null,null,null,"ΑΣ ΒΑ ΚΥΝΟΥΡΙΑΣ ΑΙΟΛΟΣ",271,"ΣΤ",null,null,null,"ΧΑΝΤΖΗΣ Δ",null,"Ε2D-12-3_4",2,null,"43147Ε4 7η (ΙΑ)439Sα14","2018-02-16","Ε4 7η (ΙΑ)",439,"ΟΑ ΧΟΛΑΡΓΟΥ","S","α14",6,3449]
[null,null,null,null,null,null,null,null,null,null,null,null,null,null,null,null,null,null,null,null,null,null,null,"ΑΣ ΒΕΡΟΙΑΣ ΗΜΑΘΙΩΝ",173,"Γ",null,null,null,"ΧΑΡΜΑΝΑΣ Α",null,"Ε2D-12-5_8",1.5,null,"43147Ε4 7η (ΙΑ)439Sκ14","2018-02-16","Ε4 7η (ΙΑ)",439,"ΟΑ ΧΟΛΑΡΓΟΥ","S","κ14",10,3450]
[null,null,null,null,null,null,null,null,null,null,null,null,null,null,null,null,null,null,null,null,null,null,null,"ΑΣ Δ ΚΟΛΛΕΓΙΟΥ ICBS 2009",134,"Β",null,null,null,"ΧΑΤΖΗΜΕΝΤΩΡ Α",null,"Ε2D-12-9_16",1,null,"43147Ε4 7η (ΙΑ)424Sα16","2018-02-16","Ε4 7η (ΙΑ)",424,"ΑΟΑ ΗΛΙΟΥΠΟΛΗΣ","S","α16",7,3447]
[null,null,null,null,null,null,null,null,null,null,null,null,null,null,null,null,null,null,null,null,null,null,null,"ΑΣ Η ΠΑΡΝΗΘΑ",376,"Θ",null,null,null,"ΧΡΙΣΤΟΠΟΥΛΟΣ Χ",null,"Ε2D-12-17_32",0,null,"43147Ε4 7η (ΙΑ)424Sκ16","2018-02-16","Ε4 7η (ΙΑ)",424,"ΑΟΑ ΗΛΙΟΥΠΟΛΗΣ","S","κ16",11,3448]
[null,null,null,null,null,null,null,null,null,null,null,null,null,null,null,null,null,null,null,null,null,null,null,"ΑΣ ΚΑΡΠΕΝΗΣΙ ΤΕΝΙΣ ΚΛΑΜΠ",224,"Ε",null,null,null,"ΧΡΟΝΗ Ο",null,"Ε2D-12-wo",0,null,"43161Ε3 9η (Θ)400Sα12","2018-03-02","Ε3 9η (Θ)",400,"ΟΑ ΧΑΛΚΙΔΑΣ","S","α12",5,3451]
[null,null,null,null,null,null,null,null,null,null,null,null,null,null,null,null,null,null,null,null,null,null,null,"ΑΣ ΚΟΛΛΕΓΙΟΥ ΝΤΕΡΗ",340,"Η",null,null,null,null,null,"Ε2S-14-1st",30,null,"43161Ε3 9η (Θ)400Sκ12","2018-03-02","Ε3 9η (Θ)",400,"ΟΑ ΧΑΛΚΙΔΑΣ","S","κ12",9,3452]
[null,null,null,null,null,null,null,null,null,null,null,null,null,null,null,null,null,null,null,null,null,null,null,"ΑΣ ΜΑΧΗΤΕΣ ΠΕΥΚΩΝ",135,"Β",null,null,null,null,null,"Ε2S-14-2nd",25,null,"43161Ε3 9η (Θ)400Sα14","2018-03-02","Ε3 9η (Θ)",400,"ΟΑ ΧΑΛΚΙΔΑΣ","S","α14",6,3453]
[null,null,null,null,null,null,null,null,null,null,null,null,null,null,null,null,null,null,null,null,null,null,null,"ΑΣ Ν ΒΟΥΤΖΑ ΠΡΟΟΔΟΣ",341,"Η",null,null,null,null,null,"Ε2S-14-3_4",15,null,"43161Ε3 9η (Θ)400Sκ14","2018-03-02","Ε3 9η (Θ)",400,"ΟΑ ΧΑΛΚΙΔΑΣ","S","κ14",10,3454]
[null,null,null,null,null,null,null,null,null,null,null,null,null,null,null,null,null,null,null,null,null,null,null,"ΑΣ ΝΗΡΕΑΣ ΒΕΡΟΙΑΣ",174,"Γ",null,null,null,null,null,"Ε2S-14-5_8",10,null,"43161Ε3 9η (Θ)400Sα16","2018-03-02","Ε3 9η (Θ)",400,"ΟΑ ΧΑΛΚΙΔΑΣ","S","α16",7,3455]
[null,null,null,null,null,null,null,null,null,null,null,null,null,null,null,null,null,null,null,null,null,null,null,"ΑΣ ΝΙΚΗ ΑΓ ΔΗΜΗΤΡΙΟΥ",507,"ΙΑ",null,null,null,null,null,"Ε2S-14-9_16",7.5,null,"43161Ε3 9η (Θ)400Sκ16","2018-03-02","Ε3 9η (Θ)",400,"ΟΑ ΧΑΛΚΙΔΑΣ","S","κ16",11,3456]
[null,null,null,null,null,null,null,null,null,null,null,null,null,null,null,null,null,null,null,null,null,null,null,"ΑΣ ΟΛΥΜΠ ΧΩΡΙΟΥ Ο ΦΟΙΒΟΣ",377,"Θ",null,null,null,null,null,"Ε2S-14-17_32",1,null,"43155Ε3 8η (Γ)195Sα12","2018-02-24","Ε3 8η (Γ)",195,"ΟΑ ΠΤΟΛΕΜΑΪΔΑΣ","S","α12",5,3461]
[null,null,null,null,null,null,null,null,null,null,null,null,null,null,null,null,null,null,null,null,null,null,null,"ΑΣ ΟΡΦΕΑΣ ΛΑΡΙΣΑΣ",225,"Ε",null,null,null,null,null,"Ε2S-14-q8",2,null,"43155Ε3 8η (Γ)195Sκ12","2018-02-24","Ε3 8η (Γ)",195,"ΟΑ ΠΤΟΛΕΜΑΪΔΑΣ","S","κ12",9,3462]
[null,null,null,null,null,null,null,null,null,null,null,null,null,null,null,null,null,null,null,null,null,null,null,"ΑΣ ΠΑΝΟΡΑΜΑ",136,"Β",null,null,null,null,null,"Ε2S-14-q16",2,null,"43155Ε3 8η (Γ)195Sα16","2018-02-24","Ε3 8η (Γ)",195,"ΟΑ ΠΤΟΛΕΜΑΪΔΑΣ","S","α16",7,3463]
[null,null,null,null,null,null,null,null,null,null,null,null,null,null,null,null,null,null,null,null,null,null,null,"ΑΣ ΠΑΠΑΓΟΥ",498,"ΙΑ",null,null,null,null,null,"Ε2S-14-q8/2",1,null,"43155Ε3 8η (Γ)195Sκ16","2018-02-24","Ε3 8η (Γ)",195,"ΟΑ ΠΤΟΛΕΜΑΪΔΑΣ","S","κ16",11,3464]
[null,null,null,null,null,null,null,null,null,null,null,null,null,null,null,null,null,null,null,null,null,null,null,"ΑΣ ΠΕΝΤΕΛΗΣ ΑΣΤΕΡΑΣ",445,"Η",null,null,null,null,null,"Ε2S-14-q32",1,null,"43155Ε3 8η (Α)112Sα12","2018-02-24","Ε3 8η (Α)",112,"ΟΑ ΑΛΕΞΑΝΔΡΟΥΠΟΛΗΣ","S","α12",5,3465]
[null,null,null,null,null,null,null,null,null,null,null,null,null,null,null,null,null,null,null,null,null,null,null,"ΑΣ ΠΕΡΑ",427,"ΙΑ",null,null,null,null,null,"Ε2S-14-33_64",0,null,"43155Ε3 8η (Α)112Sκ12","2018-02-24","Ε3 8η (Α)",112,"ΟΑ ΑΛΕΞΑΝΔΡΟΥΠΟΛΗΣ","S","κ12",9,3466]
[null,null,null,null,null,null,null,null,null,null,null,null,null,null,null,null,null,null,null,null,null,null,null,"ΑΣ ΠΙΕΡΙΑ ΤΕΝΙΣ",465,"Γ",null,null,null,null,null,"Ε2S-14-q",0,null,"43155Ε3 8η (Α)112Sα16","2018-02-24","Ε3 8η (Α)",112,"ΟΑ ΑΛΕΞΑΝΔΡΟΥΠΟΛΗΣ","S","α16",7,3467]
[null,null,null,null,null,null,null,null,null,null,null,null,null,null,null,null,null,null,null,null,null,null,null,"ΑΣ ΣΠΑΡΤΑΚΟΣ ΓΛΥΦΑΔΑΣ",428,"ΙΑ",null,null,null,null,null,"Ε2S-14-q64",0,null,"43155Ε3 8η (Α)112Sκ16","2018-02-24","Ε3 8η (Α)",112,"ΟΑ ΑΛΕΞΑΝΔΡΟΥΠΟΛΗΣ","S","κ16",11,3468]
[null,null,null,null,null,null,null,null,null,null,null,null,null,null,null,null,null,null,null,null,null,null,null,"ΑΣ ΤΕΝΙΣ ΚΛΑΜΠ ΚΟΖΑΝΗΣ",176,"Γ",null,null,null,null,null,"Ε2S-14-q128",0,null,"43154Ε3 8η (ΙΑ)425Sα12","2018-02-23","Ε3 8η (ΙΑ)",425,"ΑΟΑ ΠΑΠΑΓΟΥ","S","α12",5,3469]
[null,null,null,null,null,null,null,null,null,null,null,null,null,null,null,null,null,null,null,null,null,null,null,"ΑΣ ΦΛΟΓΑ ΑΘΗΝΩΝ",342,"Η",null,null,null,null,null,"Ε2S-14-q256",0,null,{"$f":"AJ131&AK131&AL131&AN131&AO131","v":"43154Ε3 8η (ΙΑ)425Sκ12"},"2018-02-23","Ε3 8η (ΙΑ)",425,"ΑΟΑ ΠΑΠΑΓΟΥ","S","κ12",9,3470]
[null,null,null,null,null,null,null,null,null,null,null,null,null,null,null,null,null,null,null,null,null,null,null,"ΑΣ ΦΠ ΑΝΑΠΛΑΣΗΣ ΦΕΡΕΝΙΚΟΣ",343,"Η",null,null,null,null,null,"Ε2S-14-wo",0,null,"43154Ε3 8η (ΙΑ)425Sα14","2018-02-23","Ε3 8η (ΙΑ)",425,"ΑΟΑ ΠΑΠΑΓΟΥ","S","α14",6,3471]
[null,null,null,null,null,null,null,null,null,null,null,null,null,null,null,null,null,null,null,null,null,null,null,"ΑΣΑ ΑΓΡΙΝΙΟΥ",209,"Δ",null,null,null,null,null,"Ε2D-14-1st",8,null,"43154Ε3 8η (ΙΑ)425Sκ14","2018-02-23","Ε3 8η (ΙΑ)",425,"ΑΟΑ ΠΑΠΑΓΟΥ","S","κ14",10,3472]
[null,null,null,null,null,null,null,null,null,null,null,null,null,null,null,null,null,null,null,null,null,null,null,"ΑΣΑ ΓΡΕΒΕΝΩΝ",177,"Γ",null,null,null,null,null,"Ε2D-14-2nd",6,null,"43154Ε3 8η (ΙΑ)425Sα16","2018-02-23","Ε3 8η (ΙΑ)",425,"ΑΟΑ ΠΑΠΑΓΟΥ","S","α16",7,3473]
[null,null,null,null,null,null,null,null,null,null,null,null,null,null,null,null,null,null,null,null,null,null,null,"ΑΣΑ ΕΛΠΙΔΑ ΣΟΥΦΛΙΟΥ",443,"Α",null,null,null,null,null,"Ε2D-14-3_4",4,null,"43154Ε3 8η (ΙΑ)425Sκ16","2018-02-23","Ε3 8η (ΙΑ)",425,"ΑΟΑ ΠΑΠΑΓΟΥ","S","κ16",11,3474]
[null,null,null,null,null,null,null,null,null,null,null,null,null,null,null,null,null,null,null,null,null,null,null,"ΑΣΑ ΖΕΦΥΡΟΣ",178,"Γ",null,null,null,null,null,"Ε2D-14-5_8",3,null,"43155Ε3 8η (Δ)204Sα12","2018-02-24","Ε3 8η (Δ)",204,"ΑΓΟ ΦΙΛΙΠΠΙΑΔΑΣ","S","α12",5,3475]
[null,null,null,null,null,null,null,null,null,null,null,null,null,null,null,null,null,null,null,null,null,null,null,"ΑΣΑ ΘΕΣΣΑΛΟΝΙΚΗΣ",165,"Β",null,null,null,null,null,"Ε2D-14-9_16",2,null,"43155Ε3 8η (Δ)204Sκ12","2018-02-24","Ε3 8η (Δ)",204,"ΑΓΟ ΦΙΛΙΠΠΙΑΔΑΣ","S","κ12",9,3476]
[null,null,null,null,null,null,null,null,null,null,null,null,null,null,null,null,null,null,null,null,null,null,null,"ΑΣΑ ΛΑΡΙΣΑΣ",226,"Ε",null,null,null,null,null,"Ε2D-14-17_32",0,null,"43155Ε3 8η (Δ)204Sα16","2018-02-24","Ε3 8η (Δ)",204,"ΑΓΟ ΦΙΛΙΠΠΙΑΔΑΣ","S","α16",7,3477]
[null,null,null,null,null,null,null,null,null,null,null,null,null,null,null,null,null,null,null,null,null,null,null,"ΑΣΑ ΜΑΥΡΟΧΩΡΙΟΥ ΚΑΣΤΟΡΙΑΣ",179,"Γ",null,null,null,null,null,"Ε2D-14-wo",0,null,"43155Ε3 8η (Δ)204Sκ16","2018-02-24","Ε3 8η (Δ)",204,"ΑΓΟ ΦΙΛΙΠΠΙΑΔΑΣ","S","κ16",11,3478]
[null,null,null,null,null,null,null,null,null,null,null,null,null,null,null,null,null,null,null,null,null,null,null,"ΑΣΑ ΜΥΤΙΛΗΝΗΣ",491,"Θ",null,null,null,null,null,"Ε2S-16-1st",60,null,"43155Ε3 8η (Ζ)307Sα12","2018-02-24","Ε3 8η (Ζ)",307,"ΟΑ ΡΕΘΥΜΝΟΥ","S","α12",5,3479]
[null,null,null,null,null,null,null,null,null,null,null,null,null,null,null,null,null,null,null,null,null,null,null,"ΑΣΑ ΠΑΜΒΩΤΙΣ ΙΩΑΝΝΙΝΩΝ",210,"Δ",null,null,null,null,null,"Ε2S-16-2nd",50,null,"43155Ε3 8η (Ζ)307Sκ12","2018-02-24","Ε3 8η (Ζ)",307,"ΟΑ ΡΕΘΥΜΝΟΥ","S","κ12",9,3480]
[null,null,null,null,null,null,null,null,null,null,null,null,null,null,null,null,null,null,null,null,null,null,null,"ΑΣΑ ΠΑΝΟΡΑΜΑΤΟΣ ΠΥΛΑΙΑΣ",137,"Β",null,null,null,null,null,"Ε2S-16-3_4",30,null,"43155Ε3 8η (Ζ)307Sα16","2018-02-24","Ε3 8η (Ζ)",307,"ΟΑ ΡΕΘΥΜΝΟΥ","S","α16",7,3481]
[null,null,null,null,null,null,null,null,null,null,null,null,null,null,null,null,null,null,null,null,null,null,null,"ΑΣΑ ΤΡΙΚΑΛΩΝ",508,"Ε",null,null,null,null,null,"Ε2S-16-5_8",20,null,"43155Ε3 8η (Ζ)307Sκ16","2018-02-24","Ε3 8η (Ζ)",307,"ΟΑ ΡΕΘΥΜΝΟΥ","S","κ16",11,3482]
[null,null,null,null,null,null,null,null,null,null,null,null,null,null,null,null,null,null,null,null,null,null,null,"ΑΣΑ ΩΡΩΠΟΥ",344,"Η",null,null,null,null,null,"Ε2S-16-9_16",16,null,"43162Ε3 9η (Ζ)307Sα14","2018-03-03","Ε3 9η (Ζ)",307,"ΟΑ ΡΕΘΥΜΝΟΥ","S","α14",6,3483]
[null,null,null,null,null,null,null,null,null,null,null,null,null,null,null,null,null,null,null,null,null,null,null,"ΑΣΕ ΘΗΣΕΑΣ ΑΓ ΔΗΜΗΤΡΙΟΥ",417,"ΙΑ",null,null,null,null,null,"Ε2S-16-17_32",2,null,"43162Ε3 9η (Ζ)307Sκ14","2018-03-03","Ε3 9η (Ζ)",307,"ΟΑ ΡΕΘΥΜΝΟΥ","S","κ14",10,3484]
[null,null,null,null,null,null,null,null,null,null,null,null,null,null,null,null,null,null,null,null,null,null,null,"ΑΤ ΧΟΛΑΡΓΟΥ",429,"ΙΑ",null,null,null,null,null,"Ε2S-16-q8",4,null,"43162Ε3 9η (Γ)185Sα14","2018-03-03","Ε3 9η (Γ)",185,"ΟΑ ΑΡΙΔΑΙΑΣ","S","α14",6,3485]
[null,null,null,null,null,null,null,null,null,null,null,null,null,null,null,null,null,null,null,null,null,null,null,"ΑΧΑΪΚΟΣ ΟΑ",502,"ΣΤ",null,null,null,null,null,"Ε2S-16-q16",4,null,"43162Ε3 9η (Γ)185Sκ14","2018-03-03","Ε3 9η (Γ)",185,"ΟΑ ΑΡΙΔΑΙΑΣ","S","κ14",10,3486]
[null,null,null,null,null,null,null,null,null,null,null,null,null,null,null,null,null,null,null,null,null,null,null,"ΑΨΛ ΑΓ ΓΕΩΡΓΙΟΥ ΗΣΙΟΔΟΣ",227,"Ε",null,null,null,null,null,"Ε2S-16-q8/2",2,null,"43155Ε3 8η (ΣΤ)286Sα14","2018-02-24","Ε3 8η (ΣΤ)",286,"ΟΑ ΚΟΡΙΝΘΟΥ","S","α14",6,3487]
[null,null,null,null,null,null,null,null,null,null,null,null,null,null,null,null,null,null,null,null,null,null,null,"ΑΨΛ ΜΕΔΕΩΝ",228,"Ε",null,null,null,null,null,"Ε2S-16-q32",2,null,"43155Ε3 8η (ΣΤ)286Sκ14","2018-02-24","Ε3 8η (ΣΤ)",286,"ΟΑ ΚΟΡΙΝΘΟΥ","S","κ14",10,3488]
[null,null,null,null,null,null,null,null,null,null,null,null,null,null,null,null,null,null,null,null,null,null,null,"ΓΑΕ ΤΡΙΦΥΛΙΑΣ ΚΥΠΑΡΙΣΣΕΥΣ",273,"ΣΤ",null,null,null,null,null,"Ε2S-16-33_64",0]
[null,null,null,null,null,null,null,null,null,null,null,null,null,null,null,null,null,null,null,null,null,null,null,"ΓΑΣ ΑΛΕΞΑΝΔΡΕΙΑ",466,"Γ",null,null,null,null,null,"Ε2S-16-q",0]
[null,null,null,null,null,null,null,null,null,null,null,null,null,null,null,null,null,null,null,null,null,null,null,"ΓΑΣ ΓΟΥΡΝΩΝ",303,"Ζ",null,null,null,null,null,"Ε2S-16-q64",0]
[null,null,null,null,null,null,null,null,null,null,null,null,null,null,null,null,null,null,null,null,null,null,null,"ΓΑΣ ΘΥΕΛΛΑ ΦΕΡΩΝ",109,"Α",null,null,null,null,null,"Ε2S-16-q128",0]
[null,null,null,null,null,null,null,null,null,null,null,null,null,null,null,null,null,null,null,null,null,null,null,"ΓΑΣ ΚΑΡΑΤΕ ΕΡΜΗΣ",181,"Γ",null,null,null,null,null,"Ε2S-16-q256",0]
[null,null,null,null,null,null,null,null,null,null,null,null,null,null,null,null,null,null,null,null,null,null,null,"ΓΑΣ ΜΑΓΝΗΣΙΑΣ",229,"Ε",null,null,null,null,null,"Ε2S-16-wo",0]
[null,null,null,null,null,null,null,null,null,null,null,null,null,null,null,null,null,null,null,null,null,null,null,"ΓΑΣ ΝΙΓΡΙΤΑΣ ΒΙΣΑΛΤΗΣ",453,"Α",null,null,null,null,null,"Ε2D-16-1st",16]
[null,null,null,null,null,null,null,null,null,null,null,null,null,null,null,null,null,null,null,null,null,null,null,"ΓΕ ΑΡΓΟΛΙΔΑΣ",503,"ΣΤ",null,null,null,null,null,"Ε2D-16-2nd",12]
[null,null,null,null,null,null,null,null,null,null,null,null,null,null,null,null,null,null,null,null,null,null,null,"ΓΕ ΑΤΑΛΑΝΤΗΣ",471,"Ε",null,null,null,null,null,"Ε2D-16-3_4",8]
[null,null,null,null,null,null,null,null,null,null,null,null,null,null,null,null,null,null,null,null,null,null,null,"ΓΕ ΛΑΡΙΣΑΣ",472,"Ε",null,null,null,null,null,"Ε2D-16-5_8",6]
[null,null,null,null,null,null,null,null,null,null,null,null,null,null,null,null,null,null,null,null,null,null,null,"ΓΕ ΠΡΕΒΕΖΑΣ",211,"Δ",null,null,null,null,null,"Ε2D-16-9_16",4]
[null,null,null,null,null,null,null,null,null,null,null,null,null,null,null,null,null,null,null,null,null,null,null,"ΓΟ ΠΕΡΙΣΤΕΡΙΟΥ ΠΑΛΑΣΚΑΣ",379,"Θ",null,null,null,null,null,"Ε2D-16-17_32",0]
[null,null,null,null,null,null,null,null,null,null,null,null,null,null,null,null,null,null,null,null,null,null,null,"ΓΣ ΑΜΦΙΑΛΗΣ ΦΕΙΔΙΠΠΙΔΗΣ",492,"Θ",null,null,null,null,null,"Ε2D-16-wo",0]
[null,null,null,null,null,null,null,null,null,null,null,null,null,null,null,null,null,null,null,null,null,null,null,"ΓΣ ΑΠΟΛΛΩΝ ΠΥΡΓΟΥ",504,"ΣΤ",null,null,null,null,null,"Ε2S-18-1st",0]
[null,null,null,null,null,null,null,null,null,null,null,null,null,null,null,null,null,null,null,null,null,null,null,"ΓΣ ΕΛΕΥΘ ΚΟΡΔ ΑΡΓΟΝΑΥΤΕΣ",138,"Β",null,null,null,null,null,"Ε2S-18-2nd",0]
[null,null,null,null,null,null,null,null,null,null,null,null,null,null,null,null,null,null,null,null,null,null,null,"ΓΣ ΗΛΙΟΥΠΟΛΗΣ",430,"ΙΑ",null,null,null,null,null,"Ε2S-18-3_4",0]
[null,null,null,null,null,null,null,null,null,null,null,null,null,null,null,null,null,null,null,null,null,null,null,"ΓΣ ΙΤΕΑΣ",232,"Ε",null,null,null,null,null,"Ε2S-18-5_8",0]
[null,null,null,null,null,null,null,null,null,null,null,null,null,null,null,null,null,null,null,null,null,null,null,"ΓΣ ΚΗΦΙΣΙΑΣ",345,"Η",null,null,null,null,null,"Ε2S-18-9_16",0]
[null,null,null,null,null,null,null,null,null,null,null,null,null,null,null,null,null,null,null,null,null,null,null,"ΓΣ ΚΟΡΩΠΙΟΥ",346,"Η",null,null,null,null,null,"Ε2S-18-17_32",0]
[null,null,null,null,null,null,null,null,null,null,null,null,null,null,null,null,null,null,null,null,null,null,null,"ΓΣ ΛΙΒΥΚΟΣ ΙΕΡΑΠΕΤΡΑΣ",304,"Ζ",null,null,null,null,null,"Ε2S-18-q8",0]
[null,null,null,null,null,null,null,null,null,null,null,null,null,null,null,null,null,null,null,null,null,null,null,"ΓΣ Ν ΙΩΝΙΑΣ ΑΤΤΙΚΗΣ",381,"Θ",null,null,null,null,null,"Ε2S-18-q16",0]
[null,null,null,null,null,null,null,null,null,null,null,null,null,null,null,null,null,null,null,null,null,null,null,"ΓΣ ΣΑΛΑΜΙΝΑΣ",493,"Θ",null,null,null,null,null,"Ε2S-18-q8/2",0]
[null,null,null,null,null,null,null,null,null,null,null,null,null,null,null,null,null,null,null,null,null,null,null,"ΓΣ ΩΡΩΠΟΥ",485,"Η",null,null,null,null,null,"Ε2S-18-q32",0]
[null,null,null,null,null,null,null,null,null,null,null,null,null,null,null,null,null,null,null,null,null,null,null,"ΔΑΣ ΑΝΩ ΛΙΟΣΙΩΝ",383,"Θ",null,null,null,null,null,"Ε2S-18-33_64",0]
[null,null,null,null,null,null,null,null,null,null,null,null,null,null,null,null,null,null,null,null,null,null,null,"ΕΑΟ ΗΛΙΣ",384,"Θ",null,null,null,null,null,"Ε2S-18-q",0]
[null,null,null,null,null,null,null,null,null,null,null,null,null,null,null,null,null,null,null,null,null,null,null,"ΕΑΣ ΛΑΚΚΑΣ ΣΥΜΠΟΛΙΤΕΙΑΣ",276,"ΣΤ",null,null,null,null,null,"Ε2S-18-q64",0]
[null,null,null,null,null,null,null,null,null,null,null,null,null,null,null,null,null,null,null,null,null,null,null,"ΕΑΣ ΟΛΥΜΠΙΑΔΑ",139,"Β",null,null,null,null,null,"Ε2S-18-q128",0]
[null,null,null,null,null,null,null,null,null,null,null,null,null,null,null,null,null,null,null,null,null,null,null,"ΕΑΣΑ ΘΕΣΣΑΛΙΚΟΣ",473,"Ε",null,null,null,null,null,"Ε2S-18-q256",0]
[null,null,null,null,null,null,null,null,null,null,null,null,null,null,null,null,null,null,null,null,null,null,null,"ΕΑΤΕΚ ΕΛΛ ΚΟΛΛΕΓΙΟΥ",140,"Β",null,null,null,null,null,"Ε2S-18-wo",0]
[null,null,null,null,null,null,null,null,null,null,null,null,null,null,null,null,null,null,null,null,null,null,null,"ΕΑΦΩ ΝΤΕΚΡΟΛΙ",459,"Β",null,null,null,null,null,"Ε2D-18-1st",0]
[null,null,null,null,null,null,null,null,null,null,null,null,null,null,null,null,null,null,null,null,null,null,null,"ΕΕΠΚΑ ΕΥΡΩΪΔΕΑ ΚΑΡΔΙΤΣΑΣ",474,"Ε",null,null,null,null,null,"Ε2D-18-2nd",0]
[null,null,null,null,null,null,null,null,null,null,null,null,null,null,null,null,null,null,null,null,null,null,null,"ΕΘΝΙΚΟΣ ΠΑΝΟΡΑΜΑΤΟΣ 2005",460,"Β",null,null,null,null,null,"Ε2D-18-3_4",0]
[null,null,null,null,null,null,null,null,null,null,null,null,null,null,null,null,null,null,null,null,null,null,null,"ΕΣΟ ΕΠΙΚΟΥΡΟΣ ΠΟΛΙΧΝΗΣ",143,"Β",null,null,null,null,null,"Ε2D-18-5_8",0]
[null,null,null,null,null,null,null,null,null,null,null,null,null,null,null,null,null,null,null,null,null,null,null,"ΕΦΤ ΑΙΟΛΙΚΗ",144,"Β",null,null,null,null,null,"Ε2D-18-9_16",0]
[null,null,null,null,null,null,null,null,null,null,null,null,null,null,null,null,null,null,null,null,null,null,null,"ΖΑΚΥΝΘΙΝΟΣ ΑΟ",505,"ΣΤ",null,null,null,null,null,"Ε2D-18-wo",0]
[null,null,null,null,null,null,null,null,null,null,null,null,null,null,null,null,null,null,null,null,null,null,null,"ΖΑΚΥΝΘΙΝΟΣ ΑΟΑ",278,"ΣΤ",null,null,null,null,null,"Ε2D-18-17_32",0]
[null,null,null,null,null,null,null,null,null,null,null,null,null,null,null,null,null,null,null,null,null,null,null,"ΗΠΕΙΡΩΤΙΚΟΣ ΣΑ ΙΩΑΝΝΙΝΩΝ",469,"Δ",null,null,null,null,null,"Ε3S-12-1st",9]
[null,null,null,null,null,null,null,null,null,null,null,null,null,null,null,null,null,null,null,null,null,null,null,"ΗΡΑΚΛΕΙΟ ΟΑΑ",305,"Ζ",null,null,null,null,null,"Ε3S-12-2nd",7.5]
[null,null,null,null,null,null,null,null,null,null,null,null,null,null,null,null,null,null,null,null,null,null,null,"ΙΚΑΡΟΣ Ν ΣΜΥΡΝΗΣ",446,"ΙΑ",null,null,null,null,null,"Ε3S-12-3_4",4.5]
[null,null,null,null,null,null,null,null,null,null,null,null,null,null,null,null,null,null,null,null,null,null,null,"ΚΑ ΑΓΡΙΝΙΟΥ",213,"Δ",null,null,null,null,null,"Ε3S-12-5_8",3]
[null,null,null,null,null,null,null,null,null,null,null,null,null,null,null,null,null,null,null,null,null,null,null,"ΚΕΝΤΡΟ ΑΝΤΙΣΦ ΛΙΒΑΔΕΙΑΣ",235,"Ε",null,null,null,null,null,"Ε3S-12-9_16",2.4]
[null,null,null,null,null,null,null,null,null,null,null,null,null,null,null,null,null,null,null,null,null,null,null,"ΚΕΡΚΥΡΑΪΚΗ ΑΚΑΔ ΤΕΝΝΙΣ",214,"Δ",null,null,null,null,null,"Ε3S-12-17_32",1.5]
[null,null,null,null,null,null,null,null,null,null,null,null,null,null,null,null,null,null,null,null,null,null,null,"ΚΕΡΚΥΡΑΪΚΗ ΛΤ",215,"Δ",null,null,null,null,null,"Ε3S-12-33_64",0.5]
[null,null,null,null,null,null,null,null,null,null,null,null,null,null,null,null,null,null,null,null,null,null,null,"ΚΕΦΑΛΛΗΝΙΑΚΟΣ ΟΑ",279,"ΣΤ",null,null,null,null,null,"Ε3S-12-65_128",0]
[null,null,null,null,null,null,null,null,null,null,null,null,null,null,null,null,null,null,null,null,null,null,null,"Λ ΠΟΛΙΤΙΣΜΟΥ ΦΛΩΡΙΝΑΣ",182,"Γ",null,null,null,null,null,"Ε3S-12-q8",0]
[null,null,null,null,null,null,null,null,null,null,null,null,null,null,null,null,null,null,null,null,null,null,null,"ΛΑ ΚΟΜΟΤΗΝΗΣ",454,"Α",null,null,null,null,null,"Ε3S-12-q16",0]
[null,null,null,null,null,null,null,null,null,null,null,null,null,null,null,null,null,null,null,null,null,null,null,"ΛΑΡΙΣΑΪΚΟΣ ΟΑ",236,"Ε",null,null,null,null,null,"Ε3S-12-q32",0]
[null,null,null,null,null,null,null,null,null,null,null,null,null,null,null,null,null,null,null,null,null,null,null,"ΜΑΣ ΑΕΤΟΣ ΘΕΣ",145,"Β",null,null,null,null,null,"Ε3S-12-q64",0]
[null,null,null,null,null,null,null,null,null,null,null,null,null,null,null,null,null,null,null,null,null,null,null,"ΜΑΣ ΑΤΡΟΜΗΤΟΣ ΤΡΙΑΔΙΟΥ",146,"Β",null,null,null,null,null,"Ε3S-12-q128",0]
[null,null,null,null,null,null,null,null,null,null,null,null,null,null,null,null,null,null,null,null,null,null,null,"ΜΓΣ ΑΠΟΛΛΩΝ ΚΑΛΑΜΑΡΙΑΣ",147,"Β",null,null,null,null,null,"Ε3S-12-q256",0]
[null,null,null,null,null,null,null,null,null,null,null,null,null,null,null,null,null,null,null,null,null,null,null,"ΝΑΣΠ ΑΙΟΛΟΣ ΜΥΤΙΛΗΝΗΣ",494,"Θ",null,null,null,null,null,"Ε3S-12-wo",0]
[null,null,null,null,null,null,null,null,null,null,null,null,null,null,null,null,null,null,null,null,null,null,null,"ΝΑΥΠΛΙΑΚΟΣ ΟΑ",280,"ΣΤ",null,null,null,null,null,"Ε3S-14-1st",18]
[null,null,null,null,null,null,null,null,null,null,null,null,null,null,null,null,null,null,null,null,null,null,null,"ΝΟ ΘΕΣΣΑΛΟΝΙΚΗΣ",148,"Β",null,null,null,null,null,"Ε3S-14-2nd",15]
[null,null,null,null,null,null,null,null,null,null,null,null,null,null,null,null,null,null,null,null,null,null,null,"ΝΟ ΚΑΛΑΜΑΚΙΟΥ",432,"ΙΑ",null,null,null,null,null,"Ε3S-14-3_4",9]
[null,null,null,null,null,null,null,null,null,null,null,null,null,null,null,null,null,null,null,null,null,null,null,"ΝΟΝΑΜ",183,"Γ",null,null,null,null,null,"Ε3S-14-5_8",6]
[null,null,null,null,null,null,null,null,null,null,null,null,null,null,null,null,null,null,null,null,null,null,null,"ΟΑ 3 ΒΗΤΑ",451,"Η",null,null,null,null,null,"Ε3S-14-9_16",4.5]
[null,null,null,null,null,null,null,null,null,null,null,null,null,null,null,null,null,null,null,null,null,null,null,"ΟΑ ΑΓ ΑΝΑΡΓΥΡΩΝ",386,"Θ",null,null,null,null,null,"Ε3S-14-17_32",3]
[null,null,null,null,null,null,null,null,null,null,null,null,null,null,null,null,null,null,null,null,null,null,null,"ΟΑ ΑΓ ΠΑΡΑΣΚΕΥΗΣ",348,"Η",null,null,null,null,null,"Ε3S-14-33_64",1]
[null,null,null,null,null,null,null,null,null,null,null,null,null,null,null,null,null,null,null,null,null,null,null,"ΟΑ ΑΓ ΣΟΥΛΑ ΡΟΔΟΥ",387,"Θ",null,null,null,null,null,"Ε3S-14-65_128",0]
[null,null,null,null,null,null,null,null,null,null,null,null,null,null,null,null,null,null,null,null,null,null,null,"ΟΑ ΑΓΡΙΝΙΟΥ",216,"Δ",null,null,null,null,null,"Ε3S-14-q8",0]
[null,null,null,null,null,null,null,null,null,null,null,null,null,null,null,null,null,null,null,null,null,null,null,"ΟΑ ΑΘΗΝΩΝ",349,"Η",null,null,null,null,null,"Ε3S-14-q16",0]
[null,null,null,null,null,null,null,null,null,null,null,null,null,null,null,null,null,null,null,null,null,null,null,"ΟΑ ΑΘΛΗΤ ΠΑΙΔΕΙΑ",350,"Η",null,null,null,null,null,"Ε3S-14-q32",0]
[null,null,null,null,null,null,null,null,null,null,null,null,null,null,null,null,null,null,null,null,null,null,null,"ΟΑ ΑΙΓΙΑΛΕΙΑΣ",282,"ΣΤ",null,null,null,null,null,"Ε3S-14-q64",0]
[null,null,null,null,null,null,null,null,null,null,null,null,null,null,null,null,null,null,null,null,null,null,null,"ΟΑ ΑΙΓΙΟΥ",506,"ΣΤ",null,null,null,null,null,"Ε3S-14-q128",0]
[null,null,null,null,null,null,null,null,null,null,null,null,null,null,null,null,null,null,null,null,null,null,null,"ΟΑ ΑΛΕΞΑΝΔΡΟΣ ΒΕΡΟΙΑΣ",184,"Γ",null,null,null,null,null,"Ε3S-14-q256",0]
[null,null,null,null,null,null,null,null,null,null,null,null,null,null,null,null,null,null,null,null,null,null,null,"ΟΑ ΑΛΕΞΑΝΔΡΟΥΠΟΛΗΣ",112,"Α",null,null,null,null,null,"Ε3S-14-wo",0]
[null,null,null,null,null,null,null,null,null,null,null,null,null,null,null,null,null,null,null,null,null,null,null,"ΟΑ ΑΛΙΜΟΥ",433,"ΙΑ",null,null,null,null,null,"Ε3S-16-1st",36]
[null,null,null,null,null,null,null,null,null,null,null,null,null,null,null,null,null,null,null,null,null,null,null,"ΟΑ ΑΜΥΝΤΑΣ ΥΜΗΤΤΟΥ",413,"ΙΑ",null,null,null,null,null,"Ε3S-16-2nd",30]
[null,null,null,null,null,null,null,null,null,null,null,null,null,null,null,null,null,null,null,null,null,null,null,"ΟΑ ΑΝΑΤΟΛΙΚΗΣ ΦΘΙΩΤΙΔΑΣ",237,"Ε",null,null,null,null,null,"Ε3S-16-3_4",18]
[null,null,null,null,null,null,null,null,null,null,null,null,null,null,null,null,null,null,null,null,null,null,null,"ΟΑ ΑΝΑΦΛΥΣΤΟΣ ΣΑΡΩΝΙΔΑΣ",351,"Η",null,null,null,null,null,"Ε3S-16-5_8",12]
[null,null,null,null,null,null,null,null,null,null,null,null,null,null,null,null,null,null,null,null,null,null,null,"ΟΑ ΑΡΓΟΥΣ",284,"ΣΤ",null,null,null,null,null,"Ε3S-16-9_16",9.6]
[null,null,null,null,null,null,null,null,null,null,null,null,null,null,null,null,null,null,null,null,null,null,null,"ΟΑ ΑΡΙΔΑΙΑΣ",185,"Γ",null,null,null,null,null,"Ε3S-16-17_32",6]
[null,null,null,null,null,null,null,null,null,null,null,null,null,null,null,null,null,null,null,null,null,null,null,"ΟΑ ΑΡΤΑΣ",217,"Δ",null,null,null,null,null,"Ε3S-16-33_64",2]
[null,null,null,null,null,null,null,null,null,null,null,null,null,null,null,null,null,null,null,null,null,null,null,"ΟΑ ΑΤΤΙΚΑ 2016",447,"Η",null,null,null,null,null,"Ε3S-16-65_128",0]
[null,null,null,null,null,null,null,null,null,null,null,null,null,null,null,null,null,null,null,null,null,null,null,"ΟΑ ΒΕΡΟΙΑΣ",186,"Γ",null,null,null,null,null,"Ε3S-16-q8",0]
[null,null,null,null,null,null,null,null,null,null,null,null,null,null,null,null,null,null,null,null,null,null,null,"ΟΑ ΒΙΚΕΛΑΣ ΒΕΡΟΙΑΣ",187,"Γ",null,null,null,null,null,"Ε3S-16-q16",0]
[null,null,null,null,null,null,null,null,null,null,null,null,null,null,null,null,null,null,null,null,null,null,null,"ΟΑ ΒΟΛΟΥ",238,"Ε",null,null,null,null,null,"Ε3S-16-q32",0]
[null,null,null,null,null,null,null,null,null,null,null,null,null,null,null,null,null,null,null,null,null,null,null,"ΟΑ ΒΟΥΛΙΑΓΜΕΝΗΣ Μ ΑΣΣΟΙ",434,"ΙΑ",null,null,null,null,null,"Ε3S-16-q64",0]
[null,null,null,null,null,null,null,null,null,null,null,null,null,null,null,null,null,null,null,null,null,null,null,"ΟΑ ΒΡΙΛΗΣΣΙΩΝ",352,"Η",null,null,null,null,null,"Ε3S-16-q128",0]
[null,null,null,null,null,null,null,null,null,null,null,null,null,null,null,null,null,null,null,null,null,null,null,"ΟΑ ΓΑΛΗΝΗΣ ΩΡΑΙΟΚΑΣΤΡΟΥ",461,"Β",null,null,null,null,null,"Ε3S-16-q256",0]
[null,null,null,null,null,null,null,null,null,null,null,null,null,null,null,null,null,null,null,null,null,null,null,"ΟΑ ΓΙΑΝΝΙΤΣΩΝ",188,"Γ",null,null,null,null,null,"Ε3S-16-wo",0]
[null,null,null,null,null,null,null,null,null,null,null,null,null,null,null,null,null,null,null,null,null,null,null,"ΟΑ ΓΛΥΦΑΔΑΣ",435,"ΙΑ",null,null,null,null,null,"Ε3S-18-17_32",0]
[null,null,null,null,null,null,null,null,null,null,null,null,null,null,null,null,null,null,null,null,null,null,null,"ΟΑ ΓΟΥΔΗ",436,"ΙΑ",null,null,null,null,null,"Ε3S-18-1st",0]
[null,null,null,null,null,null,null,null,null,null,null,null,null,null,null,null,null,null,null,null,null,null,null,"ΟΑ ΔΕΣΚΑΤΗΣ",448,"Γ",null,null,null,null,null,"Ε3S-18-2nd",0]
[null,null,null,null,null,null,null,null,null,null,null,null,null,null,null,null,null,null,null,null,null,null,null,"ΟΑ ΕΔΕΣΣΑΣ",189,"Γ",null,null,null,null,null,"Ε3S-18-3_4",0]
[null,null,null,null,null,null,null,null,null,null,null,null,null,null,null,null,null,null,null,null,null,null,null,"ΟΑ ΕΛΕΥΘΕΡΟΥΠΟΛΗΣ",455,"Α",null,null,null,null,null,"Ε3S-18-33_64",0]
[null,null,null,null,null,null,null,null,null,null,null,null,null,null,null,null,null,null,null,null,null,null,null,"ΟΑ ΕΛΕΥΣΙΝΑΣ ΑΙΣΧΥΛΟΣ",388,"Θ",null,null,null,null,null,"Ε3S-18-5_8",0]
[null,null,null,null,null,null,null,null,null,null,null,null,null,null,null,null,null,null,null,null,null,null,null,"ΟΑ ΕΛΛΗΝΙΚΟΥ",499,"ΙΑ",null,null,null,null,null,"Ε3S-18-9_16",0]
[null,null,null,null,null,null,null,null,null,null,null,null,null,null,null,null,null,null,null,null,null,null,null,"ΟΑ ΕΥΟΣΜΟΥ ΘΕΣ",150,"Β",null,null,null,null,null,"Ε3S-18-q8",0]
[null,null,null,null,null,null,null,null,null,null,null,null,null,null,null,null,null,null,null,null,null,null,null,"ΟΑ ΖΩΓΡΑΦΟΥ",353,"Η",null,null,null,null,null,"Ε3S-18-q16",0]
[null,null,null,null,null,null,null,null,null,null,null,null,null,null,null,null,null,null,null,null,null,null,null,"ΟΑ ΘΕΣΠΡΩΤΙΑΣ ΤΙΤΑΝΗ",218,"Δ",null,null,null,null,null,"Ε3S-18-q32",0]
[null,null,null,null,null,null,null,null,null,null,null,null,null,null,null,null,null,null,null,null,null,null,null,"ΟΑ ΘΕΣΣΑΛΟΝΙΚΗΣ",151,"Β",null,null,null,null,null,"Ε3S-18-q64",0]
[null,null,null,null,null,null,null,null,null,null,null,null,null,null,null,null,null,null,null,null,null,null,null,"ΟΑ ΘΗΒΑΣ",239,"Ε",null,null,null,null,null,"Ε3S-18-q128",0]
[null,null,null,null,null,null,null,null,null,null,null,null,null,null,null,null,null,null,null,null,null,null,null,"ΟΑ ΙΑΛΥΣΣΟΣ ΡΟΔΟΥ",389,"Θ",null,null,null,null,null,"Ε3S-18-q256",0]
[null,null,null,null,null,null,null,null,null,null,null,null,null,null,null,null,null,null,null,null,null,null,null,"ΟΑ ΙΩΑΝΝΙΝΩΝ",219,"Δ",null,null,null,null,null,"Ε3S-18-wo",0]
[null,null,null,null,null,null,null,null,null,null,null,null,null,null,null,null,null,null,null,null,null,null,null,"ΟΑ ΙΩΛΚΟΣ ΒΟΛΟΥ",240,"Ε",null,null,null,null,null,"Ε4S-12-1st",3.7]
[null,null,null,null,null,null,null,null,null,null,null,null,null,null,null,null,null,null,null,null,null,null,null,"ΟΑ κ Α ΜΑΛΙΩΝ",477,"Ζ",null,null,null,null,null,"Ε4S-12-2nd",3.2]
[null,null,null,null,null,null,null,null,null,null,null,null,null,null,null,null,null,null,null,null,null,null,null,"ΟΑ ΚΑΒΑΛΑΣ ΑΛΕΞΑΝΔΡΟΣ",114,"Α",null,null,null,null,null,"Ε4S-12-3_4",1.7]
[null,null,null,null,null,null,null,null,null,null,null,null,null,null,null,null,null,null,null,null,null,null,null,"ΟΑ ΚΑΛΑΜΑΚΙΟΥ",438,"ΙΑ",null,null,null,null,null,"Ε4S-12-5_8",1.2]
[null,null,null,null,null,null,null,null,null,null,null,null,null,null,null,null,null,null,null,null,null,null,null,"ΟΑ ΚΑΛΑΜΑΡΙΑΣ",152,"Β",null,null,null,null,null,"Ε4S-12-9_16",1]
[null,null,null,null,null,null,null,null,null,null,null,null,null,null,null,null,null,null,null,null,null,null,null,"ΟΑ ΚΑΛΑΜΑΤΑΣ",285,"ΣΤ",null,null,null,null,null,"Ε4S-12-17_32",0.5]
[null,null,null,null,null,null,null,null,null,null,null,null,null,null,null,null,null,null,null,null,null,null,null,"ΟΑ ΚΑΡΛΟΒΑΣΙΩΝ ΑΙΓΛΗΣ",391,"Θ",null,null,null,null,null,"Ε4S-12-33_64",0.2]
[null,null,null,null,null,null,null,null,null,null,null,null,null,null,null,null,null,null,null,null,null,null,null,"ΟΑ ΚΑΣΤΟΡΙΑΣ ΚΕΛΕΤΡΟΝ",190,"Γ",null,null,null,null,null,"Ε4S-12-65_128",0]
[null,null,null,null,null,null,null,null,null,null,null,null,null,null,null,null,null,null,null,null,null,null,null,"ΟΑ ΚΑΤΕΡΙΝΗΣ",191,"Γ",null,null,null,null,null,"Ε4S-12-q8",0]
[null,null,null,null,null,null,null,null,null,null,null,null,null,null,null,null,null,null,null,null,null,null,null,"ΟΑ ΚΕΡΑΤΣΙΝΙΟΥ",392,"Θ",null,null,null,null,null,"Ε4S-12-q16",0]
[null,null,null,null,null,null,null,null,null,null,null,null,null,null,null,null,null,null,null,null,null,null,null,"ΟΑ ΚΕΡΚΥΡΑΣ",220,"Δ",null,null,null,null,null,"Ε4S-12-q32",0]
[null,null,null,null,null,null,null,null,null,null,null,null,null,null,null,null,null,null,null,null,null,null,null,"ΟΑ ΚΙΛΚΙΣ",153,"Β",null,null,null,null,null,"Ε4S-12-q64",0]
[null,null,null,null,null,null,null,null,null,null,null,null,null,null,null,null,null,null,null,null,null,null,null,"ΟΑ ΚΟΡΙΝΘΟΥ",286,"ΣΤ",null,null,null,null,null,"Ε4S-12-q128",0]
[null,null,null,null,null,null,null,null,null,null,null,null,null,null,null,null,null,null,null,null,null,null,null,"ΟΑ ΚΟΡΩΠΙΟΥ",354,"Η",null,null,null,null,null,"Ε4S-12-q256",0]
[null,null,null,null,null,null,null,null,null,null,null,null,null,null,null,null,null,null,null,null,null,null,null,"ΟΑ ΚΟΥΦΑΛΙΩΝ",154,"Β",null,null,null,null,null,"Ε4S-12-wo",0]
[null,null,null,null,null,null,null,null,null,null,null,null,null,null,null,null,null,null,null,null,null,null,null,"ΟΑ ΚΩ",393,"Θ",null,null,null,null,null,"Ε4S-14-1st",7.5]
[null,null,null,null,null,null,null,null,null,null,null,null,null,null,null,null,null,null,null,null,null,null,null,"ΟΑ ΛΑΓΚΑΔΑ ΘΕΣ",155,"Β",null,null,null,null,null,"Ε4S-14-2nd",6.2]
[null,null,null,null,null,null,null,null,null,null,null,null,null,null,null,null,null,null,null,null,null,null,null,"ΟΑ ΛΑΜΙΑΣ",475,"Ε",null,null,null,null,null,"Ε4S-14-3_4",3.7]
[null,null,null,null,null,null,null,null,null,null,null,null,null,null,null,null,null,null,null,null,null,null,null,"ΟΑ ΛΑΡΙΣΑΣ",242,"Ε",null,null,null,null,null,"Ε4S-14-5_8",2.5]
[null,null,null,null,null,null,null,null,null,null,null,null,null,null,null,null,null,null,null,null,null,null,null,"ΟΑ ΛΑΥΡΙΟΥ",355,"Η",null,null,null,null,null,"Ε4S-14-9_16",1.8]
[null,null,null,null,null,null,null,null,null,null,null,null,null,null,null,null,null,null,null,null,null,null,null,"ΟΑ ΛΕΣΒΟΥ",394,"Θ",null,null,null,null,null,"Ε4S-14-17_32",1.2]
[null,null,null,null,null,null,null,null,null,null,null,null,null,null,null,null,null,null,null,null,null,null,null,"ΟΑ ΛΙΒΑΔΕΙΑΣ",243,"Ε",null,null,null,null,null,"Ε4S-14-33_64",0.5]
[null,null,null,null,null,null,null,null,null,null,null,null,null,null,null,null,null,null,null,null,null,null,null,"ΟΑ ΛΙΤΟΧΩΡΟΥ",192,"Γ",null,null,null,null,null,"Ε4S-14-65_128",0]
[null,null,null,null,null,null,null,null,null,null,null,null,null,null,null,null,null,null,null,null,null,null,null,"ΟΑ ΜΑΓΝΗΣΙΑΣ",244,"Ε",null,null,null,null,null,"Ε4S-14-q8",0]
[null,null,null,null,null,null,null,null,null,null,null,null,null,null,null,null,null,null,null,null,null,null,null,"ΟΑ ΜΕΛΙΣΣΙΩΝ",356,"Η",null,null,null,null,null,"Ε4S-14-q16",0]
[null,null,null,null,null,null,null,null,null,null,null,null,null,null,null,null,null,null,null,null,null,null,null,"ΟΑ ΝΑΟΥΣΑΣ",193,"Γ",null,null,null,null,null,"Ε4S-14-q32",0]
[null,null,null,null,null,null,null,null,null,null,null,null,null,null,null,null,null,null,null,null,null,null,null,"ΟΑ ΝΑΥΠΑΚΤΟΥ",287,"ΣΤ",null,null,null,null,null,"Ε4S-14-q64",0]
[null,null,null,null,null,null,null,null,null,null,null,null,null,null,null,null,null,null,null,null,null,null,null,"ΟΑ ΝΕΑΣ ΜΑΚΡΗΣ",357,"Η",null,null,null,null,null,"Ε4S-14-q128",0]
[null,null,null,null,null,null,null,null,null,null,null,null,null,null,null,null,null,null,null,null,null,null,null,"ΟΑ ΝΕΟΥ ΦΑΛΗΡΟΥ",495,"Θ",null,null,null,null,null,"Ε4S-14-q256",0]
[null,null,null,null,null,null,null,null,null,null,null,null,null,null,null,null,null,null,null,null,null,null,null,"ΟΑ ΝΕΣΤΩΡΑΣ ΓΙΑΝΝΙΤΣΩΝ",194,"Γ",null,null,null,null,null,"Ε4S-14-wo",0]
[null,null,null,null,null,null,null,null,null,null,null,null,null,null,null,null,null,null,null,null,null,null,null,"ΟΑ ΝΙΚΑΙΑ ΛΑΡΙΣΑΣ",245,"Ε",null,null,null,null,null,"Ε4S-16-1st",15]
[null,null,null,null,null,null,null,null,null,null,null,null,null,null,null,null,null,null,null,null,null,null,null,"ΟΑ ΞΑΝΘΗΣ",115,"Α",null,null,null,null,null,"Ε4S-16-2nd",12.5]
[null,null,null,null,null,null,null,null,null,null,null,null,null,null,null,null,null,null,null,null,null,null,null,"ΟΑ ΞΥΛΟΚΑΣΤΡΟΥ ΣΥΘΑΣ",288,"ΣΤ",null,null,null,null,null,"Ε4S-16-3_4",7.5]
[null,null,null,null,null,null,null,null,null,null,null,null,null,null,null,null,null,null,null,null,null,null,null,"ΟΑ Ο ΦΙΛΑΘΛΟΣ",486,"Η",null,null,null,null,null,"Ε4S-16-5_8",5]
[null,null,null,null,null,null,null,null,null,null,null,null,null,null,null,null,null,null,null,null,null,null,null,"ΟΑ ΟΡΕΣΤΙΑΔΑΣ",116,"Α",null,null,null,null,null,"Ε4S-16-9_16",4]
[null,null,null,null,null,null,null,null,null,null,null,null,null,null,null,null,null,null,null,null,null,null,null,"ΟΑ ΠΑΝΟΡΑΜΑΤΟΣ",462,"Β",null,null,null,null,null,"Ε4S-16-17_32",2.5]
[null,null,null,null,null,null,null,null,null,null,null,null,null,null,null,null,null,null,null,null,null,null,null,"ΟΑ ΠΑΡΟΥ",359,"Η",null,null,null,null,null,"Ε4S-16-33_64",1]
[null,null,null,null,null,null,null,null,null,null,null,null,null,null,null,null,null,null,null,null,null,null,null,"ΟΑ ΠΕΙΡΑΙΑ",396,"Θ",null,null,null,null,null,"Ε4S-16-65_128",0]
[null,null,null,null,null,null,null,null,null,null,null,null,null,null,null,null,null,null,null,null,null,null,null,"ΟΑ ΠΕΤΑΛΟΥΔΩΝ",397,"Θ",null,null,null,null,null,"Ε4S-16-q8",0]
[null,null,null,null,null,null,null,null,null,null,null,null,null,null,null,null,null,null,null,null,null,null,null,"ΟΑ ΠΕΤΡΟΥΠΟΛ ΠΛΕΟΝΕΚΤΗΜΑ",449,"Θ",null,null,null,null,null,"Ε4S-16-q16",0]
[null,null,null,null,null,null,null,null,null,null,null,null,null,null,null,null,null,null,null,null,null,null,null,"ΟΑ ΠΕΤΡΟΥΠΟΛΗΣ",398,"Θ",null,null,null,null,null,"Ε4S-16-q32",0]
[null,null,null,null,null,null,null,null,null,null,null,null,null,null,null,null,null,null,null,null,null,null,null,"ΟΑ ΠΟΛΙΧΝΗΣ ΑΝΤΑΙΟΣ",157,"Β",null,null,null,null,null,"Ε4S-16-q64",0]
[null,null,null,null,null,null,null,null,null,null,null,null,null,null,null,null,null,null,null,null,null,null,null,"ΟΑ ΠΟΛΥΓΥΡΟΥ ΧΑΛΚΙΔΙΚΗΣ",158,"Β",null,null,null,null,null,"Ε4S-16-q128",0]
[null,null,null,null,null,null,null,null,null,null,null,null,null,null,null,null,null,null,null,null,null,null,null,"ΟΑ ΠΟΛΥΚΑΣΤΡΟΥ",159,"Β",null,null,null,null,null,"Ε4S-16-q256",0]
[null,null,null,null,null,null,null,null,null,null,null,null,null,null,null,null,null,null,null,null,null,null,null,"ΟΑ ΠΤΟΛΕΜΑΪΔΑΣ",195,"Γ",null,null,null,null,null,"Ε4S-16-wo",0]
[null,null,null,null,null,null,null,null,null,null,null,null,null,null,null,null,null,null,null,null,null,null,null,"ΟΑ ΡΕΘΥΜΝΟΥ",307,"Ζ",null,null,null,null,null,"Ε4S-18-17_32",0]
[null,null,null,null,null,null,null,null,null,null,null,null,null,null,null,null,null,null,null,null,null,null,null,"ΟΑ ΡΙΟΥ",289,"ΣΤ",null,null,null,null,null,"Ε4S-18-1st",0]
[null,null,null,null,null,null,null,null,null,null,null,null,null,null,null,null,null,null,null,null,null,null,null,"ΟΑ ΣΑΛΑΜΙΝΑΣ",399,"Θ",null,null,null,null,null,"Ε4S-18-2nd",0]
[null,null,null,null,null,null,null,null,null,null,null,null,null,null,null,null,null,null,null,null,null,null,null,"ΟΑ ΣΕΡΡΩΝ",117,"Α",null,null,null,null,null,"Ε4S-18-3_4",0]
[null,null,null,null,null,null,null,null,null,null,null,null,null,null,null,null,null,null,null,null,null,null,null,"ΟΑ ΣΗΤΕΙΑΣ",308,"Ζ",null,null,null,null,null,"Ε4S-18-33_64",0]
[null,null,null,null,null,null,null,null,null,null,null,null,null,null,null,null,null,null,null,null,null,null,null,"ΟΑ ΣΚΙΑΘΟΥ",246,"Ε",null,null,null,null,null,"Ε4S-18-5_8",0]
[null,null,null,null,null,null,null,null,null,null,null,null,null,null,null,null,null,null,null,null,null,null,null,"ΟΑ ΣΚΥΔΡΑΣ",196,"Γ",null,null,null,null,null,"Ε4S-18-9_16",0]
[null,null,null,null,null,null,null,null,null,null,null,null,null,null,null,null,null,null,null,null,null,null,null,"ΟΑ ΣΟΥΔΑΣ",309,"Ζ",null,null,null,null,null,"Ε4S-18-q8",0]
[null,null,null,null,null,null,null,null,null,null,null,null,null,null,null,null,null,null,null,null,null,null,null,"ΟΑ ΣΟΥΡΩΤΗΣ ΑΛΕΞΑΝΔΡΟΣ",160,"Β",null,null,null,null,null,"Ε4S-18-q16",0]
[null,null,null,null,null,null,null,null,null,null,null,null,null,null,null,null,null,null,null,null,null,null,null,"ΟΑ ΣΟΦΑΔΩΝ ΟΛΥΜΠΙΑΔΑ",247,"Ε",null,null,null,null,null,"Ε4S-18-q32",0]
[null,null,null,null,null,null,null,null,null,null,null,null,null,null,null,null,null,null,null,null,null,null,null,"ΟΑ ΣΠΑΡΤΗΣ",290,"ΣΤ",null,null,null,null,null,"Ε4S-18-q64",0]
[null,null,null,null,null,null,null,null,null,null,null,null,null,null,null,null,null,null,null,null,null,null,null,"ΟΑ ΣΤΑΥΡΟΥ ΑΣΠΡΟΒΑΛΤΑΣ",161,"Β",null,null,null,null,null,"Ε4S-18-q128",0]
[null,null,null,null,null,null,null,null,null,null,null,null,null,null,null,null,null,null,null,null,null,null,null,"ΟΑ ΣΥΡΟΥ",360,"Η",null,null,null,null,null,"Ε4S-18-q256",0]
[null,null,null,null,null,null,null,null,null,null,null,null,null,null,null,null,null,null,null,null,null,null,null,"ΟΑ ΤΟΥΜΠΑΣ",162,"Β",null,null,null,null,null,"Ε4S-18-wo",0]
[null,null,null,null,null,null,null,null,null,null,null,null,null,null,null,null,null,null,null,null,null,null,null,"ΟΑ ΤΡΙΚΑΛΩΝ",248,"Ε"]
[null,null,null,null,null,null,null,null,null,null,null,null,null,null,null,null,null,null,null,null,null,null,null,"ΟΑ ΦΑΡΣΑΛΩΝ",249,"Ε",null,null,null,null,null,"ΠανS-12-1st",60]
[null,null,null,null,null,null,null,null,null,null,null,null,null,null,null,null,null,null,null,null,null,null,null,"ΟΑ ΦΟΙΒΟΣ ΛΑΡΙΣΑΣ",250,"Ε",null,null,null,null,null,"ΠανS-12-2nd",50]
[null,null,null,null,null,null,null,null,null,null,null,null,null,null,null,null,null,null,null,null,null,null,null,"ΟΑ ΦΩΚΙΔΑΣ",251,"Ε",null,null,null,null,null,"ΠανS-12-3_4",30]
[null,null,null,null,null,null,null,null,null,null,null,null,null,null,null,null,null,null,null,null,null,null,null,"ΟΑ ΧΑΛΚΙΔΑΣ",400,"Θ",null,null,null,null,null,"ΠανS-12-5_8",20]
[null,null,null,null,null,null,null,null,null,null,null,null,null,null,null,null,null,null,null,null,null,null,null,"ΟΑ ΧΑΝΙΩΝ",310,"Ζ",null,null,null,null,null,"ΠανS-12-9_16",15]
[null,null,null,null,null,null,null,null,null,null,null,null,null,null,null,null,null,null,null,null,null,null,null,"ΟΑ ΧΕΡΣΟΝΗΣΟΥ",311,"Ζ",null,null,null,null,null,"ΠανS-12-17_32",10]
[null,null,null,null,null,null,null,null,null,null,null,null,null,null,null,null,null,null,null,null,null,null,null,"ΟΑ ΧΙΟΥ",361,"Η",null,null,null,null,null,"ΠανS-12-33_64",5]
[null,null,null,null,null,null,null,null,null,null,null,null,null,null,null,null,null,null,null,null,null,null,null,"ΟΑ ΧΟΛΑΡΓΟΥ",439,"ΙΑ",null,null,null,null,null,"ΠανS-12-65_128",0]
[null,null,null,null,null,null,null,null,null,null,null,null,null,null,null,null,null,null,null,null,null,null,null,"ΟΑ ΧΡΥΣΟΥΠΟΛΗΣ",456,"Α",null,null,null,null,null,"ΠανS-12-q16",2.5]
[null,null,null,null,null,null,null,null,null,null,null,null,null,null,null,null,null,null,null,null,null,null,null,"ΟΑ ΩΡΑΙΟΚΑΣΤΡΟΥ ΑΝΤΑΙΟΣ",163,"Β",null,null,null,null,null,"ΠανS-12-q32",2.5]
[null,null,null,null,null,null,null,null,null,null,null,null,null,null,null,null,null,null,null,null,null,null,null,"ΟΛΥΜΠΙΑΚΟΣ ΣΦΠ",401,"Θ",null,null,null,null,null,"ΠανS-12-q64",1.5]
[null,null,null,null,null,null,null,null,null,null,null,null,null,null,null,null,null,null,null,null,null,null,null,"ΟΠ ΘΕΣ ΜΑΚΕΔΟΝΙΑ 92",164,"Β",null,null,null,null,null,"ΠανS-12-q16/2",1.3]
[null,null,null,null,null,null,null,null,null,null,null,null,null,null,null,null,null,null,null,null,null,null,null,"ΟΦΑ ΜΑΚΕΔΟΝΙΑΣ ΠΗΓΑΣΟΣ",450,"Β",null,null,null,null,null,"ΠανS-12-q128",1]
[null,null,null,null,null,null,null,null,null,null,null,null,null,null,null,null,null,null,null,null,null,null,null,"ΟΦΑ Ο ΦΟΙΒΟΣ",221,"Δ",null,null,null,null,null,"ΠανS-12-q256",0.5]
[null,null,null,null,null,null,null,null,null,null,null,null,null,null,null,null,null,null,null,null,null,null,null,"ΟΦΤ ΠΥΡΓΟΥ",291,"ΣΤ",null,null,null,null,null,"ΠανS-12-q",0]
[null,null,null,null,null,null,null,null,null,null,null,null,null,null,null,null,null,null,null,null,null,null,null,"ΠΑΝΕΛΛΗΝΙΟΣ ΓΣ",402,"Θ",null,null,null,null,null,"ΠανS-12-q8",0]
[null,null,null,null,null,null,null,null,null,null,null,null,null,null,null,null,null,null,null,null,null,null,null,"ΠΑΝΘΡΑΚΙΚΟΣ ΟΑ ΚΟΜΟΤΗΝΗΣ",119,"Α",null,null,null,null,null,"ΠανS-12-wo",0]
[null,null,null,null,null,null,null,null,null,null,null,null,null,null,null,null,null,null,null,null,null,null,null,"ΠΕΥΚΗ Γ ΚΑΛΟΒΕΛΩΝΗΣ",362,"Η",null,null,null,null,null,"ΠανD-12-1st",15]
[null,null,null,null,null,null,null,null,null,null,null,null,null,null,null,null,null,null,null,null,null,null,null,"ΠΣ ΑΜΠΕΛΩΝΟΣ ΦΙΛΙΠΠΙΔΗΣ",252,"Ε",null,null,null,null,null,"ΠανD-12-2nd",12.5]
[null,null,null,null,null,null,null,null,null,null,null,null,null,null,null,null,null,null,null,null,null,null,null,"ΠΦΟ ΡΑΧΗΣ",467,"Γ",null,null,null,null,null,"ΠανD-12-3_4",10]
[null,null,null,null,null,null,null,null,null,null,null,null,null,null,null,null,null,null,null,null,null,null,null,"ΡΗΓΑΣ ΑΟΑ ΑΡΓΟΛΙΔΑΣ",292,"ΣΤ",null,null,null,null,null,"ΠανD-12-5_8",6.5]
[null,null,null,null,null,null,null,null,null,null,null,null,null,null,null,null,null,null,null,null,null,null,null,"ΡΟΔΙΑΚΗ ΑΚΑΔ ΑΝΤΙΣΦ",403,"Θ",null,null,null,null,null,"ΠανD-12-9_16",4]
[null,null,null,null,null,null,null,null,null,null,null,null,null,null,null,null,null,null,null,null,null,null,null,"ΡΟΔΙΑΚΟΣ ΟΑ",404,"Θ",null,null,null,null,null,"ΠανD-12-17_32",2]
[null,null,null,null,null,null,null,null,null,null,null,null,null,null,null,null,null,null,null,null,null,null,null,"ΣΑ ΓΑΛΑΤΣΙΟΥ",405,"Θ",null,null,null,null,null,"ΠανD-12-33_64",0]
[null,null,null,null,null,null,null,null,null,null,null,null,null,null,null,null,null,null,null,null,null,null,null,"ΣΑ ΔΡΑΜΑΣ",120,"Α",null,null,null,null,null,"ΠανD-12-q",0]
[null,null,null,null,null,null,null,null,null,null,null,null,null,null,null,null,null,null,null,null,null,null,null,"ΣΑ ΕΛΑΣΣΟΝΑΣ",253,"Ε",null,null,null,null,null,"ΠανD-12-q8",0]
[null,null,null,null,null,null,null,null,null,null,null,null,null,null,null,null,null,null,null,null,null,null,null,"ΣΑ ΚΑΣΤΟΡΙΑΣ ΠΡΩΤΕΑΣ",198,"Γ",null,null,null,null,null,"ΠανD-12-q16",0]
[null,null,null,null,null,null,null,null,null,null,null,null,null,null,null,null,null,null,null,null,null,null,null,"ΣΑ ΚΑΤΕΡΙΝΗΣ",199,"Γ",null,null,null,null,null,"ΠανD-12-q32",0]
[null,null,null,null,null,null,null,null,null,null,null,null,null,null,null,null,null,null,null,null,null,null,null,"ΣΑ ΜΕΣΣΗΝΗΣ",293,"ΣΤ",null,null,null,null,null,"ΠανD-12-q64",0]
[null,null,null,null,null,null,null,null,null,null,null,null,null,null,null,null,null,null,null,null,null,null,null,"ΣΑ ΡΑΦΗΝΑΣ",363,"Η",null,null,null,null,null,"ΠανD-12-q128",0]
[null,null,null,null,null,null,null,null,null,null,null,null,null,null,null,null,null,null,null,null,null,null,null,"ΣΑ ΣΕΡΡΩΝ",121,"Α",null,null,null,null,null,"ΠανD-12-wo",0]
[null,null,null,null,null,null,null,null,null,null,null,null,null,null,null,null,null,null,null,null,null,null,null,"ΣΑ ΣΚΥΔΡΑΣ",200,"Γ",null,null,null,null,null,"ΠανS-14-1st",120]
[null,null,null,null,null,null,null,null,null,null,null,null,null,null,null,null,null,null,null,null,null,null,null,"ΣΑ ΤΡΙΠΟΛΗΣ",294,"ΣΤ",null,null,null,null,null,"ΠανS-14-2nd",100]
[null,null,null,null,null,null,null,null,null,null,null,null,null,null,null,null,null,null,null,null,null,null,null,"ΣΑΑΚ ΑΝΑΤΟΛΙΑ",166,"Β",null,null,null,null,null,"ΠανS-14-3_4",60]
[null,null,null,null,null,null,null,null,null,null,null,null,null,null,null,null,null,null,null,null,null,null,null,"ΣΕΡΡΑΪΚΟΣ ΟΑ",122,"Α",null,null,null,null,null,"ΠανS-14-5_8",40]
[null,null,null,null,null,null,null,null,null,null,null,null,null,null,null,null,null,null,null,null,null,null,null,"ΣΟΑ ΚΑΡΔΙΤΣΑΣ ΦΩΚΙΑΝΟΣ",254,"Ε",null,null,null,null,null,"ΠανS-14-9_16",30]
[null,null,null,null,null,null,null,null,null,null,null,null,null,null,null,null,null,null,null,null,null,null,null,"ΣΟΙΣ ΝΕΑ ΠΝΟΗ",457,"Α",null,null,null,null,null,"ΠανS-14-17_32",20]
[null,null,null,null,null,null,null,null,null,null,null,null,null,null,null,null,null,null,null,null,null,null,null,"ΣΦΑ ΜΕΛΙΣΣΙΩΝ Ο ΦΟΙΒΟΣ",364,"Η",null,null,null,null,null,"ΠανS-14-33_64",10]
[null,null,null,null,null,null,null,null,null,null,null,null,null,null,null,null,null,null,null,null,null,null,null,"ΣΦΑ ΧΕΡΣΟΝΗΣΟΥ",452,"Ζ",null,null,null,null,null,"ΠανS-14-65_128",0]
[null,null,null,null,null,null,null,null,null,null,null,null,null,null,null,null,null,null,null,null,null,null,null,"ΣΦΦΑ Η ΑΜΙΛΛΑ",255,"Ε",null,null,null,null,null,"ΠανS-14-q16",5]
[null,null,null,null,null,null,null,null,null,null,null,null,null,null,null,null,null,null,null,null,null,null,null,"ΦΑ ΕΚΑΛΗΣ ΛΟΥΜΠΙΕ",365,"Η",null,null,null,null,null,"ΠανS-14-q32",5]
[null,null,null,null,null,null,null,null,null,null,null,null,null,null,null,null,null,null,null,null,null,null,null,"ΦΘΙΩΤΙΚΟΣ ΟΑ",256,"Ε",null,null,null,null,null,"ΠανS-14-q64",3]
[null,null,null,null,null,null,null,null,null,null,null,null,null,null,null,null,null,null,null,null,null,null,null,"ΦΙΛΑΘΛ ΓΣ ΣΠΑΡΤΗΣ",295,"ΣΤ",null,null,null,null,null,"ΠανS-14-q16/2",2.5]
[null,null,null,null,null,null,null,null,null,null,null,null,null,null,null,null,null,null,null,null,null,null,null,"ΦΙΛΑΘΛΗΤ ΣΥΛ ΛΑΜΙΑΣ",257,"Ε",null,null,null,null,null,"ΠανS-14-q128",2]
[null,null,null,null,null,null,null,null,null,null,null,null,null,null,null,null,null,null,null,null,null,null,null,"ΦΙΛΙΑ ΤΚ",312,"Ζ",null,null,null,null,null,"ΠανS-14-q256",1]
[null,null,null,null,null,null,null,null,null,null,null,null,null,null,null,null,null,null,null,null,null,null,null,"ΦΟ ΝΑΥΠΑΚΤΟΥ ΟΜΟΝΟΙΑ",296,"ΣΤ",null,null,null,null,null,"ΠανS-14-q",0]
[null,null,null,null,null,null,null,null,null,null,null,null,null,null,null,null,null,null,null,null,null,null,null,"ΦΟ ΠΥΡΓΟΥ",297,"ΣΤ",null,null,null,null,null,"ΠανS-14-q8",0]
[null,null,null,null,null,null,null,null,null,null,null,null,null,null,null,null,null,null,null,null,null,null,null,"ΦΟΑ ΝΕΑΠΟΛΗΣ",167,"Β",null,null,null,null,null,"ΠανS-14-wo",0]
[null,null,null,null,null,null,null,null,null,null,null,null,null,null,null,null,null,null,null,null,null,null,null,"ΦΣ ΚΑΛΛΙΘΕΑΣ",406,"Θ",null,null,null,null,null,"ΠανD-14-1st",30]
[null,null,null,null,null,null,null,null,null,null,null,null,null,null,null,null,null,null,null,null,null,null,null,"ΧΑΝ ΘΕΣΣΑΛΟΝΙΚΗΣ",168,"Β",null,null,null,null,null,"ΠανD-14-2nd",25]
[null,null,null,null,null,null,null,null,null,null,null,null,null,null,null,null,null,null,null,null,null,null,null,"ΧΡΥΣΟΣ ΟΑ",281,"ΣΤ",null,null,null,null,null,"ΠανD-14-3_4",20]
[null,null,null,null,null,null,null,null,null,null,null,null,null,null,null,null,null,null,null,null,null,null,null,null,null,null,null,null,null,null,null,"ΠανD-14-5_8",13]
[null,null,null,null,null,null,null,null,null,null,null,null,null,null,null,null,null,null,null,null,null,null,null,null,null,null,null,null,null,null,null,"ΠανD-14-9_16",8]
[null,null,null,null,null,null,null,null,null,null,null,null,null,null,null,null,null,null,null,null,null,null,null,null,null,null,null,null,null,null,null,"ΠανD-14-17_32",4]
[null,null,null,null,null,null,null,null,null,null,null,null,null,null,null,null,null,null,null,null,null,null,null,null,null,null,null,null,null,null,null,"ΠανD-14-33_64",0]
[null,null,null,null,null,null,null,null,null,null,null,null,null,null,null,null,null,null,null,null,null,null,null,null,null,null,null,null,null,null,null,"ΠανD-14-q",0]
[null,null,null,null,null,null,null,null,null,null,null,null,null,null,null,null,null,null,null,null,null,null,null,null,null,null,null,null,null,null,null,"ΠανD-14-q8",0]
[null,null,null,null,null,null,null,null,null,null,null,null,null,null,null,null,null,null,null,null,null,null,null,null,null,null,null,null,null,null,null,"ΠανD-14-q16",0]
[null,null,null,null,null,null,null,null,null,null,null,null,null,null,null,null,null,null,null,null,null,null,null,null,null,null,null,null,null,null,null,"ΠανD-14-q32",0]
[null,null,null,null,null,null,null,null,null,null,null,null,null,null,null,null,null,null,null,null,null,null,null,null,null,null,null,null,null,null,null,"ΠανD-14-q64",0]
[null,null,null,null,null,null,null,null,null,null,null,null,null,null,null,null,null,null,null,null,null,null,null,null,null,null,null,null,null,null,null,"ΠανD-14-q128",0]
[null,null,null,null,null,null,null,null,null,null,null,null,null,null,null,null,null,null,null,null,null,null,null,null,null,null,null,null,null,null,null,"ΠανD-14-wo",0]
[null,null,null,null,null,null,null,null,null,null,null,null,null,null,null,null,null,null,null,null,null,null,null,null,null,null,null,null,null,null,null,"ΠανS-16-1st",240]
[null,null,null,null,null,null,null,null,null,null,null,null,null,null,null,null,null,null,null,null,null,null,null,null,null,null,null,null,null,null,null,"ΠανS-16-2nd",200]
[null,null,null,null,null,null,null,null,null,null,null,null,null,null,null,null,null,null,null,null,null,null,null,null,null,null,null,null,null,null,null,"ΠανS-16-3_4",120]
[null,null,null,null,null,null,null,null,null,null,null,null,null,null,null,null,null,null,null,null,null,null,null,null,null,null,null,null,null,null,null,"ΠανS-16-5_8",80]
[null,null,null,null,null,null,null,null,null,null,null,null,null,null,null,null,null,null,null,null,null,null,null,null,null,null,null,null,null,null,null,"ΠανS-16-9_16",60]
[null,null,null,null,null,null,null,null,null,null,null,null,null,null,null,null,null,null,null,null,null,null,null,null,null,null,null,null,null,null,null,"ΠανS-16-17_32",40]
[null,null,null,null,null,null,null,null,null,null,null,null,null,null,null,null,null,null,null,null,null,null,null,null,null,null,null,null,null,null,null,"ΠανS-16-33_64",20]
[null,null,null,null,null,null,null,null,null,null,null,null,null,null,null,null,null,null,null,null,null,null,null,null,null,null,null,null,null,null,null,"ΠανS-16-65_128",0]
[null,null,null,null,null,null,null,null,null,null,null,null,null,null,null,null,null,null,null,null,null,null,null,null,null,null,null,null,null,null,null,"ΠανS-16-q16",10]
[null,null,null,null,null,null,null,null,null,null,null,null,null,null,null,null,null,null,null,null,null,null,null,null,null,null,null,null,null,null,null,"ΠανS-16-q32",10]
[null,null,null,null,null,null,null,null,null,null,null,null,null,null,null,null,null,null,null,null,null,null,null,null,null,null,null,null,null,null,null,"ΠανS-16-q64",6]
[null,null,null,null,null,null,null,null,null,null,null,null,null,null,null,null,null,null,null,null,null,null,null,null,null,null,null,null,null,null,null,"ΠανS-16-q16/2",5]
[null,null,null,null,null,null,null,null,null,null,null,null,null,null,null,null,null,null,null,null,null,null,null,null,null,null,null,null,null,null,null,"ΠανS-16-q128",4]
[null,null,null,null,null,null,null,null,null,null,null,null,null,null,null,null,null,null,null,null,null,null,null,null,null,null,null,null,null,null,null,"ΠανS-16-q256",2]
[null,null,null,null,null,null,null,null,null,null,null,null,null,null,null,null,null,null,null,null,null,null,null,null,null,null,null,null,null,null,null,"ΠανS-16-q",0]
[null,null,null,null,null,null,null,null,null,null,null,null,null,null,null,null,null,null,null,null,null,null,null,null,null,null,null,null,null,null,null,"ΠανS-16-q8",0]
[null,null,null,null,null,null,null,null,null,null,null,null,null,null,null,null,null,null,null,null,null,null,null,null,null,null,null,null,null,null,null,"ΠανS-16-wo",0]
[null,null,null,null,null,null,null,null,null,null,null,null,null,null,null,null,null,null,null,null,null,null,null,null,null,null,null,null,null,null,null,"ΠανD-16-1st",60]
[null,null,null,null,null,null,null,null,null,null,null,null,null,null,null,null,null,null,null,null,null,null,null,null,null,null,null,null,null,null,null,"ΠανD-16-2nd",50]
[null,null,null,null,null,null,null,null,null,null,null,null,null,null,null,null,null,null,null,null,null,null,null,null,null,null,null,null,null,null,null,"ΠανD-16-3_4",40]
[null,null,null,null,null,null,null,null,null,null,null,null,null,null,null,null,null,null,null,null,null,null,null,null,null,null,null,null,null,null,null,"ΠανD-16-5_8",26]
[null,null,null,null,null,null,null,null,null,null,null,null,null,null,null,null,null,null,null,null,null,null,null,null,null,null,null,null,null,null,null,"ΠανD-16-9_16",16]
[null,null,null,null,null,null,null,null,null,null,null,null,null,null,null,null,null,null,null,null,null,null,null,null,null,null,null,null,null,null,null,"ΠανD-16-17_32",8]
[null,null,null,null,null,null,null,null,null,null,null,null,null,null,null,null,null,null,null,null,null,null,null,null,null,null,null,null,null,null,null,"ΠανD-16-33_64",0]
[null,null,null,null,null,null,null,null,null,null,null,null,null,null,null,null,null,null,null,null,null,null,null,null,null,null,null,null,null,null,null,"ΠανD-16-q",0]
[null,null,null,null,null,null,null,null,null,null,null,null,null,null,null,null,null,null,null,null,null,null,null,null,null,null,null,null,null,null,null,"ΠανD-16-q8",0]
[null,null,null,null,null,null,null,null,null,null,null,null,null,null,null,null,null,null,null,null,null,null,null,null,null,null,null,null,null,null,null,"ΠανD-16-q16",0]
[null,null,null,null,null,null,null,null,null,null,null,null,null,null,null,null,null,null,null,null,null,null,null,null,null,null,null,null,null,null,null,"ΠανD-16-q32",0]
[null,null,null,null,null,null,null,null,null,null,null,null,null,null,null,null,null,null,null,null,null,null,null,null,null,null,null,null,null,null,null,"ΠανD-16-q64",0]
[null,null,null,null,null,null,null,null,null,null,null,null,null,null,null,null,null,null,null,null,null,null,null,null,null,null,null,null,null,null,null,"ΠανD-16-q128",0]
[null,null,null,null,null,null,null,null,null,null,null,null,null,null,null,null,null,null,null,null,null,null,null,null,null,null,null,null,null,null,null,"ΠανD-16-wo",0]
[null,null,null,null,null,null,null,null,null,null,null,null,null,null,null,null,null,null,null,null,null,null,null,null,null,null,null,null,null,null,null,"ΠανS-18-1st",300]
[null,null,null,null,null,null,null,null,null,null,null,null,null,null,null,null,null,null,null,null,null,null,null,null,null,null,null,null,null,null,null,"ΠανS-18-2nd",250]
[null,null,null,null,null,null,null,null,null,null,null,null,null,null,null,null,null,null,null,null,null,null,null,null,null,null,null,null,null,null,null,"ΠανS-18-3_4",150]
[null,null,null,null,null,null,null,null,null,null,null,null,null,null,null,null,null,null,null,null,null,null,null,null,null,null,null,null,null,null,null,"ΠανS-18-5_8",100]
[null,null,null,null,null,null,null,null,null,null,null,null,null,null,null,null,null,null,null,null,null,null,null,null,null,null,null,null,null,null,null,"ΠανS-18-9_16",75]
[null,null,null,null,null,null,null,null,null,null,null,null,null,null,null,null,null,null,null,null,null,null,null,null,null,null,null,null,null,null,null,"ΠανS-18-17_32",50]
[null,null,null,null,null,null,null,null,null,null,null,null,null,null,null,null,null,null,null,null,null,null,null,null,null,null,null,null,null,null,null,"ΠανS-18-33_64",25]
[null,null,null,null,null,null,null,null,null,null,null,null,null,null,null,null,null,null,null,null,null,null,null,null,null,null,null,null,null,null,null,"ΠανS-18-65_128",0]
[null,null,null,null,null,null,null,null,null,null,null,null,null,null,null,null,null,null,null,null,null,null,null,null,null,null,null,null,null,null,null,"ΠανS-18-q16",12.5]
[null,null,null,null,null,null,null,null,null,null,null,null,null,null,null,null,null,null,null,null,null,null,null,null,null,null,null,null,null,null,null,"ΠανS-18-q32",12.5]
[null,null,null,null,null,null,null,null,null,null,null,null,null,null,null,null,null,null,null,null,null,null,null,null,null,null,null,null,null,null,null,"ΠανS-18-q64",7.5]
[null,null,null,null,null,null,null,null,null,null,null,null,null,null,null,null,null,null,null,null,null,null,null,null,null,null,null,null,null,null,null,"ΠανS-18-q16/2",6.3]
[null,null,null,null,null,null,null,null,null,null,null,null,null,null,null,null,null,null,null,null,null,null,null,null,null,null,null,null,null,null,null,"ΠανS-18-q128",5]
[null,null,null,null,null,null,null,null,null,null,null,null,null,null,null,null,null,null,null,null,null,null,null,null,null,null,null,null,null,null,null,"ΠανS-18-q256",2.5]
[null,null,null,null,null,null,null,null,null,null,null,null,null,null,null,null,null,null,null,null,null,null,null,null,null,null,null,null,null,null,null,"ΠανS-18-q",0]
[null,null,null,null,null,null,null,null,null,null,null,null,null,null,null,null,null,null,null,null,null,null,null,null,null,null,null,null,null,null,null,"ΠανS-18-q8",0]
[null,null,null,null,null,null,null,null,null,null,null,null,null,null,null,null,null,null,null,null,null,null,null,null,null,null,null,null,null,null,null,"ΠανS-18-wo",0]
[null,null,null,null,null,null,null,null,null,null,null,null,null,null,null,null,null,null,null,null,null,null,null,null,null,null,null,null,null,null,null,"ΠανD-18-1st",75]
[null,null,null,null,null,null,null,null,null,null,null,null,null,null,null,null,null,null,null,null,null,null,null,null,null,null,null,null,null,null,null,"ΠανD-18-2nd",62.5]
[null,null,null,null,null,null,null,null,null,null,null,null,null,null,null,null,null,null,null,null,null,null,null,null,null,null,null,null,null,null,null,"ΠανD-18-3_4",50]
[null,null,null,null,null,null,null,null,null,null,null,null,null,null,null,null,null,null,null,null,null,null,null,null,null,null,null,null,null,null,null,"ΠανD-18-5_8",32.5]
[null,null,null,null,null,null,null,null,null,null,null,null,null,null,null,null,null,null,null,null,null,null,null,null,null,null,null,null,null,null,null,"ΠανD-18-9_16",20]
[null,null,null,null,null,null,null,null,null,null,null,null,null,null,null,null,null,null,null,null,null,null,null,null,null,null,null,null,null,null,null,"ΠανD-18-17_32",10]
[null,null,null,null,null,null,null,null,null,null,null,null,null,null,null,null,null,null,null,null,null,null,null,null,null,null,null,null,null,null,null,"ΠανD-18-33_64",0]
[null,null,null,null,null,null,null,null,null,null,null,null,null,null,null,null,null,null,null,null,null,null,null,null,null,null,null,null,null,null,null,"ΠανD-18-q",0]
[null,null,null,null,null,null,null,null,null,null,null,null,null,null,null,null,null,null,null,null,null,null,null,null,null,null,null,null,null,null,null,"ΠανD-18-q8",0]
[null,null,null,null,null,null,null,null,null,null,null,null,null,null,null,null,null,null,null,null,null,null,null,null,null,null,null,null,null,null,null,"ΠανD-18-q16",0]
[null,null,null,null,null,null,null,null,null,null,null,null,null,null,null,null,null,null,null,null,null,null,null,null,null,null,null,null,null,null,null,"ΠανD-18-q32",0]
[null,null,null,null,null,null,null,null,null,null,null,null,null,null,null,null,null,null,null,null,null,null,null,null,null,null,null,null,null,null,null,"ΠανD-18-q64",0]
[null,null,null,null,null,null,null,null,null,null,null,null,null,null,null,null,null,null,null,null,null,null,null,null,null,null,null,null,null,null,null,"ΠανD-18-q128",0]
[null,null,null,null,null,null,null,null,null,null,null,null,null,null,null,null,null,null,null,null,null,null,null,null,null,null,null,null,null,null,null,"ΠανD-18-wo",0]
[]
[null,null,null,null,null,null,null,null,null,null,null,null,null,null,null,null,null,null,null,null,null,null,null,null,null,null,null,null,null,null,null,"Mas-12-1st",40]
[null,null,null,null,null,null,null,null,null,null,null,null,null,null,null,null,null,null,null,null,null,null,null,null,null,null,null,null,null,null,null,"Mas-12-2nd",35]
[null,null,null,null,null,null,null,null,null,null,null,null,null,null,null,null,null,null,null,null,null,null,null,null,null,null,null,null,null,null,null,"Mas-12-3ος",30]
[null,null,null,null,null,null,null,null,null,null,null,null,null,null,null,null,null,null,null,null,null,null,null,null,null,null,null,null,null,null,null,"Mas-12-4ος",25]
[null,null,null,null,null,null,null,null,null,null,null,null,null,null,null,null,null,null,null,null,null,null,null,null,null,null,null,null,null,null,null,"Mas-12-5ος",20]
[null,null,null,null,null,null,null,null,null,null,null,null,null,null,null,null,null,null,null,null,null,null,null,null,null,null,null,null,null,null,null,"Mas-12-6ος",15]
[null,null,null,null,null,null,null,null,null,null,null,null,null,null,null,null,null,null,null,null,null,null,null,null,null,null,null,null,null,null,null,"Mas-12-7ος",10]
[null,null,null,null,null,null,null,null,null,null,null,null,null,null,null,null,null,null,null,null,null,null,null,null,null,null,null,null,null,null,null,"Mas-12-8ος",5]
[null,null,null,null,null,null,null,null,null,null,null,null,null,null,null,null,null,null,null,null,null,null,null,null,null,null,null,null,null,null,null,"Mas-12-wo",0]
[null,null,null,null,null,null,null,null,null,null,null,null,null,null,null,null,null,null,null,null,null,null,null,null,null,null,null,null,null,null,null,"Mas-14-1st",80]
[null,null,null,null,null,null,null,null,null,null,null,null,null,null,null,null,null,null,null,null,null,null,null,null,null,null,null,null,null,null,null,"Mas-14-2nd",70]
[null,null,null,null,null,null,null,null,null,null,null,null,null,null,null,null,null,null,null,null,null,null,null,null,null,null,null,null,null,null,null,"Mas-14-3ος",60]
[null,null,null,null,null,null,null,null,null,null,null,null,null,null,null,null,null,null,null,null,null,null,null,null,null,null,null,null,null,null,null,"Mas-14-4ος",50]
[null,null,null,null,null,null,null,null,null,null,null,null,null,null,null,null,null,null,null,null,null,null,null,null,null,null,null,null,null,null,null,"Mas-14-5ος",40]
[null,null,null,null,null,null,null,null,null,null,null,null,null,null,null,null,null,null,null,null,null,null,null,null,null,null,null,null,null,null,null,"Mas-14-6ος",30]
[null,null,null,null,null,null,null,null,null,null,null,null,null,null,null,null,null,null,null,null,null,null,null,null,null,null,null,null,null,null,null,"Mas-14-7ος",20]
[null,null,null,null,null,null,null,null,null,null,null,null,null,null,null,null,null,null,null,null,null,null,null,null,null,null,null,null,null,null,null,"Mas-14-8ος",10]
[null,null,null,null,null,null,null,null,null,null,null,null,null,null,null,null,null,null,null,null,null,null,null,null,null,null,null,null,null,null,null,"Mas-14-wo",0]
[null,null,null,null,null,null,null,null,null,null,null,null,null,null,null,null,null,null,null,null,null,null,null,null,null,null,null,null,null,null,null,"Mas-16-1st",160]
[null,null,null,null,null,null,null,null,null,null,null,null,null,null,null,null,null,null,null,null,null,null,null,null,null,null,null,null,null,null,null,"Mas-16-2nd",140]
[null,null,null,null,null,null,null,null,null,null,null,null,null,null,null,null,null,null,null,null,null,null,null,null,null,null,null,null,null,null,null,"Mas-16-3ος",120]
[null,null,null,null,null,null,null,null,null,null,null,null,null,null,null,null,null,null,null,null,null,null,null,null,null,null,null,null,null,null,null,"Mas-16-4ος",100]
[null,null,null,null,null,null,null,null,null,null,null,null,null,null,null,null,null,null,null,null,null,null,null,null,null,null,null,null,null,null,null,"Mas-16-5ος",80]
[null,null,null,null,null,null,null,null,null,null,null,null,null,null,null,null,null,null,null,null,null,null,null,null,null,null,null,null,null,null,null,"Mas-16-6ος",60]
[null,null,null,null,null,null,null,null,null,null,null,null,null,null,null,null,null,null,null,null,null,null,null,null,null,null,null,null,null,null,null,"Mas-16-7ος",40]
[null,null,null,null,null,null,null,null,null,null,null,null,null,null,null,null,null,null,null,null,null,null,null,null,null,null,null,null,null,null,null,"Mas-16-8ος",20]
[null,null,null,null,null,null,null,null,null,null,null,null,null,null,null,null,null,null,null,null,null,null,null,null,null,null,null,null,null,null,null,"Mas-16-wo",0]
[null,null,null,null,null,null,null,null,null,null,null,null,null,null,null,null,null,null,null,null,null,null,null,null,null,null,null,null,null,null,null,"Mas-18-1st",200]
[null,null,null,null,null,null,null,null,null,null,null,null,null,null,null,null,null,null,null,null,null,null,null,null,null,null,null,null,null,null,null,"Mas-18-2nd",175]
[null,null,null,null,null,null,null,null,null,null,null,null,null,null,null,null,null,null,null,null,null,null,null,null,null,null,null,null,null,null,null,"Mas-18-3ος",150]
[null,null,null,null,null,null,null,null,null,null,null,null,null,null,null,null,null,null,null,null,null,null,null,null,null,null,null,null,null,null,null,"Mas-18-4ος",125]
[null,null,null,null,null,null,null,null,null,null,null,null,null,null,null,null,null,null,null,null,null,null,null,null,null,null,null,null,null,null,null,"Mas-18-5ος",100]
[null,null,null,null,null,null,null,null,null,null,null,null,null,null,null,null,null,null,null,null,null,null,null,null,null,null,null,null,null,null,null,"Mas-18-6ος",75]
[null,null,null,null,null,null,null,null,null,null,null,null,null,null,null,null,null,null,null,null,null,null,null,null,null,null,null,null,null,null,null,"Mas-18-7ος",50]
[null,null,null,null,null,null,null,null,null,null,null,null,null,null,null,null,null,null,null,null,null,null,null,null,null,null,null,null,null,null,null,"Mas-18-8ος",25]
[null,null,null,null,null,null,null,null,null,null,null,null,null,null,null,null,null,null,null,null,null,null,null,null,null,null,null,null,null,null,null,"Mas-18-wo",0]
[]
[null,null,null,null,null,null,null,null,null,null,null,null,null,null,null,null,null,null,null,null,null,null,null,null,null,null,null,null,null,null,null,"Men-Women"]
[null,null,null,null,null,null,null,null,null,null,null,null,null,null,null,null,null,null,null,null,null,null,null,null,null,null,null,null,null,null,null,"ΠανΑΓS-1st",18]
[null,null,null,null,null,null,null,null,null,null,null,null,null,null,null,null,null,null,null,null,null,null,null,null,null,null,null,null,null,null,null,"ΠανΑΓS-2nd",12]
[null,null,null,null,null,null,null,null,null,null,null,null,null,null,null,null,null,null,null,null,null,null,null,null,null,null,null,null,null,null,null,"ΠανΑΓS-3_4",6]
[null,null,null,null,null,null,null,null,null,null,null,null,null,null,null,null,null,null,null,null,null,null,null,null,null,null,null,null,null,null,null,"ΠανΑΓS-5_8",3]
[null,null,null,null,null,null,null,null,null,null,null,null,null,null,null,null,null,null,null,null,null,null,null,null,null,null,null,null,null,null,null,"ΠανΑΓS-9_16",1]
[null,null,null,null,null,null,null,null,null,null,null,null,null,null,null,null,null,null,null,null,null,null,null,null,null,null,null,null,null,null,null,"ΠανΑΓS-17_32",0.75]
[null,null,null,null,null,null,null,null,null,null,null,null,null,null,null,null,null,null,null,null,null,null,null,null,null,null,null,null,null,null,null,"ΠανΑΓS-33_64",0.5]
[null,null,null,null,null,null,null,null,null,null,null,null,null,null,null,null,null,null,null,null,null,null,null,null,null,null,null,null,null,null,null,"ΠανΑΓS-65_128",0]
[null,null,null,null,null,null,null,null,null,null,null,null,null,null,null,null,null,null,null,null,null,null,null,null,null,null,null,null,null,null,null,"ΠανΑΓS-Q2",0.15]
[null,null,null,null,null,null,null,null,null,null,null,null,null,null,null,null,null,null,null,null,null,null,null,null,null,null,null,null,null,null,null,"ΠανΑΓS-Q1",0.1]
[null,null,null,null,null,null,null,null,null,null,null,null,null,null,null,null,null,null,null,null,null,null,null,null,null,null,null,null,null,null,null,"OpenΑΓS-1st",5]
[null,null,null,null,null,null,null,null,null,null,null,null,null,null,null,null,null,null,null,null,null,null,null,null,null,null,null,null,null,null,null,"OpenΑΓS-2nd",3]
[null,null,null,null,null,null,null,null,null,null,null,null,null,null,null,null,null,null,null,null,null,null,null,null,null,null,null,null,null,null,null,"OpenΑΓS-3_4",1.5]
[null,null,null,null,null,null,null,null,null,null,null,null,null,null,null,null,null,null,null,null,null,null,null,null,null,null,null,null,null,null,null,"OpenΑΓS-5_8",1]
[null,null,null,null,null,null,null,null,null,null,null,null,null,null,null,null,null,null,null,null,null,null,null,null,null,null,null,null,null,null,null,"OpenΑΓS-9_16",0.75]
[null,null,null,null,null,null,null,null,null,null,null,null,null,null,null,null,null,null,null,null,null,null,null,null,null,null,null,null,null,null,null,"OpenΑΓS-17_32",0.5]
[null,null,null,null,null,null,null,null,null,null,null,null,null,null,null,null,null,null,null,null,null,null,null,null,null,null,null,null,null,null,null,"OpenΑΓS-33_64",0]
[null,null,null,null,null,null,null,null,null,null,null,null,null,null,null,null,null,null,null,null,null,null,null,null,null,null,null,null,null,null,null,"OpenΑΓS-65_128",0]
[null,null,null,null,null,null,null,null,null,null,null,null,null,null,null,null,null,null,null,null,null,null,null,null,null,null,null,null,null,null,null,"OpenΑΓS-Q2",0.1]
[null,null,null,null,null,null,null,null,null,null,null,null,null,null,null,null,null,null,null,null,null,null,null,null,null,null,null,null,null,null,null,"OpenΑΓS-Q1",0.05]
[null,null,null,null,null,null,null,null,null,null,null,null,null,null,null,null,null,null,null,null,null,null,null,null,null,null,null,null,null,null,null,"ΠανΑΓS-",0]
[null,null,null,null,null,null,null,null,null,null,null,null,null,null,null,null,null,null,null,null,null,null,null,null,null,null,null,null,null,null,null,"OpenΑΓS-",0]
[null,null,null,null,null,null,null,null,null,null,null,null,null,null,null,null,null,null,null,null,null,null,null,null,null,null,null,null,null,null,null,"ΠανΑΓD-1st",18]
[null,null,null,null,null,null,null,null,null,null,null,null,null,null,null,null,null,null,null,null,null,null,null,null,null,null,null,null,null,null,null,"ΠανΑΓD-2nd",12]
[null,null,null,null,null,null,null,null,null,null,null,null,null,null,null,null,null,null,null,null,null,null,null,null,null,null,null,null,null,null,null,"ΠανΑΓD-3_4",6]
[null,null,null,null,null,null,null,null,null,null,null,null,null,null,null,null,null,null,null,null,null,null,null,null,null,null,null,null,null,null,null,"ΠανΑΓD-5_8",3]
[null,null,null,null,null,null,null,null,null,null,null,null,null,null,null,null,null,null,null,null,null,null,null,null,null,null,null,null,null,null,null,"ΠανΑΓD-9_16",1]
[null,null,null,null,null,null,null,null,null,null,null,null,null,null,null,null,null,null,null,null,null,null,null,null,null,null,null,null,null,null,null,"ΠανΑΓD-17_32",0]
[null,null,null,null,null,null,null,null,null,null,null,null,null,null,null,null,null,null,null,null,null,null,null,null,null,null,null,null,null,null,null,"ΠανΑΓD-33_64",0]
[null,null,null,null,null,null,null,null,null,null,null,null,null,null,null,null,null,null,null,null,null,null,null,null,null,null,null,null,null,null,null,"ΠανΑΓD-65_128",0]
[null,null,null,null,null,null,null,null,null,null,null,null,null,null,null,null,null,null,null,null,null,null,null,null,null,null,null,null,null,null,null,"ΠανΑΓD-Q2",0]
[null,null,null,null,null,null,null,null,null,null,null,null,null,null,null,null,null,null,null,null,null,null,null,null,null,null,null,null,null,null,null,"ΠανΑΓD-Q1",0]
[null,null,null,null,null,null,null,null,null,null,null,null,null,null,null,null,null,null,null,null,null,null,null,null,null,null,null,null,null,null,null,"OpenΑΓD-1st",5]
[null,null,null,null,null,null,null,null,null,null,null,null,null,null,null,null,null,null,null,null,null,null,null,null,null,null,null,null,null,null,null,"OpenΑΓD-2nd",3]
[null,null,null,null,null,null,null,null,null,null,null,null,null,null,null,null,null,null,null,null,null,null,null,null,null,null,null,null,null,null,null,"OpenΑΓD-3_4",1.5]
[null,null,null,null,null,null,null,null,null,null,null,null,null,null,null,null,null,null,null,null,null,null,null,null,null,null,null,null,null,null,null,"OpenΑΓD-5_8",1]
[null,null,null,null,null,null,null,null,null,null,null,null,null,null,null,null,null,null,null,null,null,null,null,null,null,null,null,null,null,null,null,"OpenΑΓD-9_16",0.75]
[null,null,null,null,null,null,null,null,null,null,null,null,null,null,null,null,null,null,null,null,null,null,null,null,null,null,null,null,null,null,null,"OpenΑΓD-17_32",0]
[null,null,null,null,null,null,null,null,null,null,null,null,null,null,null,null,null,null,null,null,null,null,null,null,null,null,null,null,null,null,null,"OpenΑΓD-33_64",0]
[null,null,null,null,null,null,null,null,null,null,null,null,null,null,null,null,null,null,null,null,null,null,null,null,null,null,null,null,null,null,null,"OpenΑΓD-65_128",0]
[null,null,null,null,null,null,null,null,null,null,null,null,null,null,null,null,null,null,null,null,null,null,null,null,null,null,null,null,null,null,null,"OpenΑΓD-Q2",0]
[null,null,null,null,null,null,null,null,null,null,null,null,null,null,null,null,null,null,null,null,null,null,null,null,null,null,null,null,null,null,null,"OpenΑΓD-Q1",0]
[null,null,null,null,null,null,null,null,null,null,null,null,null,null,null,null,null,null,null,null,null,null,null,null,null,null,null,null,null,null,null,"ΠανΑΓD-",0]
[null,null,null,null,null,null,null,null,null,null,null,null,null,null,null,null,null,null,null,null,null,null,null,null,null,null,null,null,null,null,null,"OpenΑΓD-",0]

{"sheet":"matches","index":6,"n_rows":33,"n_cols":19,"rows_kept":33,"cut":false,"hidden":true,"merged":[]}
["round","W-ID","winner","L-ID","looser","score",null," Player "," Position ",null,"Set-up",null,null,"draw#","organizer","club","title","category","drawSize"]
[32,{"$f":"IF(OR(MD!$M$5 =1,MD!$M$5 =2), IF(MD!$M$5 =1,MD!$I$5,MD!$I$6),\"#\")","v":34598},{"$f":"TRIM(LEFT(VLOOKUP(B2,ALMD!$C$3:$D$34,2,FALSE),FIND(\" \",VLOOKUP(B2,ALMD!$C$3:$D$34,2,FALSE),1)-1))","v":"ΚΟΛΛΙΑΣ"},{"$f":"IF(OR(MD!$M$5 =1,MD!$M$5 =2), IF(MD!$M$5 =2,MD!$I$5,MD!$I$6),\"#\")","v":0},{"$f":"TRIM(LEFT(VLOOKUP(D2,ALMD!$C$3:$D$34,2,FALSE),FIND(\" \",VLOOKUP(D2,ALMD!$C$3:$D$34,2,FALSE),1)-1))","v":{"$error":"#N/A"}},{"$f":"MD!O6","v":0},null,{"$f":"B32","v":34598},"1st",null,"organizer: ",{"$f":"Setup!$B$3","v":"ΣΤ' ΕΝΩΣΗ"},null,{"$f":"IF(COUNTIF(MD!$I:$I,B2)>0,MATCH(B2,MD!$I:$I,0)-4,\"\")&\" \"&IF(COUNTIF(MD!$I:$I,D2)>0,MATCH(D2,MD!$I:$I,0)-4,\"\")","v":"1 2"},{"$f":"Setup!$B$3","v":"ΣΤ' ΕΝΩΣΗ"},{"$f":"TRIM(LEFT($L$4,10))","v":"ΣΑ ΤΡΙΠΟΛΗ"},{"$f":"TRIM(LEFT($L$3,10))","v":"Ε3 19η"},{"$f":"SUBSTITUTE(SUBSTITUTE(TRIM($L$7),\"Κ\",\"g\"),\"Α\",\"b\")","v":"b14"},32]
[32,{"$f":"IF(OR(MD!$M$7 =1,MD!$M$7 =2), IF(MD!$M$7 =1,MD!$I$7,MD!$I$8),\"#\")","v":34817},{"$f":"TRIM(LEFT(VLOOKUP(B3,ALMD!$C$3:$D$34,2,FALSE),FIND(\" \",VLOOKUP(B3,ALMD!$C$3:$D$34,2,FALSE),1)-1))","v":"ΤΖΟΥΤΖΟΠΟΥΛΟΣ"},{"$f":"IF(OR(MD!$M$7 =1,MD!$M$7 =2), IF(MD!$M$7 =2,MD!$I$7,MD!$I$8),\"#\")","v":33450},{"$f":"TRIM(LEFT(VLOOKUP(D3,ALMD!$C$3:$D$34,2,FALSE),FIND(\" \",VLOOKUP(D3,ALMD!$C$3:$D$34,2,FALSE),1)-1))","v":"ΚΑΜΠΑΝΟΣ"},{"$f":"MD!O8","v":"41 53"},null,{"$f":"D32","v":36030},"2nd",null,"title: ",{"$f":"Setup!$B$7","v":"Ε3 19η"},null,{"$f":"IF(COUNTIF(MD!$I:$I,B3)>0,MATCH(B3,MD!$I:$I,0)-4,\"\")&\" \"&IF(COUNTIF(MD!$I:$I,D3)>0,MATCH(D3,MD!$I:$I,0)-4,\"\")","v":"3 4"},{"$f":"Setup!$B$3","v":"ΣΤ' ΕΝΩΣΗ"},{"$f":"TRIM(LEFT($L$4,10))","v":"ΣΑ ΤΡΙΠΟΛΗ"},{"$f":"TRIM(LEFT($L$3,10))","v":"Ε3 19η"},{"$f":"SUBSTITUTE(SUBSTITUTE(TRIM($L$7),\"Κ\",\"g\"),\"Α\",\"b\")","v":"b14"},32]
[32,{"$f":"IF(OR(MD!$M$9 =1,MD!$M$9 =2), IF(MD!$M$9 =1,MD!$I$9,MD!$I$10),\"#\")","v":32578},{"$f":"TRIM(LEFT(VLOOKUP(B4,ALMD!$C$3:$D$34,2,FALSE),FIND(\" \",VLOOKUP(B4,ALMD!$C$3:$D$34,2,FALSE),1)-1))","v":"ΜΟΥΡΙΚΗΣ"},{"$f":"IF(OR(MD!$M$9 =1,MD!$M$9 =2), IF(MD!$M$9 =2,MD!$I$9,MD!$I$10),\"#\")","v":0},{"$f":"TRIM(LEFT(VLOOKUP(D4,ALMD!$C$3:$D$34,2,FALSE),FIND(\" \",VLOOKUP(D4,ALMD!$C$3:$D$34,2,FALSE),1)-1))","v":{"$error":"#N/A"}},{"$f":"MD!O10","v":0},null,{"$f":"D30","v":36852},"3_4",null,"club: ",{"$f":"Setup!$B$4","v":"ΣΑ ΤΡΙΠΟΛΗΣ"},null,{"$f":"IF(COUNTIF(MD!$I:$I,B4)>0,MATCH(B4,MD!$I:$I,0)-4,\"\")&\" \"&IF(COUNTIF(MD!$I:$I,D4)>0,MATCH(D4,MD!$I:$I,0)-4,\"\")","v":"5 2"},{"$f":"Setup!$B$3","v":"ΣΤ' ΕΝΩΣΗ"},"ΣΑ ΤΡΙΠΟΛΗ","Ε3 19η","b14",32]
[32,{"$f":"IF(OR(MD!$M$11=1,MD!$M$11=2), IF(MD!$M$11=1,MD!$I$11,MD!$I$12),\"#\")","v":30151},{"$f":"TRIM(LEFT(VLOOKUP(B5,ALMD!$C$3:$D$34,2,FALSE),FIND(\" \",VLOOKUP(B5,ALMD!$C$3:$D$34,2,FALSE),1)-1))","v":"ΚΑΡΑΝΑΓΝΩΣΤΗΣ"},{"$f":"IF(OR(MD!$M$11=1,MD!$M$11=2), IF(MD!$M$11=2,MD!$I$11,MD!$I$12),\"#\")","v":0},{"$f":"TRIM(LEFT(VLOOKUP(D5,ALMD!$C$3:$D$34,2,FALSE),FIND(\" \",VLOOKUP(D5,ALMD!$C$3:$D$34,2,FALSE),1)-1))","v":{"$error":"#N/A"}},{"$f":"MD!O12","v":0},null,{"$f":"D31","v":36854},"3_4",null,"grade: ",{"$f":"Setup!$B$5","v":"Ε3"},null,{"$f":"IF(COUNTIF(MD!$I:$I,B5)>0,MATCH(B5,MD!$I:$I,0)-4,\"\")&\" \"&IF(COUNTIF(MD!$I:$I,D5)>0,MATCH(D5,MD!$I:$I,0)-4,\"\")","v":"8 2"},{"$f":"Setup!$B$3","v":"ΣΤ' ΕΝΩΣΗ"},"ΣΑ ΤΡΙΠΟΛΗ","Ε3 19η","b14",32]
[32,{"$f":"IF(OR(MD!$M$13=1,MD!$M$13=2), IF(MD!$M$13=1,MD!$I$13,MD!$I$14),\"#\")","v":37036},{"$f":"TRIM(LEFT(VLOOKUP(B6,ALMD!$C$3:$D$34,2,FALSE),FIND(\" \",VLOOKUP(B6,ALMD!$C$3:$D$34,2,FALSE),1)-1))","v":"ΛΟΥΚΑ"},{"$f":"IF(OR(MD!$M$13=1,MD!$M$13=2), IF(MD!$M$13=2,MD!$I$13,MD!$I$14),\"#\")","v":0},{"$f":"TRIM(LEFT(VLOOKUP(D6,ALMD!$C$3:$D$34,2,FALSE),FIND(\" \",VLOOKUP(D6,ALMD!$C$3:$D$34,2,FALSE),1)-1))","v":{"$error":"#N/A"}},{"$f":"MD!O14","v":0},null,{"$f":"D26","v":30151},"5_8",null,"week: ",{"$f":"Setup!B10","v":"βδ.: 19η"},null,{"$f":"IF(COUNTIF(MD!$I:$I,B6)>0,MATCH(B6,MD!$I:$I,0)-4,\"\")&\" \"&IF(COUNTIF(MD!$I:$I,D6)>0,MATCH(D6,MD!$I:$I,0)-4,\"\")","v":"9 2"},{"$f":"Setup!$B$3","v":"ΣΤ' ΕΝΩΣΗ"},"ΣΑ ΤΡΙΠΟΛΗ","Ε3 19η","b14",32]
[32,{"$f":"IF(OR(MD!$M$15=1,MD!$M$15=2), IF(MD!$M$15=1,MD!$I$15,MD!$I$16),\"#\")","v":39823},{"$f":"TRIM(LEFT(VLOOKUP(B7,ALMD!$C$3:$D$34,2,FALSE),FIND(\" \",VLOOKUP(B7,ALMD!$C$3:$D$34,2,FALSE),1)-1))","v":"ΠΑΠΑΝΙΚΟΛΑΟΥ"},{"$f":"IF(OR(MD!$M$15=1,MD!$M$15=2), IF(MD!$M$15=2,MD!$I$15,MD!$I$16),\"#\")","v":39014},{"$f":"TRIM(LEFT(VLOOKUP(D7,ALMD!$C$3:$D$34,2,FALSE),FIND(\" \",VLOOKUP(D7,ALMD!$C$3:$D$34,2,FALSE),1)-1))","v":"ΓΡΑΜΜΑΤΙΚΟΣ"},{"$f":"MD!O16","v":"41 40"},null,{"$f":"D27","v":39823},"5_8",null,"category: ",{"$f":"Setup!$B$6","v":"Α14"},null,{"$f":"IF(COUNTIF(MD!$I:$I,B7)>0,MATCH(B7,MD!$I:$I,0)-4,\"\")&\" \"&IF(COUNTIF(MD!$I:$I,D7)>0,MATCH(D7,MD!$I:$I,0)-4,\"\")","v":"11 12"},{"$f":"Setup!$B$3","v":"ΣΤ' ΕΝΩΣΗ"},"ΣΑ ΤΡΙΠΟΛΗ","Ε3 19η","b14",32]
[32,{"$f":"IF(OR(MD!$M$17=1,MD!$M$17=2), IF(MD!$M$17=1,MD!$I$17,MD!$I$18),\"#\")","v":37284},{"$f":"TRIM(LEFT(VLOOKUP(B8,ALMD!$C$3:$D$34,2,FALSE),FIND(\" \",VLOOKUP(B8,ALMD!$C$3:$D$34,2,FALSE),1)-1))","v":"ΑΔΑΜΟΠΟΥΛΟΣ"},{"$f":"IF(OR(MD!$M$17=1,MD!$M$17=2), IF(MD!$M$17=2,MD!$I$17,MD!$I$18),\"#\")","v":0},{"$f":"TRIM(LEFT(VLOOKUP(D8,ALMD!$C$3:$D$34,2,FALSE),FIND(\" \",VLOOKUP(D8,ALMD!$C$3:$D$34,2,FALSE),1)-1))","v":{"$error":"#N/A"}},{"$f":"MD!O18","v":0},null,{"$f":"D28","v":37444},"5_8",null,"period: ",{"$f":"DAY(Setup!$B$8)&\"/\"&MONTH(Setup!$B$8)&\"-\"&DAY(Setup!$B$9)&\"/\"&MONTH(Setup!$B$9)&\"/\"&YEAR(Setup!$B$9)","v":"12/5-13/5/2018"},null,{"$f":"IF(COUNTIF(MD!$I:$I,B8)>0,MATCH(B8,MD!$I:$I,0)-4,\"\")&\" \"&IF(COUNTIF(MD!$I:$I,D8)>0,MATCH(D8,MD!$I:$I,0)-4,\"\")","v":"13 2"},{"$f":"Setup!$B$3","v":"ΣΤ' ΕΝΩΣΗ"},"ΣΑ ΤΡΙΠΟΛΗ","Ε3 19η","b14",32]
[32,{"$f":"IF(OR(MD!$M$19=1,MD!$M$19=2), IF(MD!$M$19=1,MD!$I$19,MD!$I$20),\"#\")","v":36852},{"$f":"TRIM(LEFT(VLOOKUP(B9,ALMD!$C$3:$D$34,2,FALSE),FIND(\" \",VLOOKUP(B9,ALMD!$C$3:$D$34,2,FALSE),1)-1))","v":"ΤΖΩΡΤΖΑΤΟΣ"},{"$f":"IF(OR(MD!$M$19=1,MD!$M$19=2), IF(MD!$M$19=2,MD!$I$19,MD!$I$20),\"#\")","v":0},{"$f":"TRIM(LEFT(VLOOKUP(D9,ALMD!$C$3:$D$34,2,FALSE),FIND(\" \",VLOOKUP(D9,ALMD!$C$3:$D$34,2,FALSE),1)-1))","v":{"$error":"#N/A"}},{"$f":"MD!O20","v":0},null,{"$f":"D29","v":36853},"5_8",null,"filename: ",{"$f":"MID(CELL(\"filename\"), (FIND(\"[\",CELL(\"filename\"))+1), FIND(\"]\",CELL(\"filename\"))-FIND(\"[\",CELL(\"filename\"))-1)","v":"ε3 19η στ α14 s md.xlsm"},null,{"$f":"IF(COUNTIF(MD!$I:$I,B9)>0,MATCH(B9,MD!$I:$I,0)-4,\"\")&\" \"&IF(COUNTIF(MD!$I:$I,D9)>0,MATCH(D9,MD!$I:$I,0)-4,\"\")","v":"16 2"},{"$f":"Setup!$B$3","v":"ΣΤ' ΕΝΩΣΗ"},"ΣΑ ΤΡΙΠΟΛΗ","Ε3 19η","b14",32]
[32,{"$f":"IF(OR(MD!$M$21=1,MD!$M$21=2), IF(MD!$M$21=1,MD!$I$21,MD!$I$22),\"#\")","v":37444},{"$f":"TRIM(LEFT(VLOOKUP(B10,ALMD!$C$3:$D$34,2,FALSE),FIND(\" \",VLOOKUP(B10,ALMD!$C$3:$D$34,2,FALSE),1)-1))","v":"ΝΙΚΟΛΑΟΥ"},{"$f":"IF(OR(MD!$M$21=1,MD!$M$21=2), IF(MD!$M$21=2,MD!$I$21,MD!$I$22),\"#\")","v":0},{"$f":"TRIM(LEFT(VLOOKUP(D10,ALMD!$C$3:$D$34,2,FALSE),FIND(\" \",VLOOKUP(D10,ALMD!$C$3:$D$34,2,FALSE),1)-1))","v":{"$error":"#N/A"}},{"$f":"MD!O22","v":0},null,{"$f":"D18","v":34817},"9_16",null,null,null," ",{"$f":"IF(COUNTIF(MD!$I:$I,B10)>0,MATCH(B10,MD!$I:$I,0)-4,\"\")&\" \"&IF(COUNTIF(MD!$I:$I,D10)>0,MATCH(D10,MD!$I:$I,0)-4,\"\")","v":"17 2"},{"$f":"Setup!$B$3","v":"ΣΤ' ΕΝΩΣΗ"},"ΣΑ ΤΡΙΠΟΛΗ","Ε3 19η","b14",32]
[32,{"$f":"IF(OR(MD!$M$23=1,MD!$M$23=2), IF(MD!$M$23=1,MD!$I$23,MD!$I$24),\"#\")","v":33991},{"$f":"TRIM(LEFT(VLOOKUP(B11,ALMD!$C$3:$D$34,2,FALSE),FIND(\" \",VLOOKUP(B11,ALMD!$C$3:$D$34,2,FALSE),1)-1))","v":"ΛΑΜΠΡΟΠΟΥΛΟΣ"},{"$f":"IF(OR(MD!$M$23=1,MD!$M$23=2), IF(MD!$M$23=2,MD!$I$23,MD!$I$24),\"#\")","v":0},{"$f":"TRIM(LEFT(VLOOKUP(D11,ALMD!$C$3:$D$34,2,FALSE),FIND(\" \",VLOOKUP(D11,ALMD!$C$3:$D$34,2,FALSE),1)-1))","v":{"$error":"#N/A"}},{"$f":"MD!O24","v":0},null,{"$f":"D19","v":32578},"9_16",null,null,null,null,{"$f":"IF(COUNTIF(MD!$I:$I,B11)>0,MATCH(B11,MD!$I:$I,0)-4,\"\")&\" \"&IF(COUNTIF(MD!$I:$I,D11)>0,MATCH(D11,MD!$I:$I,0)-4,\"\")","v":"19 2"},{"$f":"Setup!$B$3","v":"ΣΤ' ΕΝΩΣΗ"},"ΣΑ ΤΡΙΠΟΛΗ","Ε3 19η","b14",32]
[32,{"$f":"IF(OR(MD!$M$25=1,MD!$M$25=2), IF(MD!$M$25=1,MD!$I$25,MD!$I$26),\"#\")","v":31630},{"$f":"TRIM(LEFT(VLOOKUP(B12,ALMD!$C$3:$D$34,2,FALSE),FIND(\" \",VLOOKUP(B12,ALMD!$C$3:$D$34,2,FALSE),1)-1))","v":"ΓΙΑΝΝΑΚΟΠΟΥΛΟΣ"},{"$f":"IF(OR(MD!$M$25=1,MD!$M$25=2), IF(MD!$M$25=2,MD!$I$25,MD!$I$26),\"#\")","v":33992},{"$f":"TRIM(LEFT(VLOOKUP(D12,ALMD!$C$3:$D$34,2,FALSE),FIND(\" \",VLOOKUP(D12,ALMD!$C$3:$D$34,2,FALSE),1)-1))","v":"ΛΑΜΠΡΟΠΟΥΛΟΣ"},{"$f":"MD!O26","v":"41 41"},null,37036,"9_16",null,null,null,null,{"$f":"IF(COUNTIF(MD!$I:$I,B12)>0,MATCH(B12,MD!$I:$I,0)-4,\"\")&\" \"&IF(COUNTIF(MD!$I:$I,D12)>0,MATCH(D12,MD!$I:$I,0)-4,\"\")","v":"21 22"},{"$f":"Setup!$B$3","v":"ΣΤ' ΕΝΩΣΗ"},"ΣΑ ΤΡΙΠΟΛΗ","Ε3 19η","b14",32]
[32,{"$f":"IF(OR(MD!$M$27=1,MD!$M$27=2), IF(MD!$M$27=1,MD!$I$27,MD!$I$28),\"#\")","v":36030},{"$f":"TRIM(LEFT(VLOOKUP(B13,ALMD!$C$3:$D$34,2,FALSE),FIND(\" \",VLOOKUP(B13,ALMD!$C$3:$D$34,2,FALSE),1)-1))","v":"ΤΟΥΝΤΑΣ"},{"$f":"IF(OR(MD!$M$27=1,MD!$M$27=2), IF(MD!$M$27=2,MD!$I$27,MD!$I$28),\"#\")","v":0},{"$f":"TRIM(LEFT(VLOOKUP(D13,ALMD!$C$3:$D$34,2,FALSE),FIND(\" \",VLOOKUP(D13,ALMD!$C$3:$D$34,2,FALSE),1)-1))","v":{"$error":"#N/A"}},{"$f":"MD!O28","v":0},null,37284,"9_16",null,null,null,null,{"$f":"IF(COUNTIF(MD!$I:$I,B13)>0,MATCH(B13,MD!$I:$I,0)-4,\"\")&\" \"&IF(COUNTIF(MD!$I:$I,D13)>0,MATCH(D13,MD!$I:$I,0)-4,\"\")","v":"24 2"},{"$f":"Setup!$B$3","v":"ΣΤ' ΕΝΩΣΗ"},"ΣΑ ΤΡΙΠΟΛΗ","Ε3 19η","b14",32]
[32,{"$f":"IF(OR(MD!$M$29=1,MD!$M$29=2), IF(MD!$M$29=1,MD!$I$29,MD!$I$30),\"#\")","v":36853},{"$f":"TRIM(LEFT(VLOOKUP(B14,ALMD!$C$3:$D$34,2,FALSE),FIND(\" \",VLOOKUP(B14,ALMD!$C$3:$D$34,2,FALSE),1)-1))","v":"ΜΑΛΕΒΙΤΗΣ"},{"$f":"IF(OR(MD!$M$29=1,MD!$M$29=2), IF(MD!$M$29=2,MD!$I$29,MD!$I$30),\"#\")","v":0},{"$f":"TRIM(LEFT(VLOOKUP(D14,ALMD!$C$3:$D$34,2,FALSE),FIND(\" \",VLOOKUP(D14,ALMD!$C$3:$D$34,2,FALSE),1)-1))","v":{"$error":"#N/A"}},{"$f":"MD!O30","v":0},null,33991,"9_16",null,null,null,null,{"$f":"IF(COUNTIF(MD!$I:$I,B14)>0,MATCH(B14,MD!$I:$I,0)-4,\"\")&\" \"&IF(COUNTIF(MD!$I:$I,D14)>0,MATCH(D14,MD!$I:$I,0)-4,\"\")","v":"25 2"},{"$f":"Setup!$B$3","v":"ΣΤ' ΕΝΩΣΗ"},"ΣΑ ΤΡΙΠΟΛΗ","Ε3 19η","b14",32]
[32,{"$f":"IF(OR(MD!$M$31=1,MD!$M$31=2), IF(MD!$M$31=1,MD!$I$31,MD!$I$32),\"#\")","v":36997},{"$f":"TRIM(LEFT(VLOOKUP(B15,ALMD!$C$3:$D$34,2,FALSE),FIND(\" \",VLOOKUP(B15,ALMD!$C$3:$D$34,2,FALSE),1)-1))","v":"ΜΠΑΚΑΛΟΣ"},{"$f":"IF(OR(MD!$M$31=1,MD!$M$31=2), IF(MD!$M$31=2,MD!$I$31,MD!$I$32),\"#\")","v":0},{"$f":"TRIM(LEFT(VLOOKUP(D15,ALMD!$C$3:$D$34,2,FALSE),FIND(\" \",VLOOKUP(D15,ALMD!$C$3:$D$34,2,FALSE),1)-1))","v":{"$error":"#N/A"}},{"$f":"MD!O32","v":0},null,31630,"9_16",null,null,null,null,{"$f":"IF(COUNTIF(MD!$I:$I,B15)>0,MATCH(B15,MD!$I:$I,0)-4,\"\")&\" \"&IF(COUNTIF(MD!$I:$I,D15)>0,MATCH(D15,MD!$I:$I,0)-4,\"\")","v":"27 2"},{"$f":"Setup!$B$3","v":"ΣΤ' ΕΝΩΣΗ"},"ΣΑ ΤΡΙΠΟΛΗ","Ε3 19η","b14",32]
[32,{"$f":"IF(OR(MD!$M$33=1,MD!$M$33=2), IF(MD!$M$33=1,MD!$I$33,MD!$I$34),\"#\")","v":31771},{"$f":"TRIM(LEFT(VLOOKUP(B16,ALMD!$C$3:$D$34,2,FALSE),FIND(\" \",VLOOKUP(B16,ALMD!$C$3:$D$34,2,FALSE),1)-1))","v":"ΓΚΟΥΝΤΑΝΗΣ"},{"$f":"IF(OR(MD!$M$33=1,MD!$M$33=2), IF(MD!$M$33=2,MD!$I$33,MD!$I$34),\"#\")","v":38866},{"$f":"TRIM(LEFT(VLOOKUP(D16,ALMD!$C$3:$D$34,2,FALSE),FIND(\" \",VLOOKUP(D16,ALMD!$C$3:$D$34,2,FALSE),1)-1))","v":"ΝΤΟΥΛΙΑΣ"},{"$f":"MD!O34","v":"41 42"},null,36997,"9_16",null,null,null,null,{"$f":"IF(COUNTIF(MD!$I:$I,B16)>0,MATCH(B16,MD!$I:$I,0)-4,\"\")&\" \"&IF(COUNTIF(MD!$I:$I,D16)>0,MATCH(D16,MD!$I:$I,0)-4,\"\")","v":"29 30"},{"$f":"Setup!$B$3","v":"ΣΤ' ΕΝΩΣΗ"},"ΣΑ ΤΡΙΠΟΛΗ","Ε3 19η","b14",32]
[32,{"$f":"IF(OR(MD!$M$35=1,MD!$M$35=2), IF(MD!$M$35=1,MD!$I$35,MD!$I$36),\"#\")","v":36854},{"$f":"TRIM(LEFT(VLOOKUP(B17,ALMD!$C$3:$D$34,2,FALSE),FIND(\" \",VLOOKUP(B17,ALMD!$C$3:$D$34,2,FALSE),1)-1))","v":"ΚΥΡΙΑΚΟΠΟΥΛΟΣ"},{"$f":"IF(OR(MD!$M$35=1,MD!$M$35=2), IF(MD!$M$35=2,MD!$I$35,MD!$I$36),\"#\")","v":0},{"$f":"TRIM(LEFT(VLOOKUP(D17,ALMD!$C$3:$D$34,2,FALSE),FIND(\" \",VLOOKUP(D17,ALMD!$C$3:$D$34,2,FALSE),1)-1))","v":{"$error":"#N/A"}},{"$f":"MD!O36","v":0},null,31771,"9_16",null,null,null,null,{"$f":"IF(COUNTIF(MD!$I:$I,B17)>0,MATCH(B17,MD!$I:$I,0)-4,\"\")&\" \"&IF(COUNTIF(MD!$I:$I,D17)>0,MATCH(D17,MD!$I:$I,0)-4,\"\")","v":"32 2"},{"$f":"Setup!$B$3","v":"ΣΤ' ΕΝΩΣΗ"},"ΣΑ ΤΡΙΠΟΛΗ","Ε3 19η","b14",32]
[16,{"$f":"IF(OR(MD!$P$6 =1,MD!$P$6 =2), IF(MD!$P$6 =1,MD!$N$5,MD!$N$7),\"#\")","v":34598},{"$f":"TRIM(LEFT(VLOOKUP(B18,ALMD!$C$3:$D$34,2,FALSE),FIND(\" \",VLOOKUP(B18,ALMD!$C$3:$D$34,2,FALSE),1)-1))","v":"ΚΟΛΛΙΑΣ"},{"$f":"IF(OR(MD!$P$6 =1,MD!$P$6 =2), IF(MD!$P$6 =2,MD!$N$5,MD!$N$7),\"#\")","v":34817},{"$f":"TRIM(LEFT(VLOOKUP(D18,ALMD!$C$3:$D$34,2,FALSE),FIND(\" \",VLOOKUP(D18,ALMD!$C$3:$D$34,2,FALSE),1)-1))","v":"ΤΖΟΥΤΖΟΠΟΥΛΟΣ"},{"$f":"MD!R7","v":"40 42"},null,{"$f":"D2","v":0},"17_32",null,null,null,null,{"$f":"IF(COUNTIF(MD!$N:$N,B18)>0,MATCH(B18,MD!$N:$N,0)-4,\"\")&\" \"&IF(COUNTIF(MD!$N:$N,D18)>0,MATCH(D18,MD!$N:$N,0)-4,\"\")","v":"1 3"},{"$f":"Setup!$B$3","v":"ΣΤ' ΕΝΩΣΗ"},"ΣΑ ΤΡΙΠΟΛΗ","Ε3 19η","b14",32]
[16,{"$f":"IF(OR(MD!$P$10=1,MD!$P$10=2), IF(MD!$P$10=1,MD!$N$9,MD!$N$11),\"#\")","v":30151},{"$f":"TRIM(LEFT(VLOOKUP(B19,ALMD!$C$3:$D$34,2,FALSE),FIND(\" \",VLOOKUP(B19,ALMD!$C$3:$D$34,2,FALSE),1)-1))","v":"ΚΑΡΑΝΑΓΝΩΣΤΗΣ"},{"$f":"IF(OR(MD!$P$10=1,MD!$P$10=2), IF(MD!$P$10=2,MD!$N$9,MD!$N$11),\"#\")","v":32578},{"$f":"TRIM(LEFT(VLOOKUP(D19,ALMD!$C$3:$D$34,2,FALSE),FIND(\" \",VLOOKUP(D19,ALMD!$C$3:$D$34,2,FALSE),1)-1))","v":"ΜΟΥΡΙΚΗΣ"},{"$f":"MD!R11","v":"40 40"},null,{"$f":"D3","v":33450},"17_32",null,null,null,null,{"$f":"IF(COUNTIF(MD!$N:$N,B19)>0,MATCH(B19,MD!$N:$N,0)-4,\"\")&\" \"&IF(COUNTIF(MD!$N:$N,D19)>0,MATCH(D19,MD!$N:$N,0)-4,\"\")","v":"7 5"},{"$f":"Setup!$B$3","v":"ΣΤ' ΕΝΩΣΗ"},"ΣΑ ΤΡΙΠΟΛΗ","Ε3 19η","b14",32]
[16,{"$f":"IF(OR(MD!$P$14=1,MD!$P$14=2), IF(MD!$P$14=1,MD!$N$13,MD!$N$15),\"#\")","v":39823},{"$f":"TRIM(LEFT(VLOOKUP(B20,ALMD!$C$3:$D$34,2,FALSE),FIND(\" \",VLOOKUP(B20,ALMD!$C$3:$D$34,2,FALSE),1)-1))","v":"ΠΑΠΑΝΙΚΟΛΑΟΥ"},{"$f":"IF(OR(MD!$P$14=1,MD!$P$14=2), IF(MD!$P$14=2,MD!$N$13,MD!$N$15),\"#\")","v":37036},{"$f":"TRIM(LEFT(VLOOKUP(D20,ALMD!$C$3:$D$34,2,FALSE),FIND(\" \",VLOOKUP(D20,ALMD!$C$3:$D$34,2,FALSE),1)-1))","v":"ΛΟΥΚΑ"},{"$f":"MD!R15","v":"14 40 75"},null,0,"17_32",null,null,null,null,{"$f":"IF(COUNTIF(MD!$N:$N,B20)>0,MATCH(B20,MD!$N:$N,0)-4,\"\")&\" \"&IF(COUNTIF(MD!$N:$N,D20)>0,MATCH(D20,MD!$N:$N,0)-4,\"\")","v":"11 9"},{"$f":"Setup!$B$3","v":"ΣΤ' ΕΝΩΣΗ"},"ΣΑ ΤΡΙΠΟΛΗ","Ε3 19η","b14",32]
[16,{"$f":"IF(OR(MD!$P$18=1,MD!$P$18=2), IF(MD!$P$18=1,MD!$N$17,MD!$N$19),\"#\")","v":36852},{"$f":"TRIM(LEFT(VLOOKUP(B21,ALMD!$C$3:$D$34,2,FALSE),FIND(\" \",VLOOKUP(B21,ALMD!$C$3:$D$34,2,FALSE),1)-1))","v":"ΤΖΩΡΤΖΑΤΟΣ"},{"$f":"IF(OR(MD!$P$18=1,MD!$P$18=2), IF(MD!$P$18=2,MD!$N$17,MD!$N$19),\"#\")","v":37284},{"$f":"TRIM(LEFT(VLOOKUP(D21,ALMD!$C$3:$D$34,2,FALSE),FIND(\" \",VLOOKUP(D21,ALMD!$C$3:$D$34,2,FALSE),1)-1))","v":"ΑΔΑΜΟΠΟΥΛΟΣ"},{"$f":"MD!R19","v":"40 40"},null,0,"17_32",null,null,null,null,{"$f":"IF(COUNTIF(MD!$N:$N,B21)>0,MATCH(B21,MD!$N:$N,0)-4,\"\")&\" \"&IF(COUNTIF(MD!$N:$N,D21)>0,MATCH(D21,MD!$N:$N,0)-4,\"\")","v":"15 13"},{"$f":"Setup!$B$3","v":"ΣΤ' ΕΝΩΣΗ"},"ΣΑ ΤΡΙΠΟΛΗ","Ε3 19η","b14",32]
[16,{"$f":"IF(OR(MD!$P$22=1,MD!$P$22=2), IF(MD!$P$22=1,MD!$N$21,MD!$N$23),\"#\")","v":37444},{"$f":"TRIM(LEFT(VLOOKUP(B22,ALMD!$C$3:$D$34,2,FALSE),FIND(\" \",VLOOKUP(B22,ALMD!$C$3:$D$34,2,FALSE),1)-1))","v":"ΝΙΚΟΛΑΟΥ"},{"$f":"IF(OR(MD!$P$22=1,MD!$P$22=2), IF(MD!$P$22=2,MD!$N$21,MD!$N$23),\"#\")","v":33991},{"$f":"TRIM(LEFT(VLOOKUP(D22,ALMD!$C$3:$D$34,2,FALSE),FIND(\" \",VLOOKUP(D22,ALMD!$C$3:$D$34,2,FALSE),1)-1))","v":"ΛΑΜΠΡΟΠΟΥΛΟΣ"},{"$f":"MD!R23","v":"40 40"},null,0,"17_32",null,null,null,null,{"$f":"IF(COUNTIF(MD!$N:$N,B22)>0,MATCH(B22,MD!$N:$N,0)-4,\"\")&\" \"&IF(COUNTIF(MD!$N:$N,D22)>0,MATCH(D22,MD!$N:$N,0)-4,\"\")","v":"17 19"},{"$f":"Setup!$B$3","v":"ΣΤ' ΕΝΩΣΗ"},"ΣΑ ΤΡΙΠΟΛΗ","Ε3 19η","b14",32]
[16,{"$f":"IF(OR(MD!$P$26=1,MD!$P$26=2), IF(MD!$P$26=1,MD!$N$25,MD!$N$27),\"#\")","v":36030},{"$f":"TRIM(LEFT(VLOOKUP(B23,ALMD!$C$3:$D$34,2,FALSE),FIND(\" \",VLOOKUP(B23,ALMD!$C$3:$D$34,2,FALSE),1)-1))","v":"ΤΟΥΝΤΑΣ"},{"$f":"IF(OR(MD!$P$26=1,MD!$P$26=2), IF(MD!$P$26=2,MD!$N$25,MD!$N$27),\"#\")","v":31630},{"$f":"TRIM(LEFT(VLOOKUP(D23,ALMD!$C$3:$D$34,2,FALSE),FIND(\" \",VLOOKUP(D23,ALMD!$C$3:$D$34,2,FALSE),1)-1))","v":"ΓΙΑΝΝΑΚΟΠΟΥΛΟΣ"},{"$f":"MD!R27","v":"24 40 73"},null,39014,"17_32",null,null,null,null,{"$f":"IF(COUNTIF(MD!$N:$N,B23)>0,MATCH(B23,MD!$N:$N,0)-4,\"\")&\" \"&IF(COUNTIF(MD!$N:$N,D23)>0,MATCH(D23,MD!$N:$N,0)-4,\"\")","v":"23 21"},{"$f":"Setup!$B$3","v":"ΣΤ' ΕΝΩΣΗ"},"ΣΑ ΤΡΙΠΟΛΗ","Ε3 19η","b14",32]
[16,{"$f":"IF(OR(MD!$P$30=1,MD!$P$30=2), IF(MD!$P$30=1,MD!$N$29,MD!$N$31),\"#\")","v":36853},{"$f":"TRIM(LEFT(VLOOKUP(B24,ALMD!$C$3:$D$34,2,FALSE),FIND(\" \",VLOOKUP(B24,ALMD!$C$3:$D$34,2,FALSE),1)-1))","v":"ΜΑΛΕΒΙΤΗΣ"},{"$f":"IF(OR(MD!$P$30=1,MD!$P$30=2), IF(MD!$P$30=2,MD!$N$29,MD!$N$31),\"#\")","v":36997},{"$f":"TRIM(LEFT(VLOOKUP(D24,ALMD!$C$3:$D$34,2,FALSE),FIND(\" \",VLOOKUP(D24,ALMD!$C$3:$D$34,2,FALSE),1)-1))","v":"ΜΠΑΚΑΛΟΣ"},{"$f":"MD!R31","v":"40 40"},null,0,"17_32",null,null,null,null,{"$f":"IF(COUNTIF(MD!$N:$N,B24)>0,MATCH(B24,MD!$N:$N,0)-4,\"\")&\" \"&IF(COUNTIF(MD!$N:$N,D24)>0,MATCH(D24,MD!$N:$N,0)-4,\"\")","v":"25 27"},{"$f":"Setup!$B$3","v":"ΣΤ' ΕΝΩΣΗ"},"ΣΑ ΤΡΙΠΟΛΗ","Ε3 19η","b14",32]
[16,{"$f":"IF(OR(MD!$P$34=1,MD!$P$34=2), IF(MD!$P$34=1,MD!$N$33,MD!$N$35),\"#\")","v":36854},{"$f":"TRIM(LEFT(VLOOKUP(B25,ALMD!$C$3:$D$34,2,FALSE),FIND(\" \",VLOOKUP(B25,ALMD!$C$3:$D$34,2,FALSE),1)-1))","v":"ΚΥΡΙΑΚΟΠΟΥΛΟΣ"},{"$f":"IF(OR(MD!$P$34=1,MD!$P$34=2), IF(MD!$P$34=2,MD!$N$33,MD!$N$35),\"#\")","v":31771},{"$f":"TRIM(LEFT(VLOOKUP(D25,ALMD!$C$3:$D$34,2,FALSE),FIND(\" \",VLOOKUP(D25,ALMD!$C$3:$D$34,2,FALSE),1)-1))","v":"ΓΚΟΥΝΤΑΝΗΣ"},{"$f":"MD!R35","v":"40 53"},null,0,"17_32",null,null,null,null,{"$f":"IF(COUNTIF(MD!$N:$N,B25)>0,MATCH(B25,MD!$N:$N,0)-4,\"\")&\" \"&IF(COUNTIF(MD!$N:$N,D25)>0,MATCH(D25,MD!$N:$N,0)-4,\"\")","v":"31 29"},{"$f":"Setup!$B$3","v":"ΣΤ' ΕΝΩΣΗ"},"ΣΑ ΤΡΙΠΟΛΗ","Ε3 19η","b14",32]
[8,{"$f":"IF(OR(MD!$S$8 =1,MD!$S$8 =2), IF(MD!$S$8 =1,MD!$Q$6,MD!$Q$10),\"#\")","v":34598},{"$f":"TRIM(LEFT(VLOOKUP(B26,ALMD!$C$3:$D$34,2,FALSE),FIND(\" \",VLOOKUP(B26,ALMD!$C$3:$D$34,2,FALSE),1)-1))","v":"ΚΟΛΛΙΑΣ"},{"$f":"IF(OR(MD!$S$8 =1,MD!$S$8 =2), IF(MD!$S$8 =2,MD!$Q$6,MD!$Q$10),\"#\")","v":30151},{"$f":"TRIM(LEFT(VLOOKUP(D26,ALMD!$C$3:$D$34,2,FALSE),FIND(\" \",VLOOKUP(D26,ALMD!$C$3:$D$34,2,FALSE),1)-1))","v":"ΚΑΡΑΝΑΓΝΩΣΤΗΣ"},{"$f":"MD!U9","v":"40 40"},null,0,"17_32",null,null,null,null,{"$f":"IF(COUNTIF(MD!$Q:$Q,B26)>0,MATCH(B26,MD!$Q:$Q,0)-4,\"\")&\" \"&IF(COUNTIF(MD!$Q:$Q,D26)>0,MATCH(D26,MD!$Q:$Q,0)-4,\"\")","v":"2 6"},{"$f":"Setup!$B$3","v":"ΣΤ' ΕΝΩΣΗ"},"ΣΑ ΤΡΙΠΟΛΗ","Ε3 19η","b14",32]
[8,{"$f":"IF(OR(MD!$S$16=1,MD!$S$16=2), IF(MD!$S$16=1,MD!$Q$14,MD!$Q$18),\"#\")","v":36852},{"$f":"TRIM(LEFT(VLOOKUP(B27,ALMD!$C$3:$D$34,2,FALSE),FIND(\" \",VLOOKUP(B27,ALMD!$C$3:$D$34,2,FALSE),1)-1))","v":"ΤΖΩΡΤΖΑΤΟΣ"},{"$f":"IF(OR(MD!$S$16=1,MD!$S$16=2), IF(MD!$S$16=2,MD!$Q$14,MD!$Q$18),\"#\")","v":39823},{"$f":"TRIM(LEFT(VLOOKUP(D27,ALMD!$C$3:$D$34,2,FALSE),FIND(\" \",VLOOKUP(D27,ALMD!$C$3:$D$34,2,FALSE),1)-1))","v":"ΠΑΠΑΝΙΚΟΛΑΟΥ"},{"$f":"MD!U17","v":"24 53 74"},null,0,"17_32",null,null,null,null,{"$f":"IF(COUNTIF(MD!$Q:$Q,B27)>0,MATCH(B27,MD!$Q:$Q,0)-4,\"\")&\" \"&IF(COUNTIF(MD!$Q:$Q,D27)>0,MATCH(D27,MD!$Q:$Q,0)-4,\"\")","v":"14 10"},{"$f":"Setup!$B$3","v":"ΣΤ' ΕΝΩΣΗ"},"ΣΑ ΤΡΙΠΟΛΗ","Ε3 19η","b14",32]
[8,{"$f":"IF(OR(MD!$S$24=1,MD!$S$24=2), IF(MD!$S$24=1,MD!$Q$22,MD!$Q$26),\"#\")","v":36030},{"$f":"TRIM(LEFT(VLOOKUP(B28,ALMD!$C$3:$D$34,2,FALSE),FIND(\" \",VLOOKUP(B28,ALMD!$C$3:$D$34,2,FALSE),1)-1))","v":"ΤΟΥΝΤΑΣ"},{"$f":"IF(OR(MD!$S$24=1,MD!$S$24=2), IF(MD!$S$24=2,MD!$Q$22,MD!$Q$26),\"#\")","v":37444},{"$f":"TRIM(LEFT(VLOOKUP(D28,ALMD!$C$3:$D$34,2,FALSE),FIND(\" \",VLOOKUP(D28,ALMD!$C$3:$D$34,2,FALSE),1)-1))","v":"ΝΙΚΟΛΑΟΥ"},{"$f":"MD!U25","v":"42 41"},null,33992,"17_32",null,null,null,null,{"$f":"IF(COUNTIF(MD!$Q:$Q,B28)>0,MATCH(B28,MD!$Q:$Q,0)-4,\"\")&\" \"&IF(COUNTIF(MD!$Q:$Q,D28)>0,MATCH(D28,MD!$Q:$Q,0)-4,\"\")","v":"22 18"},{"$f":"Setup!$B$3","v":"ΣΤ' ΕΝΩΣΗ"},"ΣΑ ΤΡΙΠΟΛΗ","Ε3 19η","b14",32]
[8,{"$f":"IF(OR(MD!$S$32=1,MD!$S$32=2), IF(MD!$S$32=1,MD!$Q$30,MD!$Q$34),\"#\")","v":36854},{"$f":"TRIM(LEFT(VLOOKUP(B29,ALMD!$C$3:$D$34,2,FALSE),FIND(\" \",VLOOKUP(B29,ALMD!$C$3:$D$34,2,FALSE),1)-1))","v":"ΚΥΡΙΑΚΟΠΟΥΛΟΣ"},{"$f":"IF(OR(MD!$S$32=1,MD!$S$32=2), IF(MD!$S$32=2,MD!$Q$30,MD!$Q$34),\"#\")","v":36853},{"$f":"TRIM(LEFT(VLOOKUP(D29,ALMD!$C$3:$D$34,2,FALSE),FIND(\" \",VLOOKUP(D29,ALMD!$C$3:$D$34,2,FALSE),1)-1))","v":"ΜΑΛΕΒΙΤΗΣ"},{"$f":"MD!U33","v":"41 40"},null,0,"17_32",null,null,null,null,{"$f":"IF(COUNTIF(MD!$Q:$Q,B29)>0,MATCH(B29,MD!$Q:$Q,0)-4,\"\")&\" \"&IF(COUNTIF(MD!$Q:$Q,D29)>0,MATCH(D29,MD!$Q:$Q,0)-4,\"\")","v":"30 26"},{"$f":"Setup!$B$3","v":"ΣΤ' ΕΝΩΣΗ"},"ΣΑ ΤΡΙΠΟΛΗ","Ε3 19η","b14",32]
[4,{"$f":"IF(OR(MD!$V$12=1,MD!$V$12=2), IF(MD!$V$12=1,MD!$T$8,MD!$T$16),\"#\")","v":34598},{"$f":"TRIM(LEFT(VLOOKUP(B30,ALMD!$C$3:$D$34,2,FALSE),FIND(\" \",VLOOKUP(B30,ALMD!$C$3:$D$34,2,FALSE),1)-1))","v":"ΚΟΛΛΙΑΣ"},{"$f":"IF(OR(MD!$V$12=1,MD!$V$12=2), IF(MD!$V$12=2,MD!$T$8,MD!$T$16),\"#\")","v":36852},{"$f":"TRIM(LEFT(VLOOKUP(D30,ALMD!$C$3:$D$34,2,FALSE),FIND(\" \",VLOOKUP(D30,ALMD!$C$3:$D$34,2,FALSE),1)-1))","v":"ΤΖΩΡΤΖΑΤΟΣ"},{"$f":"MD!X13","v":"62 61"},null,0,"17_32",null,null,null,null,{"$f":"IF(COUNTIF(MD!$T:$T,B30)>0,MATCH(B30,MD!$T:$T,0)-4,\"\")&\" \"&IF(COUNTIF(MD!$T:$T,D30)>0,MATCH(D30,MD!$T:$T,0)-4,\"\")","v":"4 12"},{"$f":"Setup!$B$3","v":"ΣΤ' ΕΝΩΣΗ"},"ΣΑ ΤΡΙΠΟΛΗ","Ε3 19η","b14",32]
[4,{"$f":"IF(OR(MD!$V$28=1,MD!$V$28=2), IF(MD!$V$28=1,MD!$T$24,MD!$T$32),\"#\")","v":36030},{"$f":"TRIM(LEFT(VLOOKUP(B31,ALMD!$C$3:$D$34,2,FALSE),FIND(\" \",VLOOKUP(B31,ALMD!$C$3:$D$34,2,FALSE),1)-1))","v":"ΤΟΥΝΤΑΣ"},{"$f":"IF(OR(MD!$V$28=1,MD!$V$28=2), IF(MD!$V$28=2,MD!$T$24,MD!$T$32),\"#\")","v":36854},{"$f":"TRIM(LEFT(VLOOKUP(D31,ALMD!$C$3:$D$34,2,FALSE),FIND(\" \",VLOOKUP(D31,ALMD!$C$3:$D$34,2,FALSE),1)-1))","v":"ΚΥΡΙΑΚΟΠΟΥΛΟΣ"},{"$f":"MD!X29","v":"64 61"},null,0,"17_32",null,null,null,null,{"$f":"IF(COUNTIF(MD!$T:$T,B31)>0,MATCH(B31,MD!$T:$T,0)-4,\"\")&\" \"&IF(COUNTIF(MD!$T:$T,D31)>0,MATCH(D31,MD!$T:$T,0)-4,\"\")","v":"20 28"},{"$f":"Setup!$B$3","v":"ΣΤ' ΕΝΩΣΗ"},"ΣΑ ΤΡΙΠΟΛΗ","Ε3 19η","b14",32]
[2,{"$f":"IF(OR(MD!$V$20=1,MD!$V$20=2), IF(MD!$V$20=1,MD!$W$12,MD!$W$28),\"#\")","v":34598},{"$f":"TRIM(LEFT(VLOOKUP(B32,ALMD!$C$3:$D$34,2,FALSE),FIND(\" \",VLOOKUP(B32,ALMD!$C$3:$D$34,2,FALSE),1)-1))","v":"ΚΟΛΛΙΑΣ"},{"$f":"IF(OR(MD!$V$20=1,MD!$V$20=2), IF(MD!$V$20=2,MD!$W$12,MD!$W$28),\"#\")","v":36030},{"$f":"TRIM(LEFT(VLOOKUP(D32,ALMD!$C$3:$D$34,2,FALSE),FIND(\" \",VLOOKUP(D32,ALMD!$C$3:$D$34,2,FALSE),1)-1))","v":"ΤΟΥΝΤΑΣ"},{"$f":"MD!X21","v":"64 46 64"},null,38866,"17_32",null,null,null,null,{"$f":"IF(COUNTIF(MD!$W:$W,B32)>0,MATCH(B32,MD!$W:$W,0)-4,\"\")&\" \"&IF(COUNTIF(MD!$W:$W,D32)>0,MATCH(D32,MD!$W:$W,0)-4,\"\")","v":"8 24"},{"$f":"Setup!$B$3","v":"ΣΤ' ΕΝΩΣΗ"},"ΣΑ ΤΡΙΠΟΛΗ","Ε3 19η","b14",32]
[null,null,null,null,null,null,null,{"$f":"D17","v":0},"17_32",null,null,null,null,null,{"$f":"Setup!$B$3","v":"ΣΤ' ΕΝΩΣΗ"},"ΣΑ ΤΡΙΠΟΛΗ","Ε3 19η","b14",32]

{"sheet":"e-efoa","index":7,"n_rows":33,"n_cols":41,"rows_kept":33,"cut":false,"hidden":true,"merged":[]}
["organizer","club","title","group","Dsize","MStartDate","TournamentDetailsId","round","WPlayerCode","LPlayerCode","Score","WRow","LRow","WSeed","LSeed","W","L","n/m",null,"seed","cmnt","TournamentDetailsId"," PlayerCode","Round","Wins","Matches","PtsQ","PtsM","Age",null,"ID","name","row","seed",null,"RankKey",null,"MatcheNames","key","PlayerName 1","PlayerName 2"]
[{"$f":"Setup!$B$3","v":"ΣΤ' ΕΝΩΣΗ"},{"$f":"Setup!$Z$6","v":294},{"$f":"Setup!$Z$5","v":"Ε3 19η (ΣΤ)"},{"$f":"SUBSTITUTE(TRIM(Setup!$B$6),\"-\",\"\")","v":"Α14"},"Smd32",{"$f":"TEXT(Setup!$B$8,\"ΕΕΕΕ-ΜΜ-ΗΗ\")","v":"2018-05-12"},{"$f":"Setup!$T$7","v":{"$error":"#N/A"}},"R32",{"$f":"IF(OR(MD!$M$5 =1,MD!$M$5 =2), IF(MD!$M$5 =1,MD!$I$5,MD!$I$6),\"\")","v":34598},{"$f":"IF(OR(MD!$M$5 =1,MD!$M$5 =2), IF(MD!$M$5 =2,MD!$I$5,MD!$I$6),\"\")","v":0},{"$f":"TRIM(MD!O6)","v":""},{"$f":"IF(AND(I2<>\"\",I2>0),IF(VALUE(I2)>0,VLOOKUP(I2,$AE:$AH,3,FALSE),0),0)","v":1},{"$f":"IF(AND(J2<>\"\",J2>0),IF(VALUE(J2)>0,VLOOKUP(J2,$AE:$AH,3,FALSE),0),0)","v":0},{"$f":"IF(AND(I2<>\"\",I2>0),IF(VALUE(I2)>0,VLOOKUP(I2,$AE:$AH,4,FALSE),0),0)","v":1},{"$f":"IF(AND(J2<>\"\",J2>0),IF(VALUE(J2)>0,VLOOKUP(J2,$AE:$AH,4,FALSE),0),0)","v":0},{"$f":"IF($R2=\"\",I2,\"\")","v":""},{"$f":"IF($R2=\"\",J2,\"\")","v":""},{"$f":"IF(OR(J2=0,K2=\"\"),1,IF(TEXT(K2,\"0\")=SUBSTITUTE(LOWER(K2),\"m\",\"\"),\"\",1))","v":1},null,{"$f":"IF(W2<>\"\",IF(VALUE(W2)>0,VLOOKUP(W2,$AE:$AH,4,FALSE),\"\"),\"\")","v":1},{"$f":"IF(NOT(OR(W2=0,W2=\" \",W2=\"\")),IF(INDIRECT(\"ALMD!B\"&MATCH(W2,ALMD!$C$3:$C$34,0)+2)>0,INDIRECT(\"ALMD!B\"&MATCH(W2,ALMD!$C$3:$C$34,0)+2),\"\"),\"\")","v":""},{"$f":"Setup!$T$7","v":{"$error":"#N/A"}},{"$f":"I32","v":34598},"1st",{"$f":"IF($W2>0,COUNTIF($P$2:$P$32,$W2),0)","v":4},{"$f":"IF($W2>0,COUNTIF($P$2:$P$32,$W2)+COUNTIF($Q$2:$Q$32,$W2),0)","v":4},0,{"$f":"IF(OR($Z2=0,$Z2=\"\",$U2=\"DQ\"),0,VLOOKUP($AJ2,tables!$AF:$AG,2,FALSE))","v":18},{"$f":"IF(W2>0,YEAR(Setup!$B$8)-YEAR(VLOOKUP(W2,ALMD!$C:$F,3,FALSE)),0)","v":14},null,{"$f":"MD!$I5","v":34598},{"$f":"MD!$K5","v":"ΚΟΛΛΙΑΣ Σ"},{"$f":"IF(AE2>0,MD!$A5,\"\")","v":1},{"$f":"MD!$G5","v":1},null,{"$f":"SUBSTITUTE(SUBSTITUTE(Setup!$B$5&\"S-\"&Setup!$B$13&\"-\"&X2,\"Ανδ-\",\"\"),\"Γυν-\",\"\")","v":"Ε3S-14-1st"},null,{"$f":"IF(AO2>\" \", IF(OR(AM2=AM3,AM2=AM1), IF(AM2=AM3,AN2&\"/\"&AN3&\" - \"&AO2&\"/\"&AO3, AN1&\"/\"&AN2&\" - \"&AO1&\"/\"&AO2),AN2&\" - \"&AO2), IF(OR(AM2=AM3,AM2=AM1), IF(AM2=AM3,AN2&\"/\"&AN3, AN1&\"/\"&AN2),AN2))","v":{"$error":"#N/A"}},{"$f":"G2&H2&L2","v":{"$error":"#N/A"}},{"$f":"IF(I2<=0,\"\",TRIM(LEFT(LEFT(VLOOKUP(I2,$AE:$AF,2,FALSE),FIND(\" \",VLOOKUP(I2,$AE:$AF,2,FALSE),1)-1),15)&\" \"&LEFT(MID(VLOOKUP(I2,$AE:$AF,2,FALSE),FIND(\" \",VLOOKUP(I2,$AE:$AF,2,FALSE),1)+1,20),3)))","v":"ΚΟΛΛΙΑΣ Σ"},""]
[{"$f":"Setup!$B$3","v":"ΣΤ' ΕΝΩΣΗ"},{"$f":"Setup!$Z$6","v":294},{"$f":"Setup!$Z$5","v":"Ε3 19η (ΣΤ)"},{"$f":"SUBSTITUTE(TRIM(Setup!$B$6),\"-\",\"\")","v":"Α14"},"Smd32",{"$f":"TEXT(Setup!$B$8,\"ΕΕΕΕ-ΜΜ-ΗΗ\")","v":"2018-05-12"},{"$f":"Setup!$T$7","v":{"$error":"#N/A"}},"R32",{"$f":"IF(OR(MD!$M$7 =1,MD!$M$7 =2), IF(MD!$M$7 =1,MD!$I$7,MD!$I$8),\"\")","v":34817},{"$f":"IF(OR(MD!$M$7 =1,MD!$M$7 =2), IF(MD!$M$7 =2,MD!$I$7,MD!$I$8),\"\")","v":33450},{"$f":"TRIM(MD!O8)","v":"41 53"},{"$f":"IF(AND(I3<>\"\",I3>0),IF(VALUE(I3)>0,VLOOKUP(I3,$AE:$AH,3,FALSE),0),0)","v":3},{"$f":"IF(AND(J3<>\"\",J3>0),IF(VALUE(J3)>0,VLOOKUP(J3,$AE:$AH,3,FALSE),0),0)","v":4},{"$f":"IF(AND(I3<>\"\",I3>0),IF(VALUE(I3)>0,VLOOKUP(I3,$AE:$AH,4,FALSE),0),0)","v":13},{"$f":"IF(AND(J3<>\"\",J3>0),IF(VALUE(J3)>0,VLOOKUP(J3,$AE:$AH,4,FALSE),0),0)","v":9},{"$f":"IF($R3=\"\",I3,\"\")","v":34817},{"$f":"IF($R3=\"\",J3,\"\")","v":33450},{"$f":"IF(OR(J3=0,K3=\"\"),1,IF(TEXT(K3,\"0\")=SUBSTITUTE(LOWER(K3),\"m\",\"\"),\"\",1))","v":""},null,4,{"$f":"IF(NOT(OR(W3=0,W3=\" \",W3=\"\")),IF(INDIRECT(\"ALMD!B\"&MATCH(W3,ALMD!$C$3:$C$34,0)+2)>0,INDIRECT(\"ALMD!B\"&MATCH(W3,ALMD!$C$3:$C$34,0)+2),\"\"),\"\")","v":""},{"$f":"Setup!$T$7","v":{"$error":"#N/A"}},{"$f":"J32","v":36030},"2nd",{"$f":"IF($W3>0,COUNTIF($P$2:$P$32,$W3),0)","v":3},{"$f":"IF($W3>0,COUNTIF($P$2:$P$32,$W3)+COUNTIF($Q$2:$Q$32,$W3),0)","v":4},0,{"$f":"IF(OR($Z3=0,$Z3=\"\",$U3=\"DQ\"),0,VLOOKUP($AJ3,tables!$AF:$AG,2,FALSE))","v":15},{"$f":"IF(W3>0,YEAR(Setup!$B$8)-YEAR(VLOOKUP(W3,ALMD!$C:$F,3,FALSE)),0)","v":13},null,{"$f":"MD!$I6","v":0},{"$f":"MD!$K6","v":""},{"$f":"IF(AE3>0,MD!$A6,\"\")","v":""},{"$f":"MD!$G6","v":"-"},null,{"$f":"SUBSTITUTE(SUBSTITUTE(Setup!$B$5&\"S-\"&Setup!$B$13&\"-\"&X3,\"Ανδ-\",\"\"),\"Γυν-\",\"\")","v":"Ε3S-14-2nd"},null,{"$error":"#N/A"},{"$error":"#N/A"},"ΤΖΟΥΤΖΟΠΟΥΛΟΣ Θ","ΚΑΜΠΑΝΟΣ Ε"]
[{"$f":"Setup!$B$3","v":"ΣΤ' ΕΝΩΣΗ"},{"$f":"Setup!$Z$6","v":294},{"$f":"Setup!$Z$5","v":"Ε3 19η (ΣΤ)"},{"$f":"SUBSTITUTE(TRIM(Setup!$B$6),\"-\",\"\")","v":"Α14"},"Smd32",{"$f":"TEXT(Setup!$B$8,\"ΕΕΕΕ-ΜΜ-ΗΗ\")","v":"2018-05-12"},{"$f":"Setup!$T$7","v":{"$error":"#N/A"}},"R32",{"$f":"IF(OR(MD!$M$9 =1,MD!$M$9 =2), IF(MD!$M$9 =1,MD!$I$9,MD!$I$10),\"\")","v":32578},{"$f":"IF(OR(MD!$M$9 =1,MD!$M$9 =2), IF(MD!$M$9 =2,MD!$I$9,MD!$I$10),\"\")","v":0},{"$f":"TRIM(MD!O10)","v":""},5,0,16,0,"","",1,null,5,{"$f":"IF(NOT(OR(W4=0,W4=\" \",W4=\"\")),IF(INDIRECT(\"ALMD!B\"&MATCH(W4,ALMD!$C$3:$C$34,0)+2)>0,INDIRECT(\"ALMD!B\"&MATCH(W4,ALMD!$C$3:$C$34,0)+2),\"\"),\"\")","v":""},{"$f":"Setup!$T$7","v":{"$error":"#N/A"}},{"$f":"J30","v":36852},"3_4",2,3,0,{"$f":"IF(OR($Z4=0,$Z4=\"\",$U4=\"DQ\"),0,VLOOKUP($AJ4,tables!$AF:$AG,2,FALSE))","v":9},{"$f":"IF(W4>0,YEAR(Setup!$B$8)-YEAR(VLOOKUP(W4,ALMD!$C:$F,3,FALSE)),0)","v":12},null,{"$f":"MD!$I7","v":34817},{"$f":"MD!$K7","v":"ΤΖΟΥΤΖΟΠΟΥΛΟΣ Θ"},{"$f":"IF(AE4>0,MD!$A7,\"\")","v":3},{"$f":"MD!$G7","v":13},null,{"$f":"SUBSTITUTE(SUBSTITUTE(Setup!$B$5&\"S-\"&Setup!$B$13&\"-\"&X4,\"Ανδ-\",\"\"),\"Γυν-\",\"\")","v":"Ε3S-14-3_4"},null,{"$error":"#N/A"},{"$error":"#N/A"},"ΜΟΥΡΙΚΗΣ Κ",""]
[{"$f":"Setup!$B$3","v":"ΣΤ' ΕΝΩΣΗ"},{"$f":"Setup!$Z$6","v":294},{"$f":"Setup!$Z$5","v":"Ε3 19η (ΣΤ)"},{"$f":"SUBSTITUTE(TRIM(Setup!$B$6),\"-\",\"\")","v":"Α14"},"Smd32",{"$f":"TEXT(Setup!$B$8,\"ΕΕΕΕ-ΜΜ-ΗΗ\")","v":"2018-05-12"},{"$f":"Setup!$T$7","v":{"$error":"#N/A"}},"R32",{"$f":"IF(OR(MD!$M$11=1,MD!$M$11=2), IF(MD!$M$11=1,MD!$I$11,MD!$I$12),\"\")","v":30151},{"$f":"IF(OR(MD!$M$11=1,MD!$M$11=2), IF(MD!$M$11=2,MD!$I$11,MD!$I$12),\"\")","v":0},{"$f":"TRIM(MD!O12)","v":""},8,0,6,0,"","",1,null,2,{"$f":"IF(NOT(OR(W5=0,W5=\" \",W5=\"\")),IF(INDIRECT(\"ALMD!B\"&MATCH(W5,ALMD!$C$3:$C$34,0)+2)>0,INDIRECT(\"ALMD!B\"&MATCH(W5,ALMD!$C$3:$C$34,0)+2),\"\"),\"\")","v":""},{"$f":"Setup!$T$7","v":{"$error":"#N/A"}},{"$f":"J31","v":36854},"3_4",2,3,0,{"$f":"IF(OR($Z5=0,$Z5=\"\",$U5=\"DQ\"),0,VLOOKUP($AJ5,tables!$AF:$AG,2,FALSE))","v":9},{"$f":"IF(W5>0,YEAR(Setup!$B$8)-YEAR(VLOOKUP(W5,ALMD!$C:$F,3,FALSE)),0)","v":13},null,{"$f":"MD!$I8","v":33450},{"$f":"MD!$K8","v":"ΚΑΜΠΑΝΟΣ Ε"},{"$f":"IF(AE5>0,MD!$A8,\"\")","v":4},{"$f":"MD!$G8","v":9},null,{"$f":"SUBSTITUTE(SUBSTITUTE(Setup!$B$5&\"S-\"&Setup!$B$13&\"-\"&X5,\"Ανδ-\",\"\"),\"Γυν-\",\"\")","v":"Ε3S-14-3_4"},null,{"$error":"#N/A"},{"$error":"#N/A"},"ΚΑΡΑΝΑΓΝΩΣΤΗΣ Κ",""]
[{"$f":"Setup!$B$3","v":"ΣΤ' ΕΝΩΣΗ"},{"$f":"Setup!$Z$6","v":294},{"$f":"Setup!$Z$5","v":"Ε3 19η (ΣΤ)"},{"$f":"SUBSTITUTE(TRIM(Setup!$B$6),\"-\",\"\")","v":"Α14"},"Smd32",{"$f":"TEXT(Setup!$B$8,\"ΕΕΕΕ-ΜΜ-ΗΗ\")","v":"2018-05-12"},{"$f":"Setup!$T$7","v":{"$error":"#N/A"}},"R32",{"$f":"IF(OR(MD!$M$13=1,MD!$M$13=2), IF(MD!$M$13=1,MD!$I$13,MD!$I$14),\"\")","v":37036},{"$f":"IF(OR(MD!$M$13=1,MD!$M$13=2), IF(MD!$M$13=2,MD!$I$13,MD!$I$14),\"\")","v":0},{"$f":"TRIM(MD!O14)","v":""},9,0,3,0,"","",1,null,6,{"$f":"IF(NOT(OR(W6=0,W6=\" \",W6=\"\")),IF(INDIRECT(\"ALMD!B\"&MATCH(W6,ALMD!$C$3:$C$34,0)+2)>0,INDIRECT(\"ALMD!B\"&MATCH(W6,ALMD!$C$3:$C$34,0)+2),\"\"),\"\")","v":""},{"$f":"Setup!$T$7","v":{"$error":"#N/A"}},{"$f":"J26","v":30151},"5_8",1,2,0,{"$f":"IF(OR($Z6=0,$Z6=\"\",$U6=\"DQ\"),0,VLOOKUP($AJ6,tables!$AF:$AG,2,FALSE))","v":6},{"$f":"IF(W6>0,YEAR(Setup!$B$8)-YEAR(VLOOKUP(W6,ALMD!$C:$F,3,FALSE)),0)","v":14},null,{"$f":"MD!$I9","v":32578},{"$f":"MD!$K9","v":"ΜΟΥΡΙΚΗΣ Κ"},{"$f":"IF(AE6>0,MD!$A9,\"\")","v":5},{"$f":"MD!$G9","v":16},null,{"$f":"SUBSTITUTE(SUBSTITUTE(Setup!$B$5&\"S-\"&Setup!$B$13&\"-\"&X6,\"Ανδ-\",\"\"),\"Γυν-\",\"\")","v":"Ε3S-14-5_8"},null,{"$error":"#N/A"},{"$error":"#N/A"},"ΛΟΥΚΑ Ν",""]
[{"$f":"Setup!$B$3","v":"ΣΤ' ΕΝΩΣΗ"},{"$f":"Setup!$Z$6","v":294},{"$f":"Setup!$Z$5","v":"Ε3 19η (ΣΤ)"},{"$f":"SUBSTITUTE(TRIM(Setup!$B$6),\"-\",\"\")","v":"Α14"},"Smd32",{"$f":"TEXT(Setup!$B$8,\"ΕΕΕΕ-ΜΜ-ΗΗ\")","v":"2018-05-12"},{"$f":"Setup!$T$7","v":{"$error":"#N/A"}},"R32",{"$f":"IF(OR(MD!$M$15=1,MD!$M$15=2), IF(MD!$M$15=1,MD!$I$15,MD!$I$16),\"\")","v":39823},{"$f":"IF(OR(MD!$M$15=1,MD!$M$15=2), IF(MD!$M$15=2,MD!$I$15,MD!$I$16),\"\")","v":39014},{"$f":"TRIM(MD!O16)","v":"41 40"},11,12,11,17,39823,39014,"",null,11,{"$f":"IF(NOT(OR(W7=0,W7=\" \",W7=\"\")),IF(INDIRECT(\"ALMD!B\"&MATCH(W7,ALMD!$C$3:$C$34,0)+2)>0,INDIRECT(\"ALMD!B\"&MATCH(W7,ALMD!$C$3:$C$34,0)+2),\"\"),\"\")","v":""},{"$f":"Setup!$T$7","v":{"$error":"#N/A"}},{"$f":"J27","v":39823},"5_8",2,3,0,{"$f":"IF(OR($Z7=0,$Z7=\"\",$U7=\"DQ\"),0,VLOOKUP($AJ7,tables!$AF:$AG,2,FALSE))","v":6},{"$f":"IF(W7>0,YEAR(Setup!$B$8)-YEAR(VLOOKUP(W7,ALMD!$C:$F,3,FALSE)),0)","v":14},null,{"$f":"MD!$I10","v":0},{"$f":"MD!$K10","v":""},{"$f":"IF(AE7>0,MD!$A10,\"\")","v":""},{"$f":"MD!$G10","v":"-"},null,{"$f":"SUBSTITUTE(SUBSTITUTE(Setup!$B$5&\"S-\"&Setup!$B$13&\"-\"&X7,\"Ανδ-\",\"\"),\"Γυν-\",\"\")","v":"Ε3S-14-5_8"},null,{"$error":"#N/A"},{"$error":"#N/A"},"ΠΑΠΑΝΙΚΟΛΑΟΥ Ε","ΓΡΑΜΜΑΤΙΚΟΣ Μ"]
[{"$f":"Setup!$B$3","v":"ΣΤ' ΕΝΩΣΗ"},{"$f":"Setup!$Z$6","v":294},{"$f":"Setup!$Z$5","v":"Ε3 19η (ΣΤ)"},{"$f":"SUBSTITUTE(TRIM(Setup!$B$6),\"-\",\"\")","v":"Α14"},"Smd32",{"$f":"TEXT(Setup!$B$8,\"ΕΕΕΕ-ΜΜ-ΗΗ\")","v":"2018-05-12"},{"$f":"Setup!$T$7","v":{"$error":"#N/A"}},"R32",{"$f":"IF(OR(MD!$M$17=1,MD!$M$17=2), IF(MD!$M$17=1,MD!$I$17,MD!$I$18),\"\")","v":37284},{"$f":"IF(OR(MD!$M$17=1,MD!$M$17=2), IF(MD!$M$17=2,MD!$I$17,MD!$I$18),\"\")","v":0},{"$f":"TRIM(MD!O18)","v":""},13,0,15,0,"","",1,null,8,{"$f":"IF(NOT(OR(W8=0,W8=\" \",W8=\"\")),IF(INDIRECT(\"ALMD!B\"&MATCH(W8,ALMD!$C$3:$C$34,0)+2)>0,INDIRECT(\"ALMD!B\"&MATCH(W8,ALMD!$C$3:$C$34,0)+2),\"\"),\"\")","v":""},{"$f":"Setup!$T$7","v":{"$error":"#N/A"}},{"$f":"J28","v":37444},"5_8",1,2,0,{"$f":"IF(OR($Z8=0,$Z8=\"\",$U8=\"DQ\"),0,VLOOKUP($AJ8,tables!$AF:$AG,2,FALSE))","v":6},{"$f":"IF(W8>0,YEAR(Setup!$B$8)-YEAR(VLOOKUP(W8,ALMD!$C:$F,3,FALSE)),0)","v":13},null,{"$f":"MD!$I11","v":0},{"$f":"MD!$K11","v":""},{"$f":"IF(AE8>0,MD!$A11,\"\")","v":""},{"$f":"MD!$G11","v":"-"},null,{"$f":"SUBSTITUTE(SUBSTITUTE(Setup!$B$5&\"S-\"&Setup!$B$13&\"-\"&X8,\"Ανδ-\",\"\"),\"Γυν-\",\"\")","v":"Ε3S-14-5_8"},null,{"$error":"#N/A"},{"$error":"#N/A"},"ΑΔΑΜΟΠΟΥΛΟΣ Ι",""]
[{"$f":"Setup!$B$3","v":"ΣΤ' ΕΝΩΣΗ"},{"$f":"Setup!$Z$6","v":294},{"$f":"Setup!$Z$5","v":"Ε3 19η (ΣΤ)"},{"$f":"SUBSTITUTE(TRIM(Setup!$B$6),\"-\",\"\")","v":"Α14"},"Smd32",{"$f":"TEXT(Setup!$B$8,\"ΕΕΕΕ-ΜΜ-ΗΗ\")","v":"2018-05-12"},{"$f":"Setup!$T$7","v":{"$error":"#N/A"}},"R32",{"$f":"IF(OR(MD!$M$19=1,MD!$M$19=2), IF(MD!$M$19=1,MD!$I$19,MD!$I$20),\"\")","v":36852},{"$f":"IF(OR(MD!$M$19=1,MD!$M$19=2), IF(MD!$M$19=2,MD!$I$19,MD!$I$20),\"\")","v":0},{"$f":"TRIM(MD!O20)","v":""},16,0,5,0,"","",1,null,7,{"$f":"IF(NOT(OR(W9=0,W9=\" \",W9=\"\")),IF(INDIRECT(\"ALMD!B\"&MATCH(W9,ALMD!$C$3:$C$34,0)+2)>0,INDIRECT(\"ALMD!B\"&MATCH(W9,ALMD!$C$3:$C$34,0)+2),\"\"),\"\")","v":""},{"$f":"Setup!$T$7","v":{"$error":"#N/A"}},{"$f":"J29","v":36853},"5_8",1,2,0,{"$f":"IF(OR($Z9=0,$Z9=\"\",$U9=\"DQ\"),0,VLOOKUP($AJ9,tables!$AF:$AG,2,FALSE))","v":6},{"$f":"IF(W9>0,YEAR(Setup!$B$8)-YEAR(VLOOKUP(W9,ALMD!$C:$F,3,FALSE)),0)","v":12},null,{"$f":"MD!$I12","v":30151},{"$f":"MD!$K12","v":"ΚΑΡΑΝΑΓΝΩΣΤΗΣ Κ"},{"$f":"IF(AE9>0,MD!$A12,\"\")","v":8},{"$f":"MD!$G12","v":6},null,{"$f":"SUBSTITUTE(SUBSTITUTE(Setup!$B$5&\"S-\"&Setup!$B$13&\"-\"&X9,\"Ανδ-\",\"\"),\"Γυν-\",\"\")","v":"Ε3S-14-5_8"},null,{"$f":"IF(AO9>\" \", IF(OR(AM9=AM10,AM9=AM8), IF(AM9=AM10,AN9&\"/\"&AN10&\" - \"&AO9&\"/\"&AO10, AN8&\"/\"&AN9&\" - \"&AO8&\"/\"&AO9),AN9&\" - \"&AO9), IF(OR(AM9=AM10,AM9=AM8), IF(AM9=AM10,AN9&\"/\"&AN10, AN8&\"/\"&AN9),AN9))","v":{"$error":"#N/A"}},{"$f":"G9&H9&L9","v":{"$error":"#N/A"}},{"$f":"IF(I9<=0,\"\",TRIM(LEFT(LEFT(VLOOKUP(I9,$AE:$AF,2,FALSE),FIND(\" \",VLOOKUP(I9,$AE:$AF,2,FALSE),1)-1),15)&\" \"&LEFT(MID(VLOOKUP(I9,$AE:$AF,2,FALSE),FIND(\" \",VLOOKUP(I9,$AE:$AF,2,FALSE),1)+1,20),3)))","v":"ΤΖΩΡΤΖΑΤΟΣ Κ"},{"$f":"IF(J9<=0,\"\",TRIM(LEFT(LEFT(VLOOKUP(J9,$AE:$AF,2,FALSE),FIND(\" \",VLOOKUP(J9,$AE:$AF,2,FALSE),1)-1),15)&\" \"&LEFT(MID(VLOOKUP(J9,$AE:$AF,2,FALSE),FIND(\" \",VLOOKUP(J9,$AE:$AF,2,FALSE),1)+1,20),3)))","v":""}]
[{"$f":"Setup!$B$3","v":"ΣΤ' ΕΝΩΣΗ"},{"$f":"Setup!$Z$6","v":294},{"$f":"Setup!$Z$5","v":"Ε3 19η (ΣΤ)"},{"$f":"SUBSTITUTE(TRIM(Setup!$B$6),\"-\",\"\")","v":"Α14"},"Smd32",{"$f":"TEXT(Setup!$B$8,\"ΕΕΕΕ-ΜΜ-ΗΗ\")","v":"2018-05-12"},{"$f":"Setup!$T$7","v":{"$error":"#N/A"}},"R32",{"$f":"IF(OR(MD!$M$21=1,MD!$M$21=2), IF(MD!$M$21=1,MD!$I$21,MD!$I$22),\"\")","v":37444},{"$f":"IF(OR(MD!$M$21=1,MD!$M$21=2), IF(MD!$M$21=2,MD!$I$21,MD!$I$22),\"\")","v":0},{"$f":"TRIM(MD!O22)","v":""},17,0,8,0,"","",1,null,13,{"$f":"IF(NOT(OR(W10=0,W10=\" \",W10=\"\")),IF(INDIRECT(\"ALMD!B\"&MATCH(W10,ALMD!$C$3:$C$34,0)+2)>0,INDIRECT(\"ALMD!B\"&MATCH(W10,ALMD!$C$3:$C$34,0)+2),\"\"),\"\")","v":""},{"$f":"Setup!$T$7","v":{"$error":"#N/A"}},{"$f":"J18","v":34817},"9_16",1,2,0,{"$f":"IF(OR($Z10=0,$Z10=\"\",$U10=\"DQ\"),0,VLOOKUP($AJ10,tables!$AF:$AG,2,FALSE))","v":4.5},{"$f":"IF(W10>0,YEAR(Setup!$B$8)-YEAR(VLOOKUP(W10,ALMD!$C:$F,3,FALSE)),0)","v":13},null,{"$f":"MD!$I13","v":37036},{"$f":"MD!$K13","v":"ΛΟΥΚΑ Ν"},{"$f":"IF(AE10>0,MD!$A13,\"\")","v":9},{"$f":"MD!$G13","v":3},null,{"$f":"IF(AND(Y10=0, Setup!$B$17>\"\"), Setup!$B$5&\"S-\"&Setup!$B$13&\"-\"&Setup!$B$17, Setup!$B$5&\"S-\"&Setup!$B$13&\"-\"&X10)","v":"Ε3S-14-9_16"},null,{"$error":"#N/A"},{"$error":"#N/A"},"ΝΙΚΟΛΑΟΥ Α",""]
[{"$f":"Setup!$B$3","v":"ΣΤ' ΕΝΩΣΗ"},{"$f":"Setup!$Z$6","v":294},{"$f":"Setup!$Z$5","v":"Ε3 19η (ΣΤ)"},{"$f":"SUBSTITUTE(TRIM(Setup!$B$6),\"-\",\"\")","v":"Α14"},"Smd32",{"$f":"TEXT(Setup!$B$8,\"ΕΕΕΕ-ΜΜ-ΗΗ\")","v":"2018-05-12"},{"$f":"Setup!$T$7","v":{"$error":"#N/A"}},"R32",{"$f":"IF(OR(MD!$M$23=1,MD!$M$23=2), IF(MD!$M$23=1,MD!$I$23,MD!$I$24),\"\")","v":33991},{"$f":"IF(OR(MD!$M$23=1,MD!$M$23=2), IF(MD!$M$23=2,MD!$I$23,MD!$I$24),\"\")","v":0},{"$f":"TRIM(MD!O24)","v":""},19,0,12,0,"","",1,null,16,{"$f":"IF(NOT(OR(W11=0,W11=\" \",W11=\"\")),IF(INDIRECT(\"ALMD!B\"&MATCH(W11,ALMD!$C$3:$C$34,0)+2)>0,INDIRECT(\"ALMD!B\"&MATCH(W11,ALMD!$C$3:$C$34,0)+2),\"\"),\"\")","v":""},{"$f":"Setup!$T$7","v":{"$error":"#N/A"}},{"$f":"J19","v":32578},"9_16",0,1,0,{"$f":"IF(OR($Z11=0,$Z11=\"\",$U11=\"DQ\"),0,VLOOKUP($AJ11,tables!$AF:$AG,2,FALSE))","v":3},{"$f":"IF(W11>0,YEAR(Setup!$B$8)-YEAR(VLOOKUP(W11,ALMD!$C:$F,3,FALSE)),0)","v":13},null,{"$f":"MD!$I14","v":0},{"$f":"MD!$K14","v":""},{"$f":"IF(AE11>0,MD!$A14,\"\")","v":""},{"$f":"MD!$G14","v":"-"},null,{"$f":"IF(AND(Y11=0, Setup!$B$17>\"\"), Setup!$B$5&\"S-\"&Setup!$B$13&\"-\"&Setup!$B$17, Setup!$B$5&\"S-\"&Setup!$B$13&\"-\"&X11)","v":"Ε3S-14-17_32"},null,{"$error":"#N/A"},{"$error":"#N/A"},"ΛΑΜΠΡΟΠΟΥΛΟΣ Μ",""]
[{"$f":"Setup!$B$3","v":"ΣΤ' ΕΝΩΣΗ"},{"$f":"Setup!$Z$6","v":294},{"$f":"Setup!$Z$5","v":"Ε3 19η (ΣΤ)"},{"$f":"SUBSTITUTE(TRIM(Setup!$B$6),\"-\",\"\")","v":"Α14"},"Smd32",{"$f":"TEXT(Setup!$B$8,\"ΕΕΕΕ-ΜΜ-ΗΗ\")","v":"2018-05-12"},{"$f":"Setup!$T$7","v":{"$error":"#N/A"}},"R32",{"$f":"IF(OR(MD!$M$25=1,MD!$M$25=2), IF(MD!$M$25=1,MD!$I$25,MD!$I$26),\"\")","v":31630},{"$f":"IF(OR(MD!$M$25=1,MD!$M$25=2), IF(MD!$M$25=2,MD!$I$25,MD!$I$26),\"\")","v":33992},{"$f":"TRIM(MD!O26)","v":"41 41"},21,22,18,14,31630,33992,"",null,3,{"$f":"IF(NOT(OR(W12=0,W12=\" \",W12=\"\")),IF(INDIRECT(\"ALMD!B\"&MATCH(W12,ALMD!$C$3:$C$34,0)+2)>0,INDIRECT(\"ALMD!B\"&MATCH(W12,ALMD!$C$3:$C$34,0)+2),\"\"),\"\")","v":""},{"$f":"Setup!$T$7","v":{"$error":"#N/A"}},37036,"9_16",0,1,0,{"$f":"IF(OR($Z12=0,$Z12=\"\",$U12=\"DQ\"),0,VLOOKUP($AJ12,tables!$AF:$AG,2,FALSE))","v":3},{"$f":"IF(W12>0,YEAR(Setup!$B$8)-YEAR(VLOOKUP(W12,ALMD!$C:$F,3,FALSE)),0)","v":13},null,{"$f":"MD!$I15","v":39823},{"$f":"MD!$K15","v":"ΠΑΠΑΝΙΚΟΛΑΟΥ Ε"},{"$f":"IF(AE12>0,MD!$A15,\"\")","v":11},{"$f":"MD!$G15","v":11},null,{"$f":"IF(AND(Y12=0, Setup!$B$17>\"\"), Setup!$B$5&\"S-\"&Setup!$B$13&\"-\"&Setup!$B$17, Setup!$B$5&\"S-\"&Setup!$B$13&\"-\"&X12)","v":"Ε3S-14-17_32"},null,{"$error":"#N/A"},{"$error":"#N/A"},"ΓΙΑΝΝΑΚΟΠΟΥΛΟΣ Δ","ΛΑΜΠΡΟΠΟΥΛΟΣ Α"]
[{"$f":"Setup!$B$3","v":"ΣΤ' ΕΝΩΣΗ"},{"$f":"Setup!$Z$6","v":294},{"$f":"Setup!$Z$5","v":"Ε3 19η (ΣΤ)"},{"$f":"SUBSTITUTE(TRIM(Setup!$B$6),\"-\",\"\")","v":"Α14"},"Smd32",{"$f":"TEXT(Setup!$B$8,\"ΕΕΕΕ-ΜΜ-ΗΗ\")","v":"2018-05-12"},{"$f":"Setup!$T$7","v":{"$error":"#N/A"}},"R32",{"$f":"IF(OR(MD!$M$27=1,MD!$M$27=2), IF(MD!$M$27=1,MD!$I$27,MD!$I$28),\"\")","v":36030},{"$f":"IF(OR(MD!$M$27=1,MD!$M$27=2), IF(MD!$M$27=2,MD!$I$27,MD!$I$28),\"\")","v":0},{"$f":"TRIM(MD!O28)","v":""},24,0,4,0,"","",1,null,15,{"$f":"IF(NOT(OR(W13=0,W13=\" \",W13=\"\")),IF(INDIRECT(\"ALMD!B\"&MATCH(W13,ALMD!$C$3:$C$34,0)+2)>0,INDIRECT(\"ALMD!B\"&MATCH(W13,ALMD!$C$3:$C$34,0)+2),\"\"),\"\")","v":""},{"$f":"Setup!$T$7","v":{"$error":"#N/A"}},37284,"9_16",0,1,0,{"$f":"IF(OR($Z13=0,$Z13=\"\",$U13=\"DQ\"),0,VLOOKUP($AJ13,tables!$AF:$AG,2,FALSE))","v":3},{"$f":"IF(W13>0,YEAR(Setup!$B$8)-YEAR(VLOOKUP(W13,ALMD!$C:$F,3,FALSE)),0)","v":13},null,{"$f":"MD!$I16","v":39014},{"$f":"MD!$K16","v":"ΓΡΑΜΜΑΤΙΚΟΣ Μ"},{"$f":"IF(AE13>0,MD!$A16,\"\")","v":12},{"$f":"MD!$G16","v":17},null,{"$f":"IF(AND(Y13=0, Setup!$B$17>\"\"), Setup!$B$5&\"S-\"&Setup!$B$13&\"-\"&Setup!$B$17, Setup!$B$5&\"S-\"&Setup!$B$13&\"-\"&X13)","v":"Ε3S-14-17_32"},null,{"$error":"#N/A"},{"$error":"#N/A"},"ΤΟΥΝΤΑΣ Μ",""]
[{"$f":"Setup!$B$3","v":"ΣΤ' ΕΝΩΣΗ"},{"$f":"Setup!$Z$6","v":294},{"$f":"Setup!$Z$5","v":"Ε3 19η (ΣΤ)"},{"$f":"SUBSTITUTE(TRIM(Setup!$B$6),\"-\",\"\")","v":"Α14"},"Smd32",{"$f":"TEXT(Setup!$B$8,\"ΕΕΕΕ-ΜΜ-ΗΗ\")","v":"2018-05-12"},{"$f":"Setup!$T$7","v":{"$error":"#N/A"}},"R32",{"$f":"IF(OR(MD!$M$29=1,MD!$M$29=2), IF(MD!$M$29=1,MD!$I$29,MD!$I$30),\"\")","v":36853},{"$f":"IF(OR(MD!$M$29=1,MD!$M$29=2), IF(MD!$M$29=2,MD!$I$29,MD!$I$30),\"\")","v":0},{"$f":"TRIM(MD!O30)","v":""},25,0,7,0,"","",1,null,12,{"$f":"IF(NOT(OR(W14=0,W14=\" \",W14=\"\")),IF(INDIRECT(\"ALMD!B\"&MATCH(W14,ALMD!$C$3:$C$34,0)+2)>0,INDIRECT(\"ALMD!B\"&MATCH(W14,ALMD!$C$3:$C$34,0)+2),\"\"),\"\")","v":""},{"$f":"Setup!$T$7","v":{"$error":"#N/A"}},33991,"9_16",0,1,0,{"$f":"IF(OR($Z14=0,$Z14=\"\",$U14=\"DQ\"),0,VLOOKUP($AJ14,tables!$AF:$AG,2,FALSE))","v":3},{"$f":"IF(W14>0,YEAR(Setup!$B$8)-YEAR(VLOOKUP(W14,ALMD!$C:$F,3,FALSE)),0)","v":12},null,{"$f":"MD!$I17","v":37284},{"$f":"MD!$K17","v":"ΑΔΑΜΟΠΟΥΛΟΣ Ι"},{"$f":"IF(AE14>0,MD!$A17,\"\")","v":13},{"$f":"MD!$G17","v":15},null,{"$f":"IF(AND(Y14=0, Setup!$B$17>\"\"), Setup!$B$5&\"S-\"&Setup!$B$13&\"-\"&Setup!$B$17, Setup!$B$5&\"S-\"&Setup!$B$13&\"-\"&X14)","v":"Ε3S-14-17_32"},null,{"$error":"#N/A"},{"$error":"#N/A"},"ΜΑΛΕΒΙΤΗΣ Γ",""]
[{"$f":"Setup!$B$3","v":"ΣΤ' ΕΝΩΣΗ"},{"$f":"Setup!$Z$6","v":294},{"$f":"Setup!$Z$5","v":"Ε3 19η (ΣΤ)"},{"$f":"SUBSTITUTE(TRIM(Setup!$B$6),\"-\",\"\")","v":"Α14"},"Smd32",{"$f":"TEXT(Setup!$B$8,\"ΕΕΕΕ-ΜΜ-ΗΗ\")","v":"2018-05-12"},{"$f":"Setup!$T$7","v":{"$error":"#N/A"}},"R32",{"$f":"IF(OR(MD!$M$31=1,MD!$M$31=2), IF(MD!$M$31=1,MD!$I$31,MD!$I$32),\"\")","v":36997},{"$f":"IF(OR(MD!$M$31=1,MD!$M$31=2), IF(MD!$M$31=2,MD!$I$31,MD!$I$32),\"\")","v":0},{"$f":"TRIM(MD!O32)","v":""},27,0,19,0,"","",1,null,18,{"$f":"IF(NOT(OR(W15=0,W15=\" \",W15=\"\")),IF(INDIRECT(\"ALMD!B\"&MATCH(W15,ALMD!$C$3:$C$34,0)+2)>0,INDIRECT(\"ALMD!B\"&MATCH(W15,ALMD!$C$3:$C$34,0)+2),\"\"),\"\")","v":""},{"$f":"Setup!$T$7","v":{"$error":"#N/A"}},31630,"9_16",1,2,0,{"$f":"IF(OR($Z15=0,$Z15=\"\",$U15=\"DQ\"),0,VLOOKUP($AJ15,tables!$AF:$AG,2,FALSE))","v":4.5},{"$f":"IF(W15>0,YEAR(Setup!$B$8)-YEAR(VLOOKUP(W15,ALMD!$C:$F,3,FALSE)),0)","v":14},null,{"$f":"MD!$I18","v":0},{"$f":"MD!$K18","v":""},{"$f":"IF(AE15>0,MD!$A18,\"\")","v":""},{"$f":"MD!$G18","v":"-"},null,{"$f":"IF(AND(Y15=0, Setup!$B$17>\"\"), Setup!$B$5&\"S-\"&Setup!$B$13&\"-\"&Setup!$B$17, Setup!$B$5&\"S-\"&Setup!$B$13&\"-\"&X15)","v":"Ε3S-14-9_16"},null,{"$error":"#N/A"},{"$error":"#N/A"},"ΜΠΑΚΑΛΟΣ Α",""]
[{"$f":"Setup!$B$3","v":"ΣΤ' ΕΝΩΣΗ"},{"$f":"Setup!$Z$6","v":294},{"$f":"Setup!$Z$5","v":"Ε3 19η (ΣΤ)"},{"$f":"SUBSTITUTE(TRIM(Setup!$B$6),\"-\",\"\")","v":"Α14"},"Smd32",{"$f":"TEXT(Setup!$B$8,\"ΕΕΕΕ-ΜΜ-ΗΗ\")","v":"2018-05-12"},{"$f":"Setup!$T$7","v":{"$error":"#N/A"}},"R32",{"$f":"IF(OR(MD!$M$33=1,MD!$M$33=2), IF(MD!$M$33=1,MD!$I$33,MD!$I$34),\"\")","v":31771},{"$f":"IF(OR(MD!$M$33=1,MD!$M$33=2), IF(MD!$M$33=2,MD!$I$33,MD!$I$34),\"\")","v":38866},{"$f":"TRIM(MD!O34)","v":"41 42"},29,30,10,20,31771,38866,"",null,19,{"$f":"IF(NOT(OR(W16=0,W16=\" \",W16=\"\")),IF(INDIRECT(\"ALMD!B\"&MATCH(W16,ALMD!$C$3:$C$34,0)+2)>0,INDIRECT(\"ALMD!B\"&MATCH(W16,ALMD!$C$3:$C$34,0)+2),\"\"),\"\")","v":""},{"$f":"Setup!$T$7","v":{"$error":"#N/A"}},36997,"9_16",0,1,0,{"$f":"IF(OR($Z16=0,$Z16=\"\",$U16=\"DQ\"),0,VLOOKUP($AJ16,tables!$AF:$AG,2,FALSE))","v":3},{"$f":"IF(W16>0,YEAR(Setup!$B$8)-YEAR(VLOOKUP(W16,ALMD!$C:$F,3,FALSE)),0)","v":14},null,{"$f":"MD!$I19","v":0},{"$f":"MD!$K19","v":""},{"$f":"IF(AE16>0,MD!$A19,\"\")","v":""},{"$f":"MD!$G19","v":"-"},null,{"$f":"IF(AND(Y16=0, Setup!$B$17>\"\"), Setup!$B$5&\"S-\"&Setup!$B$13&\"-\"&Setup!$B$17, Setup!$B$5&\"S-\"&Setup!$B$13&\"-\"&X16)","v":"Ε3S-14-17_32"},null,{"$error":"#N/A"},{"$error":"#N/A"},"ΓΚΟΥΝΤΑΝΗΣ Β","ΝΤΟΥΛΙΑΣ Λ"]
[{"$f":"Setup!$B$3","v":"ΣΤ' ΕΝΩΣΗ"},{"$f":"Setup!$Z$6","v":294},{"$f":"Setup!$Z$5","v":"Ε3 19η (ΣΤ)"},{"$f":"SUBSTITUTE(TRIM(Setup!$B$6),\"-\",\"\")","v":"Α14"},"Smd32",{"$f":"TEXT(Setup!$B$8,\"ΕΕΕΕ-ΜΜ-ΗΗ\")","v":"2018-05-12"},{"$f":"Setup!$T$7","v":{"$error":"#N/A"}},"R32",{"$f":"IF(OR(MD!$M$35=1,MD!$M$35=2), IF(MD!$M$35=1,MD!$I$35,MD!$I$36),\"\")","v":36854},{"$f":"IF(OR(MD!$M$35=1,MD!$M$35=2), IF(MD!$M$35=2,MD!$I$35,MD!$I$36),\"\")","v":0},{"$f":"TRIM(MD!O36)","v":""},32,0,2,0,"","",1,null,10,{"$f":"IF(NOT(OR(W17=0,W17=\" \",W17=\"\")),IF(INDIRECT(\"ALMD!B\"&MATCH(W17,ALMD!$C$3:$C$34,0)+2)>0,INDIRECT(\"ALMD!B\"&MATCH(W17,ALMD!$C$3:$C$34,0)+2),\"\"),\"\")","v":""},{"$f":"Setup!$T$7","v":{"$error":"#N/A"}},31771,"9_16",1,2,0,{"$f":"IF(OR($Z17=0,$Z17=\"\",$U17=\"DQ\"),0,VLOOKUP($AJ17,tables!$AF:$AG,2,FALSE))","v":4.5},{"$f":"IF(W17>0,YEAR(Setup!$B$8)-YEAR(VLOOKUP(W17,ALMD!$C:$F,3,FALSE)),0)","v":13},null,{"$f":"MD!$I20","v":36852},{"$f":"MD!$K20","v":"ΤΖΩΡΤΖΑΤΟΣ Κ"},{"$f":"IF(AE17>0,MD!$A20,\"\")","v":16},{"$f":"MD!$G20","v":5},null,{"$f":"IF(AND(Y17=0, Setup!$B$17>\"\"), Setup!$B$5&\"S-\"&Setup!$B$13&\"-\"&Setup!$B$17, Setup!$B$5&\"S-\"&Setup!$B$13&\"-\"&X17)","v":"Ε3S-14-9_16"},null,{"$error":"#N/A"},{"$error":"#N/A"},"ΚΥΡΙΑΚΟΠΟΥΛΟΣ Α",""]
[{"$f":"Setup!$B$3","v":"ΣΤ' ΕΝΩΣΗ"},{"$f":"Setup!$Z$6","v":294},{"$f":"Setup!$Z$5","v":"Ε3 19η (ΣΤ)"},{"$f":"SUBSTITUTE(TRIM(Setup!$B$6),\"-\",\"\")","v":"Α14"},"Smd32",{"$f":"TEXT(Setup!$B$8,\"ΕΕΕΕ-ΜΜ-ΗΗ\")","v":"2018-05-12"},{"$f":"Setup!$T$7","v":{"$error":"#N/A"}},"R16",{"$f":"IF(OR(MD!$P$6 =1,MD!$P$6 =2), IF(MD!$P$6 =1,MD!$N$5,MD!$N$7),\"\")","v":34598},{"$f":"IF(OR(MD!$P$6 =1,MD!$P$6 =2), IF(MD!$P$6 =2,MD!$N$5,MD!$N$7),\"\")","v":34817},{"$f":"TRIM(MD!R7)","v":"40 42"},1,3,1,13,34598,34817,"",null,"",{"$f":"IF(NOT(OR(W18=0,W18=\" \",W18=\"\")),IF(INDIRECT(\"ALMD!B\"&MATCH(W18,ALMD!$C$3:$C$34,0)+2)>0,INDIRECT(\"ALMD!B\"&MATCH(W18,ALMD!$C$3:$C$34,0)+2),\"\"),\"\")","v":""},{"$f":"Setup!$T$7","v":{"$error":"#N/A"}},{"$f":"J2","v":0},"17_32",0,0,0,{"$f":"IF(OR($Z18=0,$Z18=\"\",$U18=\"DQ\"),0,VLOOKUP($AJ18,tables!$AF:$AG,2,FALSE))","v":0},{"$f":"IF(W18>0,YEAR(Setup!$B$8)-YEAR(VLOOKUP(W18,ALMD!$C:$F,3,FALSE)),0)","v":0},null,{"$f":"MD!$I21","v":37444},{"$f":"MD!$K21","v":"ΝΙΚΟΛΑΟΥ Α"},{"$f":"IF(AE18>0,MD!$A21,\"\")","v":17},{"$f":"MD!$G21","v":8},null,{"$f":"SUBSTITUTE(SUBSTITUTE(Setup!$B$5&\"S-\"&Setup!$B$13&\"-\"&X18,\"Ανδ-\",\"\"),\"Γυν-\",\"\")","v":"Ε3S-14-17_32"},null,{"$error":"#N/A"},{"$error":"#N/A"},"ΚΟΛΛΙΑΣ Σ","ΤΖΟΥΤΖΟΠΟΥΛΟΣ Θ"]
[{"$f":"Setup!$B$3","v":"ΣΤ' ΕΝΩΣΗ"},{"$f":"Setup!$Z$6","v":294},{"$f":"Setup!$Z$5","v":"Ε3 19η (ΣΤ)"},{"$f":"SUBSTITUTE(TRIM(Setup!$B$6),\"-\",\"\")","v":"Α14"},"Smd32",{"$f":"TEXT(Setup!$B$8,\"ΕΕΕΕ-ΜΜ-ΗΗ\")","v":"2018-05-12"},{"$f":"Setup!$T$7","v":{"$error":"#N/A"}},"R16",{"$f":"IF(OR(MD!$P$10=1,MD!$P$10=2), IF(MD!$P$10=1,MD!$N$9,MD!$N$11),\"\")","v":30151},{"$f":"IF(OR(MD!$P$10=1,MD!$P$10=2), IF(MD!$P$10=2,MD!$N$9,MD!$N$11),\"\")","v":32578},{"$f":"TRIM(MD!R11)","v":"40 40"},8,5,6,16,30151,32578,"",null,9,{"$f":"IF(NOT(OR(W19=0,W19=\" \",W19=\"\")),IF(INDIRECT(\"ALMD!B\"&MATCH(W19,ALMD!$C$3:$C$34,0)+2)>0,INDIRECT(\"ALMD!B\"&MATCH(W19,ALMD!$C$3:$C$34,0)+2),\"\"),\"\")","v":""},{"$f":"Setup!$T$7","v":{"$error":"#N/A"}},{"$f":"J3","v":33450},"17_32",0,1,0,{"$f":"IF(OR($Z19=0,$Z19=\"\",$U19=\"DQ\"),0,VLOOKUP($AJ19,tables!$AF:$AG,2,FALSE))","v":3},{"$f":"IF(W19>0,YEAR(Setup!$B$8)-YEAR(VLOOKUP(W19,ALMD!$C:$F,3,FALSE)),0)","v":13},null,{"$f":"MD!$I22","v":0},{"$f":"MD!$K22","v":""},{"$f":"IF(AE19>0,MD!$A22,\"\")","v":""},{"$f":"MD!$G22","v":"-"},null,{"$f":"SUBSTITUTE(SUBSTITUTE(Setup!$B$5&\"S-\"&Setup!$B$13&\"-\"&X19,\"Ανδ-\",\"\"),\"Γυν-\",\"\")","v":"Ε3S-14-17_32"},null,{"$error":"#N/A"},{"$error":"#N/A"},"ΚΑΡΑΝΑΓΝΩΣΤΗΣ Κ","ΜΟΥΡΙΚΗΣ Κ"]
[{"$f":"Setup!$B$3","v":"ΣΤ' ΕΝΩΣΗ"},{"$f":"Setup!$Z$6","v":294},{"$f":"Setup!$Z$5","v":"Ε3 19η (ΣΤ)"},{"$f":"SUBSTITUTE(TRIM(Setup!$B$6),\"-\",\"\")","v":"Α14"},"Smd32",{"$f":"TEXT(Setup!$B$8,\"ΕΕΕΕ-ΜΜ-ΗΗ\")","v":"2018-05-12"},{"$f":"Setup!$T$7","v":{"$error":"#N/A"}},"R16",{"$f":"IF(OR(MD!$P$14=1,MD!$P$14=2), IF(MD!$P$14=1,MD!$N$13,MD!$N$15),\"\")","v":39823},{"$f":"IF(OR(MD!$P$14=1,MD!$P$14=2), IF(MD!$P$14=2,MD!$N$13,MD!$N$15),\"\")","v":37036},{"$f":"TRIM(MD!R15)","v":"14 40 75"},11,9,11,3,39823,37036,"",null,"",{"$f":"IF(NOT(OR(W20=0,W20=\" \",W20=\"\")),IF(INDIRECT(\"ALMD!B\"&MATCH(W20,ALMD!$C$3:$C$34,0)+2)>0,INDIRECT(\"ALMD!B\"&MATCH(W20,ALMD!$C$3:$C$34,0)+2),\"\"),\"\")","v":""},{"$f":"Setup!$T$7","v":{"$error":"#N/A"}},0,"17_32",0,0,0,{"$f":"IF(OR($Z20=0,$Z20=\"\",$U20=\"DQ\"),0,VLOOKUP($AJ20,tables!$AF:$AG,2,FALSE))","v":0},{"$f":"IF(W20>0,YEAR(Setup!$B$8)-YEAR(VLOOKUP(W20,ALMD!$C:$F,3,FALSE)),0)","v":0},null,{"$f":"MD!$I23","v":33991},{"$f":"MD!$K23","v":"ΛΑΜΠΡΟΠΟΥΛΟΣ Μ"},{"$f":"IF(AE20>0,MD!$A23,\"\")","v":19},{"$f":"MD!$G23","v":12},null,{"$f":"SUBSTITUTE(SUBSTITUTE(Setup!$B$5&\"S-\"&Setup!$B$13&\"-\"&X20,\"Ανδ-\",\"\"),\"Γυν-\",\"\")","v":"Ε3S-14-17_32"},null,{"$error":"#N/A"},{"$error":"#N/A"},"ΠΑΠΑΝΙΚΟΛΑΟΥ Ε","ΛΟΥΚΑ Ν"]
[{"$f":"Setup!$B$3","v":"ΣΤ' ΕΝΩΣΗ"},{"$f":"Setup!$Z$6","v":294},{"$f":"Setup!$Z$5","v":"Ε3 19η (ΣΤ)"},{"$f":"SUBSTITUTE(TRIM(Setup!$B$6),\"-\",\"\")","v":"Α14"},"Smd32",{"$f":"TEXT(Setup!$B$8,\"ΕΕΕΕ-ΜΜ-ΗΗ\")","v":"2018-05-12"},{"$f":"Setup!$T$7","v":{"$error":"#N/A"}},"R16",{"$f":"IF(OR(MD!$P$18=1,MD!$P$18=2), IF(MD!$P$18=1,MD!$N$17,MD!$N$19),\"\")","v":36852},{"$f":"IF(OR(MD!$P$18=1,MD!$P$18=2), IF(MD!$P$18=2,MD!$N$17,MD!$N$19),\"\")","v":37284},{"$f":"TRIM(MD!R19)","v":"40 40"},16,13,5,15,36852,37284,"",null,"",{"$f":"IF(NOT(OR(W21=0,W21=\" \",W21=\"\")),IF(INDIRECT(\"ALMD!B\"&MATCH(W21,ALMD!$C$3:$C$34,0)+2)>0,INDIRECT(\"ALMD!B\"&MATCH(W21,ALMD!$C$3:$C$34,0)+2),\"\"),\"\")","v":""},{"$f":"Setup!$T$7","v":{"$error":"#N/A"}},0,"17_32",0,0,0,{"$f":"IF(OR($Z21=0,$Z21=\"\",$U21=\"DQ\"),0,VLOOKUP($AJ21,tables!$AF:$AG,2,FALSE))","v":0},{"$f":"IF(W21>0,YEAR(Setup!$B$8)-YEAR(VLOOKUP(W21,ALMD!$C:$F,3,FALSE)),0)","v":0},null,{"$f":"MD!$I24","v":0},{"$f":"MD!$K24","v":""},{"$f":"IF(AE21>0,MD!$A24,\"\")","v":""},{"$f":"MD!$G24","v":"-"},null,{"$f":"SUBSTITUTE(SUBSTITUTE(Setup!$B$5&\"S-\"&Setup!$B$13&\"-\"&X21,\"Ανδ-\",\"\"),\"Γυν-\",\"\")","v":"Ε3S-14-17_32"},null,{"$error":"#N/A"},{"$error":"#N/A"},"ΤΖΩΡΤΖΑΤΟΣ Κ","ΑΔΑΜΟΠΟΥΛΟΣ Ι"]
[{"$f":"Setup!$B$3","v":"ΣΤ' ΕΝΩΣΗ"},{"$f":"Setup!$Z$6","v":294},{"$f":"Setup!$Z$5","v":"Ε3 19η (ΣΤ)"},{"$f":"SUBSTITUTE(TRIM(Setup!$B$6),\"-\",\"\")","v":"Α14"},"Smd32",{"$f":"TEXT(Setup!$B$8,\"ΕΕΕΕ-ΜΜ-ΗΗ\")","v":"2018-05-12"},{"$f":"Setup!$T$7","v":{"$error":"#N/A"}},"R16",{"$f":"IF(OR(MD!$P$22=1,MD!$P$22=2), IF(MD!$P$22=1,MD!$N$21,MD!$N$23),\"\")","v":37444},{"$f":"IF(OR(MD!$P$22=1,MD!$P$22=2), IF(MD!$P$22=2,MD!$N$21,MD!$N$23),\"\")","v":33991},{"$f":"TRIM(MD!R23)","v":"40 40"},17,19,8,12,37444,33991,"",null,"",{"$f":"IF(NOT(OR(W22=0,W22=\" \",W22=\"\")),IF(INDIRECT(\"ALMD!B\"&MATCH(W22,ALMD!$C$3:$C$34,0)+2)>0,INDIRECT(\"ALMD!B\"&MATCH(W22,ALMD!$C$3:$C$34,0)+2),\"\"),\"\")","v":""},{"$f":"Setup!$T$7","v":{"$error":"#N/A"}},0,"17_32",0,0,0,{"$f":"IF(OR($Z22=0,$Z22=\"\",$U22=\"DQ\"),0,VLOOKUP($AJ22,tables!$AF:$AG,2,FALSE))","v":0},{"$f":"IF(W22>0,YEAR(Setup!$B$8)-YEAR(VLOOKUP(W22,ALMD!$C:$F,3,FALSE)),0)","v":0},null,{"$f":"MD!$I25","v":31630},{"$f":"MD!$K25","v":"ΓΙΑΝΝΑΚΟΠΟΥΛΟΣ Δ"},{"$f":"IF(AE22>0,MD!$A25,\"\")","v":21},{"$f":"MD!$G25","v":18},null,{"$f":"SUBSTITUTE(SUBSTITUTE(Setup!$B$5&\"S-\"&Setup!$B$13&\"-\"&X22,\"Ανδ-\",\"\"),\"Γυν-\",\"\")","v":"Ε3S-14-17_32"},null,{"$error":"#N/A"},{"$error":"#N/A"},"ΝΙΚΟΛΑΟΥ Α","ΛΑΜΠΡΟΠΟΥΛΟΣ Μ"]
[{"$f":"Setup!$B$3","v":"ΣΤ' ΕΝΩΣΗ"},{"$f":"Setup!$Z$6","v":294},{"$f":"Setup!$Z$5","v":"Ε3 19η (ΣΤ)"},{"$f":"SUBSTITUTE(TRIM(Setup!$B$6),\"-\",\"\")","v":"Α14"},"Smd32",{"$f":"TEXT(Setup!$B$8,\"ΕΕΕΕ-ΜΜ-ΗΗ\")","v":"2018-05-12"},{"$f":"Setup!$T$7","v":{"$error":"#N/A"}},"R16",{"$f":"IF(OR(MD!$P$26=1,MD!$P$26=2), IF(MD!$P$26=1,MD!$N$25,MD!$N$27),\"\")","v":36030},{"$f":"IF(OR(MD!$P$26=1,MD!$P$26=2), IF(MD!$P$26=2,MD!$N$25,MD!$N$27),\"\")","v":31630},{"$f":"TRIM(MD!R27)","v":"24 40 73"},24,21,4,18,36030,31630,"",null,17,{"$f":"IF(NOT(OR(W23=0,W23=\" \",W23=\"\")),IF(INDIRECT(\"ALMD!B\"&MATCH(W23,ALMD!$C$3:$C$34,0)+2)>0,INDIRECT(\"ALMD!B\"&MATCH(W23,ALMD!$C$3:$C$34,0)+2),\"\"),\"\")","v":""},{"$f":"Setup!$T$7","v":{"$error":"#N/A"}},39014,"17_32",0,1,0,{"$f":"IF(OR($Z23=0,$Z23=\"\",$U23=\"DQ\"),0,VLOOKUP($AJ23,tables!$AF:$AG,2,FALSE))","v":3},{"$f":"IF(W23>0,YEAR(Setup!$B$8)-YEAR(VLOOKUP(W23,ALMD!$C:$F,3,FALSE)),0)","v":13},null,{"$f":"MD!$I26","v":33992},{"$f":"MD!$K26","v":"ΛΑΜΠΡΟΠΟΥΛΟΣ Α"},{"$f":"IF(AE23>0,MD!$A26,\"\")","v":22},{"$f":"MD!$G26","v":14},null,{"$f":"SUBSTITUTE(SUBSTITUTE(Setup!$B$5&\"S-\"&Setup!$B$13&\"-\"&X23,\"Ανδ-\",\"\"),\"Γυν-\",\"\")","v":"Ε3S-14-17_32"},null,{"$error":"#N/A"},{"$error":"#N/A"},"ΤΟΥΝΤΑΣ Μ","ΓΙΑΝΝΑΚΟΠΟΥΛΟΣ Δ"]
[{"$f":"Setup!$B$3","v":"ΣΤ' ΕΝΩΣΗ"},{"$f":"Setup!$Z$6","v":294},{"$f":"Setup!$Z$5","v":"Ε3 19η (ΣΤ)"},{"$f":"SUBSTITUTE(TRIM(Setup!$B$6),\"-\",\"\")","v":"Α14"},"Smd32",{"$f":"TEXT(Setup!$B$8,\"ΕΕΕΕ-ΜΜ-ΗΗ\")","v":"2018-05-12"},{"$f":"Setup!$T$7","v":{"$error":"#N/A"}},"R16",{"$f":"IF(OR(MD!$P$30=1,MD!$P$30=2), IF(MD!$P$30=1,MD!$N$29,MD!$N$31),\"\")","v":36853},{"$f":"IF(OR(MD!$P$30=1,MD!$P$30=2), IF(MD!$P$30=2,MD!$N$29,MD!$N$31),\"\")","v":36997},{"$f":"TRIM(MD!R31)","v":"40 40"},25,27,7,19,36853,36997,"",null,"",{"$f":"IF(NOT(OR(W24=0,W24=\" \",W24=\"\")),IF(INDIRECT(\"ALMD!B\"&MATCH(W24,ALMD!$C$3:$C$34,0)+2)>0,INDIRECT(\"ALMD!B\"&MATCH(W24,ALMD!$C$3:$C$34,0)+2),\"\"),\"\")","v":""},{"$f":"Setup!$T$7","v":{"$error":"#N/A"}},0,"17_32",0,0,0,{"$f":"IF(OR($Z24=0,$Z24=\"\",$U24=\"DQ\"),0,VLOOKUP($AJ24,tables!$AF:$AG,2,FALSE))","v":0},{"$f":"IF(W24>0,YEAR(Setup!$B$8)-YEAR(VLOOKUP(W24,ALMD!$C:$F,3,FALSE)),0)","v":0},null,{"$f":"MD!$I27","v":0},{"$f":"MD!$K27","v":""},{"$f":"IF(AE24>0,MD!$A27,\"\")","v":""},{"$f":"MD!$G27","v":"-"},null,{"$f":"SUBSTITUTE(SUBSTITUTE(Setup!$B$5&\"S-\"&Setup!$B$13&\"-\"&X24,\"Ανδ-\",\"\"),\"Γυν-\",\"\")","v":"Ε3S-14-17_32"},null,{"$error":"#N/A"},{"$error":"#N/A"},"ΜΑΛΕΒΙΤΗΣ Γ","ΜΠΑΚΑΛΟΣ Α"]
[{"$f":"Setup!$B$3","v":"ΣΤ' ΕΝΩΣΗ"},{"$f":"Setup!$Z$6","v":294},{"$f":"Setup!$Z$5","v":"Ε3 19η (ΣΤ)"},{"$f":"SUBSTITUTE(TRIM(Setup!$B$6),\"-\",\"\")","v":"Α14"},"Smd32",{"$f":"TEXT(Setup!$B$8,\"ΕΕΕΕ-ΜΜ-ΗΗ\")","v":"2018-05-12"},{"$f":"Setup!$T$7","v":{"$error":"#N/A"}},"R16",{"$f":"IF(OR(MD!$P$34=1,MD!$P$34=2), IF(MD!$P$34=1,MD!$N$33,MD!$N$35),\"\")","v":36854},{"$f":"IF(OR(MD!$P$34=1,MD!$P$34=2), IF(MD!$P$34=2,MD!$N$33,MD!$N$35),\"\")","v":31771},{"$f":"TRIM(MD!R35)","v":"40 53"},32,29,2,10,36854,31771,"",null,"",{"$f":"IF(NOT(OR(W25=0,W25=\" \",W25=\"\")),IF(INDIRECT(\"ALMD!B\"&MATCH(W25,ALMD!$C$3:$C$34,0)+2)>0,INDIRECT(\"ALMD!B\"&MATCH(W25,ALMD!$C$3:$C$34,0)+2),\"\"),\"\")","v":""},{"$f":"Setup!$T$7","v":{"$error":"#N/A"}},0,"17_32",0,0,0,{"$f":"IF(OR($Z25=0,$Z25=\"\",$U25=\"DQ\"),0,VLOOKUP($AJ25,tables!$AF:$AG,2,FALSE))","v":0},{"$f":"IF(W25>0,YEAR(Setup!$B$8)-YEAR(VLOOKUP(W25,ALMD!$C:$F,3,FALSE)),0)","v":0},null,{"$f":"MD!$I28","v":36030},{"$f":"MD!$K28","v":"ΤΟΥΝΤΑΣ Μ"},{"$f":"IF(AE25>0,MD!$A28,\"\")","v":24},{"$f":"MD!$G28","v":4},null,{"$f":"SUBSTITUTE(SUBSTITUTE(Setup!$B$5&\"S-\"&Setup!$B$13&\"-\"&X25,\"Ανδ-\",\"\"),\"Γυν-\",\"\")","v":"Ε3S-14-17_32"},null,{"$error":"#N/A"},{"$error":"#N/A"},"ΚΥΡΙΑΚΟΠΟΥΛΟΣ Α","ΓΚΟΥΝΤΑΝΗΣ Β"]
[{"$f":"Setup!$B$3","v":"ΣΤ' ΕΝΩΣΗ"},{"$f":"Setup!$Z$6","v":294},{"$f":"Setup!$Z$5","v":"Ε3 19η (ΣΤ)"},{"$f":"SUBSTITUTE(TRIM(Setup!$B$6),\"-\",\"\")","v":"Α14"},"Smd32",{"$f":"TEXT(Setup!$B$8,\"ΕΕΕΕ-ΜΜ-ΗΗ\")","v":"2018-05-12"},{"$f":"Setup!$T$7","v":{"$error":"#N/A"}},"R08",{"$f":"IF(OR(MD!$S$8 =1,MD!$S$8 =2), IF(MD!$S$8 =1,MD!$Q$6,MD!$Q$10),\"\")","v":34598},{"$f":"IF(OR(MD!$S$8 =1,MD!$S$8 =2), IF(MD!$S$8 =2,MD!$Q$6,MD!$Q$10),\"\")","v":30151},{"$f":"TRIM(MD!U9)","v":"40 40"},1,8,1,6,34598,30151,"",null,"",{"$f":"IF(NOT(OR(W26=0,W26=\" \",W26=\"\")),IF(INDIRECT(\"ALMD!B\"&MATCH(W26,ALMD!$C$3:$C$34,0)+2)>0,INDIRECT(\"ALMD!B\"&MATCH(W26,ALMD!$C$3:$C$34,0)+2),\"\"),\"\")","v":""},{"$f":"Setup!$T$7","v":{"$error":"#N/A"}},0,"17_32",0,0,0,{"$f":"IF(OR($Z26=0,$Z26=\"\",$U26=\"DQ\"),0,VLOOKUP($AJ26,tables!$AF:$AG,2,FALSE))","v":0},{"$f":"IF(W26>0,YEAR(Setup!$B$8)-YEAR(VLOOKUP(W26,ALMD!$C:$F,3,FALSE)),0)","v":0},null,{"$f":"MD!$I29","v":36853},{"$f":"MD!$K29","v":"ΜΑΛΕΒΙΤΗΣ Γ"},{"$f":"IF(AE26>0,MD!$A29,\"\")","v":25},{"$f":"MD!$G29","v":7},null,{"$f":"SUBSTITUTE(SUBSTITUTE(Setup!$B$5&\"S-\"&Setup!$B$13&\"-\"&X26,\"Ανδ-\",\"\"),\"Γυν-\",\"\")","v":"Ε3S-14-17_32"},null,{"$error":"#N/A"},{"$error":"#N/A"},"ΚΟΛΛΙΑΣ Σ","ΚΑΡΑΝΑΓΝΩΣΤΗΣ Κ"]
[{"$f":"Setup!$B$3","v":"ΣΤ' ΕΝΩΣΗ"},{"$f":"Setup!$Z$6","v":294},{"$f":"Setup!$Z$5","v":"Ε3 19η (ΣΤ)"},{"$f":"SUBSTITUTE(TRIM(Setup!$B$6),\"-\",\"\")","v":"Α14"},"Smd32",{"$f":"TEXT(Setup!$B$8,\"ΕΕΕΕ-ΜΜ-ΗΗ\")","v":"2018-05-12"},{"$f":"Setup!$T$7","v":{"$error":"#N/A"}},"R08",{"$f":"IF(OR(MD!$S$16=1,MD!$S$16=2), IF(MD!$S$16=1,MD!$Q$14,MD!$Q$18),\"\")","v":36852},{"$f":"IF(OR(MD!$S$16=1,MD!$S$16=2), IF(MD!$S$16=2,MD!$Q$14,MD!$Q$18),\"\")","v":39823},{"$f":"TRIM(MD!U17)","v":"24 53 74"},16,11,5,11,36852,39823,"",null,"",{"$f":"IF(NOT(OR(W27=0,W27=\" \",W27=\"\")),IF(INDIRECT(\"ALMD!B\"&MATCH(W27,ALMD!$C$3:$C$34,0)+2)>0,INDIRECT(\"ALMD!B\"&MATCH(W27,ALMD!$C$3:$C$34,0)+2),\"\"),\"\")","v":""},{"$f":"Setup!$T$7","v":{"$error":"#N/A"}},0,"17_32",0,0,0,{"$f":"IF(OR($Z27=0,$Z27=\"\",$U27=\"DQ\"),0,VLOOKUP($AJ27,tables!$AF:$AG,2,FALSE))","v":0},{"$f":"IF(W27>0,YEAR(Setup!$B$8)-YEAR(VLOOKUP(W27,ALMD!$C:$F,3,FALSE)),0)","v":0},null,{"$f":"MD!$I30","v":0},{"$f":"MD!$K30","v":""},{"$f":"IF(AE27>0,MD!$A30,\"\")","v":""},{"$f":"MD!$G30","v":"-"},null,{"$f":"SUBSTITUTE(SUBSTITUTE(Setup!$B$5&\"S-\"&Setup!$B$13&\"-\"&X27,\"Ανδ-\",\"\"),\"Γυν-\",\"\")","v":"Ε3S-14-17_32"},null,{"$error":"#N/A"},{"$error":"#N/A"},"ΤΖΩΡΤΖΑΤΟΣ Κ","ΠΑΠΑΝΙΚΟΛΑΟΥ Ε"]
[{"$f":"Setup!$B$3","v":"ΣΤ' ΕΝΩΣΗ"},{"$f":"Setup!$Z$6","v":294},{"$f":"Setup!$Z$5","v":"Ε3 19η (ΣΤ)"},{"$f":"SUBSTITUTE(TRIM(Setup!$B$6),\"-\",\"\")","v":"Α14"},"Smd32",{"$f":"TEXT(Setup!$B$8,\"ΕΕΕΕ-ΜΜ-ΗΗ\")","v":"2018-05-12"},{"$f":"Setup!$T$7","v":{"$error":"#N/A"}},"R08",{"$f":"IF(OR(MD!$S$24=1,MD!$S$24=2), IF(MD!$S$24=1,MD!$Q$22,MD!$Q$26),\"\")","v":36030},{"$f":"IF(OR(MD!$S$24=1,MD!$S$24=2), IF(MD!$S$24=2,MD!$Q$22,MD!$Q$26),\"\")","v":37444},{"$f":"TRIM(MD!U25)","v":"42 41"},24,17,4,8,36030,37444,"",null,14,{"$f":"IF(NOT(OR(W28=0,W28=\" \",W28=\"\")),IF(INDIRECT(\"ALMD!B\"&MATCH(W28,ALMD!$C$3:$C$34,0)+2)>0,INDIRECT(\"ALMD!B\"&MATCH(W28,ALMD!$C$3:$C$34,0)+2),\"\"),\"\")","v":""},{"$f":"Setup!$T$7","v":{"$error":"#N/A"}},33992,"17_32",0,1,0,{"$f":"IF(OR($Z28=0,$Z28=\"\",$U28=\"DQ\"),0,VLOOKUP($AJ28,tables!$AF:$AG,2,FALSE))","v":3},{"$f":"IF(W28>0,YEAR(Setup!$B$8)-YEAR(VLOOKUP(W28,ALMD!$C:$F,3,FALSE)),0)","v":12},null,{"$f":"MD!$I31","v":36997},{"$f":"MD!$K31","v":"ΜΠΑΚΑΛΟΣ Α"},{"$f":"IF(AE28>0,MD!$A31,\"\")","v":27},{"$f":"MD!$G31","v":19},null,{"$f":"SUBSTITUTE(SUBSTITUTE(Setup!$B$5&\"S-\"&Setup!$B$13&\"-\"&X28,\"Ανδ-\",\"\"),\"Γυν-\",\"\")","v":"Ε3S-14-17_32"},null,{"$error":"#N/A"},{"$error":"#N/A"},"ΤΟΥΝΤΑΣ Μ","ΝΙΚΟΛΑΟΥ Α"]
[{"$f":"Setup!$B$3","v":"ΣΤ' ΕΝΩΣΗ"},{"$f":"Setup!$Z$6","v":294},{"$f":"Setup!$Z$5","v":"Ε3 19η (ΣΤ)"},{"$f":"SUBSTITUTE(TRIM(Setup!$B$6),\"-\",\"\")","v":"Α14"},"Smd32",{"$f":"TEXT(Setup!$B$8,\"ΕΕΕΕ-ΜΜ-ΗΗ\")","v":"2018-05-12"},{"$f":"Setup!$T$7","v":{"$error":"#N/A"}},"R08",{"$f":"IF(OR(MD!$S$32=1,MD!$S$32=2), IF(MD!$S$32=1,MD!$Q$30,MD!$Q$34),\"\")","v":36854},{"$f":"IF(OR(MD!$S$32=1,MD!$S$32=2), IF(MD!$S$32=2,MD!$Q$30,MD!$Q$34),\"\")","v":36853},{"$f":"TRIM(MD!U33)","v":"41 40"},32,25,2,7,36854,36853,"",null,"",{"$f":"IF(NOT(OR(W29=0,W29=\" \",W29=\"\")),IF(INDIRECT(\"ALMD!B\"&MATCH(W29,ALMD!$C$3:$C$34,0)+2)>0,INDIRECT(\"ALMD!B\"&MATCH(W29,ALMD!$C$3:$C$34,0)+2),\"\"),\"\")","v":""},{"$f":"Setup!$T$7","v":{"$error":"#N/A"}},0,"17_32",0,0,0,{"$f":"IF(OR($Z29=0,$Z29=\"\",$U29=\"DQ\"),0,VLOOKUP($AJ29,tables!$AF:$AG,2,FALSE))","v":0},{"$f":"IF(W29>0,YEAR(Setup!$B$8)-YEAR(VLOOKUP(W29,ALMD!$C:$F,3,FALSE)),0)","v":0},null,{"$f":"MD!$I32","v":0},{"$f":"MD!$K32","v":""},{"$f":"IF(AE29>0,MD!$A32,\"\")","v":""},{"$f":"MD!$G32","v":"-"},null,{"$f":"SUBSTITUTE(SUBSTITUTE(Setup!$B$5&\"S-\"&Setup!$B$13&\"-\"&X29,\"Ανδ-\",\"\"),\"Γυν-\",\"\")","v":"Ε3S-14-17_32"},null,{"$error":"#N/A"},{"$error":"#N/A"},"ΚΥΡΙΑΚΟΠΟΥΛΟΣ Α","ΜΑΛΕΒΙΤΗΣ Γ"]
[{"$f":"Setup!$B$3","v":"ΣΤ' ΕΝΩΣΗ"},{"$f":"Setup!$Z$6","v":294},{"$f":"Setup!$Z$5","v":"Ε3 19η (ΣΤ)"},{"$f":"SUBSTITUTE(TRIM(Setup!$B$6),\"-\",\"\")","v":"Α14"},"Smd32",{"$f":"TEXT(Setup!$B$8,\"ΕΕΕΕ-ΜΜ-ΗΗ\")","v":"2018-05-12"},{"$f":"Setup!$T$7","v":{"$error":"#N/A"}},"Ημιτελ",{"$f":"IF(OR(MD!$V$12=1,MD!$V$12=2), IF(MD!$V$12=1,MD!$T$8,MD!$T$16),\"\")","v":34598},{"$f":"IF(OR(MD!$V$12=1,MD!$V$12=2), IF(MD!$V$12=2,MD!$T$8,MD!$T$16),\"\")","v":36852},{"$f":"TRIM(MD!X13)","v":"62 61"},1,16,1,5,34598,36852,"",null,"",{"$f":"IF(NOT(OR(W30=0,W30=\" \",W30=\"\")),IF(INDIRECT(\"ALMD!B\"&MATCH(W30,ALMD!$C$3:$C$34,0)+2)>0,INDIRECT(\"ALMD!B\"&MATCH(W30,ALMD!$C$3:$C$34,0)+2),\"\"),\"\")","v":""},{"$f":"Setup!$T$7","v":{"$error":"#N/A"}},0,"17_32",0,0,0,{"$f":"IF(OR($Z30=0,$Z30=\"\",$U30=\"DQ\"),0,VLOOKUP($AJ30,tables!$AF:$AG,2,FALSE))","v":0},{"$f":"IF(W30>0,YEAR(Setup!$B$8)-YEAR(VLOOKUP(W30,ALMD!$C:$F,3,FALSE)),0)","v":0},null,{"$f":"MD!$I33","v":31771},{"$f":"MD!$K33","v":"ΓΚΟΥΝΤΑΝΗΣ Β"},{"$f":"IF(AE30>0,MD!$A33,\"\")","v":29},{"$f":"MD!$G33","v":10},null,{"$f":"SUBSTITUTE(SUBSTITUTE(Setup!$B$5&\"S-\"&Setup!$B$13&\"-\"&X30,\"Ανδ-\",\"\"),\"Γυν-\",\"\")","v":"Ε3S-14-17_32"},null,{"$error":"#N/A"},{"$error":"#N/A"},"ΚΟΛΛΙΑΣ Σ","ΤΖΩΡΤΖΑΤΟΣ Κ"]
[{"$f":"Setup!$B$3","v":"ΣΤ' ΕΝΩΣΗ"},{"$f":"Setup!$Z$6","v":294},{"$f":"Setup!$Z$5","v":"Ε3 19η (ΣΤ)"},{"$f":"SUBSTITUTE(TRIM(Setup!$B$6),\"-\",\"\")","v":"Α14"},"Smd32",{"$f":"TEXT(Setup!$B$8,\"ΕΕΕΕ-ΜΜ-ΗΗ\")","v":"2018-05-12"},{"$f":"Setup!$T$7","v":{"$error":"#N/A"}},"Ημιτελ",{"$f":"IF(OR(MD!$V$28=1,MD!$V$28=2), IF(MD!$V$28=1,MD!$T$24,MD!$T$32),\"\")","v":36030},{"$f":"IF(OR(MD!$V$28=1,MD!$V$28=2), IF(MD!$V$28=2,MD!$T$24,MD!$T$32),\"\")","v":36854},{"$f":"TRIM(MD!X29)","v":"64 61"},24,32,4,2,36030,36854,"",null,"",{"$f":"IF(NOT(OR(W31=0,W31=\" \",W31=\"\")),IF(INDIRECT(\"ALMD!B\"&MATCH(W31,ALMD!$C$3:$C$34,0)+2)>0,INDIRECT(\"ALMD!B\"&MATCH(W31,ALMD!$C$3:$C$34,0)+2),\"\"),\"\")","v":""},{"$f":"Setup!$T$7","v":{"$error":"#N/A"}},0,"17_32",0,0,0,{"$f":"IF(OR($Z31=0,$Z31=\"\",$U31=\"DQ\"),0,VLOOKUP($AJ31,tables!$AF:$AG,2,FALSE))","v":0},{"$f":"IF(W31>0,YEAR(Setup!$B$8)-YEAR(VLOOKUP(W31,ALMD!$C:$F,3,FALSE)),0)","v":0},null,{"$f":"MD!$I34","v":38866},{"$f":"MD!$K34","v":"ΝΤΟΥΛΙΑΣ Λ"},{"$f":"IF(AE31>0,MD!$A34,\"\")","v":30},{"$f":"MD!$G34","v":20},null,{"$f":"SUBSTITUTE(SUBSTITUTE(Setup!$B$5&\"S-\"&Setup!$B$13&\"-\"&X31,\"Ανδ-\",\"\"),\"Γυν-\",\"\")","v":"Ε3S-14-17_32"},null,{"$error":"#N/A"},{"$error":"#N/A"},"ΤΟΥΝΤΑΣ Μ","ΚΥΡΙΑΚΟΠΟΥΛΟΣ Α"]
[{"$f":"Setup!$B$3","v":"ΣΤ' ΕΝΩΣΗ"},{"$f":"Setup!$Z$6","v":294},{"$f":"Setup!$Z$5","v":"Ε3 19η (ΣΤ)"},{"$f":"SUBSTITUTE(TRIM(Setup!$B$6),\"-\",\"\")","v":"Α14"},"Smd32",{"$f":"TEXT(Setup!$B$8,\"ΕΕΕΕ-ΜΜ-ΗΗ\")","v":"2018-05-12"},{"$f":"Setup!$T$7","v":{"$error":"#N/A"}},"Τελικός",{"$f":"IF(OR(MD!$V$20=1,MD!$V$20=2), IF(MD!$V$20=1,MD!$W$12,MD!$W$28),\"\")","v":34598},{"$f":"IF(OR(MD!$V$20=1,MD!$V$20=2), IF(MD!$V$20=2,MD!$W$12,MD!$W$28),\"\")","v":36030},{"$f":"TRIM(MD!X21)","v":"64 46 64"},1,24,1,4,34598,36030,"",null,20,{"$f":"IF(NOT(OR(W32=0,W32=\" \",W32=\"\")),IF(INDIRECT(\"ALMD!B\"&MATCH(W32,ALMD!$C$3:$C$34,0)+2)>0,INDIRECT(\"ALMD!B\"&MATCH(W32,ALMD!$C$3:$C$34,0)+2),\"\"),\"\")","v":""},{"$f":"Setup!$T$7","v":{"$error":"#N/A"}},38866,"17_32",0,1,0,{"$f":"IF(OR($Z32=0,$Z32=\"\",$U32=\"DQ\"),0,VLOOKUP($AJ32,tables!$AF:$AG,2,FALSE))","v":3},{"$f":"IF(W32>0,YEAR(Setup!$B$8)-YEAR(VLOOKUP(W32,ALMD!$C:$F,3,FALSE)),0)","v":13},null,{"$f":"MD!$I35","v":0},{"$f":"MD!$K35","v":""},{"$f":"IF(AE32>0,MD!$A35,\"\")","v":""},{"$f":"MD!$G35","v":"-"},null,{"$f":"SUBSTITUTE(SUBSTITUTE(Setup!$B$5&\"S-\"&Setup!$B$13&\"-\"&X32,\"Ανδ-\",\"\"),\"Γυν-\",\"\")","v":"Ε3S-14-17_32"},null,{"$error":"#N/A"},{"$error":"#N/A"},"ΚΟΛΛΙΑΣ Σ","ΤΟΥΝΤΑΣ Μ"]
[{"$f":"Setup!$B$3","v":"ΣΤ' ΕΝΩΣΗ"},{"$f":"Setup!$Z$6","v":294},{"$f":"Setup!$Z$5","v":"Ε3 19η (ΣΤ)"},{"$f":"SUBSTITUTE(TRIM(Setup!$B$6),\"-\",\"\")","v":"Α14"},"Smd32",{"$f":"TEXT(Setup!$B$8,\"ΕΕΕΕ-ΜΜ-ΗΗ\")","v":"2018-05-12"},null,null,null,null,null,null,null,null,null,null,null,null,null,"",{"$f":"IF(NOT(OR(W33=0,W33=\" \",W33=\"\")),IF(INDIRECT(\"ALMD!B\"&MATCH(W33,ALMD!$C$3:$C$34,0)+2)>0,INDIRECT(\"ALMD!B\"&MATCH(W33,ALMD!$C$3:$C$34,0)+2),\"\"),\"\")","v":""},{"$f":"Setup!$T$7","v":{"$error":"#N/A"}},{"$f":"J17","v":0},"17_32",0,0,0,{"$f":"IF(OR($Z33=0,$Z33=\"\",$U33=\"DQ\"),0,VLOOKUP($AJ33,tables!$AF:$AG,2,FALSE))","v":0},{"$f":"IF(W33>0,YEAR(Setup!$B$8)-YEAR(VLOOKUP(W33,ALMD!$C:$F,3,FALSE)),0)","v":0},null,{"$f":"MD!$I36","v":36854},{"$f":"MD!$K36","v":"ΚΥΡΙΑΚΟΠΟΥΛΟΣ Α"},{"$f":"IF(AE33>0,MD!$A36,\"\")","v":32},{"$f":"MD!$G36","v":2},null,{"$f":"SUBSTITUTE(SUBSTITUTE(Setup!$B$5&\"S-\"&Setup!$B$13&\"-\"&X33,\"Ανδ-\",\"\"),\"Γυν-\",\"\")","v":"Ε3S-14-17_32"}]